Workbook

Sheet INTRO
C1: The current version should be used in countries endemic for Loasis
B2: Joint request for selected PC medicines
B4: As part of global efforts to accelerate expansion of preventive chemotherapy (PC) for control and elimination of lymphatic filariasis, schistosomiasis and soil-transmitted helminthiases, the World Health Organization (WHO) facilitates the supply of albendazole 400 mg tablets (GSK) to national lymphatic filariasis elimination programmes and national soil-transmitted helminth control programmes; diethylcarbamazine citrate 100 mg tablets (Eisai) to national lymphatic filariasis elimination programmes; mebendazole 500 mg tablets (J&J) for national soil-transmitted helminth control programmes; and praziquantel 600 mg tablets (Merck KGaA) for school-age children to national schistosomiasis control programmes. WHO also collaborates to supply ivermectin 3 mg tablets (Merck) for onchocerciasis and lymphatic filariasis donation programmes. This Excel-based tool is designed to assist countries in quantifying the number of tablets of relevant PC medicines required to reach the planned target population and districts for the year of request. Output of the tool is a joint request for PC medicines, which can be printed, signed and submitted to WHO to request these medicines.
B6: Structure of the application (worksheets):
B8: INTRO | C8: This worksheet includes guides on how to complete the joint request for selected PC medicines and information about the status of PC for endemic diseases in the country.
B9: COUNTRY_INFO | C9: This worksheet includes information about administrative structure of the country, population by age group, status of endemicity for each disease, population requiring PC and planned interventions.
B10: DEC, ALB_MBD, PZQ and IVM | C10: These worksheets include information about endemic districts targeted for treatment with specified PC medicines, treatment plan, and number of tablets required and requested.
B11: SUMMARY | C11: This worksheet includes summary of number of tablets requested, information about stock, and date for submission of requested medicines. Before generating the report (run macros) please select the medicine for which the report is needed. Follow the same rule to see the number of people to be treated for the specific disease. This worksheet should be printed and submitted as a joint request for selected PC medicines (see the instruction for submission in the SUMMARY worksheet).
B13: Instruction for data entry
B15: Most of the cells in the above-mentioned worksheets include formula that are calculated automatically according to the treatment policy recommended by WHO for each disease. See the link http://www.who.int/neglected_diseases/preventive_chemotherapy/pct_manual/en/index.html
B17: Please enter your data into the cells according to their colour code:
C19: White - cell is not protected. Please enter the value of the requested indicator.
C21: Yellow - cell is protected and includes name of indicator. No data entry required.
C23: Orange - cell is not protected and includes a drop-down menu. Please select the value from the drop-down list.
C26: Green - cell is not protected and includes formula. Please change the value only if your data are different from those that are calculated automatically.
C29: Blue - cell is protected and includes formula. No data entry required.
B31: Country data
B33: COUNTRY | E33: Nigeria
B35: Year for request of the medicine | E35: 2018
B37: Is country endemic for lymphatic filariasis (LF)? | E37: Endemic
B39: Is country endemic for onchocerciasis (ONCHO)? | E39: Endemic
B41: Is country endemic for soil-transmitted helminthiases (STH)? | E41: Endemic
B43: Is country endemic for schistosomiasis (SCH)? | E43: Endemic
B45: How many administrative units in the country? | E45: 774
B47: If demographical data at the second administrative level are not available by age group, please enter the proportion (%) of population by age group in the country. If data are available, please leave these cells blank.
B48: Preschool-age children (PreSAC) - aged 1-4 years | E48: 0.2
B49: School-age children (SAC) - aged 5-14 years | E49: 0.28
B50: Adults - aged 15 years and older | E50: 0.52

Sheet COUNTRY_INFO
A1: COUNTRY INFORMATION
A2: Administrative structure, population by age group, status of endemicity and planned interventions
A4: TOTAL | D4: =SUM(D$9:D$1000) -> 188261047.4 | E4: =SUM(E$9:E$1000) -> 37652204 | F4: =SUM(F$9:F$1000) -> 52713087 | G4: =SUM(G$9:G$1000) -> 97895740 | M4: =SUM(M$9:M$1000) -> 129943423.1 | N4: =SUM(N$9:N$1000) -> 55771190.33 | O4: =SUM(O$9:O$1000) -> 48112349 | P4: =SUM(P$9:P$1000) -> 24165109.35
A6: Country administrative structure | D6: Population | H6: Endemicity | M6: Population requiring PC | Q6: Number of treatment rounds planned for the year | U6: Epidemiological surveys planned for the year
A7: Country | B7: Province/State | C7: District | D7: Total | E7: PreSAC | F7: SAC | G7: Adults | H7: LF | I7: Oncho | J7: STH | K7: SCH | L7: Loa | M7: LF | N7: Oncho | O7: STH | P7: SCH | Q7: LF | R7: Oncho | S7: STH | T7: SCH | U7: LF | V7: Oncho | W7: STH | X7: SCH | Y7: IU_ID | Z7: IU_NAME
A9: =IF(INTRO!$E$33<>0,INTRO!$E$33, " ") -> Nigeria | B9: Abia | C9: Aba North | D9: 144559.4099 | E9: =IF(INTRO!$E$48="","",ROUND($D9*INTRO!$E$48,0)) -> 28912 | F9: =IF(INTRO!$E$49="","",ROUND($D9*INTRO!$E$49,0)) -> 40477 | G9: =IF(INTRO!$E$50="","",ROUND($D9*INTRO!$E$50,0)) -> 75171 | H9: 1 | I9: 1 | J9: 2 | K9: 1 | L9: 0 | M9: =IF(INTRO!$E$37="Endemic",IF($H9>0,IF($H9=4,"Unknown",IF($H9=99,"Stopped",$D9)),0),"Not required") -> 144559.4099 | N9: 55037.21454 | O9: =IF(INTRO!$E$41="Endemic", IF(AND($J9>1,$J9<5), IF($J9=4, "Unknown", E9+F9), 0),"Not required") -> 69389 | P9: =IF(INTRO!$E$43="Endemic", IF(AND($K9>0,$K9<5), IF($K9=4,"Unknown", IF($K9=1, $F9*0.33, IF($K9=2, $F9*0.5+$G9*0.2, SUM(F9:G9)))), 0),"Not required") -> 13357.41 | Q9: 1 | R9: 2 | S9: 1 | T9: 0 | Y9: 36337 | Z9: Aba North
A10: =IF(INTRO!$E$33<>0,INTRO!$E$33, " ") -> Nigeria | B10: Abia | C10: Aba South | D10: 570033.8179 | E10: =IF(INTRO!$E$48="","",ROUND($D10*INTRO!$E$48,0)) -> 114007 | F10: =IF(INTRO!$E$49="","",ROUND($D10*INTRO!$E$49,0)) -> 159609 | G10: =IF(INTRO!$E$50="","",ROUND($D10*INTRO!$E$50,0)) -> 296418 | H10: 1 | I10: 1 | J10: 2 | K10: 0 | L10: 0 | M10: =IF(INTRO!$E$37="Endemic",IF($H10>0,IF($H10=4,"Unknown",IF($H10=99,"Stopped",$D10)),0),"Not required") -> 570033.8179 | N10: 217026.1715 | O10: =IF(INTRO!$E$41="Endemic", IF(AND($J10>1,$J10<5), IF($J10=4, "Unknown", E10+F10), 0),"Not required") -> 273616 | P10: =IF(INTRO!$E$43="Endemic", IF(AND($K10>0,$K10<5), IF($K10=4,"Unknown", IF($K10=1, $F10*0.33, IF($K10=2, $F10*0.5+$G10*0.2, SUM(F10:G10)))), 0),"Not required") -> 0 | Q10: 1 | R10: 2 | S10: 1 | T10: 0 | Y10: 36338 | Z10: Aba South
A11: =IF(INTRO!$E$33<>0,INTRO!$E$33, " ") -> Nigeria | B11: Abia | C11: Arochukwu | D11: 228908.1472 | E11: =IF(INTRO!$E$48="","",ROUND($D11*INTRO!$E$48,0)) -> 45782 | F11: =IF(INTRO!$E$49="","",ROUND($D11*INTRO!$E$49,0)) -> 64094 | G11: =IF(INTRO!$E$50="","",ROUND($D11*INTRO!$E$50,0)) -> 119032 | H11: 1 | I11: 1 | J11: 3 | K11: 0 | L11: 0 | M11: =IF(INTRO!$E$37="Endemic",IF($H11>0,IF($H11=4,"Unknown",IF($H11=99,"Stopped",$D11)),0),"Not required") -> 228908.1472 | N11: 71726.86545 | O11: =IF(INTRO!$E$41="Endemic", IF(AND($J11>1,$J11<5), IF($J11=4, "Unknown", E11+F11), 0),"Not required") -> 109876 | P11: =IF(INTRO!$E$43="Endemic", IF(AND($K11>0,$K11<5), IF($K11=4,"Unknown", IF($K11=1, $F11*0.33, IF($K11=2, $F11*0.5+$G11*0.2, SUM(F11:G11)))), 0),"Not required") -> 0 | Q11: 1 | R11: 2 | S11: 2 | T11: 0 | Y11: 36339 | Z11: Arochukwu
A12: =IF(INTRO!$E$33<>0,INTRO!$E$33, " ") -> Nigeria | B12: Abia | C12: Bende | D12: 258367.9369 | E12: =IF(INTRO!$E$48="","",ROUND($D12*INTRO!$E$48,0)) -> 51674 | F12: =IF(INTRO!$E$49="","",ROUND($D12*INTRO!$E$49,0)) -> 72343 | G12: =IF(INTRO!$E$50="","",ROUND($D12*INTRO!$E$50,0)) -> 134351 | H12: 1 | I12: 1 | J12: 3 | K12: 0 | L12: 0 | M12: =IF(INTRO!$E$37="Endemic",IF($H12>0,IF($H12=4,"Unknown",IF($H12=99,"Stopped",$D12)),0),"Not required") -> 258367.9369 | N12: 88215.62241 | O12: =IF(INTRO!$E$41="Endemic", IF(AND($J12>1,$J12<5), IF($J12=4, "Unknown", E12+F12), 0),"Not required") -> 124017 | P12: =IF(INTRO!$E$43="Endemic", IF(AND($K12>0,$K12<5), IF($K12=4,"Unknown", IF($K12=1, $F12*0.33, IF($K12=2, $F12*0.5+$G12*0.2, SUM(F12:G12)))), 0),"Not required") -> 0 | Q12: 1 | R12: 2 | S12: 2 | T12: 0 | Y12: 36340 | Z12: Bende
A13: =IF(INTRO!$E$33<>0,INTRO!$E$33, " ") -> Nigeria | B13: Abia | C13: Ikwuano | D13: 185585.2435 | E13: =IF(INTRO!$E$48="","",ROUND($D13*INTRO!$E$48,0)) -> 37117 | F13: =IF(INTRO!$E$49="","",ROUND($D13*INTRO!$E$49,0)) -> 51964 | G13: =IF(INTRO!$E$50="","",ROUND($D13*INTRO!$E$50,0)) -> 96504 | H13: 1 | I13: 1 | J13: 2 | K13: 1 | L13: 0 | M13: =IF(INTRO!$E$37="Endemic",IF($H13>0,IF($H13=4,"Unknown",IF($H13=99,"Stopped",$D13)),0),"Not required") -> 185585.2435 | N13: 50056.81078 | O13: =IF(INTRO!$E$41="Endemic", IF(AND($J13>1,$J13<5), IF($J13=4, "Unknown", E13+F13), 0),"Not required") -> 89081 | P13: =IF(INTRO!$E$43="Endemic", IF(AND($K13>0,$K13<5), IF($K13=4,"Unknown", IF($K13=1, $F13*0.33, IF($K13=2, $F13*0.5+$G13*0.2, SUM(F13:G13)))), 0),"Not required") -> 17148.12 | Q13: 1 | R13: 2 | S13: 1 | T13: 0 | Y13: 36341 | Z13: Ikwuano
A14: =IF(INTRO!$E$33<>0,INTRO!$E$33, " ") -> Nigeria | B14: Abia | C14: Isiala-Ngwa North | D14: 206755.1385 | E14: =IF(INTRO!$E$48="","",ROUND($D14*INTRO!$E$48,0)) -> 41351 | F14: =IF(INTRO!$E$49="","",ROUND($D14*INTRO!$E$49,0)) -> 57891 | G14: =IF(INTRO!$E$50="","",ROUND($D14*INTRO!$E$50,0)) -> 107513 | H14: 1 | I14: 1 | J14: 2 | K14: 0 | L14: 0 | M14: =IF(INTRO!$E$37="Endemic",IF($H14>0,IF($H14=4,"Unknown",IF($H14=99,"Stopped",$D14)),0),"Not required") -> 206755.1385 | N14: 78716.20867 | O14: =IF(INTRO!$E$41="Endemic", IF(AND($J14>1,$J14<5), IF($J14=4, "Unknown", E14+F14), 0),"Not required") -> 99242 | P14: =IF(INTRO!$E$43="Endemic", IF(AND($K14>0,$K14<5), IF($K14=4,"Unknown", IF($K14=1, $F14*0.33, IF($K14=2, $F14*0.5+$G14*0.2, SUM(F14:G14)))), 0),"Not required") -> 0 | Q14: 1 | R14: 2 | S14: 1 | T14: 0 | Y14: 36342 | Z14: Isiala-Ngwa North
A15: =IF(INTRO!$E$33<>0,INTRO!$E$33, " ") -> Nigeria | B15: Abia | C15: Isiala-Ngwa South | D15: 181239.9077 | E15: =IF(INTRO!$E$48="","",ROUND($D15*INTRO!$E$48,0)) -> 36248 | F15: =IF(INTRO!$E$49="","",ROUND($D15*INTRO!$E$49,0)) -> 50747 | G15: =IF(INTRO!$E$50="","",ROUND($D15*INTRO!$E$50,0)) -> 94245 | H15: 1 | I15: 1 | J15: 2 | K15: 0 | L15: 0 | M15: =IF(INTRO!$E$37="Endemic",IF($H15>0,IF($H15=4,"Unknown",IF($H15=99,"Stopped",$D15)),0),"Not required") -> 181239.9077 | N15: 69002.65523 | O15: =IF(INTRO!$E$41="Endemic", IF(AND($J15>1,$J15<5), IF($J15=4, "Unknown", E15+F15), 0),"Not required") -> 86995 | P15: =IF(INTRO!$E$43="Endemic", IF(AND($K15>0,$K15<5), IF($K15=4,"Unknown", IF($K15=1, $F15*0.33, IF($K15=2, $F15*0.5+$G15*0.2, SUM(F15:G15)))), 0),"Not required") -> 0 | Q15: 1 | R15: 2 | S15: 1 | T15: 0 | Y15: 36343 | Z15: Isiala-Ngwa South
A16: =IF(INTRO!$E$33<>0,INTRO!$E$33, " ") -> Nigeria | B16: Abia | C16: Isiukwuato | D16: 153911.7668 | E16: =IF(INTRO!$E$48="","",ROUND($D16*INTRO!$E$48,0)) -> 30782 | F16: =IF(INTRO!$E$49="","",ROUND($D16*INTRO!$E$49,0)) -> 43095 | G16: =IF(INTRO!$E$50="","",ROUND($D16*INTRO!$E$50,0)) -> 80034 | H16: 1 | I16: 1 | J16: 2 | K16: 0 | L16: 0 | M16: =IF(INTRO!$E$37="Endemic",IF($H16>0,IF($H16=4,"Unknown",IF($H16=99,"Stopped",$D16)),0),"Not required") -> 153911.7668 | N16: 71381.37201 | O16: =IF(INTRO!$E$41="Endemic", IF(AND($J16>1,$J16<5), IF($J16=4, "Unknown", E16+F16), 0),"Not required") -> 73877 | P16: =IF(INTRO!$E$43="Endemic", IF(AND($K16>0,$K16<5), IF($K16=4,"Unknown", IF($K16=1, $F16*0.33, IF($K16=2, $F16*0.5+$G16*0.2, SUM(F16:G16)))), 0),"Not required") -> 0 | Q16: 1 | R16: 2 | S16: 1 | T16: 0 | Y16: 36344 | Z16: Isiukwuato
A17: =IF(INTRO!$E$33<>0,INTRO!$E$33, " ") -> Nigeria | B17: Abia | C17: Obio-Ngwa | D17: 244015.2834 | E17: =IF(INTRO!$E$48="","",ROUND($D17*INTRO!$E$48,0)) -> 48803 | F17: =IF(INTRO!$E$49="","",ROUND($D17*INTRO!$E$49,0)) -> 68324 | G17: =IF(INTRO!$E$50="","",ROUND($D17*INTRO!$E$50,0)) -> 126888 | H17: 1 | I17: 1 | J17: 2 | K17: 0 | L17: 0 | M17: =IF(INTRO!$E$37="Endemic",IF($H17>0,IF($H17=4,"Unknown",IF($H17=99,"Stopped",$D17)),0),"Not required") -> 244015.2834 | N17: 92902.41194 | O17: =IF(INTRO!$E$41="Endemic", IF(AND($J17>1,$J17<5), IF($J17=4, "Unknown", E17+F17), 0),"Not required") -> 117127 | P17: =IF(INTRO!$E$43="Endemic", IF(AND($K17>0,$K17<5), IF($K17=4,"Unknown", IF($K17=1, $F17*0.33, IF($K17=2, $F17*0.5+$G17*0.2, SUM(F17:G17)))), 0),"Not required") -> 0 | Q17: 1 | R17: 2 | S17: 1 | T17: 0 | Y17: 36345 | Z17: Obio-Ngwa
A18: =IF(INTRO!$E$33<>0,INTRO!$E$33, " ") -> Nigeria | B18: Abia | C18: Ohafia | D18: 329691.4259 | E18: =IF(INTRO!$E$48="","",ROUND($D18*INTRO!$E$48,0)) -> 65938 | F18: =IF(INTRO!$E$49="","",ROUND($D18*INTRO!$E$49,0)) -> 92314 | G18: =IF(INTRO!$E$50="","",ROUND($D18*INTRO!$E$50,0)) -> 171440 | H18: 1 | I18: 1 | J18: 2 | K18: 0 | L18: 0 | M18: =IF(INTRO!$E$37="Endemic",IF($H18>0,IF($H18=4,"Unknown",IF($H18=99,"Stopped",$D18)),0),"Not required") -> 329691.4259 | N18: 72250.07276 | O18: =IF(INTRO!$E$41="Endemic", IF(AND($J18>1,$J18<5), IF($J18=4, "Unknown", E18+F18), 0),"Not required") -> 158252 | P18: =IF(INTRO!$E$43="Endemic", IF(AND($K18>0,$K18<5), IF($K18=4,"Unknown", IF($K18=1, $F18*0.33, IF($K18=2, $F18*0.5+$G18*0.2, SUM(F18:G18)))), 0),"Not required") -> 0 | Q18: 1 | R18: 2 | S18: 1 | T18: 0 | Y18: 36346 | Z18: Ohafia
A19: =IF(INTRO!$E$33<>0,INTRO!$E$33, " ") -> Nigeria | B19: Abia | C19: Osisioma Ngwa | D19: 295380.6222 | E19: =IF(INTRO!$E$48="","",ROUND($D19*INTRO!$E$48,0)) -> 59076 | F19: =IF(INTRO!$E$49="","",ROUND($D19*INTRO!$E$49,0)) -> 82707 | G19: =IF(INTRO!$E$50="","",ROUND($D19*INTRO!$E$50,0)) -> 153598 | H19: 1 | I19: 1 | J19: 1 | K19: 0 | L19: 0 | M19: =IF(INTRO!$E$37="Endemic",IF($H19>0,IF($H19=4,"Unknown",IF($H19=99,"Stopped",$D19)),0),"Not required") -> 295380.6222 | N19: 112458.6649 | O19: =IF(INTRO!$E$41="Endemic", IF(AND($J19>1,$J19<5), IF($J19=4, "Unknown", E19+F19), 0),"Not required") -> 0 | P19: =IF(INTRO!$E$43="Endemic", IF(AND($K19>0,$K19<5), IF($K19=4,"Unknown", IF($K19=1, $F19*0.33, IF($K19=2, $F19*0.5+$G19*0.2, SUM(F19:G19)))), 0),"Not required") -> 0 | Q19: 1 | R19: 2 | S19: 0 | T19: 0 | Y19: 36347 | Z19: Osisioma Ngwa
A20: =IF(INTRO!$E$33<>0,INTRO!$E$33, " ") -> Nigeria | B20: Abia | C20: Ugwunagbo | D20: 111112.0249 | E20: =IF(INTRO!$E$48="","",ROUND($D20*INTRO!$E$48,0)) -> 22222 | F20: =IF(INTRO!$E$49="","",ROUND($D20*INTRO!$E$49,0)) -> 31111 | G20: =IF(INTRO!$E$50="","",ROUND($D20*INTRO!$E$50,0)) -> 57778 | H20: 1 | I20: 1 | J20: 3 | K20: 0 | L20: 0 | M20: =IF(INTRO!$E$37="Endemic",IF($H20>0,IF($H20=4,"Unknown",IF($H20=99,"Stopped",$D20)),0),"Not required") -> 111112.0249 | N20: 42302.52522 | O20: =IF(INTRO!$E$41="Endemic", IF(AND($J20>1,$J20<5), IF($J20=4, "Unknown", E20+F20), 0),"Not required") -> 53333 | P20: =IF(INTRO!$E$43="Endemic", IF(AND($K20>0,$K20<5), IF($K20=4,"Unknown", IF($K20=1, $F20*0.33, IF($K20=2, $F20*0.5+$G20*0.2, SUM(F20:G20)))), 0),"Not required") -> 0 | Q20: 1 | R20: 2 | S20: 2 | T20: 0 | Y20: 36348 | Z20: Ugwunagbo
A21: =IF(INTRO!$E$33<>0,INTRO!$E$33, " ") -> Nigeria | B21: Abia | C21: Ukwa East | D21: 79166.88064 | E21: =IF(INTRO!$E$48="","",ROUND($D21*INTRO!$E$48,0)) -> 15833 | F21: =IF(INTRO!$E$49="","",ROUND($D21*INTRO!$E$49,0)) -> 22167 | G21: =IF(INTRO!$E$50="","",ROUND($D21*INTRO!$E$50,0)) -> 41167 | H21: 1 | I21: 1 | J21: 2 | K21: 0 | L21: 0 | M21: =IF(INTRO!$E$37="Endemic",IF($H21>0,IF($H21=4,"Unknown",IF($H21=99,"Stopped",$D21)),0),"Not required") -> 79166.88064 | N21: 55187.33309 | O21: =IF(INTRO!$E$41="Endemic", IF(AND($J21>1,$J21<5), IF($J21=4, "Unknown", E21+F21), 0),"Not required") -> 38000 | P21: =IF(INTRO!$E$43="Endemic", IF(AND($K21>0,$K21<5), IF($K21=4,"Unknown", IF($K21=1, $F21*0.33, IF($K21=2, $F21*0.5+$G21*0.2, SUM(F21:G21)))), 0),"Not required") -> 0 | Q21: 1 | R21: 2 | S21: 1 | T21: 0 | Y21: 36349 | Z21: Ukwa East
A22: =IF(INTRO!$E$33<>0,INTRO!$E$33, " ") -> Nigeria | B22: Abia | C22: Ukwa West | D22: 119096.6298 | E22: =IF(INTRO!$E$48="","",ROUND($D22*INTRO!$E$48,0)) -> 23819 | F22: =IF(INTRO!$E$49="","",ROUND($D22*INTRO!$E$49,0)) -> 33347 | G22: =IF(INTRO!$E$50="","",ROUND($D22*INTRO!$E$50,0)) -> 61930 | H22: 1 | I22: 1 | J22: 2 | K22: 0 | L22: 0 | M22: =IF(INTRO!$E$37="Endemic",IF($H22>0,IF($H22=4,"Unknown",IF($H22=99,"Stopped",$D22)),0),"Not required") -> 119096.6298 | N22: 71591.09646 | O22: =IF(INTRO!$E$41="Endemic", IF(AND($J22>1,$J22<5), IF($J22=4, "Unknown", E22+F22), 0),"Not required") -> 57166 | P22: =IF(INTRO!$E$43="Endemic", IF(AND($K22>0,$K22<5), IF($K22=4,"Unknown", IF($K22=1, $F22*0.33, IF($K22=2, $F22*0.5+$G22*0.2, SUM(F22:G22)))), 0),"Not required") -> 0 | Q22: 1 | R22: 2 | S22: 1 | T22: 0 | Y22: 36350 | Z22: Ukwa West
A23: =IF(INTRO!$E$33<>0,INTRO!$E$33, " ") -> Nigeria | B23: Abia | C23: Umuahia North | D23: 296763.168 | E23: =IF(INTRO!$E$48="","",ROUND($D23*INTRO!$E$48,0)) -> 59353 | F23: =IF(INTRO!$E$49="","",ROUND($D23*INTRO!$E$49,0)) -> 83094 | G23: =IF(INTRO!$E$50="","",ROUND($D23*INTRO!$E$50,0)) -> 154317 | H23: 1 | I23: 1 | J23: 2 | K23: 1 | L23: 0 | M23: =IF(INTRO!$E$37="Endemic",IF($H23>0,IF($H23=4,"Unknown",IF($H23=99,"Stopped",$D23)),0),"Not required") -> 296763.168 | N23: 112985.1837 | O23: =IF(INTRO!$E$41="Endemic", IF(AND($J23>1,$J23<5), IF($J23=4, "Unknown", E23+F23), 0),"Not required") -> 142447 | P23: =IF(INTRO!$E$43="Endemic", IF(AND($K23>0,$K23<5), IF($K23=4,"Unknown", IF($K23=1, $F23*0.33, IF($K23=2, $F23*0.5+$G23*0.2, SUM(F23:G23)))), 0),"Not required") -> 27421.02 | Q23: 1 | R23: 2 | S23: 1 | T23: 0 | Y23: 36352 | Z23: Umuahia North
A24: =IF(INTRO!$E$33<>0,INTRO!$E$33, " ") -> Nigeria | B24: Abia | C24: Umuahia South | D24: 186361.2444 | E24: =IF(INTRO!$E$48="","",ROUND($D24*INTRO!$E$48,0)) -> 37272 | F24: =IF(INTRO!$E$49="","",ROUND($D24*INTRO!$E$49,0)) -> 52181 | G24: =IF(INTRO!$E$50="","",ROUND($D24*INTRO!$E$50,0)) -> 96908 | H24: 1 | I24: 1 | J24: 2 | K24: 1 | L24: 0 | M24: =IF(INTRO!$E$37="Endemic",IF($H24>0,IF($H24=4,"Unknown",IF($H24=99,"Stopped",$D24)),0),"Not required") -> 186361.2444 | N24: 70951.9888 | O24: =IF(INTRO!$E$41="Endemic", IF(AND($J24>1,$J24<5), IF($J24=4, "Unknown", E24+F24), 0),"Not required") -> 89453 | P24: =IF(INTRO!$E$43="Endemic", IF(AND($K24>0,$K24<5), IF($K24=4,"Unknown", IF($K24=1, $F24*0.33, IF($K24=2, $F24*0.5+$G24*0.2, SUM(F24:G24)))), 0),"Not required") -> 17219.73 | Q24: 1 | R24: 2 | S24: 1 | T24: 0 | Y24: 36353 | Z24: Umuahia South
A25: =IF(INTRO!$E$33<>0,INTRO!$E$33, " ") -> Nigeria | B25: Abia | C25: Umu-Nneochi | D25: 220464.9352 | E25: =IF(INTRO!$E$48="","",ROUND($D25*INTRO!$E$48,0)) -> 44093 | F25: =IF(INTRO!$E$49="","",ROUND($D25*INTRO!$E$49,0)) -> 61730 | G25: =IF(INTRO!$E$50="","",ROUND($D25*INTRO!$E$50,0)) -> 114642 | H25: 1 | I25: 1 | J25: 2 | K25: 1 | L25: 0 | M25: =IF(INTRO!$E$37="Endemic",IF($H25>0,IF($H25=4,"Unknown",IF($H25=99,"Stopped",$D25)),0),"Not required") -> 220464.9352 | N25: 99827.73402 | O25: =IF(INTRO!$E$41="Endemic", IF(AND($J25>1,$J25<5), IF($J25=4, "Unknown", E25+F25), 0),"Not required") -> 105823 | P25: =IF(INTRO!$E$43="Endemic", IF(AND($K25>0,$K25<5), IF($K25=4,"Unknown", IF($K25=1, $F25*0.33, IF($K25=2, $F25*0.5+$G25*0.2, SUM(F25:G25)))), 0),"Not required") -> 20370.9 | Q25: 1 | R25: 2 | S25: 1 | T25: 0 | Y25: 36351 | Z25: Umu-Nneochi
A26: =IF(INTRO!$E$33<>0,INTRO!$E$33, " ") -> Nigeria | B26: Adamawa | C26: Demsa | D26: 242417.5555 | E26: =IF(INTRO!$E$48="","",ROUND($D26*INTRO!$E$48,0)) -> 48484 | F26: =IF(INTRO!$E$49="","",ROUND($D26*INTRO!$E$49,0)) -> 67877 | G26: =IF(INTRO!$E$50="","",ROUND($D26*INTRO!$E$50,0)) -> 126057 | H26: 1 | I26: 1 | J26: 1 | K26: 2 | L26: 4 | M26: =IF(INTRO!$E$37="Endemic",IF($H26>0,IF($H26=4,"Unknown",IF($H26=99,"Stopped",$D26)),0),"Not required") -> 242417.5555 | N26: 101441.5085 | O26: =IF(INTRO!$E$41="Endemic", IF(AND($J26>1,$J26<5), IF($J26=4, "Unknown", E26+F26), 0),"Not required") -> 0 | P26: =IF(INTRO!$E$43="Endemic", IF(AND($K26>0,$K26<5), IF($K26=4,"Unknown", IF($K26=1, $F26*0.33, IF($K26=2, $F26*0.5+$G26*0.2, SUM(F26:G26)))), 0),"Not required") -> 59149.9 | Q26: 1 | R26: 1 | S26: 0 | T26: 1 | Y26: 36354 | Z26: Demsa
A27: =IF(INTRO!$E$33<>0,INTRO!$E$33, " ") -> Nigeria | B27: Adamawa | C27: Fufore | D27: 278777.9697 | E27: =IF(INTRO!$E$48="","",ROUND($D27*INTRO!$E$48,0)) -> 55756 | F27: =IF(INTRO!$E$49="","",ROUND($D27*INTRO!$E$49,0)) -> 78058 | G27: =IF(INTRO!$E$50="","",ROUND($D27*INTRO!$E$50,0)) -> 144965 | H27: 1 | I27: 1 | J27: 1 | K27: 2 | L27: 4 | M27: =IF(INTRO!$E$37="Endemic",IF($H27>0,IF($H27=4,"Unknown",IF($H27=99,"Stopped",$D27)),0),"Not required") -> 278777.9697 | N27: 75985.37558 | O27: =IF(INTRO!$E$41="Endemic", IF(AND($J27>1,$J27<5), IF($J27=4, "Unknown", E27+F27), 0),"Not required") -> 0 | P27: =IF(INTRO!$E$43="Endemic", IF(AND($K27>0,$K27<5), IF($K27=4,"Unknown", IF($K27=1, $F27*0.33, IF($K27=2, $F27*0.5+$G27*0.2, SUM(F27:G27)))), 0),"Not required") -> 68022 | Q27: 1 | R27: 1 | S27: 0 | T27: 1 | Y27: 36355 | Z27: Fufore
A28: =IF(INTRO!$E$33<>0,INTRO!$E$33, " ") -> Nigeria | B28: Adamawa | C28: Ganye | D28: 220678.7725 | E28: =IF(INTRO!$E$48="","",ROUND($D28*INTRO!$E$48,0)) -> 44136 | F28: =IF(INTRO!$E$49="","",ROUND($D28*INTRO!$E$49,0)) -> 61790 | G28: =IF(INTRO!$E$50="","",ROUND($D28*INTRO!$E$50,0)) -> 114753 | H28: 1 | I28: 1 | J28: 1 | K28: 2 | L28: 4 | M28: =IF(INTRO!$E$37="Endemic",IF($H28>0,IF($H28=4,"Unknown",IF($H28=99,"Stopped",$D28)),0),"Not required") -> 220678.7725 | N28: 109100.8661 | O28: =IF(INTRO!$E$41="Endemic", IF(AND($J28>1,$J28<5), IF($J28=4, "Unknown", E28+F28), 0),"Not required") -> 0 | P28: =IF(INTRO!$E$43="Endemic", IF(AND($K28>0,$K28<5), IF($K28=4,"Unknown", IF($K28=1, $F28*0.33, IF($K28=2, $F28*0.5+$G28*0.2, SUM(F28:G28)))), 0),"Not required") -> 53845.6 | Q28: 1 | R28: 1 | S28: 0 | T28: 1 | Y28: 36356 | Z28: Ganye
A29: =IF(INTRO!$E$33<>0,INTRO!$E$33, " ") -> Nigeria | B29: Adamawa | C29: Girei | D29: 174828.8227 | E29: =IF(INTRO!$E$48="","",ROUND($D29*INTRO!$E$48,0)) -> 34966 | F29: =IF(INTRO!$E$49="","",ROUND($D29*INTRO!$E$49,0)) -> 48952 | G29: =IF(INTRO!$E$50="","",ROUND($D29*INTRO!$E$50,0)) -> 90911 | H29: 1 | I29: 1 | J29: 1 | K29: 1 | L29: 0 | M29: =IF(INTRO!$E$37="Endemic",IF($H29>0,IF($H29=4,"Unknown",IF($H29=99,"Stopped",$D29)),0),"Not required") -> 174828.8227 | N29: 174828.8227 | O29: =IF(INTRO!$E$41="Endemic", IF(AND($J29>1,$J29<5), IF($J29=4, "Unknown", E29+F29), 0),"Not required") -> 0 | P29: =IF(INTRO!$E$43="Endemic", IF(AND($K29>0,$K29<5), IF($K29=4,"Unknown", IF($K29=1, $F29*0.33, IF($K29=2, $F29*0.5+$G29*0.2, SUM(F29:G29)))), 0),"Not required") -> 16154.16 | Q29: 1 | R29: 1 | S29: 0 | T29: 0 | Y29: 36357 | Z29: Girei
A30: =IF(INTRO!$E$33<>0,INTRO!$E$33, " ") -> Nigeria | B30: Adamawa | C30: Gombi | D30: 196930.7256 | E30: =IF(INTRO!$E$48="","",ROUND($D30*INTRO!$E$48,0)) -> 39386 | F30: =IF(INTRO!$E$49="","",ROUND($D30*INTRO!$E$49,0)) -> 55141 | G30: =IF(INTRO!$E$50="","",ROUND($D30*INTRO!$E$50,0)) -> 102404 | H30: 1 | I30: 1 | J30: 1 | K30: 2 | L30: 4 | M30: =IF(INTRO!$E$37="Endemic",IF($H30>0,IF($H30=4,"Unknown",IF($H30=99,"Stopped",$D30)),0),"Not required") -> 196930.7256 | N30: 89300.67048 | O30: =IF(INTRO!$E$41="Endemic", IF(AND($J30>1,$J30<5), IF($J30=4, "Unknown", E30+F30), 0),"Not required") -> 0 | P30: =IF(INTRO!$E$43="Endemic", IF(AND($K30>0,$K30<5), IF($K30=4,"Unknown", IF($K30=1, $F30*0.33, IF($K30=2, $F30*0.5+$G30*0.2, SUM(F30:G30)))), 0),"Not required") -> 48051.3 | Q30: 1 | R30: 1 | S30: 0 | T30: 1 | Y30: 36358 | Z30: Gombi
A31: =IF(INTRO!$E$33<>0,INTRO!$E$33, " ") -> Nigeria | B31: Adamawa | C31: Guyuk | D31: 239101.0596 | E31: =IF(INTRO!$E$48="","",ROUND($D31*INTRO!$E$48,0)) -> 47820 | F31: =IF(INTRO!$E$49="","",ROUND($D31*INTRO!$E$49,0)) -> 66948 | G31: =IF(INTRO!$E$50="","",ROUND($D31*INTRO!$E$50,0)) -> 124333 | H31: 1 | I31: 1 | J31: 1 | K31: 2 | L31: 4 | M31: =IF(INTRO!$E$37="Endemic",IF($H31>0,IF($H31=4,"Unknown",IF($H31=99,"Stopped",$D31)),0),"Not required") -> 239101.0596 | N31: 117896.0472 | O31: =IF(INTRO!$E$41="Endemic", IF(AND($J31>1,$J31<5), IF($J31=4, "Unknown", E31+F31), 0),"Not required") -> 0 | P31: =IF(INTRO!$E$43="Endemic", IF(AND($K31>0,$K31<5), IF($K31=4,"Unknown", IF($K31=1, $F31*0.33, IF($K31=2, $F31*0.5+$G31*0.2, SUM(F31:G31)))), 0),"Not required") -> 58340.6 | Q31: 1 | R31: 1 | S31: 0 | T31: 1 | Y31: 36359 | Z31: Guyuk
A32: =IF(INTRO!$E$33<>0,INTRO!$E$33, " ") -> Nigeria | B32: Adamawa | C32: Hong | D32: 227455.6673 | E32: =IF(INTRO!$E$48="","",ROUND($D32*INTRO!$E$48,0)) -> 45491 | F32: =IF(INTRO!$E$49="","",ROUND($D32*INTRO!$E$49,0)) -> 63688 | G32: =IF(INTRO!$E$50="","",ROUND($D32*INTRO!$E$50,0)) -> 118277 | H32: 0 | I32: 1 | J32: 1 | K32: 2 | L32: 0 | M32: =IF(INTRO!$E$37="Endemic",IF($H32>0,IF($H32=4,"Unknown",IF($H32=99,"Stopped",$D32)),0),"Not required") -> 0 | N32: 128998.1973 | O32: =IF(INTRO!$E$41="Endemic", IF(AND($J32>1,$J32<5), IF($J32=4, "Unknown", E32+F32), 0),"Not required") -> 0 | P32: =IF(INTRO!$E$43="Endemic", IF(AND($K32>0,$K32<5), IF($K32=4,"Unknown", IF($K32=1, $F32*0.33, IF($K32=2, $F32*0.5+$G32*0.2, SUM(F32:G32)))), 0),"Not required") -> 55499.4 | Q32: 0 | R32: 1 | S32: 0 | T32: 1 | Y32: 36360 | Z32: Hong
A33: =IF(INTRO!$E$33<>0,INTRO!$E$33, " ") -> Nigeria | B33: Adamawa | C33: Jada | D33: 226577.4549 | E33: =IF(INTRO!$E$48="","",ROUND($D33*INTRO!$E$48,0)) -> 45315 | F33: =IF(INTRO!$E$49="","",ROUND($D33*INTRO!$E$49,0)) -> 63442 | G33: =IF(INTRO!$E$50="","",ROUND($D33*INTRO!$E$50,0)) -> 117820 | H33: 1 | I33: 1 | J33: 2 | K33: 1 | L33: 0 | M33: =IF(INTRO!$E$37="Endemic",IF($H33>0,IF($H33=4,"Unknown",IF($H33=99,"Stopped",$D33)),0),"Not required") -> 226577.4549 | N33: 219081.4711 | O33: =IF(INTRO!$E$41="Endemic", IF(AND($J33>1,$J33<5), IF($J33=4, "Unknown", E33+F33), 0),"Not required") -> 108757 | P33: =IF(INTRO!$E$43="Endemic", IF(AND($K33>0,$K33<5), IF($K33=4,"Unknown", IF($K33=1, $F33*0.33, IF($K33=2, $F33*0.5+$G33*0.2, SUM(F33:G33)))), 0),"Not required") -> 20935.86 | Q33: 1 | R33: 1 | S33: 1 | T33: 0 | Y33: 36361 | Z33: Jada
A34: =IF(INTRO!$E$33<>0,INTRO!$E$33, " ") -> Nigeria | B34: Adamawa | C34: Lamurde | D34: 151707.494 | E34: =IF(INTRO!$E$48="","",ROUND($D34*INTRO!$E$48,0)) -> 30341 | F34: =IF(INTRO!$E$49="","",ROUND($D34*INTRO!$E$49,0)) -> 42478 | G34: =IF(INTRO!$E$50="","",ROUND($D34*INTRO!$E$50,0)) -> 78888 | H34: 1 | I34: 1 | J34: 1 | K34: 2 | L34: 4 | M34: =IF(INTRO!$E$37="Endemic",IF($H34>0,IF($H34=4,"Unknown",IF($H34=99,"Stopped",$D34)),0),"Not required") -> 151707.494 | N34: 94648.64393 | O34: =IF(INTRO!$E$41="Endemic", IF(AND($J34>1,$J34<5), IF($J34=4, "Unknown", E34+F34), 0),"Not required") -> 0 | P34: =IF(INTRO!$E$43="Endemic", IF(AND($K34>0,$K34<5), IF($K34=4,"Unknown", IF($K34=1, $F34*0.33, IF($K34=2, $F34*0.5+$G34*0.2, SUM(F34:G34)))), 0),"Not required") -> 37016.6 | Q34: 1 | R34: 1 | S34: 0 | T34: 1 | Y34: 36362 | Z34: Lamurde
A35: =IF(INTRO!$E$33<>0,INTRO!$E$33, " ") -> Nigeria | B35: Adamawa | C35: Madagali | D35: 181327.3255 | E35: =IF(INTRO!$E$48="","",ROUND($D35*INTRO!$E$48,0)) -> 36265 | F35: =IF(INTRO!$E$49="","",ROUND($D35*INTRO!$E$49,0)) -> 50772 | G35: =IF(INTRO!$E$50="","",ROUND($D35*INTRO!$E$50,0)) -> 94290 | H35: 0 | I35: 1 | J35: 1 | K35: 1 | L35: 0 | M35: =IF(INTRO!$E$37="Endemic",IF($H35>0,IF($H35=4,"Unknown",IF($H35=99,"Stopped",$D35)),0),"Not required") -> 0 | N35: 89576.6237 | O35: =IF(INTRO!$E$41="Endemic", IF(AND($J35>1,$J35<5), IF($J35=4, "Unknown", E35+F35), 0),"Not required") -> 0 | P35: =IF(INTRO!$E$43="Endemic", IF(AND($K35>0,$K35<5), IF($K35=4,"Unknown", IF($K35=1, $F35*0.33, IF($K35=2, $F35*0.5+$G35*0.2, SUM(F35:G35)))), 0),"Not required") -> 16754.76 | Q35: 0 | R35: 1 | S35: 0 | T35: 0 | Y35: 36363 | Z35: Madagali
A36: =IF(INTRO!$E$33<>0,INTRO!$E$33, " ") -> Nigeria | B36: Adamawa | C36: Maiha | D36: 149571.8106 | E36: =IF(INTRO!$E$48="","",ROUND($D36*INTRO!$E$48,0)) -> 29914 | F36: =IF(INTRO!$E$49="","",ROUND($D36*INTRO!$E$49,0)) -> 41880 | G36: =IF(INTRO!$E$50="","",ROUND($D36*INTRO!$E$50,0)) -> 77777 | H36: 1 | I36: 1 | J36: 1 | K36: 2 | L36: 0 | M36: =IF(INTRO!$E$37="Endemic",IF($H36>0,IF($H36=4,"Unknown",IF($H36=99,"Stopped",$D36)),0),"Not required") -> 149571.8106 | N36: 111055.7187 | O36: =IF(INTRO!$E$41="Endemic", IF(AND($J36>1,$J36<5), IF($J36=4, "Unknown", E36+F36), 0),"Not required") -> 0 | P36: =IF(INTRO!$E$43="Endemic", IF(AND($K36>0,$K36<5), IF($K36=4,"Unknown", IF($K36=1, $F36*0.33, IF($K36=2, $F36*0.5+$G36*0.2, SUM(F36:G36)))), 0),"Not required") -> 36495.4 | Q36: 1 | R36: 1 | S36: 0 | T36: 1 | Y36: 36364 | Z36: Maiha
A37: =IF(INTRO!$E$33<>0,INTRO!$E$33, " ") -> Nigeria | B37: Adamawa | C37: Mayo-belwa | D37: 205941.4808 | E37: =IF(INTRO!$E$48="","",ROUND($D37*INTRO!$E$48,0)) -> 41188 | F37: =IF(INTRO!$E$49="","",ROUND($D37*INTRO!$E$49,0)) -> 57664 | G37: =IF(INTRO!$E$50="","",ROUND($D37*INTRO!$E$50,0)) -> 107090 | H37: 1 | I37: 1 | J37: 1 | K37: 2 | L37: 4 | M37: =IF(INTRO!$E$37="Endemic",IF($H37>0,IF($H37=4,"Unknown",IF($H37=99,"Stopped",$D37)),0),"Not required") -> 205941.4808 | N37: 109791.853 | O37: =IF(INTRO!$E$41="Endemic", IF(AND($J37>1,$J37<5), IF($J37=4, "Unknown", E37+F37), 0),"Not required") -> 0 | P37: =IF(INTRO!$E$43="Endemic", IF(AND($K37>0,$K37<5), IF($K37=4,"Unknown", IF($K37=1, $F37*0.33, IF($K37=2, $F37*0.5+$G37*0.2, SUM(F37:G37)))), 0),"Not required") -> 50250 | Q37: 1 | R37: 1 | S37: 0 | T37: 1 | Y37: 36365 | Z37: Mayo-belwa
A38: =IF(INTRO!$E$33<>0,INTRO!$E$33, " ") -> Nigeria | B38: Adamawa | C38: Michika | D38: 208863.9242 | E38: =IF(INTRO!$E$48="","",ROUND($D38*INTRO!$E$48,0)) -> 41773 | F38: =IF(INTRO!$E$49="","",ROUND($D38*INTRO!$E$49,0)) -> 58482 | G38: =IF(INTRO!$E$50="","",ROUND($D38*INTRO!$E$50,0)) -> 108609 | H38: 1 | I38: 1 | J38: 1 | K38: 1 | L38: 0 | M38: =IF(INTRO!$E$37="Endemic",IF($H38>0,IF($H38=4,"Unknown",IF($H38=99,"Stopped",$D38)),0),"Not required") -> 208863.9242 | N38: 148378.944 | O38: =IF(INTRO!$E$41="Endemic", IF(AND($J38>1,$J38<5), IF($J38=4, "Unknown", E38+F38), 0),"Not required") -> 0 | P38: =IF(INTRO!$E$43="Endemic", IF(AND($K38>0,$K38<5), IF($K38=4,"Unknown", IF($K38=1, $F38*0.33, IF($K38=2, $F38*0.5+$G38*0.2, SUM(F38:G38)))), 0),"Not required") -> 19299.06 | Q38: 1 | R38: 1 | S38: 0 | T38: 0 | Y38: 36366 | Z38: Michika
A39: =IF(INTRO!$E$33<>0,INTRO!$E$33, " ") -> Nigeria | B39: Adamawa | C39: Mubi North | D39: 203175.0445 | E39: =IF(INTRO!$E$48="","",ROUND($D39*INTRO!$E$48,0)) -> 40635 | F39: =IF(INTRO!$E$49="","",ROUND($D39*INTRO!$E$49,0)) -> 56889 | G39: =IF(INTRO!$E$50="","",ROUND($D39*INTRO!$E$50,0)) -> 105651 | H39: 1 | I39: 0 | J39: 1 | K39: 1 | L39: 0 | M39: =IF(INTRO!$E$37="Endemic",IF($H39>0,IF($H39=4,"Unknown",IF($H39=99,"Stopped",$D39)),0),"Not required") -> 203175.0445 | N39: 0 | O39: =IF(INTRO!$E$41="Endemic", IF(AND($J39>1,$J39<5), IF($J39=4, "Unknown", E39+F39), 0),"Not required") -> 0 | P39: =IF(INTRO!$E$43="Endemic", IF(AND($K39>0,$K39<5), IF($K39=4,"Unknown", IF($K39=1, $F39*0.33, IF($K39=2, $F39*0.5+$G39*0.2, SUM(F39:G39)))), 0),"Not required") -> 18773.37 | Q39: 1 | R39: 0 | S39: 0 | T39: 0 | Y39: 36367 | Z39: Mubi North
A40: =IF(INTRO!$E$33<>0,INTRO!$E$33, " ") -> Nigeria | B40: Adamawa | C40: Mubi South | D40: 173405.9303 | E40: =IF(INTRO!$E$48="","",ROUND($D40*INTRO!$E$48,0)) -> 34681 | F40: =IF(INTRO!$E$49="","",ROUND($D40*INTRO!$E$49,0)) -> 48554 | G40: =IF(INTRO!$E$50="","",ROUND($D40*INTRO!$E$50,0)) -> 90171 | H40: 1 | I40: 0 | J40: 1 | K40: 2 | L40: 0 | M40: =IF(INTRO!$E$37="Endemic",IF($H40>0,IF($H40=4,"Unknown",IF($H40=99,"Stopped",$D40)),0),"Not required") -> 173405.9303 | N40: 0 | O40: =IF(INTRO!$E$41="Endemic", IF(AND($J40>1,$J40<5), IF($J40=4, "Unknown", E40+F40), 0),"Not required") -> 0 | P40: =IF(INTRO!$E$43="Endemic", IF(AND($K40>0,$K40<5), IF($K40=4,"Unknown", IF($K40=1, $F40*0.33, IF($K40=2, $F40*0.5+$G40*0.2, SUM(F40:G40)))), 0),"Not required") -> 42311.2 | Q40: 1 | R40: 0 | S40: 0 | T40: 1 | Y40: 36368 | Z40: Mubi South
A41: =IF(INTRO!$E$33<>0,INTRO!$E$33, " ") -> Nigeria | B41: Adamawa | C41: Numan | D41: 122012.3488 | E41: =IF(INTRO!$E$48="","",ROUND($D41*INTRO!$E$48,0)) -> 24402 | F41: =IF(INTRO!$E$49="","",ROUND($D41*INTRO!$E$49,0)) -> 34163 | G41: =IF(INTRO!$E$50="","",ROUND($D41*INTRO!$E$50,0)) -> 63446 | H41: 1 | I41: 0 | J41: 1 | K41: 2 | L41: 4 | M41: =IF(INTRO!$E$37="Endemic",IF($H41>0,IF($H41=4,"Unknown",IF($H41=99,"Stopped",$D41)),0),"Not required") -> 122012.3488 | N41: 0 | O41: =IF(INTRO!$E$41="Endemic", IF(AND($J41>1,$J41<5), IF($J41=4, "Unknown", E41+F41), 0),"Not required") -> 0 | P41: =IF(INTRO!$E$43="Endemic", IF(AND($K41>0,$K41<5), IF($K41=4,"Unknown", IF($K41=1, $F41*0.33, IF($K41=2, $F41*0.5+$G41*0.2, SUM(F41:G41)))), 0),"Not required") -> 29770.7 | Q41: 1 | R41: 0 | S41: 0 | T41: 1 | Y41: 36369 | Z41: Numan
A42: =IF(INTRO!$E$33<>0,INTRO!$E$33, " ") -> Nigeria | B42: Adamawa | C42: Shelleng | D42: 200481.2321 | E42: =IF(INTRO!$E$48="","",ROUND($D42*INTRO!$E$48,0)) -> 40096 | F42: =IF(INTRO!$E$49="","",ROUND($D42*INTRO!$E$49,0)) -> 56135 | G42: =IF(INTRO!$E$50="","",ROUND($D42*INTRO!$E$50,0)) -> 104250 | H42: 1 | I42: 1 | J42: 1 | K42: 2 | L42: 0 | M42: =IF(INTRO!$E$37="Endemic",IF($H42>0,IF($H42=4,"Unknown",IF($H42=99,"Stopped",$D42)),0),"Not required") -> 200481.2321 | N42: 62689.94931 | O42: =IF(INTRO!$E$41="Endemic", IF(AND($J42>1,$J42<5), IF($J42=4, "Unknown", E42+F42), 0),"Not required") -> 0 | P42: =IF(INTRO!$E$43="Endemic", IF(AND($K42>0,$K42<5), IF($K42=4,"Unknown", IF($K42=1, $F42*0.33, IF($K42=2, $F42*0.5+$G42*0.2, SUM(F42:G42)))), 0),"Not required") -> 48917.5 | Q42: 1 | R42: 1 | S42: 0 | T42: 1 | Y42: 36370 | Z42: Shelleng
A43: =IF(INTRO!$E$33<>0,INTRO!$E$33, " ") -> Nigeria | B43: Adamawa | C43: Song | D43: 259156.0418 | E43: =IF(INTRO!$E$48="","",ROUND($D43*INTRO!$E$48,0)) -> 51831 | F43: =IF(INTRO!$E$49="","",ROUND($D43*INTRO!$E$49,0)) -> 72564 | G43: =IF(INTRO!$E$50="","",ROUND($D43*INTRO!$E$50,0)) -> 134761 | H43: 1 | I43: 1 | J43: 1 | K43: 1 | L43: 0 | M43: =IF(INTRO!$E$37="Endemic",IF($H43>0,IF($H43=4,"Unknown",IF($H43=99,"Stopped",$D43)),0),"Not required") -> 259156.0418 | N43: 259156.0418 | O43: =IF(INTRO!$E$41="Endemic", IF(AND($J43>1,$J43<5), IF($J43=4, "Unknown", E43+F43), 0),"Not required") -> 0 | P43: =IF(INTRO!$E$43="Endemic", IF(AND($K43>0,$K43<5), IF($K43=4,"Unknown", IF($K43=1, $F43*0.33, IF($K43=2, $F43*0.5+$G43*0.2, SUM(F43:G43)))), 0),"Not required") -> 23946.12 | Q43: 1 | R43: 1 | S43: 0 | T43: 0 | Y43: 36371 | Z43: Song
A44: =IF(INTRO!$E$33<>0,INTRO!$E$33, " ") -> Nigeria | B44: Adamawa | C44: Toungo | D44: 69988.01441 | E44: =IF(INTRO!$E$48="","",ROUND($D44*INTRO!$E$48,0)) -> 13998 | F44: =IF(INTRO!$E$49="","",ROUND($D44*INTRO!$E$49,0)) -> 19597 | G44: =IF(INTRO!$E$50="","",ROUND($D44*INTRO!$E$50,0)) -> 36394 | H44: 1 | I44: 1 | J44: 2 | K44: 2 | L44: 4 | M44: =IF(INTRO!$E$37="Endemic",IF($H44>0,IF($H44=4,"Unknown",IF($H44=99,"Stopped",$D44)),0),"Not required") -> 69988.01441 | N44: 69988.01441 | O44: =IF(INTRO!$E$41="Endemic", IF(AND($J44>1,$J44<5), IF($J44=4, "Unknown", E44+F44), 0),"Not required") -> 33595 | P44: =IF(INTRO!$E$43="Endemic", IF(AND($K44>0,$K44<5), IF($K44=4,"Unknown", IF($K44=1, $F44*0.33, IF($K44=2, $F44*0.5+$G44*0.2, SUM(F44:G44)))), 0),"Not required") -> 17077.3 | Q44: 1 | R44: 1 | S44: 1 | T44: 1 | Y44: 36372 | Z44: Toungo
A45: =IF(INTRO!$E$33<>0,INTRO!$E$33, " ") -> Nigeria | B45: Adamawa | C45: Yola North | D45: 266620.1747 | E45: =IF(INTRO!$E$48="","",ROUND($D45*INTRO!$E$48,0)) -> 53324 | F45: =IF(INTRO!$E$49="","",ROUND($D45*INTRO!$E$49,0)) -> 74654 | G45: =IF(INTRO!$E$50="","",ROUND($D45*INTRO!$E$50,0)) -> 138642 | H45: 0 | I45: 1 | J45: 1 | K45: 1 | L45: 4 | M45: =IF(INTRO!$E$37="Endemic",IF($H45>0,IF($H45=4,"Unknown",IF($H45=99,"Stopped",$D45)),0),"Not required") -> 0 | N45: 41077.29291 | O45: =IF(INTRO!$E$41="Endemic", IF(AND($J45>1,$J45<5), IF($J45=4, "Unknown", E45+F45), 0),"Not required") -> 0 | P45: =IF(INTRO!$E$43="Endemic", IF(AND($K45>0,$K45<5), IF($K45=4,"Unknown", IF($K45=1, $F45*0.33, IF($K45=2, $F45*0.5+$G45*0.2, SUM(F45:G45)))), 0),"Not required") -> 24635.82 | Q45: 0 | R45: 1 | S45: 0 | T45: 0 | Y45: 36373 | Z45: Yola North
A46: =IF(INTRO!$E$33<>0,INTRO!$E$33, " ") -> Nigeria | B46: Adamawa | C46: Yola South | D46: 261724.7794 | E46: =IF(INTRO!$E$48="","",ROUND($D46*INTRO!$E$48,0)) -> 52345 | F46: =IF(INTRO!$E$49="","",ROUND($D46*INTRO!$E$49,0)) -> 73283 | G46: =IF(INTRO!$E$50="","",ROUND($D46*INTRO!$E$50,0)) -> 136097 | H46: 1 | I46: 1 | J46: 1 | K46: 2 | L46: 4 | M46: =IF(INTRO!$E$37="Endemic",IF($H46>0,IF($H46=4,"Unknown",IF($H46=99,"Stopped",$D46)),0),"Not required") -> 261724.7794 | N46: 49487.24333 | O46: =IF(INTRO!$E$41="Endemic", IF(AND($J46>1,$J46<5), IF($J46=4, "Unknown", E46+F46), 0),"Not required") -> 0 | P46: =IF(INTRO!$E$43="Endemic", IF(AND($K46>0,$K46<5), IF($K46=4,"Unknown", IF($K46=1, $F46*0.33, IF($K46=2, $F46*0.5+$G46*0.2, SUM(F46:G46)))), 0),"Not required") -> 63860.9 | Q46: 1 | R46: 1 | S46: 0 | T46: 1 | Y46: 36374 | Z46: Yola South
A47: =IF(INTRO!$E$33<>0,INTRO!$E$33, " ") -> Nigeria | B47: Akwa Ibom | C47: Abak | D47: 187060.5866 | E47: =IF(INTRO!$E$48="","",ROUND($D47*INTRO!$E$48,0)) -> 37412 | F47: =IF(INTRO!$E$49="","",ROUND($D47*INTRO!$E$49,0)) -> 52377 | G47: =IF(INTRO!$E$50="","",ROUND($D47*INTRO!$E$50,0)) -> 97272 | H47: 0 | I47: 0 | J47: 3 | K47: 0 | L47: 0 | M47: =IF(INTRO!$E$37="Endemic",IF($H47>0,IF($H47=4,"Unknown",IF($H47=99,"Stopped",$D47)),0),"Not required") -> 0 | N47: 0 | O47: =IF(INTRO!$E$41="Endemic", IF(AND($J47>1,$J47<5), IF($J47=4, "Unknown", E47+F47), 0),"Not required") -> 89789 | P47: =IF(INTRO!$E$43="Endemic", IF(AND($K47>0,$K47<5), IF($K47=4,"Unknown", IF($K47=1, $F47*0.33, IF($K47=2, $F47*0.5+$G47*0.2, SUM(F47:G47)))), 0),"Not required") -> 0 | Q47: 0 | R47: 0 | S47: 2 | T47: 0 | Y47: 36375 | Z47: Abak
A48: =IF(INTRO!$E$33<>0,INTRO!$E$33, " ") -> Nigeria | B48: Akwa Ibom | C48: Eastern Obolo | D48: 81423.60409 | E48: =IF(INTRO!$E$48="","",ROUND($D48*INTRO!$E$48,0)) -> 16285 | F48: =IF(INTRO!$E$49="","",ROUND($D48*INTRO!$E$49,0)) -> 22799 | G48: =IF(INTRO!$E$50="","",ROUND($D48*INTRO!$E$50,0)) -> 42340 | H48: 1 | I48: 0 | J48: 3 | K48: 0 | L48: 1 | M48: =IF(INTRO!$E$37="Endemic",IF($H48>0,IF($H48=4,"Unknown",IF($H48=99,"Stopped",$D48)),0),"Not required") -> 81423.60409 | N48: 0 | O48: =IF(INTRO!$E$41="Endemic", IF(AND($J48>1,$J48<5), IF($J48=4, "Unknown", E48+F48), 0),"Not required") -> 39084 | P48: =IF(INTRO!$E$43="Endemic", IF(AND($K48>0,$K48<5), IF($K48=4,"Unknown", IF($K48=1, $F48*0.33, IF($K48=2, $F48*0.5+$G48*0.2, SUM(F48:G48)))), 0),"Not required") -> 0 | Q48: 1 | R48: 0 | S48: 2 | T48: 0 | Y48: 36376 | Z48: Eastern Obolo
A49: =IF(INTRO!$E$33<>0,INTRO!$E$33, " ") -> Nigeria | B49: Akwa Ibom | C49: Eket | D49: 232069.9808 | E49: =IF(INTRO!$E$48="","",ROUND($D49*INTRO!$E$48,0)) -> 46414 | F49: =IF(INTRO!$E$49="","",ROUND($D49*INTRO!$E$49,0)) -> 64980 | G49: =IF(INTRO!$E$50="","",ROUND($D49*INTRO!$E$50,0)) -> 120676 | H49: 0 | I49: 0 | J49: 3 | K49: 0 | L49: 0 | M49: =IF(INTRO!$E$37="Endemic",IF($H49>0,IF($H49=4,"Unknown",IF($H49=99,"Stopped",$D49)),0),"Not required") -> 0 | N49: 0 | O49: =IF(INTRO!$E$41="Endemic", IF(AND($J49>1,$J49<5), IF($J49=4, "Unknown", E49+F49), 0),"Not required") -> 111394 | P49: =IF(INTRO!$E$43="Endemic", IF(AND($K49>0,$K49<5), IF($K49=4,"Unknown", IF($K49=1, $F49*0.33, IF($K49=2, $F49*0.5+$G49*0.2, SUM(F49:G49)))), 0),"Not required") -> 0 | Q49: 0 | R49: 0 | S49: 2 | T49: 0 | Y49: 36377 | Z49: Eket
A50: =IF(INTRO!$E$33<>0,INTRO!$E$33, " ") -> Nigeria | B50: Akwa Ibom | C50: Esit Eket | D50: 85670.76299 | E50: =IF(INTRO!$E$48="","",ROUND($D50*INTRO!$E$48,0)) -> 17134 | F50: =IF(INTRO!$E$49="","",ROUND($D50*INTRO!$E$49,0)) -> 23988 | G50: =IF(INTRO!$E$50="","",ROUND($D50*INTRO!$E$50,0)) -> 44549 | H50: 1 | I50: 0 | J50: 3 | K50: 0 | L50: 0 | M50: =IF(INTRO!$E$37="Endemic",IF($H50>0,IF($H50=4,"Unknown",IF($H50=99,"Stopped",$D50)),0),"Not required") -> 85670.76299 | N50: 0 | O50: =IF(INTRO!$E$41="Endemic", IF(AND($J50>1,$J50<5), IF($J50=4, "Unknown", E50+F50), 0),"Not required") -> 41122 | P50: =IF(INTRO!$E$43="Endemic", IF(AND($K50>0,$K50<5), IF($K50=4,"Unknown", IF($K50=1, $F50*0.33, IF($K50=2, $F50*0.5+$G50*0.2, SUM(F50:G50)))), 0),"Not required") -> 0 | Q50: 1 | R50: 0 | S50: 2 | T50: 0 | Y50: 36378 | Z50: Esit Eket
A51: =IF(INTRO!$E$33<>0,INTRO!$E$33, " ") -> Nigeria | B51: Akwa Ibom | C51: Essien Udim | D51: 259117.04 | E51: =IF(INTRO!$E$48="","",ROUND($D51*INTRO!$E$48,0)) -> 51823 | F51: =IF(INTRO!$E$49="","",ROUND($D51*INTRO!$E$49,0)) -> 72553 | G51: =IF(INTRO!$E$50="","",ROUND($D51*INTRO!$E$50,0)) -> 134741 | H51: 0 | I51: 0 | J51: 2 | K51: 0 | L51: 0 | M51: =IF(INTRO!$E$37="Endemic",IF($H51>0,IF($H51=4,"Unknown",IF($H51=99,"Stopped",$D51)),0),"Not required") -> 0 | N51: 0 | O51: =IF(INTRO!$E$41="Endemic", IF(AND($J51>1,$J51<5), IF($J51=4, "Unknown", E51+F51), 0),"Not required") -> 124376 | P51: =IF(INTRO!$E$43="Endemic", IF(AND($K51>0,$K51<5), IF($K51=4,"Unknown", IF($K51=1, $F51*0.33, IF($K51=2, $F51*0.5+$G51*0.2, SUM(F51:G51)))), 0),"Not required") -> 0 | Q51: 0 | R51: 0 | S51: 1 | T51: 0 | Y51: 36379 | Z51: Essien Udim
A52: =IF(INTRO!$E$33<>0,INTRO!$E$33, " ") -> Nigeria | B52: Akwa Ibom | C52: Etim Ekpo | D52: 141775.4901 | E52: =IF(INTRO!$E$48="","",ROUND($D52*INTRO!$E$48,0)) -> 28355 | F52: =IF(INTRO!$E$49="","",ROUND($D52*INTRO!$E$49,0)) -> 39697 | G52: =IF(INTRO!$E$50="","",ROUND($D52*INTRO!$E$50,0)) -> 73723 | H52: 1 | I52: 0 | J52: 2 | K52: 0 | L52: 0 | M52: =IF(INTRO!$E$37="Endemic",IF($H52>0,IF($H52=4,"Unknown",IF($H52=99,"Stopped",$D52)),0),"Not required") -> 141775.4901 | N52: 0 | O52: =IF(INTRO!$E$41="Endemic", IF(AND($J52>1,$J52<5), IF($J52=4, "Unknown", E52+F52), 0),"Not required") -> 68052 | P52: =IF(INTRO!$E$43="Endemic", IF(AND($K52>0,$K52<5), IF($K52=4,"Unknown", IF($K52=1, $F52*0.33, IF($K52=2, $F52*0.5+$G52*0.2, SUM(F52:G52)))), 0),"Not required") -> 0 | Q52: 1 | R52: 0 | S52: 1 | T52: 0 | Y52: 36380 | Z52: Etim Ekpo
A53: =IF(INTRO!$E$33<>0,INTRO!$E$33, " ") -> Nigeria | B53: Akwa Ibom | C53: Etinan | D53: 227668.1597 | E53: =IF(INTRO!$E$48="","",ROUND($D53*INTRO!$E$48,0)) -> 45534 | F53: =IF(INTRO!$E$49="","",ROUND($D53*INTRO!$E$49,0)) -> 63747 | G53: =IF(INTRO!$E$50="","",ROUND($D53*INTRO!$E$50,0)) -> 118387 | H53: 0 | I53: 0 | J53: 2 | K53: 0 | L53: 0 | M53: =IF(INTRO!$E$37="Endemic",IF($H53>0,IF($H53=4,"Unknown",IF($H53=99,"Stopped",$D53)),0),"Not required") -> 0 | N53: 0 | O53: =IF(INTRO!$E$41="Endemic", IF(AND($J53>1,$J53<5), IF($J53=4, "Unknown", E53+F53), 0),"Not required") -> 109281 | P53: =IF(INTRO!$E$43="Endemic", IF(AND($K53>0,$K53<5), IF($K53=4,"Unknown", IF($K53=1, $F53*0.33, IF($K53=2, $F53*0.5+$G53*0.2, SUM(F53:G53)))), 0),"Not required") -> 0 | Q53: 0 | R53: 0 | S53: 1 | T53: 0 | Y53: 36381 | Z53: Etinan
A54: =IF(INTRO!$E$33<>0,INTRO!$E$33, " ") -> Nigeria | B54: Akwa Ibom | C54: Ibeno | D54: 101377.7196 | E54: =IF(INTRO!$E$48="","",ROUND($D54*INTRO!$E$48,0)) -> 20276 | F54: =IF(INTRO!$E$49="","",ROUND($D54*INTRO!$E$49,0)) -> 28386 | G54: =IF(INTRO!$E$50="","",ROUND($D54*INTRO!$E$50,0)) -> 52716 | H54: 1 | I54: 0 | J54: 3 | K54: 0 | L54: 0 | M54: =IF(INTRO!$E$37="Endemic",IF($H54>0,IF($H54=4,"Unknown",IF($H54=99,"Stopped",$D54)),0),"Not required") -> 101377.7196 | N54: 0 | O54: =IF(INTRO!$E$41="Endemic", IF(AND($J54>1,$J54<5), IF($J54=4, "Unknown", E54+F54), 0),"Not required") -> 48662 | P54: =IF(INTRO!$E$43="Endemic", IF(AND($K54>0,$K54<5), IF($K54=4,"Unknown", IF($K54=1, $F54*0.33, IF($K54=2, $F54*0.5+$G54*0.2, SUM(F54:G54)))), 0),"Not required") -> 0 | Q54: 1 | R54: 0 | S54: 2 | T54: 0 | Y54: 36382 | Z54: Ibeno
A55: =IF(INTRO!$E$33<>0,INTRO!$E$33, " ") -> Nigeria | B55: Akwa Ibom | C55: Ibesikpo Asutan | D55: 184385.6027 | E55: =IF(INTRO!$E$48="","",ROUND($D55*INTRO!$E$48,0)) -> 36877 | F55: =IF(INTRO!$E$49="","",ROUND($D55*INTRO!$E$49,0)) -> 51628 | G55: =IF(INTRO!$E$50="","",ROUND($D55*INTRO!$E$50,0)) -> 95881 | H55: 0 | I55: 0 | J55: 3 | K55: 0 | L55: 0 | M55: =IF(INTRO!$E$37="Endemic",IF($H55>0,IF($H55=4,"Unknown",IF($H55=99,"Stopped",$D55)),0),"Not required") -> 0 | N55: 0 | O55: =IF(INTRO!$E$41="Endemic", IF(AND($J55>1,$J55<5), IF($J55=4, "Unknown", E55+F55), 0),"Not required") -> 88505 | P55: =IF(INTRO!$E$43="Endemic", IF(AND($K55>0,$K55<5), IF($K55=4,"Unknown", IF($K55=1, $F55*0.33, IF($K55=2, $F55*0.5+$G55*0.2, SUM(F55:G55)))), 0),"Not required") -> 0 | Q55: 0 | R55: 0 | S55: 2 | T55: 0 | Y55: 36383 | Z55: Ibesikpo Asutan
A56: =IF(INTRO!$E$33<>0,INTRO!$E$33, " ") -> Nigeria | B56: Akwa Ibom | C56: Ibiono Ibom | D56: 255044.7166 | E56: =IF(INTRO!$E$48="","",ROUND($D56*INTRO!$E$48,0)) -> 51009 | F56: =IF(INTRO!$E$49="","",ROUND($D56*INTRO!$E$49,0)) -> 71413 | G56: =IF(INTRO!$E$50="","",ROUND($D56*INTRO!$E$50,0)) -> 132623 | H56: 0 | I56: 1 | J56: 3 | K56: 0 | L56: 1 | M56: =IF(INTRO!$E$37="Endemic",IF($H56>0,IF($H56=4,"Unknown",IF($H56=99,"Stopped",$D56)),0),"Not required") -> 0 | N56: 127282.872 | O56: =IF(INTRO!$E$41="Endemic", IF(AND($J56>1,$J56<5), IF($J56=4, "Unknown", E56+F56), 0),"Not required") -> 122422 | P56: =IF(INTRO!$E$43="Endemic", IF(AND($K56>0,$K56<5), IF($K56=4,"Unknown", IF($K56=1, $F56*0.33, IF($K56=2, $F56*0.5+$G56*0.2, SUM(F56:G56)))), 0),"Not required") -> 0 | Q56: 0 | R56: 1 | S56: 2 | T56: 0 | Y56: 36384 | Z56: Ibiono Ibom
A57: =IF(INTRO!$E$33<>0,INTRO!$E$33, " ") -> Nigeria | B57: Akwa Ibom | C57: Ika | D57: 98094.84595 | E57: =IF(INTRO!$E$48="","",ROUND($D57*INTRO!$E$48,0)) -> 19619 | F57: =IF(INTRO!$E$49="","",ROUND($D57*INTRO!$E$49,0)) -> 27467 | G57: =IF(INTRO!$E$50="","",ROUND($D57*INTRO!$E$50,0)) -> 51009 | H57: 0 | I57: 1 | J57: 2 | K57: 0 | L57: 0 | M57: =IF(INTRO!$E$37="Endemic",IF($H57>0,IF($H57=4,"Unknown",IF($H57=99,"Stopped",$D57)),0),"Not required") -> 0 | N57: 98094.84595 | O57: =IF(INTRO!$E$41="Endemic", IF(AND($J57>1,$J57<5), IF($J57=4, "Unknown", E57+F57), 0),"Not required") -> 47086 | P57: =IF(INTRO!$E$43="Endemic", IF(AND($K57>0,$K57<5), IF($K57=4,"Unknown", IF($K57=1, $F57*0.33, IF($K57=2, $F57*0.5+$G57*0.2, SUM(F57:G57)))), 0),"Not required") -> 0 | Q57: 0 | R57: 1 | S57: 1 | T57: 0 | Y57: 36385 | Z57: Ika
A58: =IF(INTRO!$E$33<>0,INTRO!$E$33, " ") -> Nigeria | B58: Akwa Ibom | C58: Ikono | D58: 177396.2155 | E58: =IF(INTRO!$E$48="","",ROUND($D58*INTRO!$E$48,0)) -> 35479 | F58: =IF(INTRO!$E$49="","",ROUND($D58*INTRO!$E$49,0)) -> 49671 | G58: =IF(INTRO!$E$50="","",ROUND($D58*INTRO!$E$50,0)) -> 92246 | H58: 0 | I58: 1 | J58: 2 | K58: 0 | L58: 0 | M58: =IF(INTRO!$E$37="Endemic",IF($H58>0,IF($H58=4,"Unknown",IF($H58=99,"Stopped",$D58)),0),"Not required") -> 0 | N58: 177396.2155 | O58: =IF(INTRO!$E$41="Endemic", IF(AND($J58>1,$J58<5), IF($J58=4, "Unknown", E58+F58), 0),"Not required") -> 85150 | P58: =IF(INTRO!$E$43="Endemic", IF(AND($K58>0,$K58<5), IF($K58=4,"Unknown", IF($K58=1, $F58*0.33, IF($K58=2, $F58*0.5+$G58*0.2, SUM(F58:G58)))), 0),"Not required") -> 0 | Q58: 0 | R58: 1 | S58: 1 | T58: 0 | Y58: 36386 | Z58: Ikono
A59: =IF(INTRO!$E$33<>0,INTRO!$E$33, " ") -> Nigeria | B59: Akwa Ibom | C59: Ikot Abasi | D59: 177556.2572 | E59: =IF(INTRO!$E$48="","",ROUND($D59*INTRO!$E$48,0)) -> 35511 | F59: =IF(INTRO!$E$49="","",ROUND($D59*INTRO!$E$49,0)) -> 49716 | G59: =IF(INTRO!$E$50="","",ROUND($D59*INTRO!$E$50,0)) -> 92329 | H59: 1 | I59: 0 | J59: 3 | K59: 0 | L59: 0 | M59: =IF(INTRO!$E$37="Endemic",IF($H59>0,IF($H59=4,"Unknown",IF($H59=99,"Stopped",$D59)),0),"Not required") -> 177556.2572 | N59: 0 | O59: =IF(INTRO!$E$41="Endemic", IF(AND($J59>1,$J59<5), IF($J59=4, "Unknown", E59+F59), 0),"Not required") -> 85227 | P59: =IF(INTRO!$E$43="Endemic", IF(AND($K59>0,$K59<5), IF($K59=4,"Unknown", IF($K59=1, $F59*0.33, IF($K59=2, $F59*0.5+$G59*0.2, SUM(F59:G59)))), 0),"Not required") -> 0 | Q59: 1 | R59: 0 | S59: 2 | T59: 0 | Y59: 36387 | Z59: Ikot Abasi
A60: =IF(INTRO!$E$33<>0,INTRO!$E$33, " ") -> Nigeria | B60: Akwa Ibom | C60: Ikot Ekpene | D60: 192422.6583 | E60: =IF(INTRO!$E$48="","",ROUND($D60*INTRO!$E$48,0)) -> 38485 | F60: =IF(INTRO!$E$49="","",ROUND($D60*INTRO!$E$49,0)) -> 53878 | G60: =IF(INTRO!$E$50="","",ROUND($D60*INTRO!$E$50,0)) -> 100060 | H60: 1 | I60: 0 | J60: 2 | K60: 0 | L60: 0 | M60: =IF(INTRO!$E$37="Endemic",IF($H60>0,IF($H60=4,"Unknown",IF($H60=99,"Stopped",$D60)),0),"Not required") -> 192422.6583 | N60: 0 | O60: =IF(INTRO!$E$41="Endemic", IF(AND($J60>1,$J60<5), IF($J60=4, "Unknown", E60+F60), 0),"Not required") -> 92363 | P60: =IF(INTRO!$E$43="Endemic", IF(AND($K60>0,$K60<5), IF($K60=4,"Unknown", IF($K60=1, $F60*0.33, IF($K60=2, $F60*0.5+$G60*0.2, SUM(F60:G60)))), 0),"Not required") -> 0 | Q60: 1 | R60: 0 | S60: 1 | T60: 0 | Y60: 36388 | Z60: Ikot Ekpene
A61: =IF(INTRO!$E$33<>0,INTRO!$E$33, " ") -> Nigeria | B61: Akwa Ibom | C61: Ini | D61: 133407.5918 | E61: =IF(INTRO!$E$48="","",ROUND($D61*INTRO!$E$48,0)) -> 26682 | F61: =IF(INTRO!$E$49="","",ROUND($D61*INTRO!$E$49,0)) -> 37354 | G61: =IF(INTRO!$E$50="","",ROUND($D61*INTRO!$E$50,0)) -> 69372 | H61: 0 | I61: 1 | J61: 3 | K61: 0 | L61: 1 | M61: =IF(INTRO!$E$37="Endemic",IF($H61>0,IF($H61=4,"Unknown",IF($H61=99,"Stopped",$D61)),0),"Not required") -> 0 | N61: 133407.5918 | O61: =IF(INTRO!$E$41="Endemic", IF(AND($J61>1,$J61<5), IF($J61=4, "Unknown", E61+F61), 0),"Not required") -> 64036 | P61: =IF(INTRO!$E$43="Endemic", IF(AND($K61>0,$K61<5), IF($K61=4,"Unknown", IF($K61=1, $F61*0.33, IF($K61=2, $F61*0.5+$G61*0.2, SUM(F61:G61)))), 0),"Not required") -> 0 | Q61: 0 | R61: 1 | S61: 2 | T61: 0 | Y61: 36389 | Z61: Ini
A62: =IF(INTRO!$E$33<>0,INTRO!$E$33, " ") -> Nigeria | B62: Akwa Ibom | C62: Itu | D62: 170845.262 | E62: =IF(INTRO!$E$48="","",ROUND($D62*INTRO!$E$48,0)) -> 34169 | F62: =IF(INTRO!$E$49="","",ROUND($D62*INTRO!$E$49,0)) -> 47837 | G62: =IF(INTRO!$E$50="","",ROUND($D62*INTRO!$E$50,0)) -> 88840 | H62: 0 | I62: 0 | J62: 3 | K62: 0 | L62: 0 | M62: =IF(INTRO!$E$37="Endemic",IF($H62>0,IF($H62=4,"Unknown",IF($H62=99,"Stopped",$D62)),0),"Not required") -> 0 | N62: 0 | O62: =IF(INTRO!$E$41="Endemic", IF(AND($J62>1,$J62<5), IF($J62=4, "Unknown", E62+F62), 0),"Not required") -> 82006 | P62: =IF(INTRO!$E$43="Endemic", IF(AND($K62>0,$K62<5), IF($K62=4,"Unknown", IF($K62=1, $F62*0.33, IF($K62=2, $F62*0.5+$G62*0.2, SUM(F62:G62)))), 0),"Not required") -> 0 | Q62: 0 | R62: 0 | S62: 2 | T62: 0 | Y62: 36390 | Z62: Itu
A63: =IF(INTRO!$E$33<>0,INTRO!$E$33, " ") -> Nigeria | B63: Akwa Ibom | C63: Mbo | D63: 139884.5764 | E63: =IF(INTRO!$E$48="","",ROUND($D63*INTRO!$E$48,0)) -> 27977 | F63: =IF(INTRO!$E$49="","",ROUND($D63*INTRO!$E$49,0)) -> 39168 | G63: =IF(INTRO!$E$50="","",ROUND($D63*INTRO!$E$50,0)) -> 72740 | H63: 0 | I63: 0 | J63: 3 | K63: 0 | L63: 0 | M63: =IF(INTRO!$E$37="Endemic",IF($H63>0,IF($H63=4,"Unknown",IF($H63=99,"Stopped",$D63)),0),"Not required") -> 0 | N63: 0 | O63: =IF(INTRO!$E$41="Endemic", IF(AND($J63>1,$J63<5), IF($J63=4, "Unknown", E63+F63), 0),"Not required") -> 67145 | P63: =IF(INTRO!$E$43="Endemic", IF(AND($K63>0,$K63<5), IF($K63=4,"Unknown", IF($K63=1, $F63*0.33, IF($K63=2, $F63*0.5+$G63*0.2, SUM(F63:G63)))), 0),"Not required") -> 0 | Q63: 0 | R63: 0 | S63: 2 | T63: 0 | Y63: 36391 | Z63: Mbo
A64: =IF(INTRO!$E$33<>0,INTRO!$E$33, " ") -> Nigeria | B64: Akwa Ibom | C64: Mkpat Enin | D64: 239438.6267 | E64: =IF(INTRO!$E$48="","",ROUND($D64*INTRO!$E$48,0)) -> 47888 | F64: =IF(INTRO!$E$49="","",ROUND($D64*INTRO!$E$49,0)) -> 67043 | G64: =IF(INTRO!$E$50="","",ROUND($D64*INTRO!$E$50,0)) -> 124508 | H64: 0 | I64: 0 | J64: 3 | K64: 0 | L64: 0 | M64: =IF(INTRO!$E$37="Endemic",IF($H64>0,IF($H64=4,"Unknown",IF($H64=99,"Stopped",$D64)),0),"Not required") -> 0 | N64: 0 | O64: =IF(INTRO!$E$41="Endemic", IF(AND($J64>1,$J64<5), IF($J64=4, "Unknown", E64+F64), 0),"Not required") -> 114931 | P64: =IF(INTRO!$E$43="Endemic", IF(AND($K64>0,$K64<5), IF($K64=4,"Unknown", IF($K64=1, $F64*0.33, IF($K64=2, $F64*0.5+$G64*0.2, SUM(F64:G64)))), 0),"Not required") -> 0 | Q64: 0 | R64: 0 | S64: 2 | T64: 0 | Y64: 36392 | Z64: Mkpat Enin
A65: =IF(INTRO!$E$33<>0,INTRO!$E$33, " ") -> Nigeria | B65: Akwa Ibom | C65: Nsit Atai | D65: 100321.9818 | E65: =IF(INTRO!$E$48="","",ROUND($D65*INTRO!$E$48,0)) -> 20064 | F65: =IF(INTRO!$E$49="","",ROUND($D65*INTRO!$E$49,0)) -> 28090 | G65: =IF(INTRO!$E$50="","",ROUND($D65*INTRO!$E$50,0)) -> 52167 | H65: 0 | I65: 0 | J65: 3 | K65: 0 | L65: 0 | M65: =IF(INTRO!$E$37="Endemic",IF($H65>0,IF($H65=4,"Unknown",IF($H65=99,"Stopped",$D65)),0),"Not required") -> 0 | N65: 0 | O65: =IF(INTRO!$E$41="Endemic", IF(AND($J65>1,$J65<5), IF($J65=4, "Unknown", E65+F65), 0),"Not required") -> 48154 | P65: =IF(INTRO!$E$43="Endemic", IF(AND($K65>0,$K65<5), IF($K65=4,"Unknown", IF($K65=1, $F65*0.33, IF($K65=2, $F65*0.5+$G65*0.2, SUM(F65:G65)))), 0),"Not required") -> 0 | Q65: 0 | R65: 0 | S65: 2 | T65: 0 | Y65: 36393 | Z65: Nsit Atai
A66: =IF(INTRO!$E$33<>0,INTRO!$E$33, " ") -> Nigeria | B66: Akwa Ibom | C66: Nsit Ibom | D66: 146069.7201 | E66: =IF(INTRO!$E$48="","",ROUND($D66*INTRO!$E$48,0)) -> 29214 | F66: =IF(INTRO!$E$49="","",ROUND($D66*INTRO!$E$49,0)) -> 40900 | G66: =IF(INTRO!$E$50="","",ROUND($D66*INTRO!$E$50,0)) -> 75956 | H66: 0 | I66: 0 | J66: 2 | K66: 0 | L66: 0 | M66: =IF(INTRO!$E$37="Endemic",IF($H66>0,IF($H66=4,"Unknown",IF($H66=99,"Stopped",$D66)),0),"Not required") -> 0 | N66: 0 | O66: =IF(INTRO!$E$41="Endemic", IF(AND($J66>1,$J66<5), IF($J66=4, "Unknown", E66+F66), 0),"Not required") -> 70114 | P66: =IF(INTRO!$E$43="Endemic", IF(AND($K66>0,$K66<5), IF($K66=4,"Unknown", IF($K66=1, $F66*0.33, IF($K66=2, $F66*0.5+$G66*0.2, SUM(F66:G66)))), 0),"Not required") -> 0 | Q66: 0 | R66: 0 | S66: 1 | T66: 0 | Y66: 36394 | Z66: Nsit Ibom
A67: =IF(INTRO!$E$33<>0,INTRO!$E$33, " ") -> Nigeria | B67: Akwa Ibom | C67: Nsit Ubiom | D67: 172456.4388 | E67: =IF(INTRO!$E$48="","",ROUND($D67*INTRO!$E$48,0)) -> 34491 | F67: =IF(INTRO!$E$49="","",ROUND($D67*INTRO!$E$49,0)) -> 48288 | G67: =IF(INTRO!$E$50="","",ROUND($D67*INTRO!$E$50,0)) -> 89677 | H67: 0 | I67: 0 | J67: 3 | K67: 0 | L67: 0 | M67: =IF(INTRO!$E$37="Endemic",IF($H67>0,IF($H67=4,"Unknown",IF($H67=99,"Stopped",$D67)),0),"Not required") -> 0 | N67: 0 | O67: =IF(INTRO!$E$41="Endemic", IF(AND($J67>1,$J67<5), IF($J67=4, "Unknown", E67+F67), 0),"Not required") -> 82779 | P67: =IF(INTRO!$E$43="Endemic", IF(AND($K67>0,$K67<5), IF($K67=4,"Unknown", IF($K67=1, $F67*0.33, IF($K67=2, $F67*0.5+$G67*0.2, SUM(F67:G67)))), 0),"Not required") -> 0 | Q67: 0 | R67: 0 | S67: 2 | T67: 0 | Y67: 36395 | Z67: Nsit Ubiom
A68: =IF(INTRO!$E$33<>0,INTRO!$E$33, " ") -> Nigeria | B68: Akwa Ibom | C68: Obot Akara | D68: 199421.4597 | E68: =IF(INTRO!$E$48="","",ROUND($D68*INTRO!$E$48,0)) -> 39884 | F68: =IF(INTRO!$E$49="","",ROUND($D68*INTRO!$E$49,0)) -> 55838 | G68: =IF(INTRO!$E$50="","",ROUND($D68*INTRO!$E$50,0)) -> 103699 | H68: 0 | I68: 0 | J68: 3 | K68: 0 | L68: 0 | M68: =IF(INTRO!$E$37="Endemic",IF($H68>0,IF($H68=4,"Unknown",IF($H68=99,"Stopped",$D68)),0),"Not required") -> 0 | N68: 0 | O68: =IF(INTRO!$E$41="Endemic", IF(AND($J68>1,$J68<5), IF($J68=4, "Unknown", E68+F68), 0),"Not required") -> 95722 | P68: =IF(INTRO!$E$43="Endemic", IF(AND($K68>0,$K68<5), IF($K68=4,"Unknown", IF($K68=1, $F68*0.33, IF($K68=2, $F68*0.5+$G68*0.2, SUM(F68:G68)))), 0),"Not required") -> 0 | Q68: 0 | R68: 0 | S68: 2 | T68: 0 | Y68: 36396 | Z68: Obot Akara
A69: =IF(INTRO!$E$33<>0,INTRO!$E$33, " ") -> Nigeria | B69: Akwa Ibom | C69: Okobo | D69: 139945.0964 | E69: =IF(INTRO!$E$48="","",ROUND($D69*INTRO!$E$48,0)) -> 27989 | F69: =IF(INTRO!$E$49="","",ROUND($D69*INTRO!$E$49,0)) -> 39185 | G69: =IF(INTRO!$E$50="","",ROUND($D69*INTRO!$E$50,0)) -> 72771 | H69: 1 | I69: 0 | J69: 3 | K69: 0 | L69: 0 | M69: =IF(INTRO!$E$37="Endemic",IF($H69>0,IF($H69=4,"Unknown",IF($H69=99,"Stopped",$D69)),0),"Not required") -> 139945.0964 | N69: 0 | O69: =IF(INTRO!$E$41="Endemic", IF(AND($J69>1,$J69<5), IF($J69=4, "Unknown", E69+F69), 0),"Not required") -> 67174 | P69: =IF(INTRO!$E$43="Endemic", IF(AND($K69>0,$K69<5), IF($K69=4,"Unknown", IF($K69=1, $F69*0.33, IF($K69=2, $F69*0.5+$G69*0.2, SUM(F69:G69)))), 0),"Not required") -> 0 | Q69: 1 | R69: 0 | S69: 2 | T69: 0 | Y69: 36397 | Z69: Okobo
A70: =IF(INTRO!$E$33<>0,INTRO!$E$33, " ") -> Nigeria | B70: Akwa Ibom | C70: Onna | D70: 165922.9689 | E70: =IF(INTRO!$E$48="","",ROUND($D70*INTRO!$E$48,0)) -> 33185 | F70: =IF(INTRO!$E$49="","",ROUND($D70*INTRO!$E$49,0)) -> 46458 | G70: =IF(INTRO!$E$50="","",ROUND($D70*INTRO!$E$50,0)) -> 86280 | H70: 1 | I70: 0 | J70: 3 | K70: 0 | L70: 1 | M70: =IF(INTRO!$E$37="Endemic",IF($H70>0,IF($H70=4,"Unknown",IF($H70=99,"Stopped",$D70)),0),"Not required") -> 165922.9689 | N70: 0 | O70: =IF(INTRO!$E$41="Endemic", IF(AND($J70>1,$J70<5), IF($J70=4, "Unknown", E70+F70), 0),"Not required") -> 79643 | P70: =IF(INTRO!$E$43="Endemic", IF(AND($K70>0,$K70<5), IF($K70=4,"Unknown", IF($K70=1, $F70*0.33, IF($K70=2, $F70*0.5+$G70*0.2, SUM(F70:G70)))), 0),"Not required") -> 0 | Q70: 1 | R70: 0 | S70: 2 | T70: 0 | Y70: 36398 | Z70: Onna
A71: =IF(INTRO!$E$33<>0,INTRO!$E$33, " ") -> Nigeria | B71: Akwa Ibom | C71: Oron | D71: 117625.3215 | E71: =IF(INTRO!$E$48="","",ROUND($D71*INTRO!$E$48,0)) -> 23525 | F71: =IF(INTRO!$E$49="","",ROUND($D71*INTRO!$E$49,0)) -> 32935 | G71: =IF(INTRO!$E$50="","",ROUND($D71*INTRO!$E$50,0)) -> 61165 | H71: 1 | I71: 0 | J71: 3 | K71: 0 | L71: 0 | M71: =IF(INTRO!$E$37="Endemic",IF($H71>0,IF($H71=4,"Unknown",IF($H71=99,"Stopped",$D71)),0),"Not required") -> 117625.3215 | N71: 0 | O71: =IF(INTRO!$E$41="Endemic", IF(AND($J71>1,$J71<5), IF($J71=4, "Unknown", E71+F71), 0),"Not required") -> 56460 | P71: =IF(INTRO!$E$43="Endemic", IF(AND($K71>0,$K71<5), IF($K71=4,"Unknown", IF($K71=1, $F71*0.33, IF($K71=2, $F71*0.5+$G71*0.2, SUM(F71:G71)))), 0),"Not required") -> 0 | Q71: 1 | R71: 0 | S71: 2 | T71: 0 | Y71: 36399 | Z71: Oron
A72: =IF(INTRO!$E$33<>0,INTRO!$E$33, " ") -> Nigeria | B72: Akwa Ibom | C72: Oruk Anam | D72: 232200.4351 | E72: =IF(INTRO!$E$48="","",ROUND($D72*INTRO!$E$48,0)) -> 46440 | F72: =IF(INTRO!$E$49="","",ROUND($D72*INTRO!$E$49,0)) -> 65016 | G72: =IF(INTRO!$E$50="","",ROUND($D72*INTRO!$E$50,0)) -> 120744 | H72: 0 | I72: 0 | J72: 3 | K72: 0 | L72: 0 | M72: =IF(INTRO!$E$37="Endemic",IF($H72>0,IF($H72=4,"Unknown",IF($H72=99,"Stopped",$D72)),0),"Not required") -> 0 | N72: 0 | O72: =IF(INTRO!$E$41="Endemic", IF(AND($J72>1,$J72<5), IF($J72=4, "Unknown", E72+F72), 0),"Not required") -> 111456 | P72: =IF(INTRO!$E$43="Endemic", IF(AND($K72>0,$K72<5), IF($K72=4,"Unknown", IF($K72=1, $F72*0.33, IF($K72=2, $F72*0.5+$G72*0.2, SUM(F72:G72)))), 0),"Not required") -> 0 | Q72: 0 | R72: 0 | S72: 2 | T72: 0 | Y72: 36400 | Z72: Oruk Anam
A73: =IF(INTRO!$E$33<>0,INTRO!$E$33, " ") -> Nigeria | B73: Akwa Ibom | C73: Udung Uko | D73: 71652.98678 | E73: =IF(INTRO!$E$48="","",ROUND($D73*INTRO!$E$48,0)) -> 14331 | F73: =IF(INTRO!$E$49="","",ROUND($D73*INTRO!$E$49,0)) -> 20063 | G73: =IF(INTRO!$E$50="","",ROUND($D73*INTRO!$E$50,0)) -> 37260 | H73: 1 | I73: 0 | J73: 3 | K73: 1 | L73: 0 | M73: =IF(INTRO!$E$37="Endemic",IF($H73>0,IF($H73=4,"Unknown",IF($H73=99,"Stopped",$D73)),0),"Not required") -> 71652.98678 | N73: 0 | O73: =IF(INTRO!$E$41="Endemic", IF(AND($J73>1,$J73<5), IF($J73=4, "Unknown", E73+F73), 0),"Not required") -> 34394 | P73: =IF(INTRO!$E$43="Endemic", IF(AND($K73>0,$K73<5), IF($K73=4,"Unknown", IF($K73=1, $F73*0.33, IF($K73=2, $F73*0.5+$G73*0.2, SUM(F73:G73)))), 0),"Not required") -> 6620.79 | Q73: 1 | R73: 0 | S73: 2 | T73: 0 | Y73: 36401 | Z73: Udung Uko
A74: =IF(INTRO!$E$33<>0,INTRO!$E$33, " ") -> Nigeria | B74: Akwa Ibom | C74: Ukanafun | D74: 170845.262 | E74: =IF(INTRO!$E$48="","",ROUND($D74*INTRO!$E$48,0)) -> 34169 | F74: =IF(INTRO!$E$49="","",ROUND($D74*INTRO!$E$49,0)) -> 47837 | G74: =IF(INTRO!$E$50="","",ROUND($D74*INTRO!$E$50,0)) -> 88840 | H74: 0 | I74: 0 | J74: 2 | K74: 0 | L74: 0 | M74: =IF(INTRO!$E$37="Endemic",IF($H74>0,IF($H74=4,"Unknown",IF($H74=99,"Stopped",$D74)),0),"Not required") -> 0 | N74: 0 | O74: =IF(INTRO!$E$41="Endemic", IF(AND($J74>1,$J74<5), IF($J74=4, "Unknown", E74+F74), 0),"Not required") -> 82006 | P74: =IF(INTRO!$E$43="Endemic", IF(AND($K74>0,$K74<5), IF($K74=4,"Unknown", IF($K74=1, $F74*0.33, IF($K74=2, $F74*0.5+$G74*0.2, SUM(F74:G74)))), 0),"Not required") -> 0 | Q74: 0 | R74: 0 | S74: 1 | T74: 0 | Y74: 36402 | Z74: Ukanafun
A75: =IF(INTRO!$E$33<>0,INTRO!$E$33, " ") -> Nigeria | B75: Akwa Ibom | C75: Uruan | D75: 159100.3479 | E75: =IF(INTRO!$E$48="","",ROUND($D75*INTRO!$E$48,0)) -> 31820 | F75: =IF(INTRO!$E$49="","",ROUND($D75*INTRO!$E$49,0)) -> 44548 | G75: =IF(INTRO!$E$50="","",ROUND($D75*INTRO!$E$50,0)) -> 82732 | H75: 1 | I75: 0 | J75: 3 | K75: 0 | L75: 0 | M75: =IF(INTRO!$E$37="Endemic",IF($H75>0,IF($H75=4,"Unknown",IF($H75=99,"Stopped",$D75)),0),"Not required") -> 159100.3479 | N75: 0 | O75: =IF(INTRO!$E$41="Endemic", IF(AND($J75>1,$J75<5), IF($J75=4, "Unknown", E75+F75), 0),"Not required") -> 76368 | P75: =IF(INTRO!$E$43="Endemic", IF(AND($K75>0,$K75<5), IF($K75=4,"Unknown", IF($K75=1, $F75*0.33, IF($K75=2, $F75*0.5+$G75*0.2, SUM(F75:G75)))), 0),"Not required") -> 0 | Q75: 1 | R75: 0 | S75: 2 | T75: 0 | Y75: 36403 | Z75: Uruan
A76: =IF(INTRO!$E$33<>0,INTRO!$E$33, " ") -> Nigeria | B76: Akwa Ibom | C76: Urue-Offong/Oruko | D76: 95700.94384 | E76: =IF(INTRO!$E$48="","",ROUND($D76*INTRO!$E$48,0)) -> 19140 | F76: =IF(INTRO!$E$49="","",ROUND($D76*INTRO!$E$49,0)) -> 26796 | G76: =IF(INTRO!$E$50="","",ROUND($D76*INTRO!$E$50,0)) -> 49764 | H76: 0 | I76: 0 | J76: 3 | K76: 0 | L76: 0 | M76: =IF(INTRO!$E$37="Endemic",IF($H76>0,IF($H76=4,"Unknown",IF($H76=99,"Stopped",$D76)),0),"Not required") -> 0 | N76: 0 | O76: =IF(INTRO!$E$41="Endemic", IF(AND($J76>1,$J76<5), IF($J76=4, "Unknown", E76+F76), 0),"Not required") -> 45936 | P76: =IF(INTRO!$E$43="Endemic", IF(AND($K76>0,$K76<5), IF($K76=4,"Unknown", IF($K76=1, $F76*0.33, IF($K76=2, $F76*0.5+$G76*0.2, SUM(F76:G76)))), 0),"Not required") -> 0 | Q76: 0 | R76: 0 | S76: 2 | T76: 0 | Y76: 36404 | Z76: Urue-Offong/Oruko
A77: =IF(INTRO!$E$33<>0,INTRO!$E$33, " ") -> Nigeria | B77: Akwa Ibom | C77: Uyo | D77: 416341.268 | E77: =IF(INTRO!$E$48="","",ROUND($D77*INTRO!$E$48,0)) -> 83268 | F77: =IF(INTRO!$E$49="","",ROUND($D77*INTRO!$E$49,0)) -> 116576 | G77: =IF(INTRO!$E$50="","",ROUND($D77*INTRO!$E$50,0)) -> 216497 | H77: 0 | I77: 0 | J77: 2 | K77: 0 | L77: 0 | M77: =IF(INTRO!$E$37="Endemic",IF($H77>0,IF($H77=4,"Unknown",IF($H77=99,"Stopped",$D77)),0),"Not required") -> 0 | N77: 0 | O77: =IF(INTRO!$E$41="Endemic", IF(AND($J77>1,$J77<5), IF($J77=4, "Unknown", E77+F77), 0),"Not required") -> 199844 | P77: =IF(INTRO!$E$43="Endemic", IF(AND($K77>0,$K77<5), IF($K77=4,"Unknown", IF($K77=1, $F77*0.33, IF($K77=2, $F77*0.5+$G77*0.2, SUM(F77:G77)))), 0),"Not required") -> 0 | Q77: 0 | R77: 1 | S77: 1 | T77: 0 | Y77: 36405 | Z77: Uyo
A78: =IF(INTRO!$E$33<>0,INTRO!$E$33, " ") -> Nigeria | B78: Anambra | C78: Aguata | D78: 497840.1858 | E78: =IF(INTRO!$E$48="","",ROUND($D78*INTRO!$E$48,0)) -> 99568 | F78: =IF(INTRO!$E$49="","",ROUND($D78*INTRO!$E$49,0)) -> 139395 | G78: =IF(INTRO!$E$50="","",ROUND($D78*INTRO!$E$50,0)) -> 258877 | H78: 1 | I78: 1 | J78: 2 | K78: 0 | L78: 0 | M78: =IF(INTRO!$E$37="Endemic",IF($H78>0,IF($H78=4,"Unknown",IF($H78=99,"Stopped",$D78)),0),"Not required") -> 497840.1858 | N78: 69093.16789 | O78: =IF(INTRO!$E$41="Endemic", IF(AND($J78>1,$J78<5), IF($J78=4, "Unknown", E78+F78), 0),"Not required") -> 238963 | P78: =IF(INTRO!$E$43="Endemic", IF(AND($K78>0,$K78<5), IF($K78=4,"Unknown", IF($K78=1, $F78*0.33, IF($K78=2, $F78*0.5+$G78*0.2, SUM(F78:G78)))), 0),"Not required") -> 0 | Q78: 1 | R78: 2 | S78: 1 | T78: 0 | Y78: 36406 | Z78: Aguata
A79: =IF(INTRO!$E$33<>0,INTRO!$E$33, " ") -> Nigeria | B79: Anambra | C79: Anambra East | D79: 206213.1483 | E79: =IF(INTRO!$E$48="","",ROUND($D79*INTRO!$E$48,0)) -> 41243 | F79: =IF(INTRO!$E$49="","",ROUND($D79*INTRO!$E$49,0)) -> 57740 | G79: =IF(INTRO!$E$50="","",ROUND($D79*INTRO!$E$50,0)) -> 107231 | H79: 1 | I79: 0 | J79: 1 | K79: 0 | L79: 0 | M79: =IF(INTRO!$E$37="Endemic",IF($H79>0,IF($H79=4,"Unknown",IF($H79=99,"Stopped",$D79)),0),"Not required") -> 206213.1483 | N79: 0 | O79: =IF(INTRO!$E$41="Endemic", IF(AND($J79>1,$J79<5), IF($J79=4, "Unknown", E79+F79), 0),"Not required") -> 0 | P79: =IF(INTRO!$E$43="Endemic", IF(AND($K79>0,$K79<5), IF($K79=4,"Unknown", IF($K79=1, $F79*0.33, IF($K79=2, $F79*0.5+$G79*0.2, SUM(F79:G79)))), 0),"Not required") -> 0 | Q79: 1 | R79: 0 | S79: 0 | T79: 0 | Y79: 36407 | Z79: Anambra East
A80: =IF(INTRO!$E$33<>0,INTRO!$E$33, " ") -> Nigeria | B80: Anambra | C80: Anambra West | D80: 225155.9074 | E80: =IF(INTRO!$E$48="","",ROUND($D80*INTRO!$E$48,0)) -> 45031 | F80: =IF(INTRO!$E$49="","",ROUND($D80*INTRO!$E$49,0)) -> 63044 | G80: =IF(INTRO!$E$50="","",ROUND($D80*INTRO!$E$50,0)) -> 117081 | H80: 1 | I80: 0 | J80: 1 | K80: 1 | L80: 0 | M80: =IF(INTRO!$E$37="Endemic",IF($H80>0,IF($H80=4,"Unknown",IF($H80=99,"Stopped",$D80)),0),"Not required") -> 225155.9074 | N80: 0 | O80: =IF(INTRO!$E$41="Endemic", IF(AND($J80>1,$J80<5), IF($J80=4, "Unknown", E80+F80), 0),"Not required") -> 0 | P80: =IF(INTRO!$E$43="Endemic", IF(AND($K80>0,$K80<5), IF($K80=4,"Unknown", IF($K80=1, $F80*0.33, IF($K80=2, $F80*0.5+$G80*0.2, SUM(F80:G80)))), 0),"Not required") -> 20804.52 | Q80: 1 | R80: 0 | S80: 0 | T80: 0 | Y80: 36408 | Z80: Anambra West
A81: =IF(INTRO!$E$33<>0,INTRO!$E$33, " ") -> Nigeria | B81: Anambra | C81: Anaocha | D81: 383296.0047 | E81: =IF(INTRO!$E$48="","",ROUND($D81*INTRO!$E$48,0)) -> 76659 | F81: =IF(INTRO!$E$49="","",ROUND($D81*INTRO!$E$49,0)) -> 107323 | G81: =IF(INTRO!$E$50="","",ROUND($D81*INTRO!$E$50,0)) -> 199314 | H81: 1 | I81: 1 | J81: 1 | K81: 0 | L81: 0 | M81: =IF(INTRO!$E$37="Endemic",IF($H81>0,IF($H81=4,"Unknown",IF($H81=99,"Stopped",$D81)),0),"Not required") -> 383296.0047 | N81: 58627.91787 | O81: =IF(INTRO!$E$41="Endemic", IF(AND($J81>1,$J81<5), IF($J81=4, "Unknown", E81+F81), 0),"Not required") -> 0 | P81: =IF(INTRO!$E$43="Endemic", IF(AND($K81>0,$K81<5), IF($K81=4,"Unknown", IF($K81=1, $F81*0.33, IF($K81=2, $F81*0.5+$G81*0.2, SUM(F81:G81)))), 0),"Not required") -> 0 | Q81: 1 | R81: 2 | S81: 0 | T81: 0 | Y81: 36409 | Z81: Anaocha
A82: =IF(INTRO!$E$33<>0,INTRO!$E$33, " ") -> Nigeria | B82: Anambra | C82: Awka North | D82: 151445.2407 | E82: =IF(INTRO!$E$48="","",ROUND($D82*INTRO!$E$48,0)) -> 30289 | F82: =IF(INTRO!$E$49="","",ROUND($D82*INTRO!$E$49,0)) -> 42405 | G82: =IF(INTRO!$E$50="","",ROUND($D82*INTRO!$E$50,0)) -> 78752 | H82: 1 | I82: 1 | J82: 2 | K82: 0 | L82: 0 | M82: =IF(INTRO!$E$37="Endemic",IF($H82>0,IF($H82=4,"Unknown",IF($H82=99,"Stopped",$D82)),0),"Not required") -> 151445.2407 | N82: 45995.88315 | O82: =IF(INTRO!$E$41="Endemic", IF(AND($J82>1,$J82<5), IF($J82=4, "Unknown", E82+F82), 0),"Not required") -> 72694 | P82: =IF(INTRO!$E$43="Endemic", IF(AND($K82>0,$K82<5), IF($K82=4,"Unknown", IF($K82=1, $F82*0.33, IF($K82=2, $F82*0.5+$G82*0.2, SUM(F82:G82)))), 0),"Not required") -> 0 | Q82: 1 | R82: 2 | S82: 1 | T82: 0 | Y82: 36410 | Z82: Awka North
A83: =IF(INTRO!$E$33<>0,INTRO!$E$33, " ") -> Nigeria | B83: Anambra | C83: Awka south | D83: 254249.8873 | E83: =IF(INTRO!$E$48="","",ROUND($D83*INTRO!$E$48,0)) -> 50850 | F83: =IF(INTRO!$E$49="","",ROUND($D83*INTRO!$E$49,0)) -> 71190 | G83: =IF(INTRO!$E$50="","",ROUND($D83*INTRO!$E$50,0)) -> 132210 | H83: 1 | I83: 1 | J83: 2 | K83: 1 | L83: 0 | M83: =IF(INTRO!$E$37="Endemic",IF($H83>0,IF($H83=4,"Unknown",IF($H83=99,"Stopped",$D83)),0),"Not required") -> 254249.8873 | N83: 43690.01802 | O83: =IF(INTRO!$E$41="Endemic", IF(AND($J83>1,$J83<5), IF($J83=4, "Unknown", E83+F83), 0),"Not required") -> 122040 | P83: =IF(INTRO!$E$43="Endemic", IF(AND($K83>0,$K83<5), IF($K83=4,"Unknown", IF($K83=1, $F83*0.33, IF($K83=2, $F83*0.5+$G83*0.2, SUM(F83:G83)))), 0),"Not required") -> 23492.7 | Q83: 1 | R83: 2 | S83: 1 | T83: 0 | Y83: 36411 | Z83: Awka south
A84: =IF(INTRO!$E$33<>0,INTRO!$E$33, " ") -> Nigeria | B84: Anambra | C84: Ayamelum | D84: 213043.8386 | E84: =IF(INTRO!$E$48="","",ROUND($D84*INTRO!$E$48,0)) -> 42609 | F84: =IF(INTRO!$E$49="","",ROUND($D84*INTRO!$E$49,0)) -> 59652 | G84: =IF(INTRO!$E$50="","",ROUND($D84*INTRO!$E$50,0)) -> 110783 | H84: 1 | I84: 1 | J84: 2 | K84: 0 | L84: 0 | M84: =IF(INTRO!$E$37="Endemic",IF($H84>0,IF($H84=4,"Unknown",IF($H84=99,"Stopped",$D84)),0),"Not required") -> 213043.8386 | N84: 53534.9252 | O84: =IF(INTRO!$E$41="Endemic", IF(AND($J84>1,$J84<5), IF($J84=4, "Unknown", E84+F84), 0),"Not required") -> 102261 | P84: =IF(INTRO!$E$43="Endemic", IF(AND($K84>0,$K84<5), IF($K84=4,"Unknown", IF($K84=1, $F84*0.33, IF($K84=2, $F84*0.5+$G84*0.2, SUM(F84:G84)))), 0),"Not required") -> 0 | Q84: 1 | R84: 2 | S84: 1 | T84: 0 | Y84: 36412 | Z84: Ayamelum
A85: =IF(INTRO!$E$33<>0,INTRO!$E$33, " ") -> Nigeria | B85: Anambra | C85: Dunukofia | D85: 129623.0747 | E85: =IF(INTRO!$E$48="","",ROUND($D85*INTRO!$E$48,0)) -> 25925 | F85: =IF(INTRO!$E$49="","",ROUND($D85*INTRO!$E$49,0)) -> 36294 | G85: =IF(INTRO!$E$50="","",ROUND($D85*INTRO!$E$50,0)) -> 67404 | H85: 1 | I85: 1 | J85: 2 | K85: 1 | L85: 0 | M85: =IF(INTRO!$E$37="Endemic",IF($H85>0,IF($H85=4,"Unknown",IF($H85=99,"Stopped",$D85)),0),"Not required") -> 129623.0747 | N85: 44394.25065 | O85: =IF(INTRO!$E$41="Endemic", IF(AND($J85>1,$J85<5), IF($J85=4, "Unknown", E85+F85), 0),"Not required") -> 62219 | P85: =IF(INTRO!$E$43="Endemic", IF(AND($K85>0,$K85<5), IF($K85=4,"Unknown", IF($K85=1, $F85*0.33, IF($K85=2, $F85*0.5+$G85*0.2, SUM(F85:G85)))), 0),"Not required") -> 11977.02 | Q85: 1 | R85: 2 | S85: 1 | T85: 0 | Y85: 36413 | Z85: Dunukofia
A86: =IF(INTRO!$E$33<>0,INTRO!$E$33, " ") -> Nigeria | B86: Anambra | C86: Ekwusiko | D86: 212803.1035 | E86: =IF(INTRO!$E$48="","",ROUND($D86*INTRO!$E$48,0)) -> 42561 | F86: =IF(INTRO!$E$49="","",ROUND($D86*INTRO!$E$49,0)) -> 59585 | G86: =IF(INTRO!$E$50="","",ROUND($D86*INTRO!$E$50,0)) -> 110658 | H86: 1 | I86: 1 | J86: 2 | K86: 0 | L86: 0 | M86: =IF(INTRO!$E$37="Endemic",IF($H86>0,IF($H86=4,"Unknown",IF($H86=99,"Stopped",$D86)),0),"Not required") -> 212803.1035 | N86: 50804.0921 | O86: =IF(INTRO!$E$41="Endemic", IF(AND($J86>1,$J86<5), IF($J86=4, "Unknown", E86+F86), 0),"Not required") -> 102146 | P86: =IF(INTRO!$E$43="Endemic", IF(AND($K86>0,$K86<5), IF($K86=4,"Unknown", IF($K86=1, $F86*0.33, IF($K86=2, $F86*0.5+$G86*0.2, SUM(F86:G86)))), 0),"Not required") -> 0 | Q86: 1 | R86: 2 | S86: 1 | T86: 0 | Y86: 36414 | Z86: Ekwusiko
A87: =IF(INTRO!$E$33<>0,INTRO!$E$33, " ") -> Nigeria | B87: Anambra | C87: Idimili North | D87: 579355.2424 | E87: =IF(INTRO!$E$48="","",ROUND($D87*INTRO!$E$48,0)) -> 115871 | F87: =IF(INTRO!$E$49="","",ROUND($D87*INTRO!$E$49,0)) -> 162219 | G87: =IF(INTRO!$E$50="","",ROUND($D87*INTRO!$E$50,0)) -> 301265 | H87: 1 | I87: 1 | J87: 1 | K87: 1 | L87: 0 | M87: =IF(INTRO!$E$37="Endemic",IF($H87>0,IF($H87=4,"Unknown",IF($H87=99,"Stopped",$D87)),0),"Not required") -> 579355.2424 | N87: 73733.59728 | O87: =IF(INTRO!$E$41="Endemic", IF(AND($J87>1,$J87<5), IF($J87=4, "Unknown", E87+F87), 0),"Not required") -> 0 | P87: =IF(INTRO!$E$43="Endemic", IF(AND($K87>0,$K87<5), IF($K87=4,"Unknown", IF($K87=1, $F87*0.33, IF($K87=2, $F87*0.5+$G87*0.2, SUM(F87:G87)))), 0),"Not required") -> 53532.27 | Q87: 1 | R87: 2 | S87: 0 | T87: 0 | Y87: 36415 | Z87: Idimili North
A88: =IF(INTRO!$E$33<>0,INTRO!$E$33, " ") -> Nigeria | B88: Anambra | C88: Idimili South | D88: 279310.5457 | E88: =IF(INTRO!$E$48="","",ROUND($D88*INTRO!$E$48,0)) -> 55862 | F88: =IF(INTRO!$E$49="","",ROUND($D88*INTRO!$E$49,0)) -> 78207 | G88: =IF(INTRO!$E$50="","",ROUND($D88*INTRO!$E$50,0)) -> 145241 | H88: 1 | I88: 1 | J88: 1 | K88: 0 | L88: 0 | M88: =IF(INTRO!$E$37="Endemic",IF($H88>0,IF($H88=4,"Unknown",IF($H88=99,"Stopped",$D88)),0),"Not required") -> 279310.5457 | N88: 50372.50126 | O88: =IF(INTRO!$E$41="Endemic", IF(AND($J88>1,$J88<5), IF($J88=4, "Unknown", E88+F88), 0),"Not required") -> 0 | P88: =IF(INTRO!$E$43="Endemic", IF(AND($K88>0,$K88<5), IF($K88=4,"Unknown", IF($K88=1, $F88*0.33, IF($K88=2, $F88*0.5+$G88*0.2, SUM(F88:G88)))), 0),"Not required") -> 0 | Q88: 1 | R88: 2 | S88: 0 | T88: 0 | Y88: 36416 | Z88: Idimili South
A89: =IF(INTRO!$E$33<>0,INTRO!$E$33, " ") -> Nigeria | B89: Anambra | C89: Ihiala | D89: 406368.9174 | E89: =IF(INTRO!$E$48="","",ROUND($D89*INTRO!$E$48,0)) -> 81274 | F89: =IF(INTRO!$E$49="","",ROUND($D89*INTRO!$E$49,0)) -> 113783 | G89: =IF(INTRO!$E$50="","",ROUND($D89*INTRO!$E$50,0)) -> 211312 | H89: 1 | I89: 1 | J89: 2 | K89: 0 | L89: 0 | M89: =IF(INTRO!$E$37="Endemic",IF($H89>0,IF($H89=4,"Unknown",IF($H89=99,"Stopped",$D89)),0),"Not required") -> 406368.9174 | N89: 54493.03478 | O89: =IF(INTRO!$E$41="Endemic", IF(AND($J89>1,$J89<5), IF($J89=4, "Unknown", E89+F89), 0),"Not required") -> 195057 | P89: =IF(INTRO!$E$43="Endemic", IF(AND($K89>0,$K89<5), IF($K89=4,"Unknown", IF($K89=1, $F89*0.33, IF($K89=2, $F89*0.5+$G89*0.2, SUM(F89:G89)))), 0),"Not required") -> 0 | Q89: 1 | R89: 2 | S89: 1 | T89: 0 | Y89: 36417 | Z89: Ihiala
A90: =IF(INTRO!$E$33<>0,INTRO!$E$33, " ") -> Nigeria | B90: Anambra | C90: Njikoka | D90: 199668.9193 | E90: =IF(INTRO!$E$48="","",ROUND($D90*INTRO!$E$48,0)) -> 39934 | F90: =IF(INTRO!$E$49="","",ROUND($D90*INTRO!$E$49,0)) -> 55907 | G90: =IF(INTRO!$E$50="","",ROUND($D90*INTRO!$E$50,0)) -> 103828 | H90: 1 | I90: 1 | J90: 2 | K90: 1 | L90: 0 | M90: =IF(INTRO!$E$37="Endemic",IF($H90>0,IF($H90=4,"Unknown",IF($H90=99,"Stopped",$D90)),0),"Not required") -> 199668.9193 | N90: 44932.91134 | O90: =IF(INTRO!$E$41="Endemic", IF(AND($J90>1,$J90<5), IF($J90=4, "Unknown", E90+F90), 0),"Not required") -> 95841 | P90: =IF(INTRO!$E$43="Endemic", IF(AND($K90>0,$K90<5), IF($K90=4,"Unknown", IF($K90=1, $F90*0.33, IF($K90=2, $F90*0.5+$G90*0.2, SUM(F90:G90)))), 0),"Not required") -> 18449.31 | Q90: 1 | R90: 2 | S90: 1 | T90: 0 | Y90: 36418 | Z90: Njikoka
A91: =IF(INTRO!$E$33<>0,INTRO!$E$33, " ") -> Nigeria | B91: Anambra | C91: Nnewi North | D91: 211912.7871 | E91: =IF(INTRO!$E$48="","",ROUND($D91*INTRO!$E$48,0)) -> 42383 | F91: =IF(INTRO!$E$49="","",ROUND($D91*INTRO!$E$49,0)) -> 59336 | G91: =IF(INTRO!$E$50="","",ROUND($D91*INTRO!$E$50,0)) -> 110195 | H91: 1 | I91: 1 | J91: 2 | K91: 1 | L91: 0 | M91: =IF(INTRO!$E$37="Endemic",IF($H91>0,IF($H91=4,"Unknown",IF($H91=99,"Stopped",$D91)),0),"Not required") -> 211912.7871 | N91: 88289.57787 | O91: =IF(INTRO!$E$41="Endemic", IF(AND($J91>1,$J91<5), IF($J91=4, "Unknown", E91+F91), 0),"Not required") -> 101719 | P91: =IF(INTRO!$E$43="Endemic", IF(AND($K91>0,$K91<5), IF($K91=4,"Unknown", IF($K91=1, $F91*0.33, IF($K91=2, $F91*0.5+$G91*0.2, SUM(F91:G91)))), 0),"Not required") -> 19580.88 | Q91: 1 | R91: 2 | S91: 1 | T91: 0 | Y91: 36419 | Z91: Nnewi North
A92: =IF(INTRO!$E$33<>0,INTRO!$E$33, " ") -> Nigeria | B92: Anambra | C92: Nnewi South | D92: 314244.0329 | E92: =IF(INTRO!$E$48="","",ROUND($D92*INTRO!$E$48,0)) -> 62849 | F92: =IF(INTRO!$E$49="","",ROUND($D92*INTRO!$E$49,0)) -> 87988 | G92: =IF(INTRO!$E$50="","",ROUND($D92*INTRO!$E$50,0)) -> 163407 | H92: 1 | I92: 1 | J92: 2 | K92: 1 | L92: 0 | M92: =IF(INTRO!$E$37="Endemic",IF($H92>0,IF($H92=4,"Unknown",IF($H92=99,"Stopped",$D92)),0),"Not required") -> 314244.0329 | N92: 50727.92901 | O92: =IF(INTRO!$E$41="Endemic", IF(AND($J92>1,$J92<5), IF($J92=4, "Unknown", E92+F92), 0),"Not required") -> 150837 | P92: =IF(INTRO!$E$43="Endemic", IF(AND($K92>0,$K92<5), IF($K92=4,"Unknown", IF($K92=1, $F92*0.33, IF($K92=2, $F92*0.5+$G92*0.2, SUM(F92:G92)))), 0),"Not required") -> 29036.04 | Q92: 1 | R92: 2 | S92: 1 | T92: 0 | Y92: 36420 | Z92: Nnewi South
A93: =IF(INTRO!$E$33<>0,INTRO!$E$33, " ") -> Nigeria | B93: Anambra | C93: Ogbaru | D93: 298402.5874 | E93: =IF(INTRO!$E$48="","",ROUND($D93*INTRO!$E$48,0)) -> 59681 | F93: =IF(INTRO!$E$49="","",ROUND($D93*INTRO!$E$49,0)) -> 83553 | G93: =IF(INTRO!$E$50="","",ROUND($D93*INTRO!$E$50,0)) -> 155169 | H93: 1 | I93: 0 | J93: 1 | K93: 1 | L93: 0 | M93: =IF(INTRO!$E$37="Endemic",IF($H93>0,IF($H93=4,"Unknown",IF($H93=99,"Stopped",$D93)),0),"Not required") -> 298402.5874 | N93: 0 | O93: =IF(INTRO!$E$41="Endemic", IF(AND($J93>1,$J93<5), IF($J93=4, "Unknown", E93+F93), 0),"Not required") -> 0 | P93: =IF(INTRO!$E$43="Endemic", IF(AND($K93>0,$K93<5), IF($K93=4,"Unknown", IF($K93=1, $F93*0.33, IF($K93=2, $F93*0.5+$G93*0.2, SUM(F93:G93)))), 0),"Not required") -> 27572.49 | Q93: 1 | R93: 0 | S93: 0 | T93: 0 | Y93: 36421 | Z93: Ogbaru
A94: =IF(INTRO!$E$33<>0,INTRO!$E$33, " ") -> Nigeria | B94: Anambra | C94: Onitsha North | D94: 168033.0995 | E94: =IF(INTRO!$E$48="","",ROUND($D94*INTRO!$E$48,0)) -> 33607 | F94: =IF(INTRO!$E$49="","",ROUND($D94*INTRO!$E$49,0)) -> 47049 | G94: =IF(INTRO!$E$50="","",ROUND($D94*INTRO!$E$50,0)) -> 87377 | H94: 1 | I94: 0 | J94: 1 | K94: 0 | L94: 0 | M94: =IF(INTRO!$E$37="Endemic",IF($H94>0,IF($H94=4,"Unknown",IF($H94=99,"Stopped",$D94)),0),"Not required") -> 168033.0995 | N94: 0 | O94: =IF(INTRO!$E$41="Endemic", IF(AND($J94>1,$J94<5), IF($J94=4, "Unknown", E94+F94), 0),"Not required") -> 0 | P94: =IF(INTRO!$E$43="Endemic", IF(AND($K94>0,$K94<5), IF($K94=4,"Unknown", IF($K94=1, $F94*0.33, IF($K94=2, $F94*0.5+$G94*0.2, SUM(F94:G94)))), 0),"Not required") -> 0 | Q94: 1 | R94: 0 | S94: 0 | T94: 0 | Y94: 36422 | Z94: Onitsha North
A95: =IF(INTRO!$E$33<>0,INTRO!$E$33, " ") -> Nigeria | B95: Anambra | C95: Onitsha South | D95: 183795.1965 | E95: =IF(INTRO!$E$48="","",ROUND($D95*INTRO!$E$48,0)) -> 36759 | F95: =IF(INTRO!$E$49="","",ROUND($D95*INTRO!$E$49,0)) -> 51463 | G95: =IF(INTRO!$E$50="","",ROUND($D95*INTRO!$E$50,0)) -> 95574 | H95: 1 | I95: 0 | J95: 1 | K95: 1 | L95: 0 | M95: =IF(INTRO!$E$37="Endemic",IF($H95>0,IF($H95=4,"Unknown",IF($H95=99,"Stopped",$D95)),0),"Not required") -> 183795.1965 | N95: 0 | O95: =IF(INTRO!$E$41="Endemic", IF(AND($J95>1,$J95<5), IF($J95=4, "Unknown", E95+F95), 0),"Not required") -> 0 | P95: =IF(INTRO!$E$43="Endemic", IF(AND($K95>0,$K95<5), IF($K95=4,"Unknown", IF($K95=1, $F95*0.33, IF($K95=2, $F95*0.5+$G95*0.2, SUM(F95:G95)))), 0),"Not required") -> 16982.79 | Q95: 1 | R95: 0 | S95: 0 | T95: 0 | Y95: 36423 | Z95: Onitsha South
A96: =IF(INTRO!$E$33<>0,INTRO!$E$33, " ") -> Nigeria | B96: Anambra | C96: Orumba North | D96: 231865.5577 | E96: =IF(INTRO!$E$48="","",ROUND($D96*INTRO!$E$48,0)) -> 46373 | F96: =IF(INTRO!$E$49="","",ROUND($D96*INTRO!$E$49,0)) -> 64922 | G96: =IF(INTRO!$E$50="","",ROUND($D96*INTRO!$E$50,0)) -> 120570 | H96: 1 | I96: 1 | J96: 1 | K96: 1 | L96: 0 | M96: =IF(INTRO!$E$37="Endemic",IF($H96>0,IF($H96=4,"Unknown",IF($H96=99,"Stopped",$D96)),0),"Not required") -> 231865.5577 | N96: 59885.16076 | O96: =IF(INTRO!$E$41="Endemic", IF(AND($J96>1,$J96<5), IF($J96=4, "Unknown", E96+F96), 0),"Not required") -> 0 | P96: =IF(INTRO!$E$43="Endemic", IF(AND($K96>0,$K96<5), IF($K96=4,"Unknown", IF($K96=1, $F96*0.33, IF($K96=2, $F96*0.5+$G96*0.2, SUM(F96:G96)))), 0),"Not required") -> 21424.26 | Q96: 1 | R96: 2 | S96: 0 | T96: 0 | Y96: 36424 | Z96: Orumba North
A97: =IF(INTRO!$E$33<>0,INTRO!$E$33, " ") -> Nigeria | B97: Anambra | C97: Orumba South | D97: 251760.4981 | E97: =IF(INTRO!$E$48="","",ROUND($D97*INTRO!$E$48,0)) -> 50352 | F97: =IF(INTRO!$E$49="","",ROUND($D97*INTRO!$E$49,0)) -> 70493 | G97: =IF(INTRO!$E$50="","",ROUND($D97*INTRO!$E$50,0)) -> 130915 | H97: 1 | I97: 1 | J97: 2 | K97: 1 | L97: 0 | M97: =IF(INTRO!$E$37="Endemic",IF($H97>0,IF($H97=4,"Unknown",IF($H97=99,"Stopped",$D97)),0),"Not required") -> 251760.4981 | N97: 59440.32416 | O97: =IF(INTRO!$E$41="Endemic", IF(AND($J97>1,$J97<5), IF($J97=4, "Unknown", E97+F97), 0),"Not required") -> 120845 | P97: =IF(INTRO!$E$43="Endemic", IF(AND($K97>0,$K97<5), IF($K97=4,"Unknown", IF($K97=1, $F97*0.33, IF($K97=2, $F97*0.5+$G97*0.2, SUM(F97:G97)))), 0),"Not required") -> 23262.69 | Q97: 1 | R97: 2 | S97: 1 | T97: 0 | Y97: 36425 | Z97: Orumba South
A98: =IF(INTRO!$E$33<>0,INTRO!$E$33, " ") -> Nigeria | B98: Anambra | C98: Oyi | D98: 225980.3242 | E98: =IF(INTRO!$E$48="","",ROUND($D98*INTRO!$E$48,0)) -> 45196 | F98: =IF(INTRO!$E$49="","",ROUND($D98*INTRO!$E$49,0)) -> 63274 | G98: =IF(INTRO!$E$50="","",ROUND($D98*INTRO!$E$50,0)) -> 117510 | H98: 1 | I98: 1 | J98: 2 | K98: 0 | L98: 0 | M98: =IF(INTRO!$E$37="Endemic",IF($H98>0,IF($H98=4,"Unknown",IF($H98=99,"Stopped",$D98)),0),"Not required") -> 225980.3242 | N98: 40634.66394 | O98: =IF(INTRO!$E$41="Endemic", IF(AND($J98>1,$J98<5), IF($J98=4, "Unknown", E98+F98), 0),"Not required") -> 108470 | P98: =IF(INTRO!$E$43="Endemic", IF(AND($K98>0,$K98<5), IF($K98=4,"Unknown", IF($K98=1, $F98*0.33, IF($K98=2, $F98*0.5+$G98*0.2, SUM(F98:G98)))), 0),"Not required") -> 0 | Q98: 1 | R98: 2 | S98: 1 | T98: 0 | Y98: 36426 | Z98: Oyi
A99: =IF(INTRO!$E$33<>0,INTRO!$E$33, " ") -> Nigeria | B99: Bauchi | C99: Alkaleri | D99: 443021.38 | E99: =IF(INTRO!$E$48="","",ROUND($D99*INTRO!$E$48,0)) -> 88604 | F99: =IF(INTRO!$E$49="","",ROUND($D99*INTRO!$E$49,0)) -> 124046 | G99: =IF(INTRO!$E$50="","",ROUND($D99*INTRO!$E$50,0)) -> 230371 | H99: 1 | I99: 1 | J99: 1 | K99: 2 | L99: 0 | M99: =IF(INTRO!$E$37="Endemic",IF($H99>0,IF($H99=4,"Unknown",IF($H99=99,"Stopped",$D99)),0),"Not required") -> 443021.38 | N99: 279615.6738 | O99: =IF(INTRO!$E$41="Endemic", IF(AND($J99>1,$J99<5), IF($J99=4, "Unknown", E99+F99), 0),"Not required") -> 0 | P99: =IF(INTRO!$E$43="Endemic", IF(AND($K99>0,$K99<5), IF($K99=4,"Unknown", IF($K99=1, $F99*0.33, IF($K99=2, $F99*0.5+$G99*0.2, SUM(F99:G99)))), 0),"Not required") -> 108097.2 | Q99: 1 | R99: 1 | S99: 0 | T99: 1 | Y99: 36427 | Z99: Alkaleri
A100: =IF(INTRO!$E$33<>0,INTRO!$E$33, " ") -> Nigeria | B100: Bauchi | C100: Bauchi | D100: 664093.6534 | E100: =IF(INTRO!$E$48="","",ROUND($D100*INTRO!$E$48,0)) -> 132819 | F100: =IF(INTRO!$E$49="","",ROUND($D100*INTRO!$E$49,0)) -> 185946 | G100: =IF(INTRO!$E$50="","",ROUND($D100*INTRO!$E$50,0)) -> 345329 | H100: 0 | I100: 1 | J100: 1 | K100: 2 | L100: 0 | M100: =IF(INTRO!$E$37="Endemic",IF($H100>0,IF($H100=4,"Unknown",IF($H100=99,"Stopped",$D100)),0),"Not required") -> 0 | N100: 139385.5234 | O100: =IF(INTRO!$E$41="Endemic", IF(AND($J100>1,$J100<5), IF($J100=4, "Unknown", E100+F100), 0),"Not required") -> 0 | P100: =IF(INTRO!$E$43="Endemic", IF(AND($K100>0,$K100<5), IF($K100=4,"Unknown", IF($K100=1, $F100*0.33, IF($K100=2, $F100*0.5+$G100*0.2, SUM(F100:G100)))), 0),"Not required") -> 162038.8 | Q100: 0 | R100: 1 | S100: 0 | T100: 1 | Y100: 36428 | Z100: Bauchi
A101: =IF(INTRO!$E$33<>0,INTRO!$E$33, " ") -> Nigeria | B101: Bauchi | C101: Bogoro | D101: 113255.3958 | E101: =IF(INTRO!$E$48="","",ROUND($D101*INTRO!$E$48,0)) -> 22651 | F101: =IF(INTRO!$E$49="","",ROUND($D101*INTRO!$E$49,0)) -> 31712 | G101: =IF(INTRO!$E$50="","",ROUND($D101*INTRO!$E$50,0)) -> 58893 | H101: 1 | I101: 1 | J101: 1 | K101: 2 | L101: 0 | M101: =IF(INTRO!$E$37="Endemic",IF($H101>0,IF($H101=4,"Unknown",IF($H101=99,"Stopped",$D101)),0),"Not required") -> 113255.3958 | N101: 200701.9444 | O101: =IF(INTRO!$E$41="Endemic", IF(AND($J101>1,$J101<5), IF($J101=4, "Unknown", E101+F101), 0),"Not required") -> 0 | P101: =IF(INTRO!$E$43="Endemic", IF(AND($K101>0,$K101<5), IF($K101=4,"Unknown", IF($K101=1, $F101*0.33, IF($K101=2, $F101*0.5+$G101*0.2, SUM(F101:G101)))), 0),"Not required") -> 27634.6 | Q101: 1 | R101: 1 | S101: 0 | T101: 1 | U101: SS/SC | Y101: 36429 | Z101: Bogoro
A102: =IF(INTRO!$E$33<>0,INTRO!$E$33, " ") -> Nigeria | B102: Bauchi | C102: Damban | D102: 202965.3963 | E102: =IF(INTRO!$E$48="","",ROUND($D102*INTRO!$E$48,0)) -> 40593 | F102: =IF(INTRO!$E$49="","",ROUND($D102*INTRO!$E$49,0)) -> 56830 | G102: =IF(INTRO!$E$50="","",ROUND($D102*INTRO!$E$50,0)) -> 105542 | H102: 0 | I102: 0 | J102: 1 | K102: 0 | L102: 0 | M102: =IF(INTRO!$E$37="Endemic",IF($H102>0,IF($H102=4,"Unknown",IF($H102=99,"Stopped",$D102)),0),"Not required") -> 0 | N102: 0 | O102: =IF(INTRO!$E$41="Endemic", IF(AND($J102>1,$J102<5), IF($J102=4, "Unknown", E102+F102), 0),"Not required") -> 0 | P102: =IF(INTRO!$E$43="Endemic", IF(AND($K102>0,$K102<5), IF($K102=4,"Unknown", IF($K102=1, $F102*0.33, IF($K102=2, $F102*0.5+$G102*0.2, SUM(F102:G102)))), 0),"Not required") -> 0 | Q102: 0 | R102: 0 | S102: 0 | T102: 0 | Y102: 36430 | Z102: Damban
A103: =IF(INTRO!$E$33<>0,INTRO!$E$33, " ") -> Nigeria | B103: Bauchi | C103: Darazo | D103: 338356.799 | E103: =IF(INTRO!$E$48="","",ROUND($D103*INTRO!$E$48,0)) -> 67671 | F103: =IF(INTRO!$E$49="","",ROUND($D103*INTRO!$E$49,0)) -> 94740 | G103: =IF(INTRO!$E$50="","",ROUND($D103*INTRO!$E$50,0)) -> 175946 | H103: 1 | I103: 1 | J103: 1 | K103: 1 | L103: 0 | M103: =IF(INTRO!$E$37="Endemic",IF($H103>0,IF($H103=4,"Unknown",IF($H103=99,"Stopped",$D103)),0),"Not required") -> 338356.799 | N103: 104312.9154 | O103: =IF(INTRO!$E$41="Endemic", IF(AND($J103>1,$J103<5), IF($J103=4, "Unknown", E103+F103), 0),"Not required") -> 0 | P103: =IF(INTRO!$E$43="Endemic", IF(AND($K103>0,$K103<5), IF($K103=4,"Unknown", IF($K103=1, $F103*0.33, IF($K103=2, $F103*0.5+$G103*0.2, SUM(F103:G103)))), 0),"Not required") -> 31264.2 | Q103: 1 | R103: 1 | S103: 0 | T103: 0 | Y103: 36431 | Z103: Darazo
A104: =IF(INTRO!$E$33<>0,INTRO!$E$33, " ") -> Nigeria | B104: Bauchi | C104: Dass | D104: 120958.6186 | E104: =IF(INTRO!$E$48="","",ROUND($D104*INTRO!$E$48,0)) -> 24192 | F104: =IF(INTRO!$E$49="","",ROUND($D104*INTRO!$E$49,0)) -> 33868 | G104: =IF(INTRO!$E$50="","",ROUND($D104*INTRO!$E$50,0)) -> 62898 | H104: 0 | I104: 0 | J104: 1 | K104: 1 | L104: 0 | M104: =IF(INTRO!$E$37="Endemic",IF($H104>0,IF($H104=4,"Unknown",IF($H104=99,"Stopped",$D104)),0),"Not required") -> 0 | N104: 0 | O104: =IF(INTRO!$E$41="Endemic", IF(AND($J104>1,$J104<5), IF($J104=4, "Unknown", E104+F104), 0),"Not required") -> 0 | P104: =IF(INTRO!$E$43="Endemic", IF(AND($K104>0,$K104<5), IF($K104=4,"Unknown", IF($K104=1, $F104*0.33, IF($K104=2, $F104*0.5+$G104*0.2, SUM(F104:G104)))), 0),"Not required") -> 11176.44 | Q104: 0 | R104: 0 | S104: 0 | T104: 0 | Y104: 36432 | Z104: Dass
A105: =IF(INTRO!$E$33<>0,INTRO!$E$33, " ") -> Nigeria | B105: Bauchi | C105: Gamawa | D105: 385145.0015 | E105: =IF(INTRO!$E$48="","",ROUND($D105*INTRO!$E$48,0)) -> 77029 | F105: =IF(INTRO!$E$49="","",ROUND($D105*INTRO!$E$49,0)) -> 107841 | G105: =IF(INTRO!$E$50="","",ROUND($D105*INTRO!$E$50,0)) -> 200275 | H105: 0 | I105: 0 | J105: 1 | K105: 2 | L105: 0 | M105: =IF(INTRO!$E$37="Endemic",IF($H105>0,IF($H105=4,"Unknown",IF($H105=99,"Stopped",$D105)),0),"Not required") -> 0 | N105: 0 | O105: =IF(INTRO!$E$41="Endemic", IF(AND($J105>1,$J105<5), IF($J105=4, "Unknown", E105+F105), 0),"Not required") -> 0 | P105: =IF(INTRO!$E$43="Endemic", IF(AND($K105>0,$K105<5), IF($K105=4,"Unknown", IF($K105=1, $F105*0.33, IF($K105=2, $F105*0.5+$G105*0.2, SUM(F105:G105)))), 0),"Not required") -> 93975.5 | Q105: 0 | R105: 0 | S105: 0 | T105: 1 | Y105: 36433 | Z105: Gamawa
A106: =IF(INTRO!$E$33<>0,INTRO!$E$33, " ") -> Nigeria | B106: Bauchi | C106: Ganjuwa | D106: 377318.0538 | E106: =IF(INTRO!$E$48="","",ROUND($D106*INTRO!$E$48,0)) -> 75464 | F106: =IF(INTRO!$E$49="","",ROUND($D106*INTRO!$E$49,0)) -> 105649 | G106: =IF(INTRO!$E$50="","",ROUND($D106*INTRO!$E$50,0)) -> 196205 | H106: 1 | I106: 1 | J106: 1 | K106: 2 | L106: 0 | M106: =IF(INTRO!$E$37="Endemic",IF($H106>0,IF($H106=4,"Unknown",IF($H106=99,"Stopped",$D106)),0),"Not required") -> 377318.0538 | N106: 159217.8117 | O106: =IF(INTRO!$E$41="Endemic", IF(AND($J106>1,$J106<5), IF($J106=4, "Unknown", E106+F106), 0),"Not required") -> 0 | P106: =IF(INTRO!$E$43="Endemic", IF(AND($K106>0,$K106<5), IF($K106=4,"Unknown", IF($K106=1, $F106*0.33, IF($K106=2, $F106*0.5+$G106*0.2, SUM(F106:G106)))), 0),"Not required") -> 92065.5 | Q106: 1 | R106: 1 | S106: 0 | T106: 1 | Y106: 36434 | Z106: Ganjuwa
A107: =IF(INTRO!$E$33<>0,INTRO!$E$33, " ") -> Nigeria | B107: Bauchi | C107: Giade | D107: 211097.6219 | E107: =IF(INTRO!$E$48="","",ROUND($D107*INTRO!$E$48,0)) -> 42220 | F107: =IF(INTRO!$E$49="","",ROUND($D107*INTRO!$E$49,0)) -> 59107 | G107: =IF(INTRO!$E$50="","",ROUND($D107*INTRO!$E$50,0)) -> 109771 | H107: 1 | I107: 1 | J107: 1 | K107: 0 | L107: 0 | M107: =IF(INTRO!$E$37="Endemic",IF($H107>0,IF($H107=4,"Unknown",IF($H107=99,"Stopped",$D107)),0),"Not required") -> 211097.6219 | N107: 211105.8539 | O107: =IF(INTRO!$E$41="Endemic", IF(AND($J107>1,$J107<5), IF($J107=4, "Unknown", E107+F107), 0),"Not required") -> 0 | P107: =IF(INTRO!$E$43="Endemic", IF(AND($K107>0,$K107<5), IF($K107=4,"Unknown", IF($K107=1, $F107*0.33, IF($K107=2, $F107*0.5+$G107*0.2, SUM(F107:G107)))), 0),"Not required") -> 0 | Q107: 1 | R107: 1 | S107: 0 | T107: 0 | Y107: 36435 | Z107: Giade
A108: =IF(INTRO!$E$33<>0,INTRO!$E$33, " ") -> Nigeria | B108: Bauchi | C108: Itas/Gadua | D108: 309306.9883 | E108: =IF(INTRO!$E$48="","",ROUND($D108*INTRO!$E$48,0)) -> 61861 | F108: =IF(INTRO!$E$49="","",ROUND($D108*INTRO!$E$49,0)) -> 86606 | G108: =IF(INTRO!$E$50="","",ROUND($D108*INTRO!$E$50,0)) -> 160840 | H108: 1 | I108: 0 | J108: 1 | K108: 2 | L108: 0 | M108: =IF(INTRO!$E$37="Endemic",IF($H108>0,IF($H108=4,"Unknown",IF($H108=99,"Stopped",$D108)),0),"Not required") -> 309306.9883 | N108: 0 | O108: =IF(INTRO!$E$41="Endemic", IF(AND($J108>1,$J108<5), IF($J108=4, "Unknown", E108+F108), 0),"Not required") -> 0 | P108: =IF(INTRO!$E$43="Endemic", IF(AND($K108>0,$K108<5), IF($K108=4,"Unknown", IF($K108=1, $F108*0.33, IF($K108=2, $F108*0.5+$G108*0.2, SUM(F108:G108)))), 0),"Not required") -> 75471 | Q108: 1 | R108: 0 | S108: 0 | T108: 1 | Y108: 36436 | Z108: Itas/Gadua
A109: =IF(INTRO!$E$33<>0,INTRO!$E$33, " ") -> Nigeria | B109: Bauchi | C109: Jama'are | D109: 158533.3471 | E109: =IF(INTRO!$E$48="","",ROUND($D109*INTRO!$E$48,0)) -> 31707 | F109: =IF(INTRO!$E$49="","",ROUND($D109*INTRO!$E$49,0)) -> 44389 | G109: =IF(INTRO!$E$50="","",ROUND($D109*INTRO!$E$50,0)) -> 82437 | H109: 0 | I109: 0 | J109: 1 | K109: 1 | L109: 0 | M109: =IF(INTRO!$E$37="Endemic",IF($H109>0,IF($H109=4,"Unknown",IF($H109=99,"Stopped",$D109)),0),"Not required") -> 0 | N109: 0 | O109: =IF(INTRO!$E$41="Endemic", IF(AND($J109>1,$J109<5), IF($J109=4, "Unknown", E109+F109), 0),"Not required") -> 0 | P109: =IF(INTRO!$E$43="Endemic", IF(AND($K109>0,$K109<5), IF($K109=4,"Unknown", IF($K109=1, $F109*0.33, IF($K109=2, $F109*0.5+$G109*0.2, SUM(F109:G109)))), 0),"Not required") -> 14648.37 | Q109: 0 | R109: 0 | S109: 0 | T109: 0 | Y109: 36437 | Z109: Jama'are
A110: =IF(INTRO!$E$33<>0,INTRO!$E$33, " ") -> Nigeria | B110: Bauchi | C110: Katagun | D110: 398031.2237 | E110: =IF(INTRO!$E$48="","",ROUND($D110*INTRO!$E$48,0)) -> 79606 | F110: =IF(INTRO!$E$49="","",ROUND($D110*INTRO!$E$49,0)) -> 111449 | G110: =IF(INTRO!$E$50="","",ROUND($D110*INTRO!$E$50,0)) -> 206976 | H110: 0 | I110: 0 | J110: 1 | K110: 0 | L110: 0 | M110: =IF(INTRO!$E$37="Endemic",IF($H110>0,IF($H110=4,"Unknown",IF($H110=99,"Stopped",$D110)),0),"Not required") -> 0 | N110: 0 | O110: =IF(INTRO!$E$41="Endemic", IF(AND($J110>1,$J110<5), IF($J110=4, "Unknown", E110+F110), 0),"Not required") -> 0 | P110: =IF(INTRO!$E$43="Endemic", IF(AND($K110>0,$K110<5), IF($K110=4,"Unknown", IF($K110=1, $F110*0.33, IF($K110=2, $F110*0.5+$G110*0.2, SUM(F110:G110)))), 0),"Not required") -> 0 | Q110: 0 | R110: 0 | S110: 0 | T110: 0 | Y110: 36438 | Z110: Katagun
A111: =IF(INTRO!$E$33<>0,INTRO!$E$33, " ") -> Nigeria | B111: Bauchi | C111: Kirfi | D111: 198522.0569 | E111: =IF(INTRO!$E$48="","",ROUND($D111*INTRO!$E$48,0)) -> 39704 | F111: =IF(INTRO!$E$49="","",ROUND($D111*INTRO!$E$49,0)) -> 55586 | G111: =IF(INTRO!$E$50="","",ROUND($D111*INTRO!$E$50,0)) -> 103231 | H111: 0 | I111: 1 | J111: 1 | K111: 1 | L111: 0 | M111: =IF(INTRO!$E$37="Endemic",IF($H111>0,IF($H111=4,"Unknown",IF($H111=99,"Stopped",$D111)),0),"Not required") -> 0 | N111: 132274.3139 | O111: =IF(INTRO!$E$41="Endemic", IF(AND($J111>1,$J111<5), IF($J111=4, "Unknown", E111+F111), 0),"Not required") -> 0 | P111: =IF(INTRO!$E$43="Endemic", IF(AND($K111>0,$K111<5), IF($K111=4,"Unknown", IF($K111=1, $F111*0.33, IF($K111=2, $F111*0.5+$G111*0.2, SUM(F111:G111)))), 0),"Not required") -> 18343.38 | Q111: 0 | R111: 1 | S111: 0 | T111: 0 | Y111: 36439 | Z111: Kirfi
A112: =IF(INTRO!$E$33<>0,INTRO!$E$33, " ") -> Nigeria | B112: Bauchi | C112: Misau | D112: 354346.9036 | E112: =IF(INTRO!$E$48="","",ROUND($D112*INTRO!$E$48,0)) -> 70869 | F112: =IF(INTRO!$E$49="","",ROUND($D112*INTRO!$E$49,0)) -> 99217 | G112: =IF(INTRO!$E$50="","",ROUND($D112*INTRO!$E$50,0)) -> 184260 | H112: 1 | I112: 1 | J112: 1 | K112: 0 | L112: 0 | M112: =IF(INTRO!$E$37="Endemic",IF($H112>0,IF($H112=4,"Unknown",IF($H112=99,"Stopped",$D112)),0),"Not required") -> 354346.9036 | N112: 186750.6961 | O112: =IF(INTRO!$E$41="Endemic", IF(AND($J112>1,$J112<5), IF($J112=4, "Unknown", E112+F112), 0),"Not required") -> 0 | P112: =IF(INTRO!$E$43="Endemic", IF(AND($K112>0,$K112<5), IF($K112=4,"Unknown", IF($K112=1, $F112*0.33, IF($K112=2, $F112*0.5+$G112*0.2, SUM(F112:G112)))), 0),"Not required") -> 0 | Q112: 1 | R112: 1 | S112: 0 | T112: 0 | Y112: 36440 | Z112: Misau
A113: =IF(INTRO!$E$33<>0,INTRO!$E$33, " ") -> Nigeria | B113: Bauchi | C113: Ningi | D113: 520709.8881 | E113: =IF(INTRO!$E$48="","",ROUND($D113*INTRO!$E$48,0)) -> 104142 | F113: =IF(INTRO!$E$49="","",ROUND($D113*INTRO!$E$49,0)) -> 145799 | G113: =IF(INTRO!$E$50="","",ROUND($D113*INTRO!$E$50,0)) -> 270769 | H113: 1 | I113: 1 | J113: 1 | K113: 2 | L113: 0 | M113: =IF(INTRO!$E$37="Endemic",IF($H113>0,IF($H113=4,"Unknown",IF($H113=99,"Stopped",$D113)),0),"Not required") -> 520709.8881 | N113: 140254.9456 | O113: =IF(INTRO!$E$41="Endemic", IF(AND($J113>1,$J113<5), IF($J113=4, "Unknown", E113+F113), 0),"Not required") -> 0 | P113: =IF(INTRO!$E$43="Endemic", IF(AND($K113>0,$K113<5), IF($K113=4,"Unknown", IF($K113=1, $F113*0.33, IF($K113=2, $F113*0.5+$G113*0.2, SUM(F113:G113)))), 0),"Not required") -> 127053.3 | Q113: 1 | R113: 1 | S113: 0 | T113: 1 | Y113: 36441 | Z113: Ningi
A114: =IF(INTRO!$E$33<>0,INTRO!$E$33, " ") -> Nigeria | B114: Bauchi | C114: Shira | D114: 314710.5409 | E114: =IF(INTRO!$E$48="","",ROUND($D114*INTRO!$E$48,0)) -> 62942 | F114: =IF(INTRO!$E$49="","",ROUND($D114*INTRO!$E$49,0)) -> 88119 | G114: =IF(INTRO!$E$50="","",ROUND($D114*INTRO!$E$50,0)) -> 163649 | H114: 0 | I114: 0 | J114: 1 | K114: 2 | L114: 0 | M114: =IF(INTRO!$E$37="Endemic",IF($H114>0,IF($H114=4,"Unknown",IF($H114=99,"Stopped",$D114)),0),"Not required") -> 0 | N114: 0 | O114: =IF(INTRO!$E$41="Endemic", IF(AND($J114>1,$J114<5), IF($J114=4, "Unknown", E114+F114), 0),"Not required") -> 0 | P114: =IF(INTRO!$E$43="Endemic", IF(AND($K114>0,$K114<5), IF($K114=4,"Unknown", IF($K114=1, $F114*0.33, IF($K114=2, $F114*0.5+$G114*0.2, SUM(F114:G114)))), 0),"Not required") -> 76789.3 | Q114: 0 | R114: 0 | S114: 0 | T114: 1 | Y114: 36442 | Z114: Shira
A115: =IF(INTRO!$E$33<>0,INTRO!$E$33, " ") -> Nigeria | B115: Bauchi | C115: Tafawa-Balewa | D115: 295847.8658 | E115: =IF(INTRO!$E$48="","",ROUND($D115*INTRO!$E$48,0)) -> 59170 | F115: =IF(INTRO!$E$49="","",ROUND($D115*INTRO!$E$49,0)) -> 82837 | G115: =IF(INTRO!$E$50="","",ROUND($D115*INTRO!$E$50,0)) -> 153841 | H115: 1 | I115: 1 | J115: 1 | K115: 2 | L115: 0 | M115: =IF(INTRO!$E$37="Endemic",IF($H115>0,IF($H115=4,"Unknown",IF($H115=99,"Stopped",$D115)),0),"Not required") -> 295847.8658 | N115: 195084.1371 | O115: =IF(INTRO!$E$41="Endemic", IF(AND($J115>1,$J115<5), IF($J115=4, "Unknown", E115+F115), 0),"Not required") -> 0 | P115: =IF(INTRO!$E$43="Endemic", IF(AND($K115>0,$K115<5), IF($K115=4,"Unknown", IF($K115=1, $F115*0.33, IF($K115=2, $F115*0.5+$G115*0.2, SUM(F115:G115)))), 0),"Not required") -> 72186.7 | Q115: 1 | R115: 1 | S115: 0 | T115: 1 | Y115: 36443 | Z115: Tafawa-Balewa
A116: =IF(INTRO!$E$33<>0,INTRO!$E$33, " ") -> Nigeria | B116: Bauchi | C116: Toro | D116: 471236.0473 | E116: =IF(INTRO!$E$48="","",ROUND($D116*INTRO!$E$48,0)) -> 94247 | F116: =IF(INTRO!$E$49="","",ROUND($D116*INTRO!$E$49,0)) -> 131946 | G116: =IF(INTRO!$E$50="","",ROUND($D116*INTRO!$E$50,0)) -> 245043 | H116: 1 | I116: 1 | J116: 1 | K116: 1 | L116: 0 | M116: =IF(INTRO!$E$37="Endemic",IF($H116>0,IF($H116=4,"Unknown",IF($H116=99,"Stopped",$D116)),0),"Not required") -> 471236.0473 | N116: 276279.8862 | O116: =IF(INTRO!$E$41="Endemic", IF(AND($J116>1,$J116<5), IF($J116=4, "Unknown", E116+F116), 0),"Not required") -> 0 | P116: =IF(INTRO!$E$43="Endemic", IF(AND($K116>0,$K116<5), IF($K116=4,"Unknown", IF($K116=1, $F116*0.33, IF($K116=2, $F116*0.5+$G116*0.2, SUM(F116:G116)))), 0),"Not required") -> 43542.18 | Q116: 1 | R116: 1 | S116: 0 | T116: 0 | Y116: 36444 | Z116: Toro
A117: =IF(INTRO!$E$33<>0,INTRO!$E$33, " ") -> Nigeria | B117: Bauchi | C117: Warji | D117: 154279.6296 | E117: =IF(INTRO!$E$48="","",ROUND($D117*INTRO!$E$48,0)) -> 30856 | F117: =IF(INTRO!$E$49="","",ROUND($D117*INTRO!$E$49,0)) -> 43198 | G117: =IF(INTRO!$E$50="","",ROUND($D117*INTRO!$E$50,0)) -> 80225 | H117: 1 | I117: 1 | J117: 1 | K117: 2 | L117: 0 | M117: =IF(INTRO!$E$37="Endemic",IF($H117>0,IF($H117=4,"Unknown",IF($H117=99,"Stopped",$D117)),0),"Not required") -> 154279.6296 | N117: 429333.7037 | O117: =IF(INTRO!$E$41="Endemic", IF(AND($J117>1,$J117<5), IF($J117=4, "Unknown", E117+F117), 0),"Not required") -> 0 | P117: =IF(INTRO!$E$43="Endemic", IF(AND($K117>0,$K117<5), IF($K117=4,"Unknown", IF($K117=1, $F117*0.33, IF($K117=2, $F117*0.5+$G117*0.2, SUM(F117:G117)))), 0),"Not required") -> 37644 | Q117: 1 | R117: 1 | S117: 0 | T117: 1 | Y117: 36445 | Z117: Warji
A118: =IF(INTRO!$E$33<>0,INTRO!$E$33, " ") -> Nigeria | B118: Bauchi | C118: Zaki | D118: 257478.339 | E118: =IF(INTRO!$E$48="","",ROUND($D118*INTRO!$E$48,0)) -> 51496 | F118: =IF(INTRO!$E$49="","",ROUND($D118*INTRO!$E$49,0)) -> 72094 | G118: =IF(INTRO!$E$50="","",ROUND($D118*INTRO!$E$50,0)) -> 133889 | H118: 0 | I118: 0 | J118: 1 | K118: 2 | L118: 0 | M118: =IF(INTRO!$E$37="Endemic",IF($H118>0,IF($H118=4,"Unknown",IF($H118=99,"Stopped",$D118)),0),"Not required") -> 0 | N118: 0 | O118: =IF(INTRO!$E$41="Endemic", IF(AND($J118>1,$J118<5), IF($J118=4, "Unknown", E118+F118), 0),"Not required") -> 0 | P118: =IF(INTRO!$E$43="Endemic", IF(AND($K118>0,$K118<5), IF($K118=4,"Unknown", IF($K118=1, $F118*0.33, IF($K118=2, $F118*0.5+$G118*0.2, SUM(F118:G118)))), 0),"Not required") -> 62824.8 | Q118: 0 | R118: 0 | S118: 0 | T118: 1 | Y118: 36446 | Z118: Zaki
A119: =IF(INTRO!$E$33<>0,INTRO!$E$33, " ") -> Nigeria | B119: Bayelsa | C119: Brass | D119: 248870.332 | E119: =IF(INTRO!$E$48="","",ROUND($D119*INTRO!$E$48,0)) -> 49774 | F119: =IF(INTRO!$E$49="","",ROUND($D119*INTRO!$E$49,0)) -> 69684 | G119: =IF(INTRO!$E$50="","",ROUND($D119*INTRO!$E$50,0)) -> 129413 | H119: 1 | I119: 0 | J119: 3 | K119: 0 | L119: 0 | M119: =IF(INTRO!$E$37="Endemic",IF($H119>0,IF($H119=4,"Unknown",IF($H119=99,"Stopped",$D119)),0),"Not required") -> 248870.332 | N119: 0 | O119: =IF(INTRO!$E$41="Endemic", IF(AND($J119>1,$J119<5), IF($J119=4, "Unknown", E119+F119), 0),"Not required") -> 119458 | P119: =IF(INTRO!$E$43="Endemic", IF(AND($K119>0,$K119<5), IF($K119=4,"Unknown", IF($K119=1, $F119*0.33, IF($K119=2, $F119*0.5+$G119*0.2, SUM(F119:G119)))), 0),"Not required") -> 0 | Q119: 1 | R119: 0 | S119: 2 | T119: 0 | Y119: 36447 | Z119: Brass
A120: =IF(INTRO!$E$33<>0,INTRO!$E$33, " ") -> Nigeria | B120: Bayelsa | C120: Ekeremo | D120: 363465.619 | E120: =IF(INTRO!$E$48="","",ROUND($D120*INTRO!$E$48,0)) -> 72693 | F120: =IF(INTRO!$E$49="","",ROUND($D120*INTRO!$E$49,0)) -> 101770 | G120: =IF(INTRO!$E$50="","",ROUND($D120*INTRO!$E$50,0)) -> 189002 | H120: 0 | I120: 0 | J120: 2 | K120: 1 | L120: 4 | M120: =IF(INTRO!$E$37="Endemic",IF($H120>0,IF($H120=4,"Unknown",IF($H120=99,"Stopped",$D120)),0),"Not required") -> 0 | N120: 0 | O120: =IF(INTRO!$E$41="Endemic", IF(AND($J120>1,$J120<5), IF($J120=4, "Unknown", E120+F120), 0),"Not required") -> 174463 | P120: =IF(INTRO!$E$43="Endemic", IF(AND($K120>0,$K120<5), IF($K120=4,"Unknown", IF($K120=1, $F120*0.33, IF($K120=2, $F120*0.5+$G120*0.2, SUM(F120:G120)))), 0),"Not required") -> 33584.1 | Q120: 0 | R120: 0 | S120: 1 | T120: 0 | Y120: 36448 | Z120: Ekeremo
A121: =IF(INTRO!$E$33<>0,INTRO!$E$33, " ") -> Nigeria | B121: Bayelsa | C121: Kolokuma/Opokuma | D121: 103949.147 | E121: =IF(INTRO!$E$48="","",ROUND($D121*INTRO!$E$48,0)) -> 20790 | F121: =IF(INTRO!$E$49="","",ROUND($D121*INTRO!$E$49,0)) -> 29106 | G121: =IF(INTRO!$E$50="","",ROUND($D121*INTRO!$E$50,0)) -> 54054 | H121: 1 | I121: 0 | J121: 1 | K121: 0 | L121: 0 | M121: =IF(INTRO!$E$37="Endemic",IF($H121>0,IF($H121=4,"Unknown",IF($H121=99,"Stopped",$D121)),0),"Not required") -> 103949.147 | N121: 0 | O121: =IF(INTRO!$E$41="Endemic", IF(AND($J121>1,$J121<5), IF($J121=4, "Unknown", E121+F121), 0),"Not required") -> 0 | P121: =IF(INTRO!$E$43="Endemic", IF(AND($K121>0,$K121<5), IF($K121=4,"Unknown", IF($K121=1, $F121*0.33, IF($K121=2, $F121*0.5+$G121*0.2, SUM(F121:G121)))), 0),"Not required") -> 0 | Q121: 1 | R121: 0 | S121: 0 | T121: 0 | Y121: 36449 | Z121: Kolokuma/Opokuma
A122: =IF(INTRO!$E$33<>0,INTRO!$E$33, " ") -> Nigeria | B122: Bayelsa | C122: Nembe | D122: 176087.6386 | E122: =IF(INTRO!$E$48="","",ROUND($D122*INTRO!$E$48,0)) -> 35218 | F122: =IF(INTRO!$E$49="","",ROUND($D122*INTRO!$E$49,0)) -> 49305 | G122: =IF(INTRO!$E$50="","",ROUND($D122*INTRO!$E$50,0)) -> 91566 | H122: 1 | I122: 0 | J122: 1 | K122: 0 | L122: 0 | M122: =IF(INTRO!$E$37="Endemic",IF($H122>0,IF($H122=4,"Unknown",IF($H122=99,"Stopped",$D122)),0),"Not required") -> 176087.6386 | N122: 0 | O122: =IF(INTRO!$E$41="Endemic", IF(AND($J122>1,$J122<5), IF($J122=4, "Unknown", E122+F122), 0),"Not required") -> 0 | P122: =IF(INTRO!$E$43="Endemic", IF(AND($K122>0,$K122<5), IF($K122=4,"Unknown", IF($K122=1, $F122*0.33, IF($K122=2, $F122*0.5+$G122*0.2, SUM(F122:G122)))), 0),"Not required") -> 0 | Q122: 1 | R122: 0 | S122: 0 | T122: 0 | Y122: 36450 | Z122: Nembe
A123: =IF(INTRO!$E$33<>0,INTRO!$E$33, " ") -> Nigeria | B123: Bayelsa | C123: Ogbia | D123: 241980.4666 | E123: =IF(INTRO!$E$48="","",ROUND($D123*INTRO!$E$48,0)) -> 48396 | F123: =IF(INTRO!$E$49="","",ROUND($D123*INTRO!$E$49,0)) -> 67755 | G123: =IF(INTRO!$E$50="","",ROUND($D123*INTRO!$E$50,0)) -> 125830 | H123: 1 | I123: 0 | J123: 2 | K123: 1 | L123: 0 | M123: =IF(INTRO!$E$37="Endemic",IF($H123>0,IF($H123=4,"Unknown",IF($H123=99,"Stopped",$D123)),0),"Not required") -> 241980.4666 | N123: 0 | O123: =IF(INTRO!$E$41="Endemic", IF(AND($J123>1,$J123<5), IF($J123=4, "Unknown", E123+F123), 0),"Not required") -> 116151 | P123: =IF(INTRO!$E$43="Endemic", IF(AND($K123>0,$K123<5), IF($K123=4,"Unknown", IF($K123=1, $F123*0.33, IF($K123=2, $F123*0.5+$G123*0.2, SUM(F123:G123)))), 0),"Not required") -> 22359.15 | Q123: 1 | R123: 0 | S123: 1 | T123: 0 | Y123: 36451 | Z123: Ogbia
A124: =IF(INTRO!$E$33<>0,INTRO!$E$33, " ") -> Nigeria | B124: Bayelsa | C124: Sagbama | D124: 251690.5639 | E124: =IF(INTRO!$E$48="","",ROUND($D124*INTRO!$E$48,0)) -> 50338 | F124: =IF(INTRO!$E$49="","",ROUND($D124*INTRO!$E$49,0)) -> 70473 | G124: =IF(INTRO!$E$50="","",ROUND($D124*INTRO!$E$50,0)) -> 130879 | H124: 1 | I124: 0 | J124: 1 | K124: 0 | L124: 0 | M124: =IF(INTRO!$E$37="Endemic",IF($H124>0,IF($H124=4,"Unknown",IF($H124=99,"Stopped",$D124)),0),"Not required") -> 251690.5639 | N124: 0 | O124: =IF(INTRO!$E$41="Endemic", IF(AND($J124>1,$J124<5), IF($J124=4, "Unknown", E124+F124), 0),"Not required") -> 0 | P124: =IF(INTRO!$E$43="Endemic", IF(AND($K124>0,$K124<5), IF($K124=4,"Unknown", IF($K124=1, $F124*0.33, IF($K124=2, $F124*0.5+$G124*0.2, SUM(F124:G124)))), 0),"Not required") -> 0 | Q124: 1 | R124: 0 | S124: 0 | T124: 0 | Y124: 36452 | Z124: Sagbama
A125: =IF(INTRO!$E$33<>0,INTRO!$E$33, " ") -> Nigeria | B125: Bayelsa | C125: Southern Ijaw | D125: 429574.974 | E125: =IF(INTRO!$E$48="","",ROUND($D125*INTRO!$E$48,0)) -> 85915 | F125: =IF(INTRO!$E$49="","",ROUND($D125*INTRO!$E$49,0)) -> 120281 | G125: =IF(INTRO!$E$50="","",ROUND($D125*INTRO!$E$50,0)) -> 223379 | H125: 1 | I125: 0 | J125: 3 | K125: 0 | L125: 0 | M125: =IF(INTRO!$E$37="Endemic",IF($H125>0,IF($H125=4,"Unknown",IF($H125=99,"Stopped",$D125)),0),"Not required") -> 429574.974 | N125: 0 | O125: =IF(INTRO!$E$41="Endemic", IF(AND($J125>1,$J125<5), IF($J125=4, "Unknown", E125+F125), 0),"Not required") -> 206196 | P125: =IF(INTRO!$E$43="Endemic", IF(AND($K125>0,$K125<5), IF($K125=4,"Unknown", IF($K125=1, $F125*0.33, IF($K125=2, $F125*0.5+$G125*0.2, SUM(F125:G125)))), 0),"Not required") -> 0 | Q125: 1 | R125: 0 | S125: 2 | T125: 0 | Y125: 36453 | Z125: Southern Ijaw
A126: =IF(INTRO!$E$33<>0,INTRO!$E$33, " ") -> Nigeria | B126: Bayelsa | C126: Yenegoa | D126: 475208.3967 | E126: =IF(INTRO!$E$48="","",ROUND($D126*INTRO!$E$48,0)) -> 95042 | F126: =IF(INTRO!$E$49="","",ROUND($D126*INTRO!$E$49,0)) -> 133058 | G126: =IF(INTRO!$E$50="","",ROUND($D126*INTRO!$E$50,0)) -> 247108 | H126: 1 | I126: 0 | J126: 2 | K126: 0 | L126: 0 | M126: =IF(INTRO!$E$37="Endemic",IF($H126>0,IF($H126=4,"Unknown",IF($H126=99,"Stopped",$D126)),0),"Not required") -> 475208.3967 | N126: 0 | O126: =IF(INTRO!$E$41="Endemic", IF(AND($J126>1,$J126<5), IF($J126=4, "Unknown", E126+F126), 0),"Not required") -> 228100 | P126: =IF(INTRO!$E$43="Endemic", IF(AND($K126>0,$K126<5), IF($K126=4,"Unknown", IF($K126=1, $F126*0.33, IF($K126=2, $F126*0.5+$G126*0.2, SUM(F126:G126)))), 0),"Not required") -> 0 | Q126: 1 | R126: 0 | S126: 1 | T126: 0 | Y126: 36454 | Z126: Yenegoa
A127: =IF(INTRO!$E$33<>0,INTRO!$E$33, " ") -> Nigeria | B127: Benue | C127: Ado | D127: 240576.4027 | E127: =IF(INTRO!$E$48="","",ROUND($D127*INTRO!$E$48,0)) -> 48115 | F127: =IF(INTRO!$E$49="","",ROUND($D127*INTRO!$E$49,0)) -> 67361 | G127: =IF(INTRO!$E$50="","",ROUND($D127*INTRO!$E$50,0)) -> 125100 | H127: 1 | I127: 1 | J127: 2 | K127: 1 | L127: 0 | M127: =IF(INTRO!$E$37="Endemic",IF($H127>0,IF($H127=4,"Unknown",IF($H127=99,"Stopped",$D127)),0),"Not required") -> 240576.4027 | N127: 160994.4215 | O127: =IF(INTRO!$E$41="Endemic", IF(AND($J127>1,$J127<5), IF($J127=4, "Unknown", E127+F127), 0),"Not required") -> 115476 | P127: =IF(INTRO!$E$43="Endemic", IF(AND($K127>0,$K127<5), IF($K127=4,"Unknown", IF($K127=1, $F127*0.33, IF($K127=2, $F127*0.5+$G127*0.2, SUM(F127:G127)))), 0),"Not required") -> 22229.13 | Q127: 1 | R127: 1 | S127: 1 | T127: 0 | Y127: 36455 | Z127: Ado
A128: =IF(INTRO!$E$33<>0,INTRO!$E$33, " ") -> Nigeria | B128: Benue | C128: Agatu | D128: 155365.5916 | E128: =IF(INTRO!$E$48="","",ROUND($D128*INTRO!$E$48,0)) -> 31073 | F128: =IF(INTRO!$E$49="","",ROUND($D128*INTRO!$E$49,0)) -> 43502 | G128: =IF(INTRO!$E$50="","",ROUND($D128*INTRO!$E$50,0)) -> 80790 | H128: 0 | I128: 1 | J128: 2 | K128: 1 | L128: 0 | M128: =IF(INTRO!$E$37="Endemic",IF($H128>0,IF($H128=4,"Unknown",IF($H128=99,"Stopped",$D128)),0),"Not required") -> 0 | N128: 123203.1796 | O128: =IF(INTRO!$E$41="Endemic", IF(AND($J128>1,$J128<5), IF($J128=4, "Unknown", E128+F128), 0),"Not required") -> 74575 | P128: =IF(INTRO!$E$43="Endemic", IF(AND($K128>0,$K128<5), IF($K128=4,"Unknown", IF($K128=1, $F128*0.33, IF($K128=2, $F128*0.5+$G128*0.2, SUM(F128:G128)))), 0),"Not required") -> 14355.66 | Q128: 0 | R128: 1 | S128: 1 | T128: 0 | Y128: 36456 | Z128: Agatu
A129: =IF(INTRO!$E$33<>0,INTRO!$E$33, " ") -> Nigeria | B129: Benue | C129: Apa | D129: 130138.1671 | E129: =IF(INTRO!$E$48="","",ROUND($D129*INTRO!$E$48,0)) -> 26028 | F129: =IF(INTRO!$E$49="","",ROUND($D129*INTRO!$E$49,0)) -> 36439 | G129: =IF(INTRO!$E$50="","",ROUND($D129*INTRO!$E$50,0)) -> 67672 | H129: 1 | I129: 1 | J129: 2 | K129: 2 | L129: 0 | M129: =IF(INTRO!$E$37="Endemic",IF($H129>0,IF($H129=4,"Unknown",IF($H129=99,"Stopped",$D129)),0),"Not required") -> 130138.1671 | N129: 97412.59141 | O129: =IF(INTRO!$E$41="Endemic", IF(AND($J129>1,$J129<5), IF($J129=4, "Unknown", E129+F129), 0),"Not required") -> 62467 | P129: =IF(INTRO!$E$43="Endemic", IF(AND($K129>0,$K129<5), IF($K129=4,"Unknown", IF($K129=1, $F129*0.33, IF($K129=2, $F129*0.5+$G129*0.2, SUM(F129:G129)))), 0),"Not required") -> 31753.9 | Q129: 1 | R129: 1 | S129: 1 | T129: 1 | Y129: 36457 | Z129: Apa
A130: =IF(INTRO!$E$33<>0,INTRO!$E$33, " ") -> Nigeria | B130: Benue | C130: Buruku | D130: 273982.0962 | E130: =IF(INTRO!$E$48="","",ROUND($D130*INTRO!$E$48,0)) -> 54796 | F130: =IF(INTRO!$E$49="","",ROUND($D130*INTRO!$E$49,0)) -> 76715 | G130: =IF(INTRO!$E$50="","",ROUND($D130*INTRO!$E$50,0)) -> 142471 | H130: 0 | I130: 1 | J130: 2 | K130: 2 | L130: 0 | M130: =IF(INTRO!$E$37="Endemic",IF($H130>0,IF($H130=4,"Unknown",IF($H130=99,"Stopped",$D130)),0),"Not required") -> 0 | N130: 223176.6169 | O130: =IF(INTRO!$E$41="Endemic", IF(AND($J130>1,$J130<5), IF($J130=4, "Unknown", E130+F130), 0),"Not required") -> 131511 | P130: =IF(INTRO!$E$43="Endemic", IF(AND($K130>0,$K130<5), IF($K130=4,"Unknown", IF($K130=1, $F130*0.33, IF($K130=2, $F130*0.5+$G130*0.2, SUM(F130:G130)))), 0),"Not required") -> 66851.7 | Q130: 0 | R130: 1 | S130: 1 | T130: 1 | Y130: 36458 | Z130: Buruku
A131: =IF(INTRO!$E$33<>0,INTRO!$E$33, " ") -> Nigeria | B131: Benue | C131: Gboko | D131: 482729.015 | E131: =IF(INTRO!$E$48="","",ROUND($D131*INTRO!$E$48,0)) -> 96546 | F131: =IF(INTRO!$E$49="","",ROUND($D131*INTRO!$E$49,0)) -> 135164 | G131: =IF(INTRO!$E$50="","",ROUND($D131*INTRO!$E$50,0)) -> 251019 | H131: 1 | I131: 1 | J131: 2 | K131: 2 | L131: 0 | M131: =IF(INTRO!$E$37="Endemic",IF($H131>0,IF($H131=4,"Unknown",IF($H131=99,"Stopped",$D131)),0),"Not required") -> 482729.015 | N131: 356017.1869 | O131: =IF(INTRO!$E$41="Endemic", IF(AND($J131>1,$J131<5), IF($J131=4, "Unknown", E131+F131), 0),"Not required") -> 231710 | P131: =IF(INTRO!$E$43="Endemic", IF(AND($K131>0,$K131<5), IF($K131=4,"Unknown", IF($K131=1, $F131*0.33, IF($K131=2, $F131*0.5+$G131*0.2, SUM(F131:G131)))), 0),"Not required") -> 117785.8 | Q131: 1 | R131: 1 | S131: 1 | T131: 1 | Y131: 36459 | Z131: Gboko
A132: =IF(INTRO!$E$33<>0,INTRO!$E$33, " ") -> Nigeria | B132: Benue | C132: Guma | D132: 257679.3538 | E132: =IF(INTRO!$E$48="","",ROUND($D132*INTRO!$E$48,0)) -> 51536 | F132: =IF(INTRO!$E$49="","",ROUND($D132*INTRO!$E$49,0)) -> 72150 | G132: =IF(INTRO!$E$50="","",ROUND($D132*INTRO!$E$50,0)) -> 133993 | H132: 1 | I132: 1 | J132: 2 | K132: 2 | L132: 0 | M132: =IF(INTRO!$E$37="Endemic",IF($H132>0,IF($H132=4,"Unknown",IF($H132=99,"Stopped",$D132)),0),"Not required") -> 257679.3538 | N132: 153550.3074 | O132: =IF(INTRO!$E$41="Endemic", IF(AND($J132>1,$J132<5), IF($J132=4, "Unknown", E132+F132), 0),"Not required") -> 123686 | P132: =IF(INTRO!$E$43="Endemic", IF(AND($K132>0,$K132<5), IF($K132=4,"Unknown", IF($K132=1, $F132*0.33, IF($K132=2, $F132*0.5+$G132*0.2, SUM(F132:G132)))), 0),"Not required") -> 62873.6 | Q132: 1 | R132: 1 | S132: 1 | T132: 1 | Y132: 36460 | Z132: Guma
A133: =IF(INTRO!$E$33<>0,INTRO!$E$33, " ") -> Nigeria | B133: Benue | C133: Gwer East | D133: 220087.0214 | E133: =IF(INTRO!$E$48="","",ROUND($D133*INTRO!$E$48,0)) -> 44017 | F133: =IF(INTRO!$E$49="","",ROUND($D133*INTRO!$E$49,0)) -> 61624 | G133: =IF(INTRO!$E$50="","",ROUND($D133*INTRO!$E$50,0)) -> 114445 | H133: 1 | I133: 1 | J133: 2 | K133: 2 | L133: 0 | M133: =IF(INTRO!$E$37="Endemic",IF($H133>0,IF($H133=4,"Unknown",IF($H133=99,"Stopped",$D133)),0),"Not required") -> 220087.0214 | N133: 97472.19731 | O133: =IF(INTRO!$E$41="Endemic", IF(AND($J133>1,$J133<5), IF($J133=4, "Unknown", E133+F133), 0),"Not required") -> 105641 | P133: =IF(INTRO!$E$43="Endemic", IF(AND($K133>0,$K133<5), IF($K133=4,"Unknown", IF($K133=1, $F133*0.33, IF($K133=2, $F133*0.5+$G133*0.2, SUM(F133:G133)))), 0),"Not required") -> 53701 | Q133: 1 | R133: 1 | S133: 1 | T133: 1 | Y133: 36461 | Z133: Gwer East
A134: =IF(INTRO!$E$33<>0,INTRO!$E$33, " ") -> Nigeria | B134: Benue | C134: Gwer West | D134: 164271.4454 | E134: =IF(INTRO!$E$48="","",ROUND($D134*INTRO!$E$48,0)) -> 32854 | F134: =IF(INTRO!$E$49="","",ROUND($D134*INTRO!$E$49,0)) -> 45996 | G134: =IF(INTRO!$E$50="","",ROUND($D134*INTRO!$E$50,0)) -> 85421 | H134: 0 | I134: 1 | J134: 2 | K134: 2 | L134: 0 | M134: =IF(INTRO!$E$37="Endemic",IF($H134>0,IF($H134=4,"Unknown",IF($H134=99,"Stopped",$D134)),0),"Not required") -> 0 | N134: 110277.5307 | O134: =IF(INTRO!$E$41="Endemic", IF(AND($J134>1,$J134<5), IF($J134=4, "Unknown", E134+F134), 0),"Not required") -> 78850 | P134: =IF(INTRO!$E$43="Endemic", IF(AND($K134>0,$K134<5), IF($K134=4,"Unknown", IF($K134=1, $F134*0.33, IF($K134=2, $F134*0.5+$G134*0.2, SUM(F134:G134)))), 0),"Not required") -> 40082.2 | Q134: 0 | R134: 1 | S134: 1 | T134: 1 | Y134: 36462 | Z134: Gwer West
A135: =IF(INTRO!$E$33<>0,INTRO!$E$33, " ") -> Nigeria | B135: Benue | C135: Katsina-Ala | D135: 302220.7268 | E135: =IF(INTRO!$E$48="","",ROUND($D135*INTRO!$E$48,0)) -> 60444 | F135: =IF(INTRO!$E$49="","",ROUND($D135*INTRO!$E$49,0)) -> 84622 | G135: =IF(INTRO!$E$50="","",ROUND($D135*INTRO!$E$50,0)) -> 157155 | H135: 1 | I135: 1 | J135: 1 | K135: 2 | L135: 0 | M135: =IF(INTRO!$E$37="Endemic",IF($H135>0,IF($H135=4,"Unknown",IF($H135=99,"Stopped",$D135)),0),"Not required") -> 302220.7268 | N135: 292277.5115 | O135: =IF(INTRO!$E$41="Endemic", IF(AND($J135>1,$J135<5), IF($J135=4, "Unknown", E135+F135), 0),"Not required") -> 0 | P135: =IF(INTRO!$E$43="Endemic", IF(AND($K135>0,$K135<5), IF($K135=4,"Unknown", IF($K135=1, $F135*0.33, IF($K135=2, $F135*0.5+$G135*0.2, SUM(F135:G135)))), 0),"Not required") -> 73742 | Q135: 1 | R135: 1 | S135: 0 | T135: 1 | Y135: 36463 | Z135: Katsina-Ala
A136: =IF(INTRO!$E$33<>0,INTRO!$E$33, " ") -> Nigeria | B136: Benue | C136: Konshisha | D136: 303503.7507 | E136: =IF(INTRO!$E$48="","",ROUND($D136*INTRO!$E$48,0)) -> 60701 | F136: =IF(INTRO!$E$49="","",ROUND($D136*INTRO!$E$49,0)) -> 84981 | G136: =IF(INTRO!$E$50="","",ROUND($D136*INTRO!$E$50,0)) -> 157822 | H136: 1 | I136: 1 | J136: 2 | K136: 1 | L136: 0 | M136: =IF(INTRO!$E$37="Endemic",IF($H136>0,IF($H136=4,"Unknown",IF($H136=99,"Stopped",$D136)),0),"Not required") -> 303503.7507 | N136: 233091.0643 | O136: =IF(INTRO!$E$41="Endemic", IF(AND($J136>1,$J136<5), IF($J136=4, "Unknown", E136+F136), 0),"Not required") -> 145682 | P136: =IF(INTRO!$E$43="Endemic", IF(AND($K136>0,$K136<5), IF($K136=4,"Unknown", IF($K136=1, $F136*0.33, IF($K136=2, $F136*0.5+$G136*0.2, SUM(F136:G136)))), 0),"Not required") -> 28043.73 | Q136: 1 | R136: 1 | S136: 1 | T136: 0 | Y136: 36464 | Z136: Konshisha
A137: =IF(INTRO!$E$33<>0,INTRO!$E$33, " ") -> Nigeria | B137: Benue | C137: Kwande | D137: 334469.8159 | E137: =IF(INTRO!$E$48="","",ROUND($D137*INTRO!$E$48,0)) -> 66894 | F137: =IF(INTRO!$E$49="","",ROUND($D137*INTRO!$E$49,0)) -> 93652 | G137: =IF(INTRO!$E$50="","",ROUND($D137*INTRO!$E$50,0)) -> 173924 | H137: 1 | I137: 1 | J137: 2 | K137: 2 | L137: 0 | M137: =IF(INTRO!$E$37="Endemic",IF($H137>0,IF($H137=4,"Unknown",IF($H137=99,"Stopped",$D137)),0),"Not required") -> 334469.8159 | N137: 334469.8159 | O137: =IF(INTRO!$E$41="Endemic", IF(AND($J137>1,$J137<5), IF($J137=4, "Unknown", E137+F137), 0),"Not required") -> 160546 | P137: =IF(INTRO!$E$43="Endemic", IF(AND($K137>0,$K137<5), IF($K137=4,"Unknown", IF($K137=1, $F137*0.33, IF($K137=2, $F137*0.5+$G137*0.2, SUM(F137:G137)))), 0),"Not required") -> 81610.8 | Q137: 1 | R137: 1 | S137: 1 | T137: 1 | Y137: 36465 | Z137: Kwande
A138: =IF(INTRO!$E$33<>0,INTRO!$E$33, " ") -> Nigeria | B138: Benue | C138: Logo | D138: 227370.9393 | E138: =IF(INTRO!$E$48="","",ROUND($D138*INTRO!$E$48,0)) -> 45474 | F138: =IF(INTRO!$E$49="","",ROUND($D138*INTRO!$E$49,0)) -> 63664 | G138: =IF(INTRO!$E$50="","",ROUND($D138*INTRO!$E$50,0)) -> 118233 | H138: 1 | I138: 1 | J138: 1 | K138: 2 | L138: 0 | M138: =IF(INTRO!$E$37="Endemic",IF($H138>0,IF($H138=4,"Unknown",IF($H138=99,"Stopped",$D138)),0),"Not required") -> 227370.9393 | N138: 155287.7089 | O138: =IF(INTRO!$E$41="Endemic", IF(AND($J138>1,$J138<5), IF($J138=4, "Unknown", E138+F138), 0),"Not required") -> 0 | P138: =IF(INTRO!$E$43="Endemic", IF(AND($K138>0,$K138<5), IF($K138=4,"Unknown", IF($K138=1, $F138*0.33, IF($K138=2, $F138*0.5+$G138*0.2, SUM(F138:G138)))), 0),"Not required") -> 55478.6 | Q138: 1 | R138: 1 | S138: 0 | T138: 1 | Y138: 36466 | Z138: Logo
A139: =IF(INTRO!$E$33<>0,INTRO!$E$33, " ") -> Nigeria | B139: Benue | C139: Makurdi | D139: 399967.2466 | E139: =IF(INTRO!$E$48="","",ROUND($D139*INTRO!$E$48,0)) -> 79993 | F139: =IF(INTRO!$E$49="","",ROUND($D139*INTRO!$E$49,0)) -> 111991 | G139: =IF(INTRO!$E$50="","",ROUND($D139*INTRO!$E$50,0)) -> 207983 | H139: 1 | I139: 1 | J139: 2 | K139: 2 | L139: 0 | M139: =IF(INTRO!$E$37="Endemic",IF($H139>0,IF($H139=4,"Unknown",IF($H139=99,"Stopped",$D139)),0),"Not required") -> 399967.2466 | N139: 39921.60082 | O139: =IF(INTRO!$E$41="Endemic", IF(AND($J139>1,$J139<5), IF($J139=4, "Unknown", E139+F139), 0),"Not required") -> 191984 | P139: =IF(INTRO!$E$43="Endemic", IF(AND($K139>0,$K139<5), IF($K139=4,"Unknown", IF($K139=1, $F139*0.33, IF($K139=2, $F139*0.5+$G139*0.2, SUM(F139:G139)))), 0),"Not required") -> 97592.1 | Q139: 1 | R139: 1 | S139: 1 | T139: 1 | Y139: 36467 | Z139: Makurdi
A140: =IF(INTRO!$E$33<>0,INTRO!$E$33, " ") -> Nigeria | B140: Benue | C140: Obi | D140: 132948.9847 | E140: =IF(INTRO!$E$48="","",ROUND($D140*INTRO!$E$48,0)) -> 26590 | F140: =IF(INTRO!$E$49="","",ROUND($D140*INTRO!$E$49,0)) -> 37226 | G140: =IF(INTRO!$E$50="","",ROUND($D140*INTRO!$E$50,0)) -> 69133 | H140: 1 | I140: 1 | J140: 2 | K140: 2 | L140: 0 | M140: =IF(INTRO!$E$37="Endemic",IF($H140>0,IF($H140=4,"Unknown",IF($H140=99,"Stopped",$D140)),0),"Not required") -> 132948.9847 | N140: 107793.9516 | O140: =IF(INTRO!$E$41="Endemic", IF(AND($J140>1,$J140<5), IF($J140=4, "Unknown", E140+F140), 0),"Not required") -> 63816 | P140: =IF(INTRO!$E$43="Endemic", IF(AND($K140>0,$K140<5), IF($K140=4,"Unknown", IF($K140=1, $F140*0.33, IF($K140=2, $F140*0.5+$G140*0.2, SUM(F140:G140)))), 0),"Not required") -> 32439.6 | Q140: 1 | R140: 1 | S140: 1 | T140: 1 | Y140: 36468 | Z140: Obi
A141: =IF(INTRO!$E$33<>0,INTRO!$E$33, " ") -> Nigeria | B141: Benue | C141: Ogbadibo | D141: 173096.6059 | E141: =IF(INTRO!$E$48="","",ROUND($D141*INTRO!$E$48,0)) -> 34619 | F141: =IF(INTRO!$E$49="","",ROUND($D141*INTRO!$E$49,0)) -> 48467 | G141: =IF(INTRO!$E$50="","",ROUND($D141*INTRO!$E$50,0)) -> 90010 | H141: 0 | I141: 1 | J141: 2 | K141: 1 | L141: 0 | M141: =IF(INTRO!$E$37="Endemic",IF($H141>0,IF($H141=4,"Unknown",IF($H141=99,"Stopped",$D141)),0),"Not required") -> 0 | N141: 173096.6059 | O141: =IF(INTRO!$E$41="Endemic", IF(AND($J141>1,$J141<5), IF($J141=4, "Unknown", E141+F141), 0),"Not required") -> 83086 | P141: =IF(INTRO!$E$43="Endemic", IF(AND($K141>0,$K141<5), IF($K141=4,"Unknown", IF($K141=1, $F141*0.33, IF($K141=2, $F141*0.5+$G141*0.2, SUM(F141:G141)))), 0),"Not required") -> 15994.11 | Q141: 0 | R141: 1 | S141: 1 | T141: 0 | Y141: 36469 | Z141: Ogbadibo
A142: =IF(INTRO!$E$33<>0,INTRO!$E$33, " ") -> Nigeria | B142: Benue | C142: Ohimini | D142: 96135.34293 | E142: =IF(INTRO!$E$48="","",ROUND($D142*INTRO!$E$48,0)) -> 19227 | F142: =IF(INTRO!$E$49="","",ROUND($D142*INTRO!$E$49,0)) -> 26918 | G142: =IF(INTRO!$E$50="","",ROUND($D142*INTRO!$E$50,0)) -> 49990 | H142: 1 | I142: 1 | J142: 2 | K142: 1 | L142: 0 | M142: =IF(INTRO!$E$37="Endemic",IF($H142>0,IF($H142=4,"Unknown",IF($H142=99,"Stopped",$D142)),0),"Not required") -> 96135.34293 | N142: 96135.34293 | O142: =IF(INTRO!$E$41="Endemic", IF(AND($J142>1,$J142<5), IF($J142=4, "Unknown", E142+F142), 0),"Not required") -> 46145 | P142: =IF(INTRO!$E$43="Endemic", IF(AND($K142>0,$K142<5), IF($K142=4,"Unknown", IF($K142=1, $F142*0.33, IF($K142=2, $F142*0.5+$G142*0.2, SUM(F142:G142)))), 0),"Not required") -> 8882.94 | Q142: 1 | R142: 1 | S142: 1 | T142: 0 | Y142: 36470 | Z142: Ohimini
A143: =IF(INTRO!$E$33<>0,INTRO!$E$33, " ") -> Nigeria | B143: Benue | C143: Oju | D143: 228948.4939 | E143: =IF(INTRO!$E$48="","",ROUND($D143*INTRO!$E$48,0)) -> 45790 | F143: =IF(INTRO!$E$49="","",ROUND($D143*INTRO!$E$49,0)) -> 64106 | G143: =IF(INTRO!$E$50="","",ROUND($D143*INTRO!$E$50,0)) -> 119053 | H143: 1 | I143: 1 | J143: 2 | K143: 2 | L143: 0 | M143: =IF(INTRO!$E$37="Endemic",IF($H143>0,IF($H143=4,"Unknown",IF($H143=99,"Stopped",$D143)),0),"Not required") -> 228948.4939 | N143: 117652.1046 | O143: =IF(INTRO!$E$41="Endemic", IF(AND($J143>1,$J143<5), IF($J143=4, "Unknown", E143+F143), 0),"Not required") -> 109896 | P143: =IF(INTRO!$E$43="Endemic", IF(AND($K143>0,$K143<5), IF($K143=4,"Unknown", IF($K143=1, $F143*0.33, IF($K143=2, $F143*0.5+$G143*0.2, SUM(F143:G143)))), 0),"Not required") -> 55863.6 | Q143: 1 | R143: 1 | S143: 1 | T143: 1 | Y143: 36471 | Z143: Oju
A144: =IF(INTRO!$E$33<>0,INTRO!$E$33, " ") -> Nigeria | B144: Benue | C144: Okpokwu | D144: 237570.5761 | E144: =IF(INTRO!$E$48="","",ROUND($D144*INTRO!$E$48,0)) -> 47514 | F144: =IF(INTRO!$E$49="","",ROUND($D144*INTRO!$E$49,0)) -> 66520 | G144: =IF(INTRO!$E$50="","",ROUND($D144*INTRO!$E$50,0)) -> 123537 | H144: 0 | I144: 1 | J144: 1 | K144: 0 | L144: 0 | M144: =IF(INTRO!$E$37="Endemic",IF($H144>0,IF($H144=4,"Unknown",IF($H144=99,"Stopped",$D144)),0),"Not required") -> 0 | N144: 161206.3536 | O144: =IF(INTRO!$E$41="Endemic", IF(AND($J144>1,$J144<5), IF($J144=4, "Unknown", E144+F144), 0),"Not required") -> 0 | P144: =IF(INTRO!$E$43="Endemic", IF(AND($K144>0,$K144<5), IF($K144=4,"Unknown", IF($K144=1, $F144*0.33, IF($K144=2, $F144*0.5+$G144*0.2, SUM(F144:G144)))), 0),"Not required") -> 0 | Q144: 0 | R144: 1 | S144: 0 | T144: 0 | Y144: 36472 | Z144: Okpokwu
A145: =IF(INTRO!$E$33<>0,INTRO!$E$33, " ") -> Nigeria | B145: Benue | C145: Otorkpo | D145: 351911.6791 | E145: =IF(INTRO!$E$48="","",ROUND($D145*INTRO!$E$48,0)) -> 70382 | F145: =IF(INTRO!$E$49="","",ROUND($D145*INTRO!$E$49,0)) -> 98535 | G145: =IF(INTRO!$E$50="","",ROUND($D145*INTRO!$E$50,0)) -> 182994 | H145: 1 | I145: 1 | J145: 1 | K145: 2 | L145: 0 | M145: =IF(INTRO!$E$37="Endemic",IF($H145>0,IF($H145=4,"Unknown",IF($H145=99,"Stopped",$D145)),0),"Not required") -> 351911.6791 | N145: 182626.9466 | O145: =IF(INTRO!$E$41="Endemic", IF(AND($J145>1,$J145<5), IF($J145=4, "Unknown", E145+F145), 0),"Not required") -> 0 | P145: =IF(INTRO!$E$43="Endemic", IF(AND($K145>0,$K145<5), IF($K145=4,"Unknown", IF($K145=1, $F145*0.33, IF($K145=2, $F145*0.5+$G145*0.2, SUM(F145:G145)))), 0),"Not required") -> 85866.3 | Q145: 1 | R145: 1 | S145: 0 | T145: 1 | Y145: 36473 | Z145: Otorkpo
A146: =IF(INTRO!$E$33<>0,INTRO!$E$33, " ") -> Nigeria | B146: Benue | C146: Tarka | D146: 106910.5922 | E146: =IF(INTRO!$E$48="","",ROUND($D146*INTRO!$E$48,0)) -> 21382 | F146: =IF(INTRO!$E$49="","",ROUND($D146*INTRO!$E$49,0)) -> 29935 | G146: =IF(INTRO!$E$50="","",ROUND($D146*INTRO!$E$50,0)) -> 55594 | H146: 1 | I146: 1 | J146: 2 | K146: 2 | L146: 0 | M146: =IF(INTRO!$E$37="Endemic",IF($H146>0,IF($H146=4,"Unknown",IF($H146=99,"Stopped",$D146)),0),"Not required") -> 106910.5922 | N146: 80880.78575 | O146: =IF(INTRO!$E$41="Endemic", IF(AND($J146>1,$J146<5), IF($J146=4, "Unknown", E146+F146), 0),"Not required") -> 51317 | P146: =IF(INTRO!$E$43="Endemic", IF(AND($K146>0,$K146<5), IF($K146=4,"Unknown", IF($K146=1, $F146*0.33, IF($K146=2, $F146*0.5+$G146*0.2, SUM(F146:G146)))), 0),"Not required") -> 26086.3 | Q146: 1 | R146: 1 | S146: 1 | T146: 1 | Y146: 36474 | Z146: Tarka
A147: =IF(INTRO!$E$33<>0,INTRO!$E$33, " ") -> Nigeria | B147: Benue | C147: Ukum | D147: 291746.7326 | E147: =IF(INTRO!$E$48="","",ROUND($D147*INTRO!$E$48,0)) -> 58349 | F147: =IF(INTRO!$E$49="","",ROUND($D147*INTRO!$E$49,0)) -> 81689 | G147: =IF(INTRO!$E$50="","",ROUND($D147*INTRO!$E$50,0)) -> 151708 | H147: 1 | I147: 1 | J147: 2 | K147: 2 | L147: 0 | M147: =IF(INTRO!$E$37="Endemic",IF($H147>0,IF($H147=4,"Unknown",IF($H147=99,"Stopped",$D147)),0),"Not required") -> 291746.7326 | N147: 213333.9174 | O147: =IF(INTRO!$E$41="Endemic", IF(AND($J147>1,$J147<5), IF($J147=4, "Unknown", E147+F147), 0),"Not required") -> 140038 | P147: =IF(INTRO!$E$43="Endemic", IF(AND($K147>0,$K147<5), IF($K147=4,"Unknown", IF($K147=1, $F147*0.33, IF($K147=2, $F147*0.5+$G147*0.2, SUM(F147:G147)))), 0),"Not required") -> 71186.1 | Q147: 1 | R147: 1 | S147: 1 | T147: 1 | Y147: 36475 | Z147: Ukum
A148: =IF(INTRO!$E$33<>0,INTRO!$E$33, " ") -> Nigeria | B148: Benue | C148: Ushongo | D148: 253297.706 | E148: =IF(INTRO!$E$48="","",ROUND($D148*INTRO!$E$48,0)) -> 50660 | F148: =IF(INTRO!$E$49="","",ROUND($D148*INTRO!$E$49,0)) -> 70923 | G148: =IF(INTRO!$E$50="","",ROUND($D148*INTRO!$E$50,0)) -> 131715 | H148: 0 | I148: 1 | J148: 1 | K148: 2 | L148: 0 | M148: =IF(INTRO!$E$37="Endemic",IF($H148>0,IF($H148=4,"Unknown",IF($H148=99,"Stopped",$D148)),0),"Not required") -> 0 | N148: 205813.6401 | O148: =IF(INTRO!$E$41="Endemic", IF(AND($J148>1,$J148<5), IF($J148=4, "Unknown", E148+F148), 0),"Not required") -> 0 | P148: =IF(INTRO!$E$43="Endemic", IF(AND($K148>0,$K148<5), IF($K148=4,"Unknown", IF($K148=1, $F148*0.33, IF($K148=2, $F148*0.5+$G148*0.2, SUM(F148:G148)))), 0),"Not required") -> 61804.5 | Q148: 0 | R148: 1 | S148: 0 | T148: 1 | Y148: 36476 | Z148: Ushongo
A149: =IF(INTRO!$E$33<>0,INTRO!$E$33, " ") -> Nigeria | B149: Benue | C149: Vandeikya | D149: 309485.8162 | E149: =IF(INTRO!$E$48="","",ROUND($D149*INTRO!$E$48,0)) -> 61897 | F149: =IF(INTRO!$E$49="","",ROUND($D149*INTRO!$E$49,0)) -> 86656 | G149: =IF(INTRO!$E$50="","",ROUND($D149*INTRO!$E$50,0)) -> 160933 | H149: 0 | I149: 1 | J149: 2 | K149: 2 | L149: 0 | M149: =IF(INTRO!$E$37="Endemic",IF($H149>0,IF($H149=4,"Unknown",IF($H149=99,"Stopped",$D149)),0),"Not required") -> 0 | N149: 103480.2509 | O149: =IF(INTRO!$E$41="Endemic", IF(AND($J149>1,$J149<5), IF($J149=4, "Unknown", E149+F149), 0),"Not required") -> 148553 | P149: =IF(INTRO!$E$43="Endemic", IF(AND($K149>0,$K149<5), IF($K149=4,"Unknown", IF($K149=1, $F149*0.33, IF($K149=2, $F149*0.5+$G149*0.2, SUM(F149:G149)))), 0),"Not required") -> 75514.6 | Q149: 0 | R149: 1 | S149: 1 | T149: 1 | Y149: 36477 | Z149: Vandeikya
A150: =IF(INTRO!$E$33<>0,INTRO!$E$33, " ") -> Nigeria | B150: Borno | C150: Adadara | D150: 134730.9624 | E150: =IF(INTRO!$E$48="","",ROUND($D150*INTRO!$E$48,0)) -> 26946 | F150: =IF(INTRO!$E$49="","",ROUND($D150*INTRO!$E$49,0)) -> 37725 | G150: =IF(INTRO!$E$50="","",ROUND($D150*INTRO!$E$50,0)) -> 70060 | H150: 4 | I150: 0 | J150: 4 | K150: 4 | L150: 4 | M150: =IF(INTRO!$E$37="Endemic",IF($H150>0,IF($H150=4,"Unknown",IF($H150=99,"Stopped",$D150)),0),"Not required") -> Unknown | N150: 0 | O150: =IF(INTRO!$E$41="Endemic", IF(AND($J150>1,$J150<5), IF($J150=4, "Unknown", E150+F150), 0),"Not required") -> Unknown | P150: =IF(INTRO!$E$43="Endemic", IF(AND($K150>0,$K150<5), IF($K150=4,"Unknown", IF($K150=1, $F150*0.33, IF($K150=2, $F150*0.5+$G150*0.2, SUM(F150:G150)))), 0),"Not required") -> Unknown | Q150: 0 | R150: 0 | S150: 0 | T150: 0 | Y150: 36478 | Z150: Adadara
A151: =IF(INTRO!$E$33<>0,INTRO!$E$33, " ") -> Nigeria | B151: Borno | C151: Askir/Uba | D151: 185717.0426 | E151: =IF(INTRO!$E$48="","",ROUND($D151*INTRO!$E$48,0)) -> 37143 | F151: =IF(INTRO!$E$49="","",ROUND($D151*INTRO!$E$49,0)) -> 52001 | G151: =IF(INTRO!$E$50="","",ROUND($D151*INTRO!$E$50,0)) -> 96573 | H151: 4 | I151: 1 | J151: 4 | K151: 4 | L151: 4 | M151: =IF(INTRO!$E$37="Endemic",IF($H151>0,IF($H151=4,"Unknown",IF($H151=99,"Stopped",$D151)),0),"Not required") -> Unknown | N151: 185717.0426 | O151: =IF(INTRO!$E$41="Endemic", IF(AND($J151>1,$J151<5), IF($J151=4, "Unknown", E151+F151), 0),"Not required") -> Unknown | P151: =IF(INTRO!$E$43="Endemic", IF(AND($K151>0,$K151<5), IF($K151=4,"Unknown", IF($K151=1, $F151*0.33, IF($K151=2, $F151*0.5+$G151*0.2, SUM(F151:G151)))), 0),"Not required") -> Unknown | Q151: 0 | R151: 1 | S151: 0 | T151: 0 | Y151: 36479 | Z151: Askir/Uba
A152: =IF(INTRO!$E$33<>0,INTRO!$E$33, " ") -> Nigeria | B152: Borno | C152: Bama | D152: 363101.1541 | E152: =IF(INTRO!$E$48="","",ROUND($D152*INTRO!$E$48,0)) -> 72620 | F152: =IF(INTRO!$E$49="","",ROUND($D152*INTRO!$E$49,0)) -> 101668 | G152: =IF(INTRO!$E$50="","",ROUND($D152*INTRO!$E$50,0)) -> 188813 | H152: 0 | I152: 1 | J152: 4 | K152: 4 | L152: 4 | M152: =IF(INTRO!$E$37="Endemic",IF($H152>0,IF($H152=4,"Unknown",IF($H152=99,"Stopped",$D152)),0),"Not required") -> 0 | N152: 123221.3686 | O152: =IF(INTRO!$E$41="Endemic", IF(AND($J152>1,$J152<5), IF($J152=4, "Unknown", E152+F152), 0),"Not required") -> Unknown | P152: =IF(INTRO!$E$43="Endemic", IF(AND($K152>0,$K152<5), IF($K152=4,"Unknown", IF($K152=1, $F152*0.33, IF($K152=2, $F152*0.5+$G152*0.2, SUM(F152:G152)))), 0),"Not required") -> Unknown | Q152: 0 | R152: 1 | S152: 0 | T152: 0 | Y152: 36480 | Z152: Bama
A153: =IF(INTRO!$E$33<>0,INTRO!$E$33, " ") -> Nigeria | B153: Borno | C153: Bayo | D153: 106216.6296 | E153: =IF(INTRO!$E$48="","",ROUND($D153*INTRO!$E$48,0)) -> 21243 | F153: =IF(INTRO!$E$49="","",ROUND($D153*INTRO!$E$49,0)) -> 29741 | G153: =IF(INTRO!$E$50="","",ROUND($D153*INTRO!$E$50,0)) -> 55233 | H153: 4 | I153: 1 | J153: 4 | K153: 4 | L153: 4 | M153: =IF(INTRO!$E$37="Endemic",IF($H153>0,IF($H153=4,"Unknown",IF($H153=99,"Stopped",$D153)),0),"Not required") -> Unknown | N153: 106216.6296 | O153: =IF(INTRO!$E$41="Endemic", IF(AND($J153>1,$J153<5), IF($J153=4, "Unknown", E153+F153), 0),"Not required") -> Unknown | P153: =IF(INTRO!$E$43="Endemic", IF(AND($K153>0,$K153<5), IF($K153=4,"Unknown", IF($K153=1, $F153*0.33, IF($K153=2, $F153*0.5+$G153*0.2, SUM(F153:G153)))), 0),"Not required") -> Unknown | Q153: 0 | R153: 1 | S153: 0 | T153: 0 | Y153: 36481 | Z153: Bayo
A154: =IF(INTRO!$E$33<>0,INTRO!$E$33, " ") -> Nigeria | B154: Borno | C154: Biu | D154: 236797.2651 | E154: =IF(INTRO!$E$48="","",ROUND($D154*INTRO!$E$48,0)) -> 47359 | F154: =IF(INTRO!$E$49="","",ROUND($D154*INTRO!$E$49,0)) -> 66303 | G154: =IF(INTRO!$E$50="","",ROUND($D154*INTRO!$E$50,0)) -> 123135 | H154: 4 | I154: 1 | J154: 4 | K154: 4 | L154: 4 | M154: =IF(INTRO!$E$37="Endemic",IF($H154>0,IF($H154=4,"Unknown",IF($H154=99,"Stopped",$D154)),0),"Not required") -> Unknown | N154: 216564.7777 | O154: =IF(INTRO!$E$41="Endemic", IF(AND($J154>1,$J154<5), IF($J154=4, "Unknown", E154+F154), 0),"Not required") -> Unknown | P154: =IF(INTRO!$E$43="Endemic", IF(AND($K154>0,$K154<5), IF($K154=4,"Unknown", IF($K154=1, $F154*0.33, IF($K154=2, $F154*0.5+$G154*0.2, SUM(F154:G154)))), 0),"Not required") -> Unknown | Q154: 0 | R154: 1 | S154: 0 | T154: 0 | Y154: 36482 | Z154: Biu
A155: =IF(INTRO!$E$33<>0,INTRO!$E$33, " ") -> Nigeria | B155: Borno | C155: Chibok | D155: 88903.87573 | E155: =IF(INTRO!$E$48="","",ROUND($D155*INTRO!$E$48,0)) -> 17781 | F155: =IF(INTRO!$E$49="","",ROUND($D155*INTRO!$E$49,0)) -> 24893 | G155: =IF(INTRO!$E$50="","",ROUND($D155*INTRO!$E$50,0)) -> 46230 | H155: 0 | I155: 1 | J155: 4 | K155: 4 | L155: 4 | M155: =IF(INTRO!$E$37="Endemic",IF($H155>0,IF($H155=4,"Unknown",IF($H155=99,"Stopped",$D155)),0),"Not required") -> 0 | N155: 88903.87573 | O155: =IF(INTRO!$E$41="Endemic", IF(AND($J155>1,$J155<5), IF($J155=4, "Unknown", E155+F155), 0),"Not required") -> Unknown | P155: =IF(INTRO!$E$43="Endemic", IF(AND($K155>0,$K155<5), IF($K155=4,"Unknown", IF($K155=1, $F155*0.33, IF($K155=2, $F155*0.5+$G155*0.2, SUM(F155:G155)))), 0),"Not required") -> Unknown | Q155: 0 | R155: 1 | S155: 0 | T155: 0 | Y155: 36483 | Z155: Chibok
A156: =IF(INTRO!$E$33<>0,INTRO!$E$33, " ") -> Nigeria | B156: Borno | C156: Damboa | D156: 311439.9397 | E156: =IF(INTRO!$E$48="","",ROUND($D156*INTRO!$E$48,0)) -> 62288 | F156: =IF(INTRO!$E$49="","",ROUND($D156*INTRO!$E$49,0)) -> 87203 | G156: =IF(INTRO!$E$50="","",ROUND($D156*INTRO!$E$50,0)) -> 161949 | H156: 1 | I156: 1 | J156: 4 | K156: 4 | L156: 4 | M156: =IF(INTRO!$E$37="Endemic",IF($H156>0,IF($H156=4,"Unknown",IF($H156=99,"Stopped",$D156)),0),"Not required") -> 311439.9397 | N156: 108596.4236 | O156: =IF(INTRO!$E$41="Endemic", IF(AND($J156>1,$J156<5), IF($J156=4, "Unknown", E156+F156), 0),"Not required") -> Unknown | P156: =IF(INTRO!$E$43="Endemic", IF(AND($K156>0,$K156<5), IF($K156=4,"Unknown", IF($K156=1, $F156*0.33, IF($K156=2, $F156*0.5+$G156*0.2, SUM(F156:G156)))), 0),"Not required") -> Unknown | Q156: 1 | R156: 1 | S156: 0 | T156: 0 | Y156: 36484 | Z156: Damboa
A157: =IF(INTRO!$E$33<>0,INTRO!$E$33, " ") -> Nigeria | B157: Borno | C157: Dikwa | D157: 142435.8305 | E157: =IF(INTRO!$E$48="","",ROUND($D157*INTRO!$E$48,0)) -> 28487 | F157: =IF(INTRO!$E$49="","",ROUND($D157*INTRO!$E$49,0)) -> 39882 | G157: =IF(INTRO!$E$50="","",ROUND($D157*INTRO!$E$50,0)) -> 74067 | H157: 0 | I157: 1 | J157: 4 | K157: 4 | L157: 4 | M157: =IF(INTRO!$E$37="Endemic",IF($H157>0,IF($H157=4,"Unknown",IF($H157=99,"Stopped",$D157)),0),"Not required") -> 0 | N157: 69331.38964 | O157: =IF(INTRO!$E$41="Endemic", IF(AND($J157>1,$J157<5), IF($J157=4, "Unknown", E157+F157), 0),"Not required") -> Unknown | P157: =IF(INTRO!$E$43="Endemic", IF(AND($K157>0,$K157<5), IF($K157=4,"Unknown", IF($K157=1, $F157*0.33, IF($K157=2, $F157*0.5+$G157*0.2, SUM(F157:G157)))), 0),"Not required") -> Unknown | Q157: 0 | R157: 1 | S157: 0 | T157: 0 | Y157: 36485 | Z157: Dikwa
A158: =IF(INTRO!$E$33<>0,INTRO!$E$33, " ") -> Nigeria | B158: Borno | C158: Gubio | D158: 205469.4248 | E158: =IF(INTRO!$E$48="","",ROUND($D158*INTRO!$E$48,0)) -> 41094 | F158: =IF(INTRO!$E$49="","",ROUND($D158*INTRO!$E$49,0)) -> 57531 | G158: =IF(INTRO!$E$50="","",ROUND($D158*INTRO!$E$50,0)) -> 106844 | H158: 4 | I158: 0 | J158: 4 | K158: 4 | L158: 4 | M158: =IF(INTRO!$E$37="Endemic",IF($H158>0,IF($H158=4,"Unknown",IF($H158=99,"Stopped",$D158)),0),"Not required") -> Unknown | N158: 0 | O158: =IF(INTRO!$E$41="Endemic", IF(AND($J158>1,$J158<5), IF($J158=4, "Unknown", E158+F158), 0),"Not required") -> Unknown | P158: =IF(INTRO!$E$43="Endemic", IF(AND($K158>0,$K158<5), IF($K158=4,"Unknown", IF($K158=1, $F158*0.33, IF($K158=2, $F158*0.5+$G158*0.2, SUM(F158:G158)))), 0),"Not required") -> Unknown | Q158: 0 | R158: 0 | S158: 0 | T158: 0 | Y158: 36486 | Z158: Gubio
A159: =IF(INTRO!$E$33<>0,INTRO!$E$33, " ") -> Nigeria | B159: Borno | C159: Guzamala | D159: 128635.9263 | E159: =IF(INTRO!$E$48="","",ROUND($D159*INTRO!$E$48,0)) -> 25727 | F159: =IF(INTRO!$E$49="","",ROUND($D159*INTRO!$E$49,0)) -> 36018 | G159: =IF(INTRO!$E$50="","",ROUND($D159*INTRO!$E$50,0)) -> 66891 | H159: 4 | I159: 0 | J159: 4 | K159: 4 | L159: 4 | M159: =IF(INTRO!$E$37="Endemic",IF($H159>0,IF($H159=4,"Unknown",IF($H159=99,"Stopped",$D159)),0),"Not required") -> Unknown | N159: 0 | O159: =IF(INTRO!$E$41="Endemic", IF(AND($J159>1,$J159<5), IF($J159=4, "Unknown", E159+F159), 0),"Not required") -> Unknown | P159: =IF(INTRO!$E$43="Endemic", IF(AND($K159>0,$K159<5), IF($K159=4,"Unknown", IF($K159=1, $F159*0.33, IF($K159=2, $F159*0.5+$G159*0.2, SUM(F159:G159)))), 0),"Not required") -> Unknown | Q159: 0 | R159: 0 | S159: 0 | T159: 0 | Y159: 36487 | Z159: Guzamala
A160: =IF(INTRO!$E$33<>0,INTRO!$E$33, " ") -> Nigeria | B160: Borno | C160: Gwoza | D160: 371608.9208 | E160: =IF(INTRO!$E$48="","",ROUND($D160*INTRO!$E$48,0)) -> 74322 | F160: =IF(INTRO!$E$49="","",ROUND($D160*INTRO!$E$49,0)) -> 104050 | G160: =IF(INTRO!$E$50="","",ROUND($D160*INTRO!$E$50,0)) -> 193237 | H160: 0 | I160: 1 | J160: 4 | K160: 4 | L160: 4 | M160: =IF(INTRO!$E$37="Endemic",IF($H160>0,IF($H160=4,"Unknown",IF($H160=99,"Stopped",$D160)),0),"Not required") -> 0 | N160: 188650.4131 | O160: =IF(INTRO!$E$41="Endemic", IF(AND($J160>1,$J160<5), IF($J160=4, "Unknown", E160+F160), 0),"Not required") -> Unknown | P160: =IF(INTRO!$E$43="Endemic", IF(AND($K160>0,$K160<5), IF($K160=4,"Unknown", IF($K160=1, $F160*0.33, IF($K160=2, $F160*0.5+$G160*0.2, SUM(F160:G160)))), 0),"Not required") -> Unknown | Q160: 0 | R160: 1 | S160: 0 | T160: 0 | Y160: 36488 | Z160: Gwoza
A161: =IF(INTRO!$E$33<>0,INTRO!$E$33, " ") -> Nigeria | B161: Borno | C161: Hawul | D161: 161808.954 | E161: =IF(INTRO!$E$48="","",ROUND($D161*INTRO!$E$48,0)) -> 32362 | F161: =IF(INTRO!$E$49="","",ROUND($D161*INTRO!$E$49,0)) -> 45307 | G161: =IF(INTRO!$E$50="","",ROUND($D161*INTRO!$E$50,0)) -> 84141 | H161: 1 | I161: 1 | J161: 4 | K161: 4 | L161: 4 | M161: =IF(INTRO!$E$37="Endemic",IF($H161>0,IF($H161=4,"Unknown",IF($H161=99,"Stopped",$D161)),0),"Not required") -> 161808.954 | N161: 95314.24311 | O161: =IF(INTRO!$E$41="Endemic", IF(AND($J161>1,$J161<5), IF($J161=4, "Unknown", E161+F161), 0),"Not required") -> Unknown | P161: =IF(INTRO!$E$43="Endemic", IF(AND($K161>0,$K161<5), IF($K161=4,"Unknown", IF($K161=1, $F161*0.33, IF($K161=2, $F161*0.5+$G161*0.2, SUM(F161:G161)))), 0),"Not required") -> Unknown | Q161: 1 | R161: 1 | S161: 0 | T161: 0 | Y161: 36489 | Z161: Hawul
A162: =IF(INTRO!$E$33<>0,INTRO!$E$33, " ") -> Nigeria | B162: Borno | C162: Jere | D162: 284045.8992 | E162: =IF(INTRO!$E$48="","",ROUND($D162*INTRO!$E$48,0)) -> 56809 | F162: =IF(INTRO!$E$49="","",ROUND($D162*INTRO!$E$49,0)) -> 79533 | G162: =IF(INTRO!$E$50="","",ROUND($D162*INTRO!$E$50,0)) -> 147704 | H162: 4 | I162: 0 | J162: 0 | K162: 2 | L162: 4 | M162: =IF(INTRO!$E$37="Endemic",IF($H162>0,IF($H162=4,"Unknown",IF($H162=99,"Stopped",$D162)),0),"Not required") -> Unknown | N162: 0 | O162: =IF(INTRO!$E$41="Endemic", IF(AND($J162>1,$J162<5), IF($J162=4, "Unknown", E162+F162), 0),"Not required") -> 0 | P162: =IF(INTRO!$E$43="Endemic", IF(AND($K162>0,$K162<5), IF($K162=4,"Unknown", IF($K162=1, $F162*0.33, IF($K162=2, $F162*0.5+$G162*0.2, SUM(F162:G162)))), 0),"Not required") -> 69307.3 | Q162: 0 | R162: 0 | S162: 0 | T162: 1 | Y162: 36490 | Z162: Jere
A163: =IF(INTRO!$E$33<>0,INTRO!$E$33, " ") -> Nigeria | B163: Borno | C163: Kaga | D163: 121060.1675 | E163: =IF(INTRO!$E$48="","",ROUND($D163*INTRO!$E$48,0)) -> 24212 | F163: =IF(INTRO!$E$49="","",ROUND($D163*INTRO!$E$49,0)) -> 33897 | G163: =IF(INTRO!$E$50="","",ROUND($D163*INTRO!$E$50,0)) -> 62951 | H163: 0 | I163: 0 | J163: 4 | K163: 4 | L163: 4 | M163: =IF(INTRO!$E$37="Endemic",IF($H163>0,IF($H163=4,"Unknown",IF($H163=99,"Stopped",$D163)),0),"Not required") -> 0 | N163: 0 | O163: =IF(INTRO!$E$41="Endemic", IF(AND($J163>1,$J163<5), IF($J163=4, "Unknown", E163+F163), 0),"Not required") -> Unknown | P163: =IF(INTRO!$E$43="Endemic", IF(AND($K163>0,$K163<5), IF($K163=4,"Unknown", IF($K163=1, $F163*0.33, IF($K163=2, $F163*0.5+$G163*0.2, SUM(F163:G163)))), 0),"Not required") -> Unknown | Q163: 0 | R163: 0 | S163: 0 | T163: 0 | Y163: 36491 | Z163: Kaga
A164: =IF(INTRO!$E$33<>0,INTRO!$E$33, " ") -> Nigeria | B164: Borno | C164: Kala Balge | D164: 81765.20585 | E164: =IF(INTRO!$E$48="","",ROUND($D164*INTRO!$E$48,0)) -> 16353 | F164: =IF(INTRO!$E$49="","",ROUND($D164*INTRO!$E$49,0)) -> 22894 | G164: =IF(INTRO!$E$50="","",ROUND($D164*INTRO!$E$50,0)) -> 42518 | H164: 0 | I164: 1 | J164: 4 | K164: 4 | L164: 4 | M164: =IF(INTRO!$E$37="Endemic",IF($H164>0,IF($H164=4,"Unknown",IF($H164=99,"Stopped",$D164)),0),"Not required") -> 0 | N164: 81765.20585 | O164: =IF(INTRO!$E$41="Endemic", IF(AND($J164>1,$J164<5), IF($J164=4, "Unknown", E164+F164), 0),"Not required") -> Unknown | P164: =IF(INTRO!$E$43="Endemic", IF(AND($K164>0,$K164<5), IF($K164=4,"Unknown", IF($K164=1, $F164*0.33, IF($K164=2, $F164*0.5+$G164*0.2, SUM(F164:G164)))), 0),"Not required") -> Unknown | Q164: 0 | R164: 1 | S164: 0 | T164: 0 | Y164: 36492 | Z164: Kala Balge
A165: =IF(INTRO!$E$33<>0,INTRO!$E$33, " ") -> Nigeria | B165: Borno | C165: Konduga | D165: 210561.1739 | E165: =IF(INTRO!$E$48="","",ROUND($D165*INTRO!$E$48,0)) -> 42112 | F165: =IF(INTRO!$E$49="","",ROUND($D165*INTRO!$E$49,0)) -> 58957 | G165: =IF(INTRO!$E$50="","",ROUND($D165*INTRO!$E$50,0)) -> 109492 | H165: 0 | I165: 0 | J165: 0 | K165: 2 | L165: 4 | M165: =IF(INTRO!$E$37="Endemic",IF($H165>0,IF($H165=4,"Unknown",IF($H165=99,"Stopped",$D165)),0),"Not required") -> 0 | N165: 0 | O165: =IF(INTRO!$E$41="Endemic", IF(AND($J165>1,$J165<5), IF($J165=4, "Unknown", E165+F165), 0),"Not required") -> 0 | P165: =IF(INTRO!$E$43="Endemic", IF(AND($K165>0,$K165<5), IF($K165=4,"Unknown", IF($K165=1, $F165*0.33, IF($K165=2, $F165*0.5+$G165*0.2, SUM(F165:G165)))), 0),"Not required") -> 51376.9 | Q165: 0 | R165: 0 | S165: 0 | T165: 1 | Y165: 36493 | Z165: Konduga
A166: =IF(INTRO!$E$33<>0,INTRO!$E$33, " ") -> Nigeria | B166: Borno | C166: Kukawa | D166: 274174.4153 | E166: =IF(INTRO!$E$48="","",ROUND($D166*INTRO!$E$48,0)) -> 54835 | F166: =IF(INTRO!$E$49="","",ROUND($D166*INTRO!$E$49,0)) -> 76769 | G166: =IF(INTRO!$E$50="","",ROUND($D166*INTRO!$E$50,0)) -> 142571 | H166: 0 | I166: 0 | J166: 4 | K166: 4 | L166: 4 | M166: =IF(INTRO!$E$37="Endemic",IF($H166>0,IF($H166=4,"Unknown",IF($H166=99,"Stopped",$D166)),0),"Not required") -> 0 | N166: 0 | O166: =IF(INTRO!$E$41="Endemic", IF(AND($J166>1,$J166<5), IF($J166=4, "Unknown", E166+F166), 0),"Not required") -> Unknown | P166: =IF(INTRO!$E$43="Endemic", IF(AND($K166>0,$K166<5), IF($K166=4,"Unknown", IF($K166=1, $F166*0.33, IF($K166=2, $F166*0.5+$G166*0.2, SUM(F166:G166)))), 0),"Not required") -> Unknown | Q166: 0 | R166: 0 | S166: 0 | T166: 0 | Y166: 36494 | Z166: Kukawa
A167: =IF(INTRO!$E$33<>0,INTRO!$E$33, " ") -> Nigeria | B167: Borno | C167: Kwaya Kusar | D167: 75986.21857 | E167: =IF(INTRO!$E$48="","",ROUND($D167*INTRO!$E$48,0)) -> 15197 | F167: =IF(INTRO!$E$49="","",ROUND($D167*INTRO!$E$49,0)) -> 21276 | G167: =IF(INTRO!$E$50="","",ROUND($D167*INTRO!$E$50,0)) -> 39513 | H167: 4 | I167: 1 | J167: 4 | K167: 4 | L167: 4 | M167: =IF(INTRO!$E$37="Endemic",IF($H167>0,IF($H167=4,"Unknown",IF($H167=99,"Stopped",$D167)),0),"Not required") -> Unknown | N167: 75986.21857 | O167: =IF(INTRO!$E$41="Endemic", IF(AND($J167>1,$J167<5), IF($J167=4, "Unknown", E167+F167), 0),"Not required") -> Unknown | P167: =IF(INTRO!$E$43="Endemic", IF(AND($K167>0,$K167<5), IF($K167=4,"Unknown", IF($K167=1, $F167*0.33, IF($K167=2, $F167*0.5+$G167*0.2, SUM(F167:G167)))), 0),"Not required") -> Unknown | Q167: 0 | R167: 1 | S167: 0 | T167: 0 | Y167: 36495 | Z167: Kwaya Kusar
A168: =IF(INTRO!$E$33<>0,INTRO!$E$33, " ") -> Nigeria | B168: Borno | C168: Mafa | D168: 139220.2013 | E168: =IF(INTRO!$E$48="","",ROUND($D168*INTRO!$E$48,0)) -> 27844 | F168: =IF(INTRO!$E$49="","",ROUND($D168*INTRO!$E$49,0)) -> 38982 | G168: =IF(INTRO!$E$50="","",ROUND($D168*INTRO!$E$50,0)) -> 72395 | H168: 4 | I168: 0 | J168: 4 | K168: 4 | L168: 4 | M168: =IF(INTRO!$E$37="Endemic",IF($H168>0,IF($H168=4,"Unknown",IF($H168=99,"Stopped",$D168)),0),"Not required") -> Unknown | N168: 0 | O168: =IF(INTRO!$E$41="Endemic", IF(AND($J168>1,$J168<5), IF($J168=4, "Unknown", E168+F168), 0),"Not required") -> Unknown | P168: =IF(INTRO!$E$43="Endemic", IF(AND($K168>0,$K168<5), IF($K168=4,"Unknown", IF($K168=1, $F168*0.33, IF($K168=2, $F168*0.5+$G168*0.2, SUM(F168:G168)))), 0),"Not required") -> Unknown | Q168: 0 | R168: 0 | S168: 0 | T168: 0 | Y168: 36496 | Z168: Mafa
A169: =IF(INTRO!$E$33<>0,INTRO!$E$33, " ") -> Nigeria | B169: Borno | C169: Magumeri | D169: 188595.1047 | E169: =IF(INTRO!$E$48="","",ROUND($D169*INTRO!$E$48,0)) -> 37719 | F169: =IF(INTRO!$E$49="","",ROUND($D169*INTRO!$E$49,0)) -> 52807 | G169: =IF(INTRO!$E$50="","",ROUND($D169*INTRO!$E$50,0)) -> 98069 | H169: 1 | I169: 0 | J169: 4 | K169: 4 | L169: 4 | M169: =IF(INTRO!$E$37="Endemic",IF($H169>0,IF($H169=4,"Unknown",IF($H169=99,"Stopped",$D169)),0),"Not required") -> 188595.1047 | N169: 0 | O169: =IF(INTRO!$E$41="Endemic", IF(AND($J169>1,$J169<5), IF($J169=4, "Unknown", E169+F169), 0),"Not required") -> Unknown | P169: =IF(INTRO!$E$43="Endemic", IF(AND($K169>0,$K169<5), IF($K169=4,"Unknown", IF($K169=1, $F169*0.33, IF($K169=2, $F169*0.5+$G169*0.2, SUM(F169:G169)))), 0),"Not required") -> Unknown | Q169: 1 | R169: 0 | S169: 0 | T169: 0 | Y169: 36497 | Z169: Magumeri
A170: =IF(INTRO!$E$33<>0,INTRO!$E$33, " ") -> Nigeria | B170: Borno | C170: Maiduguri | D170: 701348.7627 | E170: =IF(INTRO!$E$48="","",ROUND($D170*INTRO!$E$48,0)) -> 140270 | F170: =IF(INTRO!$E$49="","",ROUND($D170*INTRO!$E$49,0)) -> 196378 | G170: =IF(INTRO!$E$50="","",ROUND($D170*INTRO!$E$50,0)) -> 364701 | H170: 1 | I170: 0 | J170: 0 | K170: 3 | L170: 4 | M170: =IF(INTRO!$E$37="Endemic",IF($H170>0,IF($H170=4,"Unknown",IF($H170=99,"Stopped",$D170)),0),"Not required") -> 701348.7627 | N170: 0 | O170: =IF(INTRO!$E$41="Endemic", IF(AND($J170>1,$J170<5), IF($J170=4, "Unknown", E170+F170), 0),"Not required") -> 0 | P170: =IF(INTRO!$E$43="Endemic", IF(AND($K170>0,$K170<5), IF($K170=4,"Unknown", IF($K170=1, $F170*0.33, IF($K170=2, $F170*0.5+$G170*0.2, SUM(F170:G170)))), 0),"Not required") -> 561079 | Q170: 1 | R170: 0 | S170: 0 | T170: 1 | Y170: 36498 | Z170: Maiduguri
A171: =IF(INTRO!$E$33<>0,INTRO!$E$33, " ") -> Nigeria | B171: Borno | C171: Marte | D171: 173988.2672 | E171: =IF(INTRO!$E$48="","",ROUND($D171*INTRO!$E$48,0)) -> 34798 | F171: =IF(INTRO!$E$49="","",ROUND($D171*INTRO!$E$49,0)) -> 48717 | G171: =IF(INTRO!$E$50="","",ROUND($D171*INTRO!$E$50,0)) -> 90474 | H171: 0 | I171: 0 | J171: 4 | K171: 4 | L171: 4 | M171: =IF(INTRO!$E$37="Endemic",IF($H171>0,IF($H171=4,"Unknown",IF($H171=99,"Stopped",$D171)),0),"Not required") -> 0 | N171: 0 | O171: =IF(INTRO!$E$41="Endemic", IF(AND($J171>1,$J171<5), IF($J171=4, "Unknown", E171+F171), 0),"Not required") -> Unknown | P171: =IF(INTRO!$E$43="Endemic", IF(AND($K171>0,$K171<5), IF($K171=4,"Unknown", IF($K171=1, $F171*0.33, IF($K171=2, $F171*0.5+$G171*0.2, SUM(F171:G171)))), 0),"Not required") -> Unknown | Q171: 0 | R171: 0 | S171: 0 | T171: 0 | Y171: 36499 | Z171: Marte
A172: =IF(INTRO!$E$33<>0,INTRO!$E$33, " ") -> Nigeria | B172: Borno | C172: Mobbar | D172: 156886.6609 | E172: =IF(INTRO!$E$48="","",ROUND($D172*INTRO!$E$48,0)) -> 31377 | F172: =IF(INTRO!$E$49="","",ROUND($D172*INTRO!$E$49,0)) -> 43928 | G172: =IF(INTRO!$E$50="","",ROUND($D172*INTRO!$E$50,0)) -> 81581 | H172: 1 | I172: 1 | J172: 4 | K172: 4 | L172: 4 | M172: =IF(INTRO!$E$37="Endemic",IF($H172>0,IF($H172=4,"Unknown",IF($H172=99,"Stopped",$D172)),0),"Not required") -> 156886.6609 | N172: 72842.82028 | O172: =IF(INTRO!$E$41="Endemic", IF(AND($J172>1,$J172<5), IF($J172=4, "Unknown", E172+F172), 0),"Not required") -> Unknown | P172: =IF(INTRO!$E$43="Endemic", IF(AND($K172>0,$K172<5), IF($K172=4,"Unknown", IF($K172=1, $F172*0.33, IF($K172=2, $F172*0.5+$G172*0.2, SUM(F172:G172)))), 0),"Not required") -> Unknown | Q172: 1 | R172: 1 | S172: 0 | T172: 0 | Y172: 36500 | Z172: Mobbar
A173: =IF(INTRO!$E$33<>0,INTRO!$E$33, " ") -> Nigeria | B173: Borno | C173: Monguno | D173: 147737.3822 | E173: =IF(INTRO!$E$48="","",ROUND($D173*INTRO!$E$48,0)) -> 29547 | F173: =IF(INTRO!$E$49="","",ROUND($D173*INTRO!$E$49,0)) -> 41366 | G173: =IF(INTRO!$E$50="","",ROUND($D173*INTRO!$E$50,0)) -> 76823 | H173: 1 | I173: 0 | J173: 4 | K173: 4 | L173: 4 | M173: =IF(INTRO!$E$37="Endemic",IF($H173>0,IF($H173=4,"Unknown",IF($H173=99,"Stopped",$D173)),0),"Not required") -> 147737.3822 | N173: 0 | O173: =IF(INTRO!$E$41="Endemic", IF(AND($J173>1,$J173<5), IF($J173=4, "Unknown", E173+F173), 0),"Not required") -> Unknown | P173: =IF(INTRO!$E$43="Endemic", IF(AND($K173>0,$K173<5), IF($K173=4,"Unknown", IF($K173=1, $F173*0.33, IF($K173=2, $F173*0.5+$G173*0.2, SUM(F173:G173)))), 0),"Not required") -> Unknown | Q173: 1 | R173: 0 | S173: 0 | T173: 0 | Y173: 36501 | Z173: Monguno
A174: =IF(INTRO!$E$33<>0,INTRO!$E$33, " ") -> Nigeria | B174: Borno | C174: Ngala | D174: 318834.1385 | E174: =IF(INTRO!$E$48="","",ROUND($D174*INTRO!$E$48,0)) -> 63767 | F174: =IF(INTRO!$E$49="","",ROUND($D174*INTRO!$E$49,0)) -> 89274 | G174: =IF(INTRO!$E$50="","",ROUND($D174*INTRO!$E$50,0)) -> 165794 | H174: 4 | I174: 0 | J174: 4 | K174: 4 | L174: 4 | M174: =IF(INTRO!$E$37="Endemic",IF($H174>0,IF($H174=4,"Unknown",IF($H174=99,"Stopped",$D174)),0),"Not required") -> Unknown | N174: 0 | O174: =IF(INTRO!$E$41="Endemic", IF(AND($J174>1,$J174<5), IF($J174=4, "Unknown", E174+F174), 0),"Not required") -> Unknown | P174: =IF(INTRO!$E$43="Endemic", IF(AND($K174>0,$K174<5), IF($K174=4,"Unknown", IF($K174=1, $F174*0.33, IF($K174=2, $F174*0.5+$G174*0.2, SUM(F174:G174)))), 0),"Not required") -> Unknown | Q174: 0 | R174: 0 | S174: 0 | T174: 0 | Y174: 36502 | Z174: Ngala
A175: =IF(INTRO!$E$33<>0,INTRO!$E$33, " ") -> Nigeria | B175: Borno | C175: Nganzai | D175: 134218.5598 | E175: =IF(INTRO!$E$48="","",ROUND($D175*INTRO!$E$48,0)) -> 26844 | F175: =IF(INTRO!$E$49="","",ROUND($D175*INTRO!$E$49,0)) -> 37581 | G175: =IF(INTRO!$E$50="","",ROUND($D175*INTRO!$E$50,0)) -> 69794 | H175: 4 | I175: 0 | J175: 4 | K175: 4 | L175: 4 | M175: =IF(INTRO!$E$37="Endemic",IF($H175>0,IF($H175=4,"Unknown",IF($H175=99,"Stopped",$D175)),0),"Not required") -> Unknown | N175: 0 | O175: =IF(INTRO!$E$41="Endemic", IF(AND($J175>1,$J175<5), IF($J175=4, "Unknown", E175+F175), 0),"Not required") -> Unknown | P175: =IF(INTRO!$E$43="Endemic", IF(AND($K175>0,$K175<5), IF($K175=4,"Unknown", IF($K175=1, $F175*0.33, IF($K175=2, $F175*0.5+$G175*0.2, SUM(F175:G175)))), 0),"Not required") -> Unknown | Q175: 0 | R175: 0 | S175: 0 | T175: 0 | Y175: 36503 | Z175: Nganzai
A176: =IF(INTRO!$E$33<>0,INTRO!$E$33, " ") -> Nigeria | B176: Borno | C176: Shani | D176: 137604.9898 | E176: =IF(INTRO!$E$48="","",ROUND($D176*INTRO!$E$48,0)) -> 27521 | F176: =IF(INTRO!$E$49="","",ROUND($D176*INTRO!$E$49,0)) -> 38529 | G176: =IF(INTRO!$E$50="","",ROUND($D176*INTRO!$E$50,0)) -> 71555 | H176: 1 | I176: 1 | J176: 4 | K176: 4 | L176: 4 | M176: =IF(INTRO!$E$37="Endemic",IF($H176>0,IF($H176=4,"Unknown",IF($H176=99,"Stopped",$D176)),0),"Not required") -> 137604.9898 | N176: 137604.9898 | O176: =IF(INTRO!$E$41="Endemic", IF(AND($J176>1,$J176<5), IF($J176=4, "Unknown", E176+F176), 0),"Not required") -> Unknown | P176: =IF(INTRO!$E$43="Endemic", IF(AND($K176>0,$K176<5), IF($K176=4,"Unknown", IF($K176=1, $F176*0.33, IF($K176=2, $F176*0.5+$G176*0.2, SUM(F176:G176)))), 0),"Not required") -> Unknown | Q176: 1 | R176: 1 | S176: 0 | T176: 0 | Y176: 36504 | Z176: Shani
A177: =IF(INTRO!$E$33<>0,INTRO!$E$33, " ") -> Nigeria | B177: Cross River | C177: Abi | D177: 194742.5915 | E177: =IF(INTRO!$E$48="","",ROUND($D177*INTRO!$E$48,0)) -> 38949 | F177: =IF(INTRO!$E$49="","",ROUND($D177*INTRO!$E$49,0)) -> 54528 | G177: =IF(INTRO!$E$50="","",ROUND($D177*INTRO!$E$50,0)) -> 101266 | H177: 1 | I177: 0 | J177: 1 | K177: 0 | L177: 0 | M177: =IF(INTRO!$E$37="Endemic",IF($H177>0,IF($H177=4,"Unknown",IF($H177=99,"Stopped",$D177)),0),"Not required") -> 194742.5915 | N177: 0 | O177: =IF(INTRO!$E$41="Endemic", IF(AND($J177>1,$J177<5), IF($J177=4, "Unknown", E177+F177), 0),"Not required") -> 0 | P177: =IF(INTRO!$E$43="Endemic", IF(AND($K177>0,$K177<5), IF($K177=4,"Unknown", IF($K177=1, $F177*0.33, IF($K177=2, $F177*0.5+$G177*0.2, SUM(F177:G177)))), 0),"Not required") -> 0 | Q177: 1 | R177: 2 | S177: 0 | T177: 0 | U177: SS/SC | Y177: 36505 | Z177: Abi
A178: =IF(INTRO!$E$33<>0,INTRO!$E$33, " ") -> Nigeria | B178: Cross River | C178: Akamkpa | D178: 203246.3236 | E178: =IF(INTRO!$E$48="","",ROUND($D178*INTRO!$E$48,0)) -> 40649 | F178: =IF(INTRO!$E$49="","",ROUND($D178*INTRO!$E$49,0)) -> 56909 | G178: =IF(INTRO!$E$50="","",ROUND($D178*INTRO!$E$50,0)) -> 105688 | H178: 1 | I178: 1 | J178: 2 | K178: 0 | L178: 0 | M178: =IF(INTRO!$E$37="Endemic",IF($H178>0,IF($H178=4,"Unknown",IF($H178=99,"Stopped",$D178)),0),"Not required") -> 203246.3236 | N178: 164932.8259 | O178: =IF(INTRO!$E$41="Endemic", IF(AND($J178>1,$J178<5), IF($J178=4, "Unknown", E178+F178), 0),"Not required") -> 97558 | P178: =IF(INTRO!$E$43="Endemic", IF(AND($K178>0,$K178<5), IF($K178=4,"Unknown", IF($K178=1, $F178*0.33, IF($K178=2, $F178*0.5+$G178*0.2, SUM(F178:G178)))), 0),"Not required") -> 0 | Q178: 1 | R178: 2 | S178: 1 | T178: 0 | U178: SS/SC | W178: Yes | Y178: 36506 | Z178: Akamkpa
A179: =IF(INTRO!$E$33<>0,INTRO!$E$33, " ") -> Nigeria | B179: Cross River | C179: Akpabuyo | D179: 364996.1025 | E179: =IF(INTRO!$E$48="","",ROUND($D179*INTRO!$E$48,0)) -> 72999 | F179: =IF(INTRO!$E$49="","",ROUND($D179*INTRO!$E$49,0)) -> 102199 | G179: =IF(INTRO!$E$50="","",ROUND($D179*INTRO!$E$50,0)) -> 189798 | H179: 0 | I179: 1 | J179: 2 | K179: 0 | L179: 4 | M179: =IF(INTRO!$E$37="Endemic",IF($H179>0,IF($H179=4,"Unknown",IF($H179=99,"Stopped",$D179)),0),"Not required") -> 0 | N179: 70224.5761 | O179: =IF(INTRO!$E$41="Endemic", IF(AND($J179>1,$J179<5), IF($J179=4, "Unknown", E179+F179), 0),"Not required") -> 175198 | P179: =IF(INTRO!$E$43="Endemic", IF(AND($K179>0,$K179<5), IF($K179=4,"Unknown", IF($K179=1, $F179*0.33, IF($K179=2, $F179*0.5+$G179*0.2, SUM(F179:G179)))), 0),"Not required") -> 0 | Q179: 0 | R179: 2 | S179: 1 | T179: 0 | W179: Yes | Y179: 36507 | Z179: Akpabuyo
A180: =IF(INTRO!$E$33<>0,INTRO!$E$33, " ") -> Nigeria | B180: Cross River | C180: Bakasi | D180: 43554.22457 | E180: =IF(INTRO!$E$48="","",ROUND($D180*INTRO!$E$48,0)) -> 8711 | F180: =IF(INTRO!$E$49="","",ROUND($D180*INTRO!$E$49,0)) -> 12195 | G180: =IF(INTRO!$E$50="","",ROUND($D180*INTRO!$E$50,0)) -> 22648 | H180: 0 | I180: 1 | J180: 2 | K180: 0 | L180: 4 | M180: =IF(INTRO!$E$37="Endemic",IF($H180>0,IF($H180=4,"Unknown",IF($H180=99,"Stopped",$D180)),0),"Not required") -> 0 | N180: 43554.22457 | O180: =IF(INTRO!$E$41="Endemic", IF(AND($J180>1,$J180<5), IF($J180=4, "Unknown", E180+F180), 0),"Not required") -> 20906 | P180: =IF(INTRO!$E$43="Endemic", IF(AND($K180>0,$K180<5), IF($K180=4,"Unknown", IF($K180=1, $F180*0.33, IF($K180=2, $F180*0.5+$G180*0.2, SUM(F180:G180)))), 0),"Not required") -> 0 | Q180: 0 | R180: 2 | S180: 1 | T180: 0 | W180: Yes | Y180: 36508 | Z180: Bakasi
A181: =IF(INTRO!$E$33<>0,INTRO!$E$33, " ") -> Nigeria | B181: Cross River | C181: Bekwara | D181: 142318.8252 | E181: =IF(INTRO!$E$48="","",ROUND($D181*INTRO!$E$48,0)) -> 28464 | F181: =IF(INTRO!$E$49="","",ROUND($D181*INTRO!$E$49,0)) -> 39849 | G181: =IF(INTRO!$E$50="","",ROUND($D181*INTRO!$E$50,0)) -> 74006 | H181: 1 | I181: 1 | J181: 1 | K181: 2 | L181: 4 | M181: =IF(INTRO!$E$37="Endemic",IF($H181>0,IF($H181=4,"Unknown",IF($H181=99,"Stopped",$D181)),0),"Not required") -> 142318.8252 | N181: 105027.7965 | O181: =IF(INTRO!$E$41="Endemic", IF(AND($J181>1,$J181<5), IF($J181=4, "Unknown", E181+F181), 0),"Not required") -> 0 | P181: =IF(INTRO!$E$43="Endemic", IF(AND($K181>0,$K181<5), IF($K181=4,"Unknown", IF($K181=1, $F181*0.33, IF($K181=2, $F181*0.5+$G181*0.2, SUM(F181:G181)))), 0),"Not required") -> 34725.7 | Q181: 1 | R181: 2 | S181: 0 | T181: 1 | X181: Yes | Y181: 36509 | Z181: Bekwara
A182: =IF(INTRO!$E$33<>0,INTRO!$E$33, " ") -> Nigeria | B182: Cross River | C182: Biase | D182: 227532.326 | E182: =IF(INTRO!$E$48="","",ROUND($D182*INTRO!$E$48,0)) -> 45506 | F182: =IF(INTRO!$E$49="","",ROUND($D182*INTRO!$E$49,0)) -> 63709 | G182: =IF(INTRO!$E$50="","",ROUND($D182*INTRO!$E$50,0)) -> 118317 | H182: 1 | I182: 1 | J182: 2 | K182: 0 | L182: 0 | M182: =IF(INTRO!$E$37="Endemic",IF($H182>0,IF($H182=4,"Unknown",IF($H182=99,"Stopped",$D182)),0),"Not required") -> 227532.326 | N182: 101437.0932 | O182: =IF(INTRO!$E$41="Endemic", IF(AND($J182>1,$J182<5), IF($J182=4, "Unknown", E182+F182), 0),"Not required") -> 109215 | P182: =IF(INTRO!$E$43="Endemic", IF(AND($K182>0,$K182<5), IF($K182=4,"Unknown", IF($K182=1, $F182*0.33, IF($K182=2, $F182*0.5+$G182*0.2, SUM(F182:G182)))), 0),"Not required") -> 0 | Q182: 1 | R182: 2 | S182: 1 | T182: 0 | W182: Yes | Y182: 36510 | Z182: Biase
A183: =IF(INTRO!$E$33<>0,INTRO!$E$33, " ") -> Nigeria | B183: Cross River | C183: Boki | D183: 250338.9506 | E183: =IF(INTRO!$E$48="","",ROUND($D183*INTRO!$E$48,0)) -> 50068 | F183: =IF(INTRO!$E$49="","",ROUND($D183*INTRO!$E$49,0)) -> 70095 | G183: =IF(INTRO!$E$50="","",ROUND($D183*INTRO!$E$50,0)) -> 130176 | H183: 1 | I183: 1 | J183: 1 | K183: 1 | L183: 4 | M183: =IF(INTRO!$E$37="Endemic",IF($H183>0,IF($H183=4,"Unknown",IF($H183=99,"Stopped",$D183)),0),"Not required") -> 250338.9506 | N183: 250338.9506 | O183: =IF(INTRO!$E$41="Endemic", IF(AND($J183>1,$J183<5), IF($J183=4, "Unknown", E183+F183), 0),"Not required") -> 0 | P183: =IF(INTRO!$E$43="Endemic", IF(AND($K183>0,$K183<5), IF($K183=4,"Unknown", IF($K183=1, $F183*0.33, IF($K183=2, $F183*0.5+$G183*0.2, SUM(F183:G183)))), 0),"Not required") -> 23131.35 | Q183: 1 | R183: 2 | S183: 0 | T183: 0 | U183: SS/SC | Y183: 36511 | Z183: Boki
A184: =IF(INTRO!$E$33<>0,INTRO!$E$33, " ") -> Nigeria | B184: Cross River | C184: Caabar South | D184: 257721.0454 | E184: =IF(INTRO!$E$48="","",ROUND($D184*INTRO!$E$48,0)) -> 51544 | F184: =IF(INTRO!$E$49="","",ROUND($D184*INTRO!$E$49,0)) -> 72162 | G184: =IF(INTRO!$E$50="","",ROUND($D184*INTRO!$E$50,0)) -> 134015 | H184: 1 | I184: 0 | J184: 2 | K184: 0 | L184: 0 | M184: =IF(INTRO!$E$37="Endemic",IF($H184>0,IF($H184=4,"Unknown",IF($H184=99,"Stopped",$D184)),0),"Not required") -> 257721.0454 | N184: 0 | O184: =IF(INTRO!$E$41="Endemic", IF(AND($J184>1,$J184<5), IF($J184=4, "Unknown", E184+F184), 0),"Not required") -> 123706 | P184: =IF(INTRO!$E$43="Endemic", IF(AND($K184>0,$K184<5), IF($K184=4,"Unknown", IF($K184=1, $F184*0.33, IF($K184=2, $F184*0.5+$G184*0.2, SUM(F184:G184)))), 0),"Not required") -> 0 | Q184: 0 | R184: 0 | S184: 1 | T184: 0 | W184: Yes | Y184: 36512 | Z184: Caabar South
A185: =IF(INTRO!$E$33<>0,INTRO!$E$33, " ") -> Nigeria | B185: Cross River | C185: Calabar Municipal | D185: 241262.296 | E185: =IF(INTRO!$E$48="","",ROUND($D185*INTRO!$E$48,0)) -> 48252 | F185: =IF(INTRO!$E$49="","",ROUND($D185*INTRO!$E$49,0)) -> 67553 | G185: =IF(INTRO!$E$50="","",ROUND($D185*INTRO!$E$50,0)) -> 125456 | H185: 0 | I185: 0 | J185: 2 | K185: 0 | L185: 0 | M185: =IF(INTRO!$E$37="Endemic",IF($H185>0,IF($H185=4,"Unknown",IF($H185=99,"Stopped",$D185)),0),"Not required") -> 0 | N185: 0 | O185: =IF(INTRO!$E$41="Endemic", IF(AND($J185>1,$J185<5), IF($J185=4, "Unknown", E185+F185), 0),"Not required") -> 115805 | P185: =IF(INTRO!$E$43="Endemic", IF(AND($K185>0,$K185<5), IF($K185=4,"Unknown", IF($K185=1, $F185*0.33, IF($K185=2, $F185*0.5+$G185*0.2, SUM(F185:G185)))), 0),"Not required") -> 0 | Q185: 1 | R185: 0 | S185: 1 | T185: 0 | W185: Yes | Y185: 36513 | Z185: Calabar Municipal
A186: =IF(INTRO!$E$33<>0,INTRO!$E$33, " ") -> Nigeria | B186: Cross River | C186: Etung | D186: 107854.7041 | E186: =IF(INTRO!$E$48="","",ROUND($D186*INTRO!$E$48,0)) -> 21571 | F186: =IF(INTRO!$E$49="","",ROUND($D186*INTRO!$E$49,0)) -> 30199 | G186: =IF(INTRO!$E$50="","",ROUND($D186*INTRO!$E$50,0)) -> 56084 | H186: 0 | I186: 1 | J186: 2 | K186: 0 | L186: 4 | M186: =IF(INTRO!$E$37="Endemic",IF($H186>0,IF($H186=4,"Unknown",IF($H186=99,"Stopped",$D186)),0),"Not required") -> 0 | N186: 107854.7041 | O186: =IF(INTRO!$E$41="Endemic", IF(AND($J186>1,$J186<5), IF($J186=4, "Unknown", E186+F186), 0),"Not required") -> 51770 | P186: =IF(INTRO!$E$43="Endemic", IF(AND($K186>0,$K186<5), IF($K186=4,"Unknown", IF($K186=1, $F186*0.33, IF($K186=2, $F186*0.5+$G186*0.2, SUM(F186:G186)))), 0),"Not required") -> 0 | Q186: 0 | R186: 2 | S186: 1 | T186: 0 | W186: Yes | Y186: 36514 | Z186: Etung
A187: =IF(INTRO!$E$33<>0,INTRO!$E$33, " ") -> Nigeria | B187: Cross River | C187: Ikom | D187: 218387.0819 | E187: =IF(INTRO!$E$48="","",ROUND($D187*INTRO!$E$48,0)) -> 43677 | F187: =IF(INTRO!$E$49="","",ROUND($D187*INTRO!$E$49,0)) -> 61148 | G187: =IF(INTRO!$E$50="","",ROUND($D187*INTRO!$E$50,0)) -> 113561 | H187: 1 | I187: 1 | J187: 1 | K187: 0 | L187: 0 | M187: =IF(INTRO!$E$37="Endemic",IF($H187>0,IF($H187=4,"Unknown",IF($H187=99,"Stopped",$D187)),0),"Not required") -> 218387.0819 | N187: 124444.9691 | O187: =IF(INTRO!$E$41="Endemic", IF(AND($J187>1,$J187<5), IF($J187=4, "Unknown", E187+F187), 0),"Not required") -> 0 | P187: =IF(INTRO!$E$43="Endemic", IF(AND($K187>0,$K187<5), IF($K187=4,"Unknown", IF($K187=1, $F187*0.33, IF($K187=2, $F187*0.5+$G187*0.2, SUM(F187:G187)))), 0),"Not required") -> 0 | Q187: 1 | R187: 2 | S187: 0 | T187: 0 | U187: SS/SC | Y187: 36515 | Z187: Ikom
A188: =IF(INTRO!$E$33<>0,INTRO!$E$33, " ") -> Nigeria | B188: Cross River | C188: Obanliku | D188: 148373.5146 | E188: =IF(INTRO!$E$48="","",ROUND($D188*INTRO!$E$48,0)) -> 29675 | F188: =IF(INTRO!$E$49="","",ROUND($D188*INTRO!$E$49,0)) -> 41545 | G188: =IF(INTRO!$E$50="","",ROUND($D188*INTRO!$E$50,0)) -> 77154 | H188: 0 | I188: 1 | J188: 1 | K188: 2 | L188: 4 | M188: =IF(INTRO!$E$37="Endemic",IF($H188>0,IF($H188=4,"Unknown",IF($H188=99,"Stopped",$D188)),0),"Not required") -> 0 | N188: 59379.61445 | O188: =IF(INTRO!$E$41="Endemic", IF(AND($J188>1,$J188<5), IF($J188=4, "Unknown", E188+F188), 0),"Not required") -> 0 | P188: =IF(INTRO!$E$43="Endemic", IF(AND($K188>0,$K188<5), IF($K188=4,"Unknown", IF($K188=1, $F188*0.33, IF($K188=2, $F188*0.5+$G188*0.2, SUM(F188:G188)))), 0),"Not required") -> 36203.3 | Q188: 0 | R188: 2 | S188: 0 | T188: 1 | X188: Yes | Y188: 36516 | Z188: Obanliku
A189: =IF(INTRO!$E$33<>0,INTRO!$E$33, " ") -> Nigeria | B189: Cross River | C189: Obubra | D189: 231918.0084 | E189: =IF(INTRO!$E$48="","",ROUND($D189*INTRO!$E$48,0)) -> 46384 | F189: =IF(INTRO!$E$49="","",ROUND($D189*INTRO!$E$49,0)) -> 64937 | G189: =IF(INTRO!$E$50="","",ROUND($D189*INTRO!$E$50,0)) -> 120597 | H189: 1 | I189: 1 | J189: 1 | K189: 0 | L189: 0 | M189: =IF(INTRO!$E$37="Endemic",IF($H189>0,IF($H189=4,"Unknown",IF($H189=99,"Stopped",$D189)),0),"Not required") -> 231918.0084 | N189: 74819.74917 | O189: =IF(INTRO!$E$41="Endemic", IF(AND($J189>1,$J189<5), IF($J189=4, "Unknown", E189+F189), 0),"Not required") -> 0 | P189: =IF(INTRO!$E$43="Endemic", IF(AND($K189>0,$K189<5), IF($K189=4,"Unknown", IF($K189=1, $F189*0.33, IF($K189=2, $F189*0.5+$G189*0.2, SUM(F189:G189)))), 0),"Not required") -> 0 | Q189: 1 | R189: 2 | S189: 0 | T189: 0 | Y189: 36517 | Z189: Obubra
A190: =IF(INTRO!$E$33<>0,INTRO!$E$33, " ") -> Nigeria | B190: Cross River | C190: Obudu | D190: 215324.7701 | E190: =IF(INTRO!$E$48="","",ROUND($D190*INTRO!$E$48,0)) -> 43065 | F190: =IF(INTRO!$E$49="","",ROUND($D190*INTRO!$E$49,0)) -> 60291 | G190: =IF(INTRO!$E$50="","",ROUND($D190*INTRO!$E$50,0)) -> 111969 | H190: 0 | I190: 1 | J190: 1 | K190: 2 | L190: 4 | M190: =IF(INTRO!$E$37="Endemic",IF($H190>0,IF($H190=4,"Unknown",IF($H190=99,"Stopped",$D190)),0),"Not required") -> 0 | N190: 59156.64425 | O190: =IF(INTRO!$E$41="Endemic", IF(AND($J190>1,$J190<5), IF($J190=4, "Unknown", E190+F190), 0),"Not required") -> 0 | P190: =IF(INTRO!$E$43="Endemic", IF(AND($K190>0,$K190<5), IF($K190=4,"Unknown", IF($K190=1, $F190*0.33, IF($K190=2, $F190*0.5+$G190*0.2, SUM(F190:G190)))), 0),"Not required") -> 52539.3 | Q190: 0 | R190: 2 | S190: 0 | T190: 1 | X190: Yes | Y190: 36518 | Z190: Obudu
A191: =IF(INTRO!$E$33<>0,INTRO!$E$33, " ") -> Nigeria | B191: Cross River | C191: Odukpani | D191: 258815.7849 | E191: =IF(INTRO!$E$48="","",ROUND($D191*INTRO!$E$48,0)) -> 51763 | F191: =IF(INTRO!$E$49="","",ROUND($D191*INTRO!$E$49,0)) -> 72468 | G191: =IF(INTRO!$E$50="","",ROUND($D191*INTRO!$E$50,0)) -> 134584 | H191: 0 | I191: 1 | J191: 3 | K191: 0 | L191: 4 | M191: =IF(INTRO!$E$37="Endemic",IF($H191>0,IF($H191=4,"Unknown",IF($H191=99,"Stopped",$D191)),0),"Not required") -> 0 | N191: 117167.5307 | O191: =IF(INTRO!$E$41="Endemic", IF(AND($J191>1,$J191<5), IF($J191=4, "Unknown", E191+F191), 0),"Not required") -> 124231 | P191: =IF(INTRO!$E$43="Endemic", IF(AND($K191>0,$K191<5), IF($K191=4,"Unknown", IF($K191=1, $F191*0.33, IF($K191=2, $F191*0.5+$G191*0.2, SUM(F191:G191)))), 0),"Not required") -> 0 | Q191: 0 | R191: 2 | S191: 2 | T191: 0 | W191: Yes | Y191: 36519 | Z191: Odukpani
A192: =IF(INTRO!$E$33<>0,INTRO!$E$33, " ") -> Nigeria | B192: Cross River | C192: Ogoja | D192: 231187.7338 | E192: =IF(INTRO!$E$48="","",ROUND($D192*INTRO!$E$48,0)) -> 46238 | F192: =IF(INTRO!$E$49="","",ROUND($D192*INTRO!$E$49,0)) -> 64733 | G192: =IF(INTRO!$E$50="","",ROUND($D192*INTRO!$E$50,0)) -> 120218 | H192: 1 | I192: 1 | J192: 1 | K192: 2 | L192: 1 | M192: =IF(INTRO!$E$37="Endemic",IF($H192>0,IF($H192=4,"Unknown",IF($H192=99,"Stopped",$D192)),0),"Not required") -> 231187.7338 | N192: 119129.0062 | O192: =IF(INTRO!$E$41="Endemic", IF(AND($J192>1,$J192<5), IF($J192=4, "Unknown", E192+F192), 0),"Not required") -> 0 | P192: =IF(INTRO!$E$43="Endemic", IF(AND($K192>0,$K192<5), IF($K192=4,"Unknown", IF($K192=1, $F192*0.33, IF($K192=2, $F192*0.5+$G192*0.2, SUM(F192:G192)))), 0),"Not required") -> 56410.1 | Q192: 1 | R192: 2 | S192: 0 | T192: 1 | X192: Yes | Y192: 36520 | Z192: Ogoja
A193: =IF(INTRO!$E$33<>0,INTRO!$E$33, " ") -> Nigeria | B193: Cross River | C193: Yakur | D193: 264203.4095 | E193: =IF(INTRO!$E$48="","",ROUND($D193*INTRO!$E$48,0)) -> 52841 | F193: =IF(INTRO!$E$49="","",ROUND($D193*INTRO!$E$49,0)) -> 73977 | G193: =IF(INTRO!$E$50="","",ROUND($D193*INTRO!$E$50,0)) -> 137386 | H193: 0 | I193: 1 | J193: 2 | K193: 0 | L193: 4 | M193: =IF(INTRO!$E$37="Endemic",IF($H193>0,IF($H193=4,"Unknown",IF($H193=99,"Stopped",$D193)),0),"Not required") -> 0 | N193: 74425.68796 | O193: =IF(INTRO!$E$41="Endemic", IF(AND($J193>1,$J193<5), IF($J193=4, "Unknown", E193+F193), 0),"Not required") -> 126818 | P193: =IF(INTRO!$E$43="Endemic", IF(AND($K193>0,$K193<5), IF($K193=4,"Unknown", IF($K193=1, $F193*0.33, IF($K193=2, $F193*0.5+$G193*0.2, SUM(F193:G193)))), 0),"Not required") -> 0 | Q193: 0 | R193: 2 | S193: 1 | T193: 0 | W193: Yes | Y193: 36521 | Z193: Yakur
A194: =IF(INTRO!$E$33<>0,INTRO!$E$33, " ") -> Nigeria | B194: Cross River | C194: Yala | D194: 283560.3944 | E194: =IF(INTRO!$E$48="","",ROUND($D194*INTRO!$E$48,0)) -> 56712 | F194: =IF(INTRO!$E$49="","",ROUND($D194*INTRO!$E$49,0)) -> 79397 | G194: =IF(INTRO!$E$50="","",ROUND($D194*INTRO!$E$50,0)) -> 147451 | H194: 1 | I194: 1 | J194: 1 | K194: 2 | L194: 1 | M194: =IF(INTRO!$E$37="Endemic",IF($H194>0,IF($H194=4,"Unknown",IF($H194=99,"Stopped",$D194)),0),"Not required") -> 283560.3944 | N194: 212578.9094 | O194: =IF(INTRO!$E$41="Endemic", IF(AND($J194>1,$J194<5), IF($J194=4, "Unknown", E194+F194), 0),"Not required") -> 0 | P194: =IF(INTRO!$E$43="Endemic", IF(AND($K194>0,$K194<5), IF($K194=4,"Unknown", IF($K194=1, $F194*0.33, IF($K194=2, $F194*0.5+$G194*0.2, SUM(F194:G194)))), 0),"Not required") -> 69188.7 | Q194: 1 | R194: 2 | S194: 0 | T194: 1 | X194: Yes | Y194: 36522 | Z194: Yala
A195: =IF(INTRO!$E$33<>0,INTRO!$E$33, " ") -> Nigeria | B195: Delta | C195: Aniocha North | D195: 140824.6537 | E195: =IF(INTRO!$E$48="","",ROUND($D195*INTRO!$E$48,0)) -> 28165 | F195: =IF(INTRO!$E$49="","",ROUND($D195*INTRO!$E$49,0)) -> 39431 | G195: =IF(INTRO!$E$50="","",ROUND($D195*INTRO!$E$50,0)) -> 73229 | H195: 1 | I195: 1 | J195: 2 | K195: 0 | L195: 0 | M195: =IF(INTRO!$E$37="Endemic",IF($H195>0,IF($H195=4,"Unknown",IF($H195=99,"Stopped",$D195)),0),"Not required") -> 140824.6537 | N195: 80866.43618 | O195: =IF(INTRO!$E$41="Endemic", IF(AND($J195>1,$J195<5), IF($J195=4, "Unknown", E195+F195), 0),"Not required") -> 67596 | P195: =IF(INTRO!$E$43="Endemic", IF(AND($K195>0,$K195<5), IF($K195=4,"Unknown", IF($K195=1, $F195*0.33, IF($K195=2, $F195*0.5+$G195*0.2, SUM(F195:G195)))), 0),"Not required") -> 0 | Q195: 1 | R195: 1 | S195: 1 | T195: 0 | Y195: 36523 | Z195: Aniocha North
A196: =IF(INTRO!$E$33<>0,INTRO!$E$33, " ") -> Nigeria | B196: Delta | C196: Aniocha South | D196: 189096.7482 | E196: =IF(INTRO!$E$48="","",ROUND($D196*INTRO!$E$48,0)) -> 37819 | F196: =IF(INTRO!$E$49="","",ROUND($D196*INTRO!$E$49,0)) -> 52947 | G196: =IF(INTRO!$E$50="","",ROUND($D196*INTRO!$E$50,0)) -> 98330 | H196: 1 | I196: 1 | J196: 2 | K196: 0 | L196: 0 | M196: =IF(INTRO!$E$37="Endemic",IF($H196>0,IF($H196=4,"Unknown",IF($H196=99,"Stopped",$D196)),0),"Not required") -> 189096.7482 | N196: 78822.17471 | O196: =IF(INTRO!$E$41="Endemic", IF(AND($J196>1,$J196<5), IF($J196=4, "Unknown", E196+F196), 0),"Not required") -> 90766 | P196: =IF(INTRO!$E$43="Endemic", IF(AND($K196>0,$K196<5), IF($K196=4,"Unknown", IF($K196=1, $F196*0.33, IF($K196=2, $F196*0.5+$G196*0.2, SUM(F196:G196)))), 0),"Not required") -> 0 | Q196: 1 | R196: 1 | S196: 1 | T196: 0 | Y196: 36524 | Z196: Aniocha South
A197: =IF(INTRO!$E$33<>0,INTRO!$E$33, " ") -> Nigeria | B197: Delta | C197: Bomadi | D197: 116526.5473 | E197: =IF(INTRO!$E$48="","",ROUND($D197*INTRO!$E$48,0)) -> 23305 | F197: =IF(INTRO!$E$49="","",ROUND($D197*INTRO!$E$49,0)) -> 32627 | G197: =IF(INTRO!$E$50="","",ROUND($D197*INTRO!$E$50,0)) -> 60594 | H197: 1 | I197: 0 | J197: 3 | K197: 1 | L197: 0 | M197: =IF(INTRO!$E$37="Endemic",IF($H197>0,IF($H197=4,"Unknown",IF($H197=99,"Stopped",$D197)),0),"Not required") -> 116526.5473 | N197: 0 | O197: =IF(INTRO!$E$41="Endemic", IF(AND($J197>1,$J197<5), IF($J197=4, "Unknown", E197+F197), 0),"Not required") -> 55932 | P197: =IF(INTRO!$E$43="Endemic", IF(AND($K197>0,$K197<5), IF($K197=4,"Unknown", IF($K197=1, $F197*0.33, IF($K197=2, $F197*0.5+$G197*0.2, SUM(F197:G197)))), 0),"Not required") -> 10766.91 | Q197: 1 | R197: 0 | S197: 2 | T197: 0 | Y197: 36525 | Z197: Bomadi
A198: =IF(INTRO!$E$33<>0,INTRO!$E$33, " ") -> Nigeria | B198: Delta | C198: Burutu | D198: 281977.4602 | E198: =IF(INTRO!$E$48="","",ROUND($D198*INTRO!$E$48,0)) -> 56395 | F198: =IF(INTRO!$E$49="","",ROUND($D198*INTRO!$E$49,0)) -> 78954 | G198: =IF(INTRO!$E$50="","",ROUND($D198*INTRO!$E$50,0)) -> 146628 | H198: 0 | I198: 0 | J198: 3 | K198: 1 | L198: 0 | M198: =IF(INTRO!$E$37="Endemic",IF($H198>0,IF($H198=4,"Unknown",IF($H198=99,"Stopped",$D198)),0),"Not required") -> 0 | N198: 0 | O198: =IF(INTRO!$E$41="Endemic", IF(AND($J198>1,$J198<5), IF($J198=4, "Unknown", E198+F198), 0),"Not required") -> 135349 | P198: =IF(INTRO!$E$43="Endemic", IF(AND($K198>0,$K198<5), IF($K198=4,"Unknown", IF($K198=1, $F198*0.33, IF($K198=2, $F198*0.5+$G198*0.2, SUM(F198:G198)))), 0),"Not required") -> 26054.82 | Q198: 0 | R198: 0 | S198: 2 | T198: 0 | Y198: 36526 | Z198: Burutu
A199: =IF(INTRO!$E$33<>0,INTRO!$E$33, " ") -> Nigeria | B199: Delta | C199: Ethiope East | D199: 270042.9168 | E199: =IF(INTRO!$E$48="","",ROUND($D199*INTRO!$E$48,0)) -> 54009 | F199: =IF(INTRO!$E$49="","",ROUND($D199*INTRO!$E$49,0)) -> 75612 | G199: =IF(INTRO!$E$50="","",ROUND($D199*INTRO!$E$50,0)) -> 140422 | H199: 1 | I199: 1 | J199: 3 | K199: 1 | L199: 0 | M199: =IF(INTRO!$E$37="Endemic",IF($H199>0,IF($H199=4,"Unknown",IF($H199=99,"Stopped",$D199)),0),"Not required") -> 270042.9168 | N199: 128514.7272 | O199: =IF(INTRO!$E$41="Endemic", IF(AND($J199>1,$J199<5), IF($J199=4, "Unknown", E199+F199), 0),"Not required") -> 129621 | P199: =IF(INTRO!$E$43="Endemic", IF(AND($K199>0,$K199<5), IF($K199=4,"Unknown", IF($K199=1, $F199*0.33, IF($K199=2, $F199*0.5+$G199*0.2, SUM(F199:G199)))), 0),"Not required") -> 24951.96 | Q199: 1 | R199: 1 | S199: 2 | T199: 0 | Y199: 36527 | Z199: Ethiope East
A200: =IF(INTRO!$E$33<>0,INTRO!$E$33, " ") -> Nigeria | B200: Delta | C200: Ethiope West | D200: 273808.6055 | E200: =IF(INTRO!$E$48="","",ROUND($D200*INTRO!$E$48,0)) -> 54762 | F200: =IF(INTRO!$E$49="","",ROUND($D200*INTRO!$E$49,0)) -> 76666 | G200: =IF(INTRO!$E$50="","",ROUND($D200*INTRO!$E$50,0)) -> 142380 | H200: 0 | I200: 1 | J200: 3 | K200: 0 | L200: 0 | M200: =IF(INTRO!$E$37="Endemic",IF($H200>0,IF($H200=4,"Unknown",IF($H200=99,"Stopped",$D200)),0),"Not required") -> 0 | N200: 273808.6055 | O200: =IF(INTRO!$E$41="Endemic", IF(AND($J200>1,$J200<5), IF($J200=4, "Unknown", E200+F200), 0),"Not required") -> 131428 | P200: =IF(INTRO!$E$43="Endemic", IF(AND($K200>0,$K200<5), IF($K200=4,"Unknown", IF($K200=1, $F200*0.33, IF($K200=2, $F200*0.5+$G200*0.2, SUM(F200:G200)))), 0),"Not required") -> 0 | Q200: 0 | R200: 1 | S200: 2 | T200: 0 | Y200: 36528 | Z200: Ethiope West
A201: =IF(INTRO!$E$33<>0,INTRO!$E$33, " ") -> Nigeria | B201: Delta | C201: Ika North East | D201: 246998.2468 | E201: =IF(INTRO!$E$48="","",ROUND($D201*INTRO!$E$48,0)) -> 49400 | F201: =IF(INTRO!$E$49="","",ROUND($D201*INTRO!$E$49,0)) -> 69160 | G201: =IF(INTRO!$E$50="","",ROUND($D201*INTRO!$E$50,0)) -> 128439 | H201: 1 | I201: 1 | J201: 3 | K201: 0 | L201: 0 | M201: =IF(INTRO!$E$37="Endemic",IF($H201>0,IF($H201=4,"Unknown",IF($H201=99,"Stopped",$D201)),0),"Not required") -> 246998.2468 | N201: 83031.01326 | O201: =IF(INTRO!$E$41="Endemic", IF(AND($J201>1,$J201<5), IF($J201=4, "Unknown", E201+F201), 0),"Not required") -> 118560 | P201: =IF(INTRO!$E$43="Endemic", IF(AND($K201>0,$K201<5), IF($K201=4,"Unknown", IF($K201=1, $F201*0.33, IF($K201=2, $F201*0.5+$G201*0.2, SUM(F201:G201)))), 0),"Not required") -> 0 | Q201: 1 | R201: 1 | S201: 2 | T201: 0 | Y201: 36529 | Z201: Ika North East
A202: =IF(INTRO!$E$33<>0,INTRO!$E$33, " ") -> Nigeria | B202: Delta | C202: Ika South | D202: 218670.8535 | E202: =IF(INTRO!$E$48="","",ROUND($D202*INTRO!$E$48,0)) -> 43734 | F202: =IF(INTRO!$E$49="","",ROUND($D202*INTRO!$E$49,0)) -> 61228 | G202: =IF(INTRO!$E$50="","",ROUND($D202*INTRO!$E$50,0)) -> 113709 | H202: 1 | I202: 1 | J202: 2 | K202: 0 | L202: 0 | M202: =IF(INTRO!$E$37="Endemic",IF($H202>0,IF($H202=4,"Unknown",IF($H202=99,"Stopped",$D202)),0),"Not required") -> 218670.8535 | N202: 80204.14845 | O202: =IF(INTRO!$E$41="Endemic", IF(AND($J202>1,$J202<5), IF($J202=4, "Unknown", E202+F202), 0),"Not required") -> 104962 | P202: =IF(INTRO!$E$43="Endemic", IF(AND($K202>0,$K202<5), IF($K202=4,"Unknown", IF($K202=1, $F202*0.33, IF($K202=2, $F202*0.5+$G202*0.2, SUM(F202:G202)))), 0),"Not required") -> 0 | Q202: 1 | R202: 1 | S202: 1 | T202: 0 | Y202: 36530 | Z202: Ika South
A203: =IF(INTRO!$E$33<>0,INTRO!$E$33, " ") -> Nigeria | B203: Delta | C203: Isoko North | D203: 193872.4485 | E203: =IF(INTRO!$E$48="","",ROUND($D203*INTRO!$E$48,0)) -> 38774 | F203: =IF(INTRO!$E$49="","",ROUND($D203*INTRO!$E$49,0)) -> 54284 | G203: =IF(INTRO!$E$50="","",ROUND($D203*INTRO!$E$50,0)) -> 100814 | H203: 1 | I203: 1 | J203: 3 | K203: 1 | L203: 0 | M203: =IF(INTRO!$E$37="Endemic",IF($H203>0,IF($H203=4,"Unknown",IF($H203=99,"Stopped",$D203)),0),"Not required") -> 193872.4485 | N203: 92264.40809 | O203: =IF(INTRO!$E$41="Endemic", IF(AND($J203>1,$J203<5), IF($J203=4, "Unknown", E203+F203), 0),"Not required") -> 93058 | P203: =IF(INTRO!$E$43="Endemic", IF(AND($K203>0,$K203<5), IF($K203=4,"Unknown", IF($K203=1, $F203*0.33, IF($K203=2, $F203*0.5+$G203*0.2, SUM(F203:G203)))), 0),"Not required") -> 17913.72 | Q203: 1 | R203: 1 | S203: 2 | T203: 0 | Y203: 36531 | Z203: Isoko North
... 579 more rows

Sheet DEC
A1: Diethylcarbamazine citrate (DEC)
A2: Administrative structure, eligible population by age group, treatment plan and information about tablets
A4: TOTAL | D4: =SUM(D$9:D$1000) -> 0 | E4: =SUM(E$9:E$1000) -> 0 | F4: =SUM(F$9:F$1000) -> 0 | G4: =SUM(G$9:G$1000) -> 0 | I4: =SUM(I$9:I$1000) -> 0 | J4: =SUM(J$9:J$1000) -> 0 | K4: =SUM(K$9:K$1000) -> 0 | L4: =SUM(L$9:L$1000) -> 0 | M4: =SUM(M$9:M$1000) -> 0
A6: Country administrative structure | D6: Population requiring treatment with DEC | H6: Treatment plan | I6: Target population | J6: Diethylcarbamazine citrate (DEC)
A7: Country | B7: Province/State | C7: District | D7: PreSAC | E7: SAC | F7: Adults | G7: Total | H7: LF | I7: LF | J7: Total required | K7: Remaining in stock | L7: Tablets to be procured | M7: Bottle (100 mg) 1000 tablets
A9: =IF(INTRO!$E$39<>"Non-endemic", " ", IF(INTRO!$E$37="Non-endemic"," ", IF(COUNTRY_INFO!A9=0," ",COUNTRY_INFO!A9))) ->  | B9: =IF(INTRO!$E$39<>"Non-endemic", " ", IF(INTRO!$E$37="Non-endemic"," ", IF(COUNTRY_INFO!B9=0," ",COUNTRY_INFO!B9))) ->  | C9: =IF(INTRO!$E$39<>"Non-endemic", " ", IF(INTRO!$E$37="Non-endemic"," ", IF(COUNTRY_INFO!C9=0," ",COUNTRY_INFO!C9))) ->  | D9: =IF(INTRO!$E$39<>"Non-endemic", 0, IF(INTRO!$E$37="Non-endemic",0,IF(COUNTRY_INFO!$H9=1,COUNTRY_INFO!E9,0))) -> 0 | E9: =IF(INTRO!$E$39<>"Non-endemic", 0, IF(INTRO!$E$37="Non-endemic",0,IF(COUNTRY_INFO!$H9=1,COUNTRY_INFO!F9,0))) -> 0 | F9: =IF(INTRO!$E$39<>"Non-endemic", 0, IF(INTRO!$E$37="Non-endemic",0,IF(COUNTRY_INFO!$H9=1,COUNTRY_INFO!G9,0))) -> 0 | G9: =SUM(D9:F9) -> 0 | H9: =IF(INTRO!$E$39="Non-endemic",IF(INTRO!$E$37="Non-endemic","Not required",COUNTRY_INFO!Q9),"Treat with IVM") -> Treat with IVM | I9: =IF(H9=1,IF(ALB_MBD!$J9<>" ",$G9-ALB_MBD!$J9,$G9),0) -> 0 | J9: =IF(I9>0,I9*2.5,0) -> 0 | L9: =IF($J9>$K9,$J9-$K9,0) -> 0 | M9: =ROUNDUP($J9/1000,0) -> 0
A10: =IF(INTRO!$E$39<>"Non-endemic", " ", IF(INTRO!$E$37="Non-endemic"," ", IF(COUNTRY_INFO!A10=0," ",COUNTRY_INFO!A10))) ->  | B10: =IF(INTRO!$E$39<>"Non-endemic", " ", IF(INTRO!$E$37="Non-endemic"," ", IF(COUNTRY_INFO!B10=0," ",COUNTRY_INFO!B10))) ->  | C10: =IF(INTRO!$E$39<>"Non-endemic", " ", IF(INTRO!$E$37="Non-endemic"," ", IF(COUNTRY_INFO!C10=0," ",COUNTRY_INFO!C10))) ->  | D10: =IF(INTRO!$E$39<>"Non-endemic", 0, IF(INTRO!$E$37="Non-endemic",0,IF(COUNTRY_INFO!$H10=1,COUNTRY_INFO!E10,0))) -> 0 | E10: =IF(INTRO!$E$39<>"Non-endemic", 0, IF(INTRO!$E$37="Non-endemic",0,IF(COUNTRY_INFO!$H10=1,COUNTRY_INFO!F10,0))) -> 0 | F10: =IF(INTRO!$E$39<>"Non-endemic", 0, IF(INTRO!$E$37="Non-endemic",0,IF(COUNTRY_INFO!$H10=1,COUNTRY_INFO!G10,0))) -> 0 | G10: =SUM(D10:F10) -> 0 | H10: =IF(INTRO!$E$39="Non-endemic",IF(INTRO!$E$37="Non-endemic","Not required",COUNTRY_INFO!Q10),"Treat with IVM") -> Treat with IVM | I10: =IF(H10=1,IF(ALB_MBD!$J10<>" ",$G10-ALB_MBD!$J10,$G10),0) -> 0 | J10: =IF(I10>0,I10*2.5,0) -> 0 | L10: 0 | M10: 0
A11: =IF(INTRO!$E$39<>"Non-endemic", " ", IF(INTRO!$E$37="Non-endemic"," ", IF(COUNTRY_INFO!A11=0," ",COUNTRY_INFO!A11))) ->  | B11: =IF(INTRO!$E$39<>"Non-endemic", " ", IF(INTRO!$E$37="Non-endemic"," ", IF(COUNTRY_INFO!B11=0," ",COUNTRY_INFO!B11))) ->  | C11: =IF(INTRO!$E$39<>"Non-endemic", " ", IF(INTRO!$E$37="Non-endemic"," ", IF(COUNTRY_INFO!C11=0," ",COUNTRY_INFO!C11))) ->  | D11: =IF(INTRO!$E$39<>"Non-endemic", 0, IF(INTRO!$E$37="Non-endemic",0,IF(COUNTRY_INFO!$H11=1,COUNTRY_INFO!E11,0))) -> 0 | E11: =IF(INTRO!$E$39<>"Non-endemic", 0, IF(INTRO!$E$37="Non-endemic",0,IF(COUNTRY_INFO!$H11=1,COUNTRY_INFO!F11,0))) -> 0 | F11: =IF(INTRO!$E$39<>"Non-endemic", 0, IF(INTRO!$E$37="Non-endemic",0,IF(COUNTRY_INFO!$H11=1,COUNTRY_INFO!G11,0))) -> 0 | G11: 0 | H11: =IF(INTRO!$E$39="Non-endemic",IF(INTRO!$E$37="Non-endemic","Not required",COUNTRY_INFO!Q11),"Treat with IVM") -> Treat with IVM | I11: =IF(H11=1,IF(ALB_MBD!$J11<>" ",$G11-ALB_MBD!$J11,$G11),0) -> 0 | J11: 0 | L11: 0 | M11: 0
A12: =IF(INTRO!$E$39<>"Non-endemic", " ", IF(INTRO!$E$37="Non-endemic"," ", IF(COUNTRY_INFO!A12=0," ",COUNTRY_INFO!A12))) ->  | B12: =IF(INTRO!$E$39<>"Non-endemic", " ", IF(INTRO!$E$37="Non-endemic"," ", IF(COUNTRY_INFO!B12=0," ",COUNTRY_INFO!B12))) ->  | C12: =IF(INTRO!$E$39<>"Non-endemic", " ", IF(INTRO!$E$37="Non-endemic"," ", IF(COUNTRY_INFO!C12=0," ",COUNTRY_INFO!C12))) ->  | D12: =IF(INTRO!$E$39<>"Non-endemic", 0, IF(INTRO!$E$37="Non-endemic",0,IF(COUNTRY_INFO!$H12=1,COUNTRY_INFO!E12,0))) -> 0 | E12: =IF(INTRO!$E$39<>"Non-endemic", 0, IF(INTRO!$E$37="Non-endemic",0,IF(COUNTRY_INFO!$H12=1,COUNTRY_INFO!F12,0))) -> 0 | F12: =IF(INTRO!$E$39<>"Non-endemic", 0, IF(INTRO!$E$37="Non-endemic",0,IF(COUNTRY_INFO!$H12=1,COUNTRY_INFO!G12,0))) -> 0 | G12: 0 | H12: =IF(INTRO!$E$39="Non-endemic",IF(INTRO!$E$37="Non-endemic","Not required",COUNTRY_INFO!Q12),"Treat with IVM") -> Treat with IVM | I12: =IF(H12=1,IF(ALB_MBD!$J12<>" ",$G12-ALB_MBD!$J12,$G12),0) -> 0 | J12: 0 | L12: 0 | M12: 0
A13: =IF(INTRO!$E$39<>"Non-endemic", " ", IF(INTRO!$E$37="Non-endemic"," ", IF(COUNTRY_INFO!A13=0," ",COUNTRY_INFO!A13))) ->  | B13: =IF(INTRO!$E$39<>"Non-endemic", " ", IF(INTRO!$E$37="Non-endemic"," ", IF(COUNTRY_INFO!B13=0," ",COUNTRY_INFO!B13))) ->  | C13: =IF(INTRO!$E$39<>"Non-endemic", " ", IF(INTRO!$E$37="Non-endemic"," ", IF(COUNTRY_INFO!C13=0," ",COUNTRY_INFO!C13))) ->  | D13: =IF(INTRO!$E$39<>"Non-endemic", 0, IF(INTRO!$E$37="Non-endemic",0,IF(COUNTRY_INFO!$H13=1,COUNTRY_INFO!E13,0))) -> 0 | E13: =IF(INTRO!$E$39<>"Non-endemic", 0, IF(INTRO!$E$37="Non-endemic",0,IF(COUNTRY_INFO!$H13=1,COUNTRY_INFO!F13,0))) -> 0 | F13: =IF(INTRO!$E$39<>"Non-endemic", 0, IF(INTRO!$E$37="Non-endemic",0,IF(COUNTRY_INFO!$H13=1,COUNTRY_INFO!G13,0))) -> 0 | G13: 0 | H13: =IF(INTRO!$E$39="Non-endemic",IF(INTRO!$E$37="Non-endemic","Not required",COUNTRY_INFO!Q13),"Treat with IVM") -> Treat with IVM | I13: =IF(H13=1,IF(ALB_MBD!$J13<>" ",$G13-ALB_MBD!$J13,$G13),0) -> 0 | J13: 0 | L13: 0 | M13: 0
A14: =IF(INTRO!$E$39<>"Non-endemic", " ", IF(INTRO!$E$37="Non-endemic"," ", IF(COUNTRY_INFO!A14=0," ",COUNTRY_INFO!A14))) ->  | B14: =IF(INTRO!$E$39<>"Non-endemic", " ", IF(INTRO!$E$37="Non-endemic"," ", IF(COUNTRY_INFO!B14=0," ",COUNTRY_INFO!B14))) ->  | C14: =IF(INTRO!$E$39<>"Non-endemic", " ", IF(INTRO!$E$37="Non-endemic"," ", IF(COUNTRY_INFO!C14=0," ",COUNTRY_INFO!C14))) ->  | D14: =IF(INTRO!$E$39<>"Non-endemic", 0, IF(INTRO!$E$37="Non-endemic",0,IF(COUNTRY_INFO!$H14=1,COUNTRY_INFO!E14,0))) -> 0 | E14: =IF(INTRO!$E$39<>"Non-endemic", 0, IF(INTRO!$E$37="Non-endemic",0,IF(COUNTRY_INFO!$H14=1,COUNTRY_INFO!F14,0))) -> 0 | F14: =IF(INTRO!$E$39<>"Non-endemic", 0, IF(INTRO!$E$37="Non-endemic",0,IF(COUNTRY_INFO!$H14=1,COUNTRY_INFO!G14,0))) -> 0 | G14: 0 | H14: =IF(INTRO!$E$39="Non-endemic",IF(INTRO!$E$37="Non-endemic","Not required",COUNTRY_INFO!Q14),"Treat with IVM") -> Treat with IVM | I14: =IF(H14=1,IF(ALB_MBD!$J14<>" ",$G14-ALB_MBD!$J14,$G14),0) -> 0 | J14: 0 | L14: 0 | M14: 0
A15: =IF(INTRO!$E$39<>"Non-endemic", " ", IF(INTRO!$E$37="Non-endemic"," ", IF(COUNTRY_INFO!A15=0," ",COUNTRY_INFO!A15))) ->  | B15: =IF(INTRO!$E$39<>"Non-endemic", " ", IF(INTRO!$E$37="Non-endemic"," ", IF(COUNTRY_INFO!B15=0," ",COUNTRY_INFO!B15))) ->  | C15: =IF(INTRO!$E$39<>"Non-endemic", " ", IF(INTRO!$E$37="Non-endemic"," ", IF(COUNTRY_INFO!C15=0," ",COUNTRY_INFO!C15))) ->  | D15: =IF(INTRO!$E$39<>"Non-endemic", 0, IF(INTRO!$E$37="Non-endemic",0,IF(COUNTRY_INFO!$H15=1,COUNTRY_INFO!E15,0))) -> 0 | E15: =IF(INTRO!$E$39<>"Non-endemic", 0, IF(INTRO!$E$37="Non-endemic",0,IF(COUNTRY_INFO!$H15=1,COUNTRY_INFO!F15,0))) -> 0 | F15: =IF(INTRO!$E$39<>"Non-endemic", 0, IF(INTRO!$E$37="Non-endemic",0,IF(COUNTRY_INFO!$H15=1,COUNTRY_INFO!G15,0))) -> 0 | G15: 0 | H15: =IF(INTRO!$E$39="Non-endemic",IF(INTRO!$E$37="Non-endemic","Not required",COUNTRY_INFO!Q15),"Treat with IVM") -> Treat with IVM | I15: =IF(H15=1,IF(ALB_MBD!$J15<>" ",$G15-ALB_MBD!$J15,$G15),0) -> 0 | J15: 0 | L15: 0 | M15: 0
A16: =IF(INTRO!$E$39<>"Non-endemic", " ", IF(INTRO!$E$37="Non-endemic"," ", IF(COUNTRY_INFO!A16=0," ",COUNTRY_INFO!A16))) ->  | B16: =IF(INTRO!$E$39<>"Non-endemic", " ", IF(INTRO!$E$37="Non-endemic"," ", IF(COUNTRY_INFO!B16=0," ",COUNTRY_INFO!B16))) ->  | C16: =IF(INTRO!$E$39<>"Non-endemic", " ", IF(INTRO!$E$37="Non-endemic"," ", IF(COUNTRY_INFO!C16=0," ",COUNTRY_INFO!C16))) ->  | D16: =IF(INTRO!$E$39<>"Non-endemic", 0, IF(INTRO!$E$37="Non-endemic",0,IF(COUNTRY_INFO!$H16=1,COUNTRY_INFO!E16,0))) -> 0 | E16: =IF(INTRO!$E$39<>"Non-endemic", 0, IF(INTRO!$E$37="Non-endemic",0,IF(COUNTRY_INFO!$H16=1,COUNTRY_INFO!F16,0))) -> 0 | F16: =IF(INTRO!$E$39<>"Non-endemic", 0, IF(INTRO!$E$37="Non-endemic",0,IF(COUNTRY_INFO!$H16=1,COUNTRY_INFO!G16,0))) -> 0 | G16: 0 | H16: =IF(INTRO!$E$39="Non-endemic",IF(INTRO!$E$37="Non-endemic","Not required",COUNTRY_INFO!Q16),"Treat with IVM") -> Treat with IVM | I16: =IF(H16=1,IF(ALB_MBD!$J16<>" ",$G16-ALB_MBD!$J16,$G16),0) -> 0 | J16: 0 | L16: 0 | M16: 0
A17: =IF(INTRO!$E$39<>"Non-endemic", " ", IF(INTRO!$E$37="Non-endemic"," ", IF(COUNTRY_INFO!A17=0," ",COUNTRY_INFO!A17))) ->  | B17: =IF(INTRO!$E$39<>"Non-endemic", " ", IF(INTRO!$E$37="Non-endemic"," ", IF(COUNTRY_INFO!B17=0," ",COUNTRY_INFO!B17))) ->  | C17: =IF(INTRO!$E$39<>"Non-endemic", " ", IF(INTRO!$E$37="Non-endemic"," ", IF(COUNTRY_INFO!C17=0," ",COUNTRY_INFO!C17))) ->  | D17: =IF(INTRO!$E$39<>"Non-endemic", 0, IF(INTRO!$E$37="Non-endemic",0,IF(COUNTRY_INFO!$H17=1,COUNTRY_INFO!E17,0))) -> 0 | E17: =IF(INTRO!$E$39<>"Non-endemic", 0, IF(INTRO!$E$37="Non-endemic",0,IF(COUNTRY_INFO!$H17=1,COUNTRY_INFO!F17,0))) -> 0 | F17: =IF(INTRO!$E$39<>"Non-endemic", 0, IF(INTRO!$E$37="Non-endemic",0,IF(COUNTRY_INFO!$H17=1,COUNTRY_INFO!G17,0))) -> 0 | G17: 0 | H17: =IF(INTRO!$E$39="Non-endemic",IF(INTRO!$E$37="Non-endemic","Not required",COUNTRY_INFO!Q17),"Treat with IVM") -> Treat with IVM | I17: =IF(H17=1,IF(ALB_MBD!$J17<>" ",$G17-ALB_MBD!$J17,$G17),0) -> 0 | J17: 0 | L17: 0 | M17: 0
A18: =IF(INTRO!$E$39<>"Non-endemic", " ", IF(INTRO!$E$37="Non-endemic"," ", IF(COUNTRY_INFO!A18=0," ",COUNTRY_INFO!A18))) ->  | B18: =IF(INTRO!$E$39<>"Non-endemic", " ", IF(INTRO!$E$37="Non-endemic"," ", IF(COUNTRY_INFO!B18=0," ",COUNTRY_INFO!B18))) ->  | C18: =IF(INTRO!$E$39<>"Non-endemic", " ", IF(INTRO!$E$37="Non-endemic"," ", IF(COUNTRY_INFO!C18=0," ",COUNTRY_INFO!C18))) ->  | D18: =IF(INTRO!$E$39<>"Non-endemic", 0, IF(INTRO!$E$37="Non-endemic",0,IF(COUNTRY_INFO!$H18=1,COUNTRY_INFO!E18,0))) -> 0 | E18: =IF(INTRO!$E$39<>"Non-endemic", 0, IF(INTRO!$E$37="Non-endemic",0,IF(COUNTRY_INFO!$H18=1,COUNTRY_INFO!F18,0))) -> 0 | F18: =IF(INTRO!$E$39<>"Non-endemic", 0, IF(INTRO!$E$37="Non-endemic",0,IF(COUNTRY_INFO!$H18=1,COUNTRY_INFO!G18,0))) -> 0 | G18: 0 | H18: =IF(INTRO!$E$39="Non-endemic",IF(INTRO!$E$37="Non-endemic","Not required",COUNTRY_INFO!Q18),"Treat with IVM") -> Treat with IVM | I18: =IF(H18=1,IF(ALB_MBD!$J18<>" ",$G18-ALB_MBD!$J18,$G18),0) -> 0 | J18: 0 | L18: 0 | M18: 0
A19: =IF(INTRO!$E$39<>"Non-endemic", " ", IF(INTRO!$E$37="Non-endemic"," ", IF(COUNTRY_INFO!A19=0," ",COUNTRY_INFO!A19))) ->  | B19: =IF(INTRO!$E$39<>"Non-endemic", " ", IF(INTRO!$E$37="Non-endemic"," ", IF(COUNTRY_INFO!B19=0," ",COUNTRY_INFO!B19))) ->  | C19: =IF(INTRO!$E$39<>"Non-endemic", " ", IF(INTRO!$E$37="Non-endemic"," ", IF(COUNTRY_INFO!C19=0," ",COUNTRY_INFO!C19))) ->  | D19: =IF(INTRO!$E$39<>"Non-endemic", 0, IF(INTRO!$E$37="Non-endemic",0,IF(COUNTRY_INFO!$H19=1,COUNTRY_INFO!E19,0))) -> 0 | E19: =IF(INTRO!$E$39<>"Non-endemic", 0, IF(INTRO!$E$37="Non-endemic",0,IF(COUNTRY_INFO!$H19=1,COUNTRY_INFO!F19,0))) -> 0 | F19: =IF(INTRO!$E$39<>"Non-endemic", 0, IF(INTRO!$E$37="Non-endemic",0,IF(COUNTRY_INFO!$H19=1,COUNTRY_INFO!G19,0))) -> 0 | G19: 0 | H19: =IF(INTRO!$E$39="Non-endemic",IF(INTRO!$E$37="Non-endemic","Not required",COUNTRY_INFO!Q19),"Treat with IVM") -> Treat with IVM | I19: =IF(H19=1,IF(ALB_MBD!$J19<>" ",$G19-ALB_MBD!$J19,$G19),0) -> 0 | J19: 0 | L19: 0 | M19: 0
A20: =IF(INTRO!$E$39<>"Non-endemic", " ", IF(INTRO!$E$37="Non-endemic"," ", IF(COUNTRY_INFO!A20=0," ",COUNTRY_INFO!A20))) ->  | B20: =IF(INTRO!$E$39<>"Non-endemic", " ", IF(INTRO!$E$37="Non-endemic"," ", IF(COUNTRY_INFO!B20=0," ",COUNTRY_INFO!B20))) ->  | C20: =IF(INTRO!$E$39<>"Non-endemic", " ", IF(INTRO!$E$37="Non-endemic"," ", IF(COUNTRY_INFO!C20=0," ",COUNTRY_INFO!C20))) ->  | D20: =IF(INTRO!$E$39<>"Non-endemic", 0, IF(INTRO!$E$37="Non-endemic",0,IF(COUNTRY_INFO!$H20=1,COUNTRY_INFO!E20,0))) -> 0 | E20: =IF(INTRO!$E$39<>"Non-endemic", 0, IF(INTRO!$E$37="Non-endemic",0,IF(COUNTRY_INFO!$H20=1,COUNTRY_INFO!F20,0))) -> 0 | F20: =IF(INTRO!$E$39<>"Non-endemic", 0, IF(INTRO!$E$37="Non-endemic",0,IF(COUNTRY_INFO!$H20=1,COUNTRY_INFO!G20,0))) -> 0 | G20: 0 | H20: =IF(INTRO!$E$39="Non-endemic",IF(INTRO!$E$37="Non-endemic","Not required",COUNTRY_INFO!Q20),"Treat with IVM") -> Treat with IVM | I20: =IF(H20=1,IF(ALB_MBD!$J20<>" ",$G20-ALB_MBD!$J20,$G20),0) -> 0 | J20: 0 | L20: 0 | M20: 0
A21: =IF(INTRO!$E$39<>"Non-endemic", " ", IF(INTRO!$E$37="Non-endemic"," ", IF(COUNTRY_INFO!A21=0," ",COUNTRY_INFO!A21))) ->  | B21: =IF(INTRO!$E$39<>"Non-endemic", " ", IF(INTRO!$E$37="Non-endemic"," ", IF(COUNTRY_INFO!B21=0," ",COUNTRY_INFO!B21))) ->  | C21: =IF(INTRO!$E$39<>"Non-endemic", " ", IF(INTRO!$E$37="Non-endemic"," ", IF(COUNTRY_INFO!C21=0," ",COUNTRY_INFO!C21))) ->  | D21: =IF(INTRO!$E$39<>"Non-endemic", 0, IF(INTRO!$E$37="Non-endemic",0,IF(COUNTRY_INFO!$H21=1,COUNTRY_INFO!E21,0))) -> 0 | E21: =IF(INTRO!$E$39<>"Non-endemic", 0, IF(INTRO!$E$37="Non-endemic",0,IF(COUNTRY_INFO!$H21=1,COUNTRY_INFO!F21,0))) -> 0 | F21: =IF(INTRO!$E$39<>"Non-endemic", 0, IF(INTRO!$E$37="Non-endemic",0,IF(COUNTRY_INFO!$H21=1,COUNTRY_INFO!G21,0))) -> 0 | G21: 0 | H21: =IF(INTRO!$E$39="Non-endemic",IF(INTRO!$E$37="Non-endemic","Not required",COUNTRY_INFO!Q21),"Treat with IVM") -> Treat with IVM | I21: =IF(H21=1,IF(ALB_MBD!$J21<>" ",$G21-ALB_MBD!$J21,$G21),0) -> 0 | J21: 0 | L21: 0 | M21: 0
A22: =IF(INTRO!$E$39<>"Non-endemic", " ", IF(INTRO!$E$37="Non-endemic"," ", IF(COUNTRY_INFO!A22=0," ",COUNTRY_INFO!A22))) ->  | B22: =IF(INTRO!$E$39<>"Non-endemic", " ", IF(INTRO!$E$37="Non-endemic"," ", IF(COUNTRY_INFO!B22=0," ",COUNTRY_INFO!B22))) ->  | C22: =IF(INTRO!$E$39<>"Non-endemic", " ", IF(INTRO!$E$37="Non-endemic"," ", IF(COUNTRY_INFO!C22=0," ",COUNTRY_INFO!C22))) ->  | D22: =IF(INTRO!$E$39<>"Non-endemic", 0, IF(INTRO!$E$37="Non-endemic",0,IF(COUNTRY_INFO!$H22=1,COUNTRY_INFO!E22,0))) -> 0 | E22: =IF(INTRO!$E$39<>"Non-endemic", 0, IF(INTRO!$E$37="Non-endemic",0,IF(COUNTRY_INFO!$H22=1,COUNTRY_INFO!F22,0))) -> 0 | F22: =IF(INTRO!$E$39<>"Non-endemic", 0, IF(INTRO!$E$37="Non-endemic",0,IF(COUNTRY_INFO!$H22=1,COUNTRY_INFO!G22,0))) -> 0 | G22: 0 | H22: =IF(INTRO!$E$39="Non-endemic",IF(INTRO!$E$37="Non-endemic","Not required",COUNTRY_INFO!Q22),"Treat with IVM") -> Treat with IVM | I22: =IF(H22=1,IF(ALB_MBD!$J22<>" ",$G22-ALB_MBD!$J22,$G22),0) -> 0 | J22: 0 | L22: 0 | M22: 0
A23: =IF(INTRO!$E$39<>"Non-endemic", " ", IF(INTRO!$E$37="Non-endemic"," ", IF(COUNTRY_INFO!A23=0," ",COUNTRY_INFO!A23))) ->  | B23: =IF(INTRO!$E$39<>"Non-endemic", " ", IF(INTRO!$E$37="Non-endemic"," ", IF(COUNTRY_INFO!B23=0," ",COUNTRY_INFO!B23))) ->  | C23: =IF(INTRO!$E$39<>"Non-endemic", " ", IF(INTRO!$E$37="Non-endemic"," ", IF(COUNTRY_INFO!C23=0," ",COUNTRY_INFO!C23))) ->  | D23: =IF(INTRO!$E$39<>"Non-endemic", 0, IF(INTRO!$E$37="Non-endemic",0,IF(COUNTRY_INFO!$H23=1,COUNTRY_INFO!E23,0))) -> 0 | E23: =IF(INTRO!$E$39<>"Non-endemic", 0, IF(INTRO!$E$37="Non-endemic",0,IF(COUNTRY_INFO!$H23=1,COUNTRY_INFO!F23,0))) -> 0 | F23: =IF(INTRO!$E$39<>"Non-endemic", 0, IF(INTRO!$E$37="Non-endemic",0,IF(COUNTRY_INFO!$H23=1,COUNTRY_INFO!G23,0))) -> 0 | G23: 0 | H23: =IF(INTRO!$E$39="Non-endemic",IF(INTRO!$E$37="Non-endemic","Not required",COUNTRY_INFO!Q23),"Treat with IVM") -> Treat with IVM | I23: =IF(H23=1,IF(ALB_MBD!$J23<>" ",$G23-ALB_MBD!$J23,$G23),0) -> 0 | J23: 0 | L23: 0 | M23: 0
A24: =IF(INTRO!$E$39<>"Non-endemic", " ", IF(INTRO!$E$37="Non-endemic"," ", IF(COUNTRY_INFO!A24=0," ",COUNTRY_INFO!A24))) ->  | B24: =IF(INTRO!$E$39<>"Non-endemic", " ", IF(INTRO!$E$37="Non-endemic"," ", IF(COUNTRY_INFO!B24=0," ",COUNTRY_INFO!B24))) ->  | C24: =IF(INTRO!$E$39<>"Non-endemic", " ", IF(INTRO!$E$37="Non-endemic"," ", IF(COUNTRY_INFO!C24=0," ",COUNTRY_INFO!C24))) ->  | D24: =IF(INTRO!$E$39<>"Non-endemic", 0, IF(INTRO!$E$37="Non-endemic",0,IF(COUNTRY_INFO!$H24=1,COUNTRY_INFO!E24,0))) -> 0 | E24: =IF(INTRO!$E$39<>"Non-endemic", 0, IF(INTRO!$E$37="Non-endemic",0,IF(COUNTRY_INFO!$H24=1,COUNTRY_INFO!F24,0))) -> 0 | F24: =IF(INTRO!$E$39<>"Non-endemic", 0, IF(INTRO!$E$37="Non-endemic",0,IF(COUNTRY_INFO!$H24=1,COUNTRY_INFO!G24,0))) -> 0 | G24: 0 | H24: =IF(INTRO!$E$39="Non-endemic",IF(INTRO!$E$37="Non-endemic","Not required",COUNTRY_INFO!Q24),"Treat with IVM") -> Treat with IVM | I24: =IF(H24=1,IF(ALB_MBD!$J24<>" ",$G24-ALB_MBD!$J24,$G24),0) -> 0 | J24: 0 | L24: 0 | M24: 0
A25: =IF(INTRO!$E$39<>"Non-endemic", " ", IF(INTRO!$E$37="Non-endemic"," ", IF(COUNTRY_INFO!A25=0," ",COUNTRY_INFO!A25))) ->  | B25: =IF(INTRO!$E$39<>"Non-endemic", " ", IF(INTRO!$E$37="Non-endemic"," ", IF(COUNTRY_INFO!B25=0," ",COUNTRY_INFO!B25))) ->  | C25: =IF(INTRO!$E$39<>"Non-endemic", " ", IF(INTRO!$E$37="Non-endemic"," ", IF(COUNTRY_INFO!C25=0," ",COUNTRY_INFO!C25))) ->  | D25: =IF(INTRO!$E$39<>"Non-endemic", 0, IF(INTRO!$E$37="Non-endemic",0,IF(COUNTRY_INFO!$H25=1,COUNTRY_INFO!E25,0))) -> 0 | E25: =IF(INTRO!$E$39<>"Non-endemic", 0, IF(INTRO!$E$37="Non-endemic",0,IF(COUNTRY_INFO!$H25=1,COUNTRY_INFO!F25,0))) -> 0 | F25: =IF(INTRO!$E$39<>"Non-endemic", 0, IF(INTRO!$E$37="Non-endemic",0,IF(COUNTRY_INFO!$H25=1,COUNTRY_INFO!G25,0))) -> 0 | G25: 0 | H25: =IF(INTRO!$E$39="Non-endemic",IF(INTRO!$E$37="Non-endemic","Not required",COUNTRY_INFO!Q25),"Treat with IVM") -> Treat with IVM | I25: =IF(H25=1,IF(ALB_MBD!$J25<>" ",$G25-ALB_MBD!$J25,$G25),0) -> 0 | J25: 0 | L25: 0 | M25: 0
A26: =IF(INTRO!$E$39<>"Non-endemic", " ", IF(INTRO!$E$37="Non-endemic"," ", IF(COUNTRY_INFO!A26=0," ",COUNTRY_INFO!A26))) ->  | B26: =IF(INTRO!$E$39<>"Non-endemic", " ", IF(INTRO!$E$37="Non-endemic"," ", IF(COUNTRY_INFO!B26=0," ",COUNTRY_INFO!B26))) ->  | C26: =IF(INTRO!$E$39<>"Non-endemic", " ", IF(INTRO!$E$37="Non-endemic"," ", IF(COUNTRY_INFO!C26=0," ",COUNTRY_INFO!C26))) ->  | D26: =IF(INTRO!$E$39<>"Non-endemic", 0, IF(INTRO!$E$37="Non-endemic",0,IF(COUNTRY_INFO!$H26=1,COUNTRY_INFO!E26,0))) -> 0 | E26: =IF(INTRO!$E$39<>"Non-endemic", 0, IF(INTRO!$E$37="Non-endemic",0,IF(COUNTRY_INFO!$H26=1,COUNTRY_INFO!F26,0))) -> 0 | F26: =IF(INTRO!$E$39<>"Non-endemic", 0, IF(INTRO!$E$37="Non-endemic",0,IF(COUNTRY_INFO!$H26=1,COUNTRY_INFO!G26,0))) -> 0 | G26: 0 | H26: =IF(INTRO!$E$39="Non-endemic",IF(INTRO!$E$37="Non-endemic","Not required",COUNTRY_INFO!Q26),"Treat with IVM") -> Treat with IVM | I26: =IF(H26=1,IF(ALB_MBD!$J26<>" ",$G26-ALB_MBD!$J26,$G26),0) -> 0 | J26: 0 | L26: 0 | M26: 0
A27: =IF(INTRO!$E$39<>"Non-endemic", " ", IF(INTRO!$E$37="Non-endemic"," ", IF(COUNTRY_INFO!A27=0," ",COUNTRY_INFO!A27))) ->  | B27: =IF(INTRO!$E$39<>"Non-endemic", " ", IF(INTRO!$E$37="Non-endemic"," ", IF(COUNTRY_INFO!B27=0," ",COUNTRY_INFO!B27))) ->  | C27: =IF(INTRO!$E$39<>"Non-endemic", " ", IF(INTRO!$E$37="Non-endemic"," ", IF(COUNTRY_INFO!C27=0," ",COUNTRY_INFO!C27))) ->  | D27: =IF(INTRO!$E$39<>"Non-endemic", 0, IF(INTRO!$E$37="Non-endemic",0,IF(COUNTRY_INFO!$H27=1,COUNTRY_INFO!E27,0))) -> 0 | E27: =IF(INTRO!$E$39<>"Non-endemic", 0, IF(INTRO!$E$37="Non-endemic",0,IF(COUNTRY_INFO!$H27=1,COUNTRY_INFO!F27,0))) -> 0 | F27: =IF(INTRO!$E$39<>"Non-endemic", 0, IF(INTRO!$E$37="Non-endemic",0,IF(COUNTRY_INFO!$H27=1,COUNTRY_INFO!G27,0))) -> 0 | G27: 0 | H27: =IF(INTRO!$E$39="Non-endemic",IF(INTRO!$E$37="Non-endemic","Not required",COUNTRY_INFO!Q27),"Treat with IVM") -> Treat with IVM | I27: =IF(H27=1,IF(ALB_MBD!$J27<>" ",$G27-ALB_MBD!$J27,$G27),0) -> 0 | J27: 0 | L27: 0 | M27: 0
A28: =IF(INTRO!$E$39<>"Non-endemic", " ", IF(INTRO!$E$37="Non-endemic"," ", IF(COUNTRY_INFO!A28=0," ",COUNTRY_INFO!A28))) ->  | B28: =IF(INTRO!$E$39<>"Non-endemic", " ", IF(INTRO!$E$37="Non-endemic"," ", IF(COUNTRY_INFO!B28=0," ",COUNTRY_INFO!B28))) ->  | C28: =IF(INTRO!$E$39<>"Non-endemic", " ", IF(INTRO!$E$37="Non-endemic"," ", IF(COUNTRY_INFO!C28=0," ",COUNTRY_INFO!C28))) ->  | D28: =IF(INTRO!$E$39<>"Non-endemic", 0, IF(INTRO!$E$37="Non-endemic",0,IF(COUNTRY_INFO!$H28=1,COUNTRY_INFO!E28,0))) -> 0 | E28: =IF(INTRO!$E$39<>"Non-endemic", 0, IF(INTRO!$E$37="Non-endemic",0,IF(COUNTRY_INFO!$H28=1,COUNTRY_INFO!F28,0))) -> 0 | F28: =IF(INTRO!$E$39<>"Non-endemic", 0, IF(INTRO!$E$37="Non-endemic",0,IF(COUNTRY_INFO!$H28=1,COUNTRY_INFO!G28,0))) -> 0 | G28: 0 | H28: =IF(INTRO!$E$39="Non-endemic",IF(INTRO!$E$37="Non-endemic","Not required",COUNTRY_INFO!Q28),"Treat with IVM") -> Treat with IVM | I28: =IF(H28=1,IF(ALB_MBD!$J28<>" ",$G28-ALB_MBD!$J28,$G28),0) -> 0 | J28: 0 | L28: 0 | M28: 0
A29: =IF(INTRO!$E$39<>"Non-endemic", " ", IF(INTRO!$E$37="Non-endemic"," ", IF(COUNTRY_INFO!A29=0," ",COUNTRY_INFO!A29))) ->  | B29: =IF(INTRO!$E$39<>"Non-endemic", " ", IF(INTRO!$E$37="Non-endemic"," ", IF(COUNTRY_INFO!B29=0," ",COUNTRY_INFO!B29))) ->  | C29: =IF(INTRO!$E$39<>"Non-endemic", " ", IF(INTRO!$E$37="Non-endemic"," ", IF(COUNTRY_INFO!C29=0," ",COUNTRY_INFO!C29))) ->  | D29: =IF(INTRO!$E$39<>"Non-endemic", 0, IF(INTRO!$E$37="Non-endemic",0,IF(COUNTRY_INFO!$H29=1,COUNTRY_INFO!E29,0))) -> 0 | E29: =IF(INTRO!$E$39<>"Non-endemic", 0, IF(INTRO!$E$37="Non-endemic",0,IF(COUNTRY_INFO!$H29=1,COUNTRY_INFO!F29,0))) -> 0 | F29: =IF(INTRO!$E$39<>"Non-endemic", 0, IF(INTRO!$E$37="Non-endemic",0,IF(COUNTRY_INFO!$H29=1,COUNTRY_INFO!G29,0))) -> 0 | G29: 0 | H29: =IF(INTRO!$E$39="Non-endemic",IF(INTRO!$E$37="Non-endemic","Not required",COUNTRY_INFO!Q29),"Treat with IVM") -> Treat with IVM | I29: =IF(H29=1,IF(ALB_MBD!$J29<>" ",$G29-ALB_MBD!$J29,$G29),0) -> 0 | J29: 0 | L29: 0 | M29: 0
A30: =IF(INTRO!$E$39<>"Non-endemic", " ", IF(INTRO!$E$37="Non-endemic"," ", IF(COUNTRY_INFO!A30=0," ",COUNTRY_INFO!A30))) ->  | B30: =IF(INTRO!$E$39<>"Non-endemic", " ", IF(INTRO!$E$37="Non-endemic"," ", IF(COUNTRY_INFO!B30=0," ",COUNTRY_INFO!B30))) ->  | C30: =IF(INTRO!$E$39<>"Non-endemic", " ", IF(INTRO!$E$37="Non-endemic"," ", IF(COUNTRY_INFO!C30=0," ",COUNTRY_INFO!C30))) ->  | D30: =IF(INTRO!$E$39<>"Non-endemic", 0, IF(INTRO!$E$37="Non-endemic",0,IF(COUNTRY_INFO!$H30=1,COUNTRY_INFO!E30,0))) -> 0 | E30: =IF(INTRO!$E$39<>"Non-endemic", 0, IF(INTRO!$E$37="Non-endemic",0,IF(COUNTRY_INFO!$H30=1,COUNTRY_INFO!F30,0))) -> 0 | F30: =IF(INTRO!$E$39<>"Non-endemic", 0, IF(INTRO!$E$37="Non-endemic",0,IF(COUNTRY_INFO!$H30=1,COUNTRY_INFO!G30,0))) -> 0 | G30: 0 | H30: =IF(INTRO!$E$39="Non-endemic",IF(INTRO!$E$37="Non-endemic","Not required",COUNTRY_INFO!Q30),"Treat with IVM") -> Treat with IVM | I30: =IF(H30=1,IF(ALB_MBD!$J30<>" ",$G30-ALB_MBD!$J30,$G30),0) -> 0 | J30: 0 | L30: 0 | M30: 0
A31: =IF(INTRO!$E$39<>"Non-endemic", " ", IF(INTRO!$E$37="Non-endemic"," ", IF(COUNTRY_INFO!A31=0," ",COUNTRY_INFO!A31))) ->  | B31: =IF(INTRO!$E$39<>"Non-endemic", " ", IF(INTRO!$E$37="Non-endemic"," ", IF(COUNTRY_INFO!B31=0," ",COUNTRY_INFO!B31))) ->  | C31: =IF(INTRO!$E$39<>"Non-endemic", " ", IF(INTRO!$E$37="Non-endemic"," ", IF(COUNTRY_INFO!C31=0," ",COUNTRY_INFO!C31))) ->  | D31: =IF(INTRO!$E$39<>"Non-endemic", 0, IF(INTRO!$E$37="Non-endemic",0,IF(COUNTRY_INFO!$H31=1,COUNTRY_INFO!E31,0))) -> 0 | E31: =IF(INTRO!$E$39<>"Non-endemic", 0, IF(INTRO!$E$37="Non-endemic",0,IF(COUNTRY_INFO!$H31=1,COUNTRY_INFO!F31,0))) -> 0 | F31: =IF(INTRO!$E$39<>"Non-endemic", 0, IF(INTRO!$E$37="Non-endemic",0,IF(COUNTRY_INFO!$H31=1,COUNTRY_INFO!G31,0))) -> 0 | G31: 0 | H31: =IF(INTRO!$E$39="Non-endemic",IF(INTRO!$E$37="Non-endemic","Not required",COUNTRY_INFO!Q31),"Treat with IVM") -> Treat with IVM | I31: =IF(H31=1,IF(ALB_MBD!$J31<>" ",$G31-ALB_MBD!$J31,$G31),0) -> 0 | J31: 0 | L31: 0 | M31: 0
A32: =IF(INTRO!$E$39<>"Non-endemic", " ", IF(INTRO!$E$37="Non-endemic"," ", IF(COUNTRY_INFO!A32=0," ",COUNTRY_INFO!A32))) ->  | B32: =IF(INTRO!$E$39<>"Non-endemic", " ", IF(INTRO!$E$37="Non-endemic"," ", IF(COUNTRY_INFO!B32=0," ",COUNTRY_INFO!B32))) ->  | C32: =IF(INTRO!$E$39<>"Non-endemic", " ", IF(INTRO!$E$37="Non-endemic"," ", IF(COUNTRY_INFO!C32=0," ",COUNTRY_INFO!C32))) ->  | D32: =IF(INTRO!$E$39<>"Non-endemic", 0, IF(INTRO!$E$37="Non-endemic",0,IF(COUNTRY_INFO!$H32=1,COUNTRY_INFO!E32,0))) -> 0 | E32: =IF(INTRO!$E$39<>"Non-endemic", 0, IF(INTRO!$E$37="Non-endemic",0,IF(COUNTRY_INFO!$H32=1,COUNTRY_INFO!F32,0))) -> 0 | F32: =IF(INTRO!$E$39<>"Non-endemic", 0, IF(INTRO!$E$37="Non-endemic",0,IF(COUNTRY_INFO!$H32=1,COUNTRY_INFO!G32,0))) -> 0 | G32: 0 | H32: =IF(INTRO!$E$39="Non-endemic",IF(INTRO!$E$37="Non-endemic","Not required",COUNTRY_INFO!Q32),"Treat with IVM") -> Treat with IVM | I32: =IF(H32=1,IF(ALB_MBD!$J32<>" ",$G32-ALB_MBD!$J32,$G32),0) -> 0 | J32: 0 | L32: 0 | M32: 0
A33: =IF(INTRO!$E$39<>"Non-endemic", " ", IF(INTRO!$E$37="Non-endemic"," ", IF(COUNTRY_INFO!A33=0," ",COUNTRY_INFO!A33))) ->  | B33: =IF(INTRO!$E$39<>"Non-endemic", " ", IF(INTRO!$E$37="Non-endemic"," ", IF(COUNTRY_INFO!B33=0," ",COUNTRY_INFO!B33))) ->  | C33: =IF(INTRO!$E$39<>"Non-endemic", " ", IF(INTRO!$E$37="Non-endemic"," ", IF(COUNTRY_INFO!C33=0," ",COUNTRY_INFO!C33))) ->  | D33: =IF(INTRO!$E$39<>"Non-endemic", 0, IF(INTRO!$E$37="Non-endemic",0,IF(COUNTRY_INFO!$H33=1,COUNTRY_INFO!E33,0))) -> 0 | E33: =IF(INTRO!$E$39<>"Non-endemic", 0, IF(INTRO!$E$37="Non-endemic",0,IF(COUNTRY_INFO!$H33=1,COUNTRY_INFO!F33,0))) -> 0 | F33: =IF(INTRO!$E$39<>"Non-endemic", 0, IF(INTRO!$E$37="Non-endemic",0,IF(COUNTRY_INFO!$H33=1,COUNTRY_INFO!G33,0))) -> 0 | G33: 0 | H33: =IF(INTRO!$E$39="Non-endemic",IF(INTRO!$E$37="Non-endemic","Not required",COUNTRY_INFO!Q33),"Treat with IVM") -> Treat with IVM | I33: =IF(H33=1,IF(ALB_MBD!$J33<>" ",$G33-ALB_MBD!$J33,$G33),0) -> 0 | J33: 0 | L33: 0 | M33: 0
A34: =IF(INTRO!$E$39<>"Non-endemic", " ", IF(INTRO!$E$37="Non-endemic"," ", IF(COUNTRY_INFO!A34=0," ",COUNTRY_INFO!A34))) ->  | B34: =IF(INTRO!$E$39<>"Non-endemic", " ", IF(INTRO!$E$37="Non-endemic"," ", IF(COUNTRY_INFO!B34=0," ",COUNTRY_INFO!B34))) ->  | C34: =IF(INTRO!$E$39<>"Non-endemic", " ", IF(INTRO!$E$37="Non-endemic"," ", IF(COUNTRY_INFO!C34=0," ",COUNTRY_INFO!C34))) ->  | D34: =IF(INTRO!$E$39<>"Non-endemic", 0, IF(INTRO!$E$37="Non-endemic",0,IF(COUNTRY_INFO!$H34=1,COUNTRY_INFO!E34,0))) -> 0 | E34: =IF(INTRO!$E$39<>"Non-endemic", 0, IF(INTRO!$E$37="Non-endemic",0,IF(COUNTRY_INFO!$H34=1,COUNTRY_INFO!F34,0))) -> 0 | F34: =IF(INTRO!$E$39<>"Non-endemic", 0, IF(INTRO!$E$37="Non-endemic",0,IF(COUNTRY_INFO!$H34=1,COUNTRY_INFO!G34,0))) -> 0 | G34: 0 | H34: =IF(INTRO!$E$39="Non-endemic",IF(INTRO!$E$37="Non-endemic","Not required",COUNTRY_INFO!Q34),"Treat with IVM") -> Treat with IVM | I34: =IF(H34=1,IF(ALB_MBD!$J34<>" ",$G34-ALB_MBD!$J34,$G34),0) -> 0 | J34: 0 | L34: 0 | M34: 0
A35: =IF(INTRO!$E$39<>"Non-endemic", " ", IF(INTRO!$E$37="Non-endemic"," ", IF(COUNTRY_INFO!A35=0," ",COUNTRY_INFO!A35))) ->  | B35: =IF(INTRO!$E$39<>"Non-endemic", " ", IF(INTRO!$E$37="Non-endemic"," ", IF(COUNTRY_INFO!B35=0," ",COUNTRY_INFO!B35))) ->  | C35: =IF(INTRO!$E$39<>"Non-endemic", " ", IF(INTRO!$E$37="Non-endemic"," ", IF(COUNTRY_INFO!C35=0," ",COUNTRY_INFO!C35))) ->  | D35: =IF(INTRO!$E$39<>"Non-endemic", 0, IF(INTRO!$E$37="Non-endemic",0,IF(COUNTRY_INFO!$H35=1,COUNTRY_INFO!E35,0))) -> 0 | E35: =IF(INTRO!$E$39<>"Non-endemic", 0, IF(INTRO!$E$37="Non-endemic",0,IF(COUNTRY_INFO!$H35=1,COUNTRY_INFO!F35,0))) -> 0 | F35: =IF(INTRO!$E$39<>"Non-endemic", 0, IF(INTRO!$E$37="Non-endemic",0,IF(COUNTRY_INFO!$H35=1,COUNTRY_INFO!G35,0))) -> 0 | G35: 0 | H35: =IF(INTRO!$E$39="Non-endemic",IF(INTRO!$E$37="Non-endemic","Not required",COUNTRY_INFO!Q35),"Treat with IVM") -> Treat with IVM | I35: =IF(H35=1,IF(ALB_MBD!$J35<>" ",$G35-ALB_MBD!$J35,$G35),0) -> 0 | J35: 0 | L35: 0 | M35: 0
A36: =IF(INTRO!$E$39<>"Non-endemic", " ", IF(INTRO!$E$37="Non-endemic"," ", IF(COUNTRY_INFO!A36=0," ",COUNTRY_INFO!A36))) ->  | B36: =IF(INTRO!$E$39<>"Non-endemic", " ", IF(INTRO!$E$37="Non-endemic"," ", IF(COUNTRY_INFO!B36=0," ",COUNTRY_INFO!B36))) ->  | C36: =IF(INTRO!$E$39<>"Non-endemic", " ", IF(INTRO!$E$37="Non-endemic"," ", IF(COUNTRY_INFO!C36=0," ",COUNTRY_INFO!C36))) ->  | D36: =IF(INTRO!$E$39<>"Non-endemic", 0, IF(INTRO!$E$37="Non-endemic",0,IF(COUNTRY_INFO!$H36=1,COUNTRY_INFO!E36,0))) -> 0 | E36: =IF(INTRO!$E$39<>"Non-endemic", 0, IF(INTRO!$E$37="Non-endemic",0,IF(COUNTRY_INFO!$H36=1,COUNTRY_INFO!F36,0))) -> 0 | F36: =IF(INTRO!$E$39<>"Non-endemic", 0, IF(INTRO!$E$37="Non-endemic",0,IF(COUNTRY_INFO!$H36=1,COUNTRY_INFO!G36,0))) -> 0 | G36: 0 | H36: =IF(INTRO!$E$39="Non-endemic",IF(INTRO!$E$37="Non-endemic","Not required",COUNTRY_INFO!Q36),"Treat with IVM") -> Treat with IVM | I36: =IF(H36=1,IF(ALB_MBD!$J36<>" ",$G36-ALB_MBD!$J36,$G36),0) -> 0 | J36: 0 | L36: 0 | M36: 0
A37: =IF(INTRO!$E$39<>"Non-endemic", " ", IF(INTRO!$E$37="Non-endemic"," ", IF(COUNTRY_INFO!A37=0," ",COUNTRY_INFO!A37))) ->  | B37: =IF(INTRO!$E$39<>"Non-endemic", " ", IF(INTRO!$E$37="Non-endemic"," ", IF(COUNTRY_INFO!B37=0," ",COUNTRY_INFO!B37))) ->  | C37: =IF(INTRO!$E$39<>"Non-endemic", " ", IF(INTRO!$E$37="Non-endemic"," ", IF(COUNTRY_INFO!C37=0," ",COUNTRY_INFO!C37))) ->  | D37: =IF(INTRO!$E$39<>"Non-endemic", 0, IF(INTRO!$E$37="Non-endemic",0,IF(COUNTRY_INFO!$H37=1,COUNTRY_INFO!E37,0))) -> 0 | E37: =IF(INTRO!$E$39<>"Non-endemic", 0, IF(INTRO!$E$37="Non-endemic",0,IF(COUNTRY_INFO!$H37=1,COUNTRY_INFO!F37,0))) -> 0 | F37: =IF(INTRO!$E$39<>"Non-endemic", 0, IF(INTRO!$E$37="Non-endemic",0,IF(COUNTRY_INFO!$H37=1,COUNTRY_INFO!G37,0))) -> 0 | G37: 0 | H37: =IF(INTRO!$E$39="Non-endemic",IF(INTRO!$E$37="Non-endemic","Not required",COUNTRY_INFO!Q37),"Treat with IVM") -> Treat with IVM | I37: =IF(H37=1,IF(ALB_MBD!$J37<>" ",$G37-ALB_MBD!$J37,$G37),0) -> 0 | J37: 0 | L37: 0 | M37: 0
A38: =IF(INTRO!$E$39<>"Non-endemic", " ", IF(INTRO!$E$37="Non-endemic"," ", IF(COUNTRY_INFO!A38=0," ",COUNTRY_INFO!A38))) ->  | B38: =IF(INTRO!$E$39<>"Non-endemic", " ", IF(INTRO!$E$37="Non-endemic"," ", IF(COUNTRY_INFO!B38=0," ",COUNTRY_INFO!B38))) ->  | C38: =IF(INTRO!$E$39<>"Non-endemic", " ", IF(INTRO!$E$37="Non-endemic"," ", IF(COUNTRY_INFO!C38=0," ",COUNTRY_INFO!C38))) ->  | D38: =IF(INTRO!$E$39<>"Non-endemic", 0, IF(INTRO!$E$37="Non-endemic",0,IF(COUNTRY_INFO!$H38=1,COUNTRY_INFO!E38,0))) -> 0 | E38: =IF(INTRO!$E$39<>"Non-endemic", 0, IF(INTRO!$E$37="Non-endemic",0,IF(COUNTRY_INFO!$H38=1,COUNTRY_INFO!F38,0))) -> 0 | F38: =IF(INTRO!$E$39<>"Non-endemic", 0, IF(INTRO!$E$37="Non-endemic",0,IF(COUNTRY_INFO!$H38=1,COUNTRY_INFO!G38,0))) -> 0 | G38: 0 | H38: =IF(INTRO!$E$39="Non-endemic",IF(INTRO!$E$37="Non-endemic","Not required",COUNTRY_INFO!Q38),"Treat with IVM") -> Treat with IVM | I38: =IF(H38=1,IF(ALB_MBD!$J38<>" ",$G38-ALB_MBD!$J38,$G38),0) -> 0 | J38: 0 | L38: 0 | M38: 0
A39: =IF(INTRO!$E$39<>"Non-endemic", " ", IF(INTRO!$E$37="Non-endemic"," ", IF(COUNTRY_INFO!A39=0," ",COUNTRY_INFO!A39))) ->  | B39: =IF(INTRO!$E$39<>"Non-endemic", " ", IF(INTRO!$E$37="Non-endemic"," ", IF(COUNTRY_INFO!B39=0," ",COUNTRY_INFO!B39))) ->  | C39: =IF(INTRO!$E$39<>"Non-endemic", " ", IF(INTRO!$E$37="Non-endemic"," ", IF(COUNTRY_INFO!C39=0," ",COUNTRY_INFO!C39))) ->  | D39: =IF(INTRO!$E$39<>"Non-endemic", 0, IF(INTRO!$E$37="Non-endemic",0,IF(COUNTRY_INFO!$H39=1,COUNTRY_INFO!E39,0))) -> 0 | E39: =IF(INTRO!$E$39<>"Non-endemic", 0, IF(INTRO!$E$37="Non-endemic",0,IF(COUNTRY_INFO!$H39=1,COUNTRY_INFO!F39,0))) -> 0 | F39: =IF(INTRO!$E$39<>"Non-endemic", 0, IF(INTRO!$E$37="Non-endemic",0,IF(COUNTRY_INFO!$H39=1,COUNTRY_INFO!G39,0))) -> 0 | G39: 0 | H39: =IF(INTRO!$E$39="Non-endemic",IF(INTRO!$E$37="Non-endemic","Not required",COUNTRY_INFO!Q39),"Treat with IVM") -> Treat with IVM | I39: =IF(H39=1,IF(ALB_MBD!$J39<>" ",$G39-ALB_MBD!$J39,$G39),0) -> 0 | J39: 0 | L39: 0 | M39: 0
A40: =IF(INTRO!$E$39<>"Non-endemic", " ", IF(INTRO!$E$37="Non-endemic"," ", IF(COUNTRY_INFO!A40=0," ",COUNTRY_INFO!A40))) ->  | B40: =IF(INTRO!$E$39<>"Non-endemic", " ", IF(INTRO!$E$37="Non-endemic"," ", IF(COUNTRY_INFO!B40=0," ",COUNTRY_INFO!B40))) ->  | C40: =IF(INTRO!$E$39<>"Non-endemic", " ", IF(INTRO!$E$37="Non-endemic"," ", IF(COUNTRY_INFO!C40=0," ",COUNTRY_INFO!C40))) ->  | D40: =IF(INTRO!$E$39<>"Non-endemic", 0, IF(INTRO!$E$37="Non-endemic",0,IF(COUNTRY_INFO!$H40=1,COUNTRY_INFO!E40,0))) -> 0 | E40: =IF(INTRO!$E$39<>"Non-endemic", 0, IF(INTRO!$E$37="Non-endemic",0,IF(COUNTRY_INFO!$H40=1,COUNTRY_INFO!F40,0))) -> 0 | F40: =IF(INTRO!$E$39<>"Non-endemic", 0, IF(INTRO!$E$37="Non-endemic",0,IF(COUNTRY_INFO!$H40=1,COUNTRY_INFO!G40,0))) -> 0 | G40: 0 | H40: =IF(INTRO!$E$39="Non-endemic",IF(INTRO!$E$37="Non-endemic","Not required",COUNTRY_INFO!Q40),"Treat with IVM") -> Treat with IVM | I40: =IF(H40=1,IF(ALB_MBD!$J40<>" ",$G40-ALB_MBD!$J40,$G40),0) -> 0 | J40: 0 | L40: 0 | M40: 0
A41: =IF(INTRO!$E$39<>"Non-endemic", " ", IF(INTRO!$E$37="Non-endemic"," ", IF(COUNTRY_INFO!A41=0," ",COUNTRY_INFO!A41))) ->  | B41: =IF(INTRO!$E$39<>"Non-endemic", " ", IF(INTRO!$E$37="Non-endemic"," ", IF(COUNTRY_INFO!B41=0," ",COUNTRY_INFO!B41))) ->  | C41: =IF(INTRO!$E$39<>"Non-endemic", " ", IF(INTRO!$E$37="Non-endemic"," ", IF(COUNTRY_INFO!C41=0," ",COUNTRY_INFO!C41))) ->  | D41: =IF(INTRO!$E$39<>"Non-endemic", 0, IF(INTRO!$E$37="Non-endemic",0,IF(COUNTRY_INFO!$H41=1,COUNTRY_INFO!E41,0))) -> 0 | E41: =IF(INTRO!$E$39<>"Non-endemic", 0, IF(INTRO!$E$37="Non-endemic",0,IF(COUNTRY_INFO!$H41=1,COUNTRY_INFO!F41,0))) -> 0 | F41: =IF(INTRO!$E$39<>"Non-endemic", 0, IF(INTRO!$E$37="Non-endemic",0,IF(COUNTRY_INFO!$H41=1,COUNTRY_INFO!G41,0))) -> 0 | G41: 0 | H41: =IF(INTRO!$E$39="Non-endemic",IF(INTRO!$E$37="Non-endemic","Not required",COUNTRY_INFO!Q41),"Treat with IVM") -> Treat with IVM | I41: =IF(H41=1,IF(ALB_MBD!$J41<>" ",$G41-ALB_MBD!$J41,$G41),0) -> 0 | J41: 0 | L41: 0 | M41: 0
A42: =IF(INTRO!$E$39<>"Non-endemic", " ", IF(INTRO!$E$37="Non-endemic"," ", IF(COUNTRY_INFO!A42=0," ",COUNTRY_INFO!A42))) ->  | B42: =IF(INTRO!$E$39<>"Non-endemic", " ", IF(INTRO!$E$37="Non-endemic"," ", IF(COUNTRY_INFO!B42=0," ",COUNTRY_INFO!B42))) ->  | C42: =IF(INTRO!$E$39<>"Non-endemic", " ", IF(INTRO!$E$37="Non-endemic"," ", IF(COUNTRY_INFO!C42=0," ",COUNTRY_INFO!C42))) ->  | D42: =IF(INTRO!$E$39<>"Non-endemic", 0, IF(INTRO!$E$37="Non-endemic",0,IF(COUNTRY_INFO!$H42=1,COUNTRY_INFO!E42,0))) -> 0 | E42: =IF(INTRO!$E$39<>"Non-endemic", 0, IF(INTRO!$E$37="Non-endemic",0,IF(COUNTRY_INFO!$H42=1,COUNTRY_INFO!F42,0))) -> 0 | F42: =IF(INTRO!$E$39<>"Non-endemic", 0, IF(INTRO!$E$37="Non-endemic",0,IF(COUNTRY_INFO!$H42=1,COUNTRY_INFO!G42,0))) -> 0 | G42: 0 | H42: =IF(INTRO!$E$39="Non-endemic",IF(INTRO!$E$37="Non-endemic","Not required",COUNTRY_INFO!Q42),"Treat with IVM") -> Treat with IVM | I42: =IF(H42=1,IF(ALB_MBD!$J42<>" ",$G42-ALB_MBD!$J42,$G42),0) -> 0 | J42: 0 | L42: 0 | M42: 0
A43: =IF(INTRO!$E$39<>"Non-endemic", " ", IF(INTRO!$E$37="Non-endemic"," ", IF(COUNTRY_INFO!A43=0," ",COUNTRY_INFO!A43))) ->  | B43: =IF(INTRO!$E$39<>"Non-endemic", " ", IF(INTRO!$E$37="Non-endemic"," ", IF(COUNTRY_INFO!B43=0," ",COUNTRY_INFO!B43))) ->  | C43: =IF(INTRO!$E$39<>"Non-endemic", " ", IF(INTRO!$E$37="Non-endemic"," ", IF(COUNTRY_INFO!C43=0," ",COUNTRY_INFO!C43))) ->  | D43: =IF(INTRO!$E$39<>"Non-endemic", 0, IF(INTRO!$E$37="Non-endemic",0,IF(COUNTRY_INFO!$H43=1,COUNTRY_INFO!E43,0))) -> 0 | E43: =IF(INTRO!$E$39<>"Non-endemic", 0, IF(INTRO!$E$37="Non-endemic",0,IF(COUNTRY_INFO!$H43=1,COUNTRY_INFO!F43,0))) -> 0 | F43: =IF(INTRO!$E$39<>"Non-endemic", 0, IF(INTRO!$E$37="Non-endemic",0,IF(COUNTRY_INFO!$H43=1,COUNTRY_INFO!G43,0))) -> 0 | G43: 0 | H43: =IF(INTRO!$E$39="Non-endemic",IF(INTRO!$E$37="Non-endemic","Not required",COUNTRY_INFO!Q43),"Treat with IVM") -> Treat with IVM | I43: =IF(H43=1,IF(ALB_MBD!$J43<>" ",$G43-ALB_MBD!$J43,$G43),0) -> 0 | J43: 0 | L43: 0 | M43: 0
A44: =IF(INTRO!$E$39<>"Non-endemic", " ", IF(INTRO!$E$37="Non-endemic"," ", IF(COUNTRY_INFO!A44=0," ",COUNTRY_INFO!A44))) ->  | B44: =IF(INTRO!$E$39<>"Non-endemic", " ", IF(INTRO!$E$37="Non-endemic"," ", IF(COUNTRY_INFO!B44=0," ",COUNTRY_INFO!B44))) ->  | C44: =IF(INTRO!$E$39<>"Non-endemic", " ", IF(INTRO!$E$37="Non-endemic"," ", IF(COUNTRY_INFO!C44=0," ",COUNTRY_INFO!C44))) ->  | D44: =IF(INTRO!$E$39<>"Non-endemic", 0, IF(INTRO!$E$37="Non-endemic",0,IF(COUNTRY_INFO!$H44=1,COUNTRY_INFO!E44,0))) -> 0 | E44: =IF(INTRO!$E$39<>"Non-endemic", 0, IF(INTRO!$E$37="Non-endemic",0,IF(COUNTRY_INFO!$H44=1,COUNTRY_INFO!F44,0))) -> 0 | F44: =IF(INTRO!$E$39<>"Non-endemic", 0, IF(INTRO!$E$37="Non-endemic",0,IF(COUNTRY_INFO!$H44=1,COUNTRY_INFO!G44,0))) -> 0 | G44: 0 | H44: =IF(INTRO!$E$39="Non-endemic",IF(INTRO!$E$37="Non-endemic","Not required",COUNTRY_INFO!Q44),"Treat with IVM") -> Treat with IVM | I44: =IF(H44=1,IF(ALB_MBD!$J44<>" ",$G44-ALB_MBD!$J44,$G44),0) -> 0 | J44: 0 | L44: 0 | M44: 0
A45: =IF(INTRO!$E$39<>"Non-endemic", " ", IF(INTRO!$E$37="Non-endemic"," ", IF(COUNTRY_INFO!A45=0," ",COUNTRY_INFO!A45))) ->  | B45: =IF(INTRO!$E$39<>"Non-endemic", " ", IF(INTRO!$E$37="Non-endemic"," ", IF(COUNTRY_INFO!B45=0," ",COUNTRY_INFO!B45))) ->  | C45: =IF(INTRO!$E$39<>"Non-endemic", " ", IF(INTRO!$E$37="Non-endemic"," ", IF(COUNTRY_INFO!C45=0," ",COUNTRY_INFO!C45))) ->  | D45: =IF(INTRO!$E$39<>"Non-endemic", 0, IF(INTRO!$E$37="Non-endemic",0,IF(COUNTRY_INFO!$H45=1,COUNTRY_INFO!E45,0))) -> 0 | E45: =IF(INTRO!$E$39<>"Non-endemic", 0, IF(INTRO!$E$37="Non-endemic",0,IF(COUNTRY_INFO!$H45=1,COUNTRY_INFO!F45,0))) -> 0 | F45: =IF(INTRO!$E$39<>"Non-endemic", 0, IF(INTRO!$E$37="Non-endemic",0,IF(COUNTRY_INFO!$H45=1,COUNTRY_INFO!G45,0))) -> 0 | G45: 0 | H45: =IF(INTRO!$E$39="Non-endemic",IF(INTRO!$E$37="Non-endemic","Not required",COUNTRY_INFO!Q45),"Treat with IVM") -> Treat with IVM | I45: =IF(H45=1,IF(ALB_MBD!$J45<>" ",$G45-ALB_MBD!$J45,$G45),0) -> 0 | J45: 0 | L45: 0 | M45: 0
A46: =IF(INTRO!$E$39<>"Non-endemic", " ", IF(INTRO!$E$37="Non-endemic"," ", IF(COUNTRY_INFO!A46=0," ",COUNTRY_INFO!A46))) ->  | B46: =IF(INTRO!$E$39<>"Non-endemic", " ", IF(INTRO!$E$37="Non-endemic"," ", IF(COUNTRY_INFO!B46=0," ",COUNTRY_INFO!B46))) ->  | C46: =IF(INTRO!$E$39<>"Non-endemic", " ", IF(INTRO!$E$37="Non-endemic"," ", IF(COUNTRY_INFO!C46=0," ",COUNTRY_INFO!C46))) ->  | D46: =IF(INTRO!$E$39<>"Non-endemic", 0, IF(INTRO!$E$37="Non-endemic",0,IF(COUNTRY_INFO!$H46=1,COUNTRY_INFO!E46,0))) -> 0 | E46: =IF(INTRO!$E$39<>"Non-endemic", 0, IF(INTRO!$E$37="Non-endemic",0,IF(COUNTRY_INFO!$H46=1,COUNTRY_INFO!F46,0))) -> 0 | F46: =IF(INTRO!$E$39<>"Non-endemic", 0, IF(INTRO!$E$37="Non-endemic",0,IF(COUNTRY_INFO!$H46=1,COUNTRY_INFO!G46,0))) -> 0 | G46: 0 | H46: =IF(INTRO!$E$39="Non-endemic",IF(INTRO!$E$37="Non-endemic","Not required",COUNTRY_INFO!Q46),"Treat with IVM") -> Treat with IVM | I46: =IF(H46=1,IF(ALB_MBD!$J46<>" ",$G46-ALB_MBD!$J46,$G46),0) -> 0 | J46: 0 | L46: 0 | M46: 0
A47: =IF(INTRO!$E$39<>"Non-endemic", " ", IF(INTRO!$E$37="Non-endemic"," ", IF(COUNTRY_INFO!A47=0," ",COUNTRY_INFO!A47))) ->  | B47: =IF(INTRO!$E$39<>"Non-endemic", " ", IF(INTRO!$E$37="Non-endemic"," ", IF(COUNTRY_INFO!B47=0," ",COUNTRY_INFO!B47))) ->  | C47: =IF(INTRO!$E$39<>"Non-endemic", " ", IF(INTRO!$E$37="Non-endemic"," ", IF(COUNTRY_INFO!C47=0," ",COUNTRY_INFO!C47))) ->  | D47: =IF(INTRO!$E$39<>"Non-endemic", 0, IF(INTRO!$E$37="Non-endemic",0,IF(COUNTRY_INFO!$H47=1,COUNTRY_INFO!E47,0))) -> 0 | E47: =IF(INTRO!$E$39<>"Non-endemic", 0, IF(INTRO!$E$37="Non-endemic",0,IF(COUNTRY_INFO!$H47=1,COUNTRY_INFO!F47,0))) -> 0 | F47: =IF(INTRO!$E$39<>"Non-endemic", 0, IF(INTRO!$E$37="Non-endemic",0,IF(COUNTRY_INFO!$H47=1,COUNTRY_INFO!G47,0))) -> 0 | G47: 0 | H47: =IF(INTRO!$E$39="Non-endemic",IF(INTRO!$E$37="Non-endemic","Not required",COUNTRY_INFO!Q47),"Treat with IVM") -> Treat with IVM | I47: =IF(H47=1,IF(ALB_MBD!$J47<>" ",$G47-ALB_MBD!$J47,$G47),0) -> 0 | J47: 0 | L47: 0 | M47: 0
A48: =IF(INTRO!$E$39<>"Non-endemic", " ", IF(INTRO!$E$37="Non-endemic"," ", IF(COUNTRY_INFO!A48=0," ",COUNTRY_INFO!A48))) ->  | B48: =IF(INTRO!$E$39<>"Non-endemic", " ", IF(INTRO!$E$37="Non-endemic"," ", IF(COUNTRY_INFO!B48=0," ",COUNTRY_INFO!B48))) ->  | C48: =IF(INTRO!$E$39<>"Non-endemic", " ", IF(INTRO!$E$37="Non-endemic"," ", IF(COUNTRY_INFO!C48=0," ",COUNTRY_INFO!C48))) ->  | D48: =IF(INTRO!$E$39<>"Non-endemic", 0, IF(INTRO!$E$37="Non-endemic",0,IF(COUNTRY_INFO!$H48=1,COUNTRY_INFO!E48,0))) -> 0 | E48: =IF(INTRO!$E$39<>"Non-endemic", 0, IF(INTRO!$E$37="Non-endemic",0,IF(COUNTRY_INFO!$H48=1,COUNTRY_INFO!F48,0))) -> 0 | F48: =IF(INTRO!$E$39<>"Non-endemic", 0, IF(INTRO!$E$37="Non-endemic",0,IF(COUNTRY_INFO!$H48=1,COUNTRY_INFO!G48,0))) -> 0 | G48: 0 | H48: =IF(INTRO!$E$39="Non-endemic",IF(INTRO!$E$37="Non-endemic","Not required",COUNTRY_INFO!Q48),"Treat with IVM") -> Treat with IVM | I48: =IF(H48=1,IF(ALB_MBD!$J48<>" ",$G48-ALB_MBD!$J48,$G48),0) -> 0 | J48: 0 | L48: 0 | M48: 0
A49: =IF(INTRO!$E$39<>"Non-endemic", " ", IF(INTRO!$E$37="Non-endemic"," ", IF(COUNTRY_INFO!A49=0," ",COUNTRY_INFO!A49))) ->  | B49: =IF(INTRO!$E$39<>"Non-endemic", " ", IF(INTRO!$E$37="Non-endemic"," ", IF(COUNTRY_INFO!B49=0," ",COUNTRY_INFO!B49))) ->  | C49: =IF(INTRO!$E$39<>"Non-endemic", " ", IF(INTRO!$E$37="Non-endemic"," ", IF(COUNTRY_INFO!C49=0," ",COUNTRY_INFO!C49))) ->  | D49: =IF(INTRO!$E$39<>"Non-endemic", 0, IF(INTRO!$E$37="Non-endemic",0,IF(COUNTRY_INFO!$H49=1,COUNTRY_INFO!E49,0))) -> 0 | E49: =IF(INTRO!$E$39<>"Non-endemic", 0, IF(INTRO!$E$37="Non-endemic",0,IF(COUNTRY_INFO!$H49=1,COUNTRY_INFO!F49,0))) -> 0 | F49: =IF(INTRO!$E$39<>"Non-endemic", 0, IF(INTRO!$E$37="Non-endemic",0,IF(COUNTRY_INFO!$H49=1,COUNTRY_INFO!G49,0))) -> 0 | G49: 0 | H49: =IF(INTRO!$E$39="Non-endemic",IF(INTRO!$E$37="Non-endemic","Not required",COUNTRY_INFO!Q49),"Treat with IVM") -> Treat with IVM | I49: =IF(H49=1,IF(ALB_MBD!$J49<>" ",$G49-ALB_MBD!$J49,$G49),0) -> 0 | J49: 0 | L49: 0 | M49: 0
A50: =IF(INTRO!$E$39<>"Non-endemic", " ", IF(INTRO!$E$37="Non-endemic"," ", IF(COUNTRY_INFO!A50=0," ",COUNTRY_INFO!A50))) ->  | B50: =IF(INTRO!$E$39<>"Non-endemic", " ", IF(INTRO!$E$37="Non-endemic"," ", IF(COUNTRY_INFO!B50=0," ",COUNTRY_INFO!B50))) ->  | C50: =IF(INTRO!$E$39<>"Non-endemic", " ", IF(INTRO!$E$37="Non-endemic"," ", IF(COUNTRY_INFO!C50=0," ",COUNTRY_INFO!C50))) ->  | D50: =IF(INTRO!$E$39<>"Non-endemic", 0, IF(INTRO!$E$37="Non-endemic",0,IF(COUNTRY_INFO!$H50=1,COUNTRY_INFO!E50,0))) -> 0 | E50: =IF(INTRO!$E$39<>"Non-endemic", 0, IF(INTRO!$E$37="Non-endemic",0,IF(COUNTRY_INFO!$H50=1,COUNTRY_INFO!F50,0))) -> 0 | F50: =IF(INTRO!$E$39<>"Non-endemic", 0, IF(INTRO!$E$37="Non-endemic",0,IF(COUNTRY_INFO!$H50=1,COUNTRY_INFO!G50,0))) -> 0 | G50: 0 | H50: =IF(INTRO!$E$39="Non-endemic",IF(INTRO!$E$37="Non-endemic","Not required",COUNTRY_INFO!Q50),"Treat with IVM") -> Treat with IVM | I50: =IF(H50=1,IF(ALB_MBD!$J50<>" ",$G50-ALB_MBD!$J50,$G50),0) -> 0 | J50: 0 | L50: 0 | M50: 0
A51: =IF(INTRO!$E$39<>"Non-endemic", " ", IF(INTRO!$E$37="Non-endemic"," ", IF(COUNTRY_INFO!A51=0," ",COUNTRY_INFO!A51))) ->  | B51: =IF(INTRO!$E$39<>"Non-endemic", " ", IF(INTRO!$E$37="Non-endemic"," ", IF(COUNTRY_INFO!B51=0," ",COUNTRY_INFO!B51))) ->  | C51: =IF(INTRO!$E$39<>"Non-endemic", " ", IF(INTRO!$E$37="Non-endemic"," ", IF(COUNTRY_INFO!C51=0," ",COUNTRY_INFO!C51))) ->  | D51: =IF(INTRO!$E$39<>"Non-endemic", 0, IF(INTRO!$E$37="Non-endemic",0,IF(COUNTRY_INFO!$H51=1,COUNTRY_INFO!E51,0))) -> 0 | E51: =IF(INTRO!$E$39<>"Non-endemic", 0, IF(INTRO!$E$37="Non-endemic",0,IF(COUNTRY_INFO!$H51=1,COUNTRY_INFO!F51,0))) -> 0 | F51: =IF(INTRO!$E$39<>"Non-endemic", 0, IF(INTRO!$E$37="Non-endemic",0,IF(COUNTRY_INFO!$H51=1,COUNTRY_INFO!G51,0))) -> 0 | G51: 0 | H51: =IF(INTRO!$E$39="Non-endemic",IF(INTRO!$E$37="Non-endemic","Not required",COUNTRY_INFO!Q51),"Treat with IVM") -> Treat with IVM | I51: =IF(H51=1,IF(ALB_MBD!$J51<>" ",$G51-ALB_MBD!$J51,$G51),0) -> 0 | J51: 0 | L51: 0 | M51: 0
A52: =IF(INTRO!$E$39<>"Non-endemic", " ", IF(INTRO!$E$37="Non-endemic"," ", IF(COUNTRY_INFO!A52=0," ",COUNTRY_INFO!A52))) ->  | B52: =IF(INTRO!$E$39<>"Non-endemic", " ", IF(INTRO!$E$37="Non-endemic"," ", IF(COUNTRY_INFO!B52=0," ",COUNTRY_INFO!B52))) ->  | C52: =IF(INTRO!$E$39<>"Non-endemic", " ", IF(INTRO!$E$37="Non-endemic"," ", IF(COUNTRY_INFO!C52=0," ",COUNTRY_INFO!C52))) ->  | D52: =IF(INTRO!$E$39<>"Non-endemic", 0, IF(INTRO!$E$37="Non-endemic",0,IF(COUNTRY_INFO!$H52=1,COUNTRY_INFO!E52,0))) -> 0 | E52: =IF(INTRO!$E$39<>"Non-endemic", 0, IF(INTRO!$E$37="Non-endemic",0,IF(COUNTRY_INFO!$H52=1,COUNTRY_INFO!F52,0))) -> 0 | F52: =IF(INTRO!$E$39<>"Non-endemic", 0, IF(INTRO!$E$37="Non-endemic",0,IF(COUNTRY_INFO!$H52=1,COUNTRY_INFO!G52,0))) -> 0 | G52: 0 | H52: =IF(INTRO!$E$39="Non-endemic",IF(INTRO!$E$37="Non-endemic","Not required",COUNTRY_INFO!Q52),"Treat with IVM") -> Treat with IVM | I52: =IF(H52=1,IF(ALB_MBD!$J52<>" ",$G52-ALB_MBD!$J52,$G52),0) -> 0 | J52: 0 | L52: 0 | M52: 0
A53: =IF(INTRO!$E$39<>"Non-endemic", " ", IF(INTRO!$E$37="Non-endemic"," ", IF(COUNTRY_INFO!A53=0," ",COUNTRY_INFO!A53))) ->  | B53: =IF(INTRO!$E$39<>"Non-endemic", " ", IF(INTRO!$E$37="Non-endemic"," ", IF(COUNTRY_INFO!B53=0," ",COUNTRY_INFO!B53))) ->  | C53: =IF(INTRO!$E$39<>"Non-endemic", " ", IF(INTRO!$E$37="Non-endemic"," ", IF(COUNTRY_INFO!C53=0," ",COUNTRY_INFO!C53))) ->  | D53: =IF(INTRO!$E$39<>"Non-endemic", 0, IF(INTRO!$E$37="Non-endemic",0,IF(COUNTRY_INFO!$H53=1,COUNTRY_INFO!E53,0))) -> 0 | E53: =IF(INTRO!$E$39<>"Non-endemic", 0, IF(INTRO!$E$37="Non-endemic",0,IF(COUNTRY_INFO!$H53=1,COUNTRY_INFO!F53,0))) -> 0 | F53: =IF(INTRO!$E$39<>"Non-endemic", 0, IF(INTRO!$E$37="Non-endemic",0,IF(COUNTRY_INFO!$H53=1,COUNTRY_INFO!G53,0))) -> 0 | G53: 0 | H53: =IF(INTRO!$E$39="Non-endemic",IF(INTRO!$E$37="Non-endemic","Not required",COUNTRY_INFO!Q53),"Treat with IVM") -> Treat with IVM | I53: =IF(H53=1,IF(ALB_MBD!$J53<>" ",$G53-ALB_MBD!$J53,$G53),0) -> 0 | J53: 0 | L53: 0 | M53: 0
A54: =IF(INTRO!$E$39<>"Non-endemic", " ", IF(INTRO!$E$37="Non-endemic"," ", IF(COUNTRY_INFO!A54=0," ",COUNTRY_INFO!A54))) ->  | B54: =IF(INTRO!$E$39<>"Non-endemic", " ", IF(INTRO!$E$37="Non-endemic"," ", IF(COUNTRY_INFO!B54=0," ",COUNTRY_INFO!B54))) ->  | C54: =IF(INTRO!$E$39<>"Non-endemic", " ", IF(INTRO!$E$37="Non-endemic"," ", IF(COUNTRY_INFO!C54=0," ",COUNTRY_INFO!C54))) ->  | D54: =IF(INTRO!$E$39<>"Non-endemic", 0, IF(INTRO!$E$37="Non-endemic",0,IF(COUNTRY_INFO!$H54=1,COUNTRY_INFO!E54,0))) -> 0 | E54: =IF(INTRO!$E$39<>"Non-endemic", 0, IF(INTRO!$E$37="Non-endemic",0,IF(COUNTRY_INFO!$H54=1,COUNTRY_INFO!F54,0))) -> 0 | F54: =IF(INTRO!$E$39<>"Non-endemic", 0, IF(INTRO!$E$37="Non-endemic",0,IF(COUNTRY_INFO!$H54=1,COUNTRY_INFO!G54,0))) -> 0 | G54: 0 | H54: =IF(INTRO!$E$39="Non-endemic",IF(INTRO!$E$37="Non-endemic","Not required",COUNTRY_INFO!Q54),"Treat with IVM") -> Treat with IVM | I54: =IF(H54=1,IF(ALB_MBD!$J54<>" ",$G54-ALB_MBD!$J54,$G54),0) -> 0 | J54: 0 | L54: 0 | M54: 0
A55: =IF(INTRO!$E$39<>"Non-endemic", " ", IF(INTRO!$E$37="Non-endemic"," ", IF(COUNTRY_INFO!A55=0," ",COUNTRY_INFO!A55))) ->  | B55: =IF(INTRO!$E$39<>"Non-endemic", " ", IF(INTRO!$E$37="Non-endemic"," ", IF(COUNTRY_INFO!B55=0," ",COUNTRY_INFO!B55))) ->  | C55: =IF(INTRO!$E$39<>"Non-endemic", " ", IF(INTRO!$E$37="Non-endemic"," ", IF(COUNTRY_INFO!C55=0," ",COUNTRY_INFO!C55))) ->  | D55: =IF(INTRO!$E$39<>"Non-endemic", 0, IF(INTRO!$E$37="Non-endemic",0,IF(COUNTRY_INFO!$H55=1,COUNTRY_INFO!E55,0))) -> 0 | E55: =IF(INTRO!$E$39<>"Non-endemic", 0, IF(INTRO!$E$37="Non-endemic",0,IF(COUNTRY_INFO!$H55=1,COUNTRY_INFO!F55,0))) -> 0 | F55: =IF(INTRO!$E$39<>"Non-endemic", 0, IF(INTRO!$E$37="Non-endemic",0,IF(COUNTRY_INFO!$H55=1,COUNTRY_INFO!G55,0))) -> 0 | G55: 0 | H55: =IF(INTRO!$E$39="Non-endemic",IF(INTRO!$E$37="Non-endemic","Not required",COUNTRY_INFO!Q55),"Treat with IVM") -> Treat with IVM | I55: =IF(H55=1,IF(ALB_MBD!$J55<>" ",$G55-ALB_MBD!$J55,$G55),0) -> 0 | J55: 0 | L55: 0 | M55: 0
A56: =IF(INTRO!$E$39<>"Non-endemic", " ", IF(INTRO!$E$37="Non-endemic"," ", IF(COUNTRY_INFO!A56=0," ",COUNTRY_INFO!A56))) ->  | B56: =IF(INTRO!$E$39<>"Non-endemic", " ", IF(INTRO!$E$37="Non-endemic"," ", IF(COUNTRY_INFO!B56=0," ",COUNTRY_INFO!B56))) ->  | C56: =IF(INTRO!$E$39<>"Non-endemic", " ", IF(INTRO!$E$37="Non-endemic"," ", IF(COUNTRY_INFO!C56=0," ",COUNTRY_INFO!C56))) ->  | D56: =IF(INTRO!$E$39<>"Non-endemic", 0, IF(INTRO!$E$37="Non-endemic",0,IF(COUNTRY_INFO!$H56=1,COUNTRY_INFO!E56,0))) -> 0 | E56: =IF(INTRO!$E$39<>"Non-endemic", 0, IF(INTRO!$E$37="Non-endemic",0,IF(COUNTRY_INFO!$H56=1,COUNTRY_INFO!F56,0))) -> 0 | F56: =IF(INTRO!$E$39<>"Non-endemic", 0, IF(INTRO!$E$37="Non-endemic",0,IF(COUNTRY_INFO!$H56=1,COUNTRY_INFO!G56,0))) -> 0 | G56: 0 | H56: =IF(INTRO!$E$39="Non-endemic",IF(INTRO!$E$37="Non-endemic","Not required",COUNTRY_INFO!Q56),"Treat with IVM") -> Treat with IVM | I56: =IF(H56=1,IF(ALB_MBD!$J56<>" ",$G56-ALB_MBD!$J56,$G56),0) -> 0 | J56: 0 | L56: 0 | M56: 0
A57: =IF(INTRO!$E$39<>"Non-endemic", " ", IF(INTRO!$E$37="Non-endemic"," ", IF(COUNTRY_INFO!A57=0," ",COUNTRY_INFO!A57))) ->  | B57: =IF(INTRO!$E$39<>"Non-endemic", " ", IF(INTRO!$E$37="Non-endemic"," ", IF(COUNTRY_INFO!B57=0," ",COUNTRY_INFO!B57))) ->  | C57: =IF(INTRO!$E$39<>"Non-endemic", " ", IF(INTRO!$E$37="Non-endemic"," ", IF(COUNTRY_INFO!C57=0," ",COUNTRY_INFO!C57))) ->  | D57: =IF(INTRO!$E$39<>"Non-endemic", 0, IF(INTRO!$E$37="Non-endemic",0,IF(COUNTRY_INFO!$H57=1,COUNTRY_INFO!E57,0))) -> 0 | E57: =IF(INTRO!$E$39<>"Non-endemic", 0, IF(INTRO!$E$37="Non-endemic",0,IF(COUNTRY_INFO!$H57=1,COUNTRY_INFO!F57,0))) -> 0 | F57: =IF(INTRO!$E$39<>"Non-endemic", 0, IF(INTRO!$E$37="Non-endemic",0,IF(COUNTRY_INFO!$H57=1,COUNTRY_INFO!G57,0))) -> 0 | G57: 0 | H57: =IF(INTRO!$E$39="Non-endemic",IF(INTRO!$E$37="Non-endemic","Not required",COUNTRY_INFO!Q57),"Treat with IVM") -> Treat with IVM | I57: =IF(H57=1,IF(ALB_MBD!$J57<>" ",$G57-ALB_MBD!$J57,$G57),0) -> 0 | J57: 0 | L57: 0 | M57: 0
A58: =IF(INTRO!$E$39<>"Non-endemic", " ", IF(INTRO!$E$37="Non-endemic"," ", IF(COUNTRY_INFO!A58=0," ",COUNTRY_INFO!A58))) ->  | B58: =IF(INTRO!$E$39<>"Non-endemic", " ", IF(INTRO!$E$37="Non-endemic"," ", IF(COUNTRY_INFO!B58=0," ",COUNTRY_INFO!B58))) ->  | C58: =IF(INTRO!$E$39<>"Non-endemic", " ", IF(INTRO!$E$37="Non-endemic"," ", IF(COUNTRY_INFO!C58=0," ",COUNTRY_INFO!C58))) ->  | D58: =IF(INTRO!$E$39<>"Non-endemic", 0, IF(INTRO!$E$37="Non-endemic",0,IF(COUNTRY_INFO!$H58=1,COUNTRY_INFO!E58,0))) -> 0 | E58: =IF(INTRO!$E$39<>"Non-endemic", 0, IF(INTRO!$E$37="Non-endemic",0,IF(COUNTRY_INFO!$H58=1,COUNTRY_INFO!F58,0))) -> 0 | F58: =IF(INTRO!$E$39<>"Non-endemic", 0, IF(INTRO!$E$37="Non-endemic",0,IF(COUNTRY_INFO!$H58=1,COUNTRY_INFO!G58,0))) -> 0 | G58: 0 | H58: =IF(INTRO!$E$39="Non-endemic",IF(INTRO!$E$37="Non-endemic","Not required",COUNTRY_INFO!Q58),"Treat with IVM") -> Treat with IVM | I58: =IF(H58=1,IF(ALB_MBD!$J58<>" ",$G58-ALB_MBD!$J58,$G58),0) -> 0 | J58: 0 | L58: 0 | M58: 0
A59: =IF(INTRO!$E$39<>"Non-endemic", " ", IF(INTRO!$E$37="Non-endemic"," ", IF(COUNTRY_INFO!A59=0," ",COUNTRY_INFO!A59))) ->  | B59: =IF(INTRO!$E$39<>"Non-endemic", " ", IF(INTRO!$E$37="Non-endemic"," ", IF(COUNTRY_INFO!B59=0," ",COUNTRY_INFO!B59))) ->  | C59: =IF(INTRO!$E$39<>"Non-endemic", " ", IF(INTRO!$E$37="Non-endemic"," ", IF(COUNTRY_INFO!C59=0," ",COUNTRY_INFO!C59))) ->  | D59: =IF(INTRO!$E$39<>"Non-endemic", 0, IF(INTRO!$E$37="Non-endemic",0,IF(COUNTRY_INFO!$H59=1,COUNTRY_INFO!E59,0))) -> 0 | E59: =IF(INTRO!$E$39<>"Non-endemic", 0, IF(INTRO!$E$37="Non-endemic",0,IF(COUNTRY_INFO!$H59=1,COUNTRY_INFO!F59,0))) -> 0 | F59: =IF(INTRO!$E$39<>"Non-endemic", 0, IF(INTRO!$E$37="Non-endemic",0,IF(COUNTRY_INFO!$H59=1,COUNTRY_INFO!G59,0))) -> 0 | G59: 0 | H59: =IF(INTRO!$E$39="Non-endemic",IF(INTRO!$E$37="Non-endemic","Not required",COUNTRY_INFO!Q59),"Treat with IVM") -> Treat with IVM | I59: =IF(H59=1,IF(ALB_MBD!$J59<>" ",$G59-ALB_MBD!$J59,$G59),0) -> 0 | J59: 0 | L59: 0 | M59: 0
A60: =IF(INTRO!$E$39<>"Non-endemic", " ", IF(INTRO!$E$37="Non-endemic"," ", IF(COUNTRY_INFO!A60=0," ",COUNTRY_INFO!A60))) ->  | B60: =IF(INTRO!$E$39<>"Non-endemic", " ", IF(INTRO!$E$37="Non-endemic"," ", IF(COUNTRY_INFO!B60=0," ",COUNTRY_INFO!B60))) ->  | C60: =IF(INTRO!$E$39<>"Non-endemic", " ", IF(INTRO!$E$37="Non-endemic"," ", IF(COUNTRY_INFO!C60=0," ",COUNTRY_INFO!C60))) ->  | D60: =IF(INTRO!$E$39<>"Non-endemic", 0, IF(INTRO!$E$37="Non-endemic",0,IF(COUNTRY_INFO!$H60=1,COUNTRY_INFO!E60,0))) -> 0 | E60: =IF(INTRO!$E$39<>"Non-endemic", 0, IF(INTRO!$E$37="Non-endemic",0,IF(COUNTRY_INFO!$H60=1,COUNTRY_INFO!F60,0))) -> 0 | F60: =IF(INTRO!$E$39<>"Non-endemic", 0, IF(INTRO!$E$37="Non-endemic",0,IF(COUNTRY_INFO!$H60=1,COUNTRY_INFO!G60,0))) -> 0 | G60: 0 | H60: =IF(INTRO!$E$39="Non-endemic",IF(INTRO!$E$37="Non-endemic","Not required",COUNTRY_INFO!Q60),"Treat with IVM") -> Treat with IVM | I60: =IF(H60=1,IF(ALB_MBD!$J60<>" ",$G60-ALB_MBD!$J60,$G60),0) -> 0 | J60: 0 | L60: 0 | M60: 0
A61: =IF(INTRO!$E$39<>"Non-endemic", " ", IF(INTRO!$E$37="Non-endemic"," ", IF(COUNTRY_INFO!A61=0," ",COUNTRY_INFO!A61))) ->  | B61: =IF(INTRO!$E$39<>"Non-endemic", " ", IF(INTRO!$E$37="Non-endemic"," ", IF(COUNTRY_INFO!B61=0," ",COUNTRY_INFO!B61))) ->  | C61: =IF(INTRO!$E$39<>"Non-endemic", " ", IF(INTRO!$E$37="Non-endemic"," ", IF(COUNTRY_INFO!C61=0," ",COUNTRY_INFO!C61))) ->  | D61: =IF(INTRO!$E$39<>"Non-endemic", 0, IF(INTRO!$E$37="Non-endemic",0,IF(COUNTRY_INFO!$H61=1,COUNTRY_INFO!E61,0))) -> 0 | E61: =IF(INTRO!$E$39<>"Non-endemic", 0, IF(INTRO!$E$37="Non-endemic",0,IF(COUNTRY_INFO!$H61=1,COUNTRY_INFO!F61,0))) -> 0 | F61: =IF(INTRO!$E$39<>"Non-endemic", 0, IF(INTRO!$E$37="Non-endemic",0,IF(COUNTRY_INFO!$H61=1,COUNTRY_INFO!G61,0))) -> 0 | G61: 0 | H61: =IF(INTRO!$E$39="Non-endemic",IF(INTRO!$E$37="Non-endemic","Not required",COUNTRY_INFO!Q61),"Treat with IVM") -> Treat with IVM | I61: =IF(H61=1,IF(ALB_MBD!$J61<>" ",$G61-ALB_MBD!$J61,$G61),0) -> 0 | J61: 0 | L61: 0 | M61: 0
A62: =IF(INTRO!$E$39<>"Non-endemic", " ", IF(INTRO!$E$37="Non-endemic"," ", IF(COUNTRY_INFO!A62=0," ",COUNTRY_INFO!A62))) ->  | B62: =IF(INTRO!$E$39<>"Non-endemic", " ", IF(INTRO!$E$37="Non-endemic"," ", IF(COUNTRY_INFO!B62=0," ",COUNTRY_INFO!B62))) ->  | C62: =IF(INTRO!$E$39<>"Non-endemic", " ", IF(INTRO!$E$37="Non-endemic"," ", IF(COUNTRY_INFO!C62=0," ",COUNTRY_INFO!C62))) ->  | D62: =IF(INTRO!$E$39<>"Non-endemic", 0, IF(INTRO!$E$37="Non-endemic",0,IF(COUNTRY_INFO!$H62=1,COUNTRY_INFO!E62,0))) -> 0 | E62: =IF(INTRO!$E$39<>"Non-endemic", 0, IF(INTRO!$E$37="Non-endemic",0,IF(COUNTRY_INFO!$H62=1,COUNTRY_INFO!F62,0))) -> 0 | F62: =IF(INTRO!$E$39<>"Non-endemic", 0, IF(INTRO!$E$37="Non-endemic",0,IF(COUNTRY_INFO!$H62=1,COUNTRY_INFO!G62,0))) -> 0 | G62: 0 | H62: =IF(INTRO!$E$39="Non-endemic",IF(INTRO!$E$37="Non-endemic","Not required",COUNTRY_INFO!Q62),"Treat with IVM") -> Treat with IVM | I62: =IF(H62=1,IF(ALB_MBD!$J62<>" ",$G62-ALB_MBD!$J62,$G62),0) -> 0 | J62: 0 | L62: 0 | M62: 0
A63: =IF(INTRO!$E$39<>"Non-endemic", " ", IF(INTRO!$E$37="Non-endemic"," ", IF(COUNTRY_INFO!A63=0," ",COUNTRY_INFO!A63))) ->  | B63: =IF(INTRO!$E$39<>"Non-endemic", " ", IF(INTRO!$E$37="Non-endemic"," ", IF(COUNTRY_INFO!B63=0," ",COUNTRY_INFO!B63))) ->  | C63: =IF(INTRO!$E$39<>"Non-endemic", " ", IF(INTRO!$E$37="Non-endemic"," ", IF(COUNTRY_INFO!C63=0," ",COUNTRY_INFO!C63))) ->  | D63: =IF(INTRO!$E$39<>"Non-endemic", 0, IF(INTRO!$E$37="Non-endemic",0,IF(COUNTRY_INFO!$H63=1,COUNTRY_INFO!E63,0))) -> 0 | E63: =IF(INTRO!$E$39<>"Non-endemic", 0, IF(INTRO!$E$37="Non-endemic",0,IF(COUNTRY_INFO!$H63=1,COUNTRY_INFO!F63,0))) -> 0 | F63: =IF(INTRO!$E$39<>"Non-endemic", 0, IF(INTRO!$E$37="Non-endemic",0,IF(COUNTRY_INFO!$H63=1,COUNTRY_INFO!G63,0))) -> 0 | G63: 0 | H63: =IF(INTRO!$E$39="Non-endemic",IF(INTRO!$E$37="Non-endemic","Not required",COUNTRY_INFO!Q63),"Treat with IVM") -> Treat with IVM | I63: =IF(H63=1,IF(ALB_MBD!$J63<>" ",$G63-ALB_MBD!$J63,$G63),0) -> 0 | J63: 0 | L63: 0 | M63: 0
A64: =IF(INTRO!$E$39<>"Non-endemic", " ", IF(INTRO!$E$37="Non-endemic"," ", IF(COUNTRY_INFO!A64=0," ",COUNTRY_INFO!A64))) ->  | B64: =IF(INTRO!$E$39<>"Non-endemic", " ", IF(INTRO!$E$37="Non-endemic"," ", IF(COUNTRY_INFO!B64=0," ",COUNTRY_INFO!B64))) ->  | C64: =IF(INTRO!$E$39<>"Non-endemic", " ", IF(INTRO!$E$37="Non-endemic"," ", IF(COUNTRY_INFO!C64=0," ",COUNTRY_INFO!C64))) ->  | D64: =IF(INTRO!$E$39<>"Non-endemic", 0, IF(INTRO!$E$37="Non-endemic",0,IF(COUNTRY_INFO!$H64=1,COUNTRY_INFO!E64,0))) -> 0 | E64: =IF(INTRO!$E$39<>"Non-endemic", 0, IF(INTRO!$E$37="Non-endemic",0,IF(COUNTRY_INFO!$H64=1,COUNTRY_INFO!F64,0))) -> 0 | F64: =IF(INTRO!$E$39<>"Non-endemic", 0, IF(INTRO!$E$37="Non-endemic",0,IF(COUNTRY_INFO!$H64=1,COUNTRY_INFO!G64,0))) -> 0 | G64: 0 | H64: =IF(INTRO!$E$39="Non-endemic",IF(INTRO!$E$37="Non-endemic","Not required",COUNTRY_INFO!Q64),"Treat with IVM") -> Treat with IVM | I64: =IF(H64=1,IF(ALB_MBD!$J64<>" ",$G64-ALB_MBD!$J64,$G64),0) -> 0 | J64: 0 | L64: 0 | M64: 0
A65: =IF(INTRO!$E$39<>"Non-endemic", " ", IF(INTRO!$E$37="Non-endemic"," ", IF(COUNTRY_INFO!A65=0," ",COUNTRY_INFO!A65))) ->  | B65: =IF(INTRO!$E$39<>"Non-endemic", " ", IF(INTRO!$E$37="Non-endemic"," ", IF(COUNTRY_INFO!B65=0," ",COUNTRY_INFO!B65))) ->  | C65: =IF(INTRO!$E$39<>"Non-endemic", " ", IF(INTRO!$E$37="Non-endemic"," ", IF(COUNTRY_INFO!C65=0," ",COUNTRY_INFO!C65))) ->  | D65: =IF(INTRO!$E$39<>"Non-endemic", 0, IF(INTRO!$E$37="Non-endemic",0,IF(COUNTRY_INFO!$H65=1,COUNTRY_INFO!E65,0))) -> 0 | E65: =IF(INTRO!$E$39<>"Non-endemic", 0, IF(INTRO!$E$37="Non-endemic",0,IF(COUNTRY_INFO!$H65=1,COUNTRY_INFO!F65,0))) -> 0 | F65: =IF(INTRO!$E$39<>"Non-endemic", 0, IF(INTRO!$E$37="Non-endemic",0,IF(COUNTRY_INFO!$H65=1,COUNTRY_INFO!G65,0))) -> 0 | G65: 0 | H65: =IF(INTRO!$E$39="Non-endemic",IF(INTRO!$E$37="Non-endemic","Not required",COUNTRY_INFO!Q65),"Treat with IVM") -> Treat with IVM | I65: =IF(H65=1,IF(ALB_MBD!$J65<>" ",$G65-ALB_MBD!$J65,$G65),0) -> 0 | J65: 0 | L65: 0 | M65: 0
A66: =IF(INTRO!$E$39<>"Non-endemic", " ", IF(INTRO!$E$37="Non-endemic"," ", IF(COUNTRY_INFO!A66=0," ",COUNTRY_INFO!A66))) ->  | B66: =IF(INTRO!$E$39<>"Non-endemic", " ", IF(INTRO!$E$37="Non-endemic"," ", IF(COUNTRY_INFO!B66=0," ",COUNTRY_INFO!B66))) ->  | C66: =IF(INTRO!$E$39<>"Non-endemic", " ", IF(INTRO!$E$37="Non-endemic"," ", IF(COUNTRY_INFO!C66=0," ",COUNTRY_INFO!C66))) ->  | D66: =IF(INTRO!$E$39<>"Non-endemic", 0, IF(INTRO!$E$37="Non-endemic",0,IF(COUNTRY_INFO!$H66=1,COUNTRY_INFO!E66,0))) -> 0 | E66: =IF(INTRO!$E$39<>"Non-endemic", 0, IF(INTRO!$E$37="Non-endemic",0,IF(COUNTRY_INFO!$H66=1,COUNTRY_INFO!F66,0))) -> 0 | F66: =IF(INTRO!$E$39<>"Non-endemic", 0, IF(INTRO!$E$37="Non-endemic",0,IF(COUNTRY_INFO!$H66=1,COUNTRY_INFO!G66,0))) -> 0 | G66: 0 | H66: =IF(INTRO!$E$39="Non-endemic",IF(INTRO!$E$37="Non-endemic","Not required",COUNTRY_INFO!Q66),"Treat with IVM") -> Treat with IVM | I66: =IF(H66=1,IF(ALB_MBD!$J66<>" ",$G66-ALB_MBD!$J66,$G66),0) -> 0 | J66: 0 | L66: 0 | M66: 0
A67: =IF(INTRO!$E$39<>"Non-endemic", " ", IF(INTRO!$E$37="Non-endemic"," ", IF(COUNTRY_INFO!A67=0," ",COUNTRY_INFO!A67))) ->  | B67: =IF(INTRO!$E$39<>"Non-endemic", " ", IF(INTRO!$E$37="Non-endemic"," ", IF(COUNTRY_INFO!B67=0," ",COUNTRY_INFO!B67))) ->  | C67: =IF(INTRO!$E$39<>"Non-endemic", " ", IF(INTRO!$E$37="Non-endemic"," ", IF(COUNTRY_INFO!C67=0," ",COUNTRY_INFO!C67))) ->  | D67: =IF(INTRO!$E$39<>"Non-endemic", 0, IF(INTRO!$E$37="Non-endemic",0,IF(COUNTRY_INFO!$H67=1,COUNTRY_INFO!E67,0))) -> 0 | E67: =IF(INTRO!$E$39<>"Non-endemic", 0, IF(INTRO!$E$37="Non-endemic",0,IF(COUNTRY_INFO!$H67=1,COUNTRY_INFO!F67,0))) -> 0 | F67: =IF(INTRO!$E$39<>"Non-endemic", 0, IF(INTRO!$E$37="Non-endemic",0,IF(COUNTRY_INFO!$H67=1,COUNTRY_INFO!G67,0))) -> 0 | G67: 0 | H67: =IF(INTRO!$E$39="Non-endemic",IF(INTRO!$E$37="Non-endemic","Not required",COUNTRY_INFO!Q67),"Treat with IVM") -> Treat with IVM | I67: =IF(H67=1,IF(ALB_MBD!$J67<>" ",$G67-ALB_MBD!$J67,$G67),0) -> 0 | J67: 0 | L67: 0 | M67: 0
A68: =IF(INTRO!$E$39<>"Non-endemic", " ", IF(INTRO!$E$37="Non-endemic"," ", IF(COUNTRY_INFO!A68=0," ",COUNTRY_INFO!A68))) ->  | B68: =IF(INTRO!$E$39<>"Non-endemic", " ", IF(INTRO!$E$37="Non-endemic"," ", IF(COUNTRY_INFO!B68=0," ",COUNTRY_INFO!B68))) ->  | C68: =IF(INTRO!$E$39<>"Non-endemic", " ", IF(INTRO!$E$37="Non-endemic"," ", IF(COUNTRY_INFO!C68=0," ",COUNTRY_INFO!C68))) ->  | D68: =IF(INTRO!$E$39<>"Non-endemic", 0, IF(INTRO!$E$37="Non-endemic",0,IF(COUNTRY_INFO!$H68=1,COUNTRY_INFO!E68,0))) -> 0 | E68: =IF(INTRO!$E$39<>"Non-endemic", 0, IF(INTRO!$E$37="Non-endemic",0,IF(COUNTRY_INFO!$H68=1,COUNTRY_INFO!F68,0))) -> 0 | F68: =IF(INTRO!$E$39<>"Non-endemic", 0, IF(INTRO!$E$37="Non-endemic",0,IF(COUNTRY_INFO!$H68=1,COUNTRY_INFO!G68,0))) -> 0 | G68: 0 | H68: =IF(INTRO!$E$39="Non-endemic",IF(INTRO!$E$37="Non-endemic","Not required",COUNTRY_INFO!Q68),"Treat with IVM") -> Treat with IVM | I68: =IF(H68=1,IF(ALB_MBD!$J68<>" ",$G68-ALB_MBD!$J68,$G68),0) -> 0 | J68: 0 | L68: 0 | M68: 0
A69: =IF(INTRO!$E$39<>"Non-endemic", " ", IF(INTRO!$E$37="Non-endemic"," ", IF(COUNTRY_INFO!A69=0," ",COUNTRY_INFO!A69))) ->  | B69: =IF(INTRO!$E$39<>"Non-endemic", " ", IF(INTRO!$E$37="Non-endemic"," ", IF(COUNTRY_INFO!B69=0," ",COUNTRY_INFO!B69))) ->  | C69: =IF(INTRO!$E$39<>"Non-endemic", " ", IF(INTRO!$E$37="Non-endemic"," ", IF(COUNTRY_INFO!C69=0," ",COUNTRY_INFO!C69))) ->  | D69: =IF(INTRO!$E$39<>"Non-endemic", 0, IF(INTRO!$E$37="Non-endemic",0,IF(COUNTRY_INFO!$H69=1,COUNTRY_INFO!E69,0))) -> 0 | E69: =IF(INTRO!$E$39<>"Non-endemic", 0, IF(INTRO!$E$37="Non-endemic",0,IF(COUNTRY_INFO!$H69=1,COUNTRY_INFO!F69,0))) -> 0 | F69: =IF(INTRO!$E$39<>"Non-endemic", 0, IF(INTRO!$E$37="Non-endemic",0,IF(COUNTRY_INFO!$H69=1,COUNTRY_INFO!G69,0))) -> 0 | G69: 0 | H69: =IF(INTRO!$E$39="Non-endemic",IF(INTRO!$E$37="Non-endemic","Not required",COUNTRY_INFO!Q69),"Treat with IVM") -> Treat with IVM | I69: =IF(H69=1,IF(ALB_MBD!$J69<>" ",$G69-ALB_MBD!$J69,$G69),0) -> 0 | J69: 0 | L69: 0 | M69: 0
A70: =IF(INTRO!$E$39<>"Non-endemic", " ", IF(INTRO!$E$37="Non-endemic"," ", IF(COUNTRY_INFO!A70=0," ",COUNTRY_INFO!A70))) ->  | B70: =IF(INTRO!$E$39<>"Non-endemic", " ", IF(INTRO!$E$37="Non-endemic"," ", IF(COUNTRY_INFO!B70=0," ",COUNTRY_INFO!B70))) ->  | C70: =IF(INTRO!$E$39<>"Non-endemic", " ", IF(INTRO!$E$37="Non-endemic"," ", IF(COUNTRY_INFO!C70=0," ",COUNTRY_INFO!C70))) ->  | D70: =IF(INTRO!$E$39<>"Non-endemic", 0, IF(INTRO!$E$37="Non-endemic",0,IF(COUNTRY_INFO!$H70=1,COUNTRY_INFO!E70,0))) -> 0 | E70: =IF(INTRO!$E$39<>"Non-endemic", 0, IF(INTRO!$E$37="Non-endemic",0,IF(COUNTRY_INFO!$H70=1,COUNTRY_INFO!F70,0))) -> 0 | F70: =IF(INTRO!$E$39<>"Non-endemic", 0, IF(INTRO!$E$37="Non-endemic",0,IF(COUNTRY_INFO!$H70=1,COUNTRY_INFO!G70,0))) -> 0 | G70: 0 | H70: =IF(INTRO!$E$39="Non-endemic",IF(INTRO!$E$37="Non-endemic","Not required",COUNTRY_INFO!Q70),"Treat with IVM") -> Treat with IVM | I70: =IF(H70=1,IF(ALB_MBD!$J70<>" ",$G70-ALB_MBD!$J70,$G70),0) -> 0 | J70: 0 | L70: 0 | M70: 0
A71: =IF(INTRO!$E$39<>"Non-endemic", " ", IF(INTRO!$E$37="Non-endemic"," ", IF(COUNTRY_INFO!A71=0," ",COUNTRY_INFO!A71))) ->  | B71: =IF(INTRO!$E$39<>"Non-endemic", " ", IF(INTRO!$E$37="Non-endemic"," ", IF(COUNTRY_INFO!B71=0," ",COUNTRY_INFO!B71))) ->  | C71: =IF(INTRO!$E$39<>"Non-endemic", " ", IF(INTRO!$E$37="Non-endemic"," ", IF(COUNTRY_INFO!C71=0," ",COUNTRY_INFO!C71))) ->  | D71: =IF(INTRO!$E$39<>"Non-endemic", 0, IF(INTRO!$E$37="Non-endemic",0,IF(COUNTRY_INFO!$H71=1,COUNTRY_INFO!E71,0))) -> 0 | E71: =IF(INTRO!$E$39<>"Non-endemic", 0, IF(INTRO!$E$37="Non-endemic",0,IF(COUNTRY_INFO!$H71=1,COUNTRY_INFO!F71,0))) -> 0 | F71: =IF(INTRO!$E$39<>"Non-endemic", 0, IF(INTRO!$E$37="Non-endemic",0,IF(COUNTRY_INFO!$H71=1,COUNTRY_INFO!G71,0))) -> 0 | G71: 0 | H71: =IF(INTRO!$E$39="Non-endemic",IF(INTRO!$E$37="Non-endemic","Not required",COUNTRY_INFO!Q71),"Treat with IVM") -> Treat with IVM | I71: =IF(H71=1,IF(ALB_MBD!$J71<>" ",$G71-ALB_MBD!$J71,$G71),0) -> 0 | J71: 0 | L71: 0 | M71: 0
A72: =IF(INTRO!$E$39<>"Non-endemic", " ", IF(INTRO!$E$37="Non-endemic"," ", IF(COUNTRY_INFO!A72=0," ",COUNTRY_INFO!A72))) ->  | B72: =IF(INTRO!$E$39<>"Non-endemic", " ", IF(INTRO!$E$37="Non-endemic"," ", IF(COUNTRY_INFO!B72=0," ",COUNTRY_INFO!B72))) ->  | C72: =IF(INTRO!$E$39<>"Non-endemic", " ", IF(INTRO!$E$37="Non-endemic"," ", IF(COUNTRY_INFO!C72=0," ",COUNTRY_INFO!C72))) ->  | D72: =IF(INTRO!$E$39<>"Non-endemic", 0, IF(INTRO!$E$37="Non-endemic",0,IF(COUNTRY_INFO!$H72=1,COUNTRY_INFO!E72,0))) -> 0 | E72: =IF(INTRO!$E$39<>"Non-endemic", 0, IF(INTRO!$E$37="Non-endemic",0,IF(COUNTRY_INFO!$H72=1,COUNTRY_INFO!F72,0))) -> 0 | F72: =IF(INTRO!$E$39<>"Non-endemic", 0, IF(INTRO!$E$37="Non-endemic",0,IF(COUNTRY_INFO!$H72=1,COUNTRY_INFO!G72,0))) -> 0 | G72: 0 | H72: =IF(INTRO!$E$39="Non-endemic",IF(INTRO!$E$37="Non-endemic","Not required",COUNTRY_INFO!Q72),"Treat with IVM") -> Treat with IVM | I72: =IF(H72=1,IF(ALB_MBD!$J72<>" ",$G72-ALB_MBD!$J72,$G72),0) -> 0 | J72: 0 | L72: 0 | M72: 0
A73: =IF(INTRO!$E$39<>"Non-endemic", " ", IF(INTRO!$E$37="Non-endemic"," ", IF(COUNTRY_INFO!A73=0," ",COUNTRY_INFO!A73))) ->  | B73: =IF(INTRO!$E$39<>"Non-endemic", " ", IF(INTRO!$E$37="Non-endemic"," ", IF(COUNTRY_INFO!B73=0," ",COUNTRY_INFO!B73))) ->  | C73: =IF(INTRO!$E$39<>"Non-endemic", " ", IF(INTRO!$E$37="Non-endemic"," ", IF(COUNTRY_INFO!C73=0," ",COUNTRY_INFO!C73))) ->  | D73: =IF(INTRO!$E$39<>"Non-endemic", 0, IF(INTRO!$E$37="Non-endemic",0,IF(COUNTRY_INFO!$H73=1,COUNTRY_INFO!E73,0))) -> 0 | E73: =IF(INTRO!$E$39<>"Non-endemic", 0, IF(INTRO!$E$37="Non-endemic",0,IF(COUNTRY_INFO!$H73=1,COUNTRY_INFO!F73,0))) -> 0 | F73: =IF(INTRO!$E$39<>"Non-endemic", 0, IF(INTRO!$E$37="Non-endemic",0,IF(COUNTRY_INFO!$H73=1,COUNTRY_INFO!G73,0))) -> 0 | G73: 0 | H73: =IF(INTRO!$E$39="Non-endemic",IF(INTRO!$E$37="Non-endemic","Not required",COUNTRY_INFO!Q73),"Treat with IVM") -> Treat with IVM | I73: =IF(H73=1,IF(ALB_MBD!$J73<>" ",$G73-ALB_MBD!$J73,$G73),0) -> 0 | J73: 0 | L73: 0 | M73: 0
A74: =IF(INTRO!$E$39<>"Non-endemic", " ", IF(INTRO!$E$37="Non-endemic"," ", IF(COUNTRY_INFO!A74=0," ",COUNTRY_INFO!A74))) ->  | B74: =IF(INTRO!$E$39<>"Non-endemic", " ", IF(INTRO!$E$37="Non-endemic"," ", IF(COUNTRY_INFO!B74=0," ",COUNTRY_INFO!B74))) ->  | C74: =IF(INTRO!$E$39<>"Non-endemic", " ", IF(INTRO!$E$37="Non-endemic"," ", IF(COUNTRY_INFO!C74=0," ",COUNTRY_INFO!C74))) ->  | D74: =IF(INTRO!$E$39<>"Non-endemic", 0, IF(INTRO!$E$37="Non-endemic",0,IF(COUNTRY_INFO!$H74=1,COUNTRY_INFO!E74,0))) -> 0 | E74: =IF(INTRO!$E$39<>"Non-endemic", 0, IF(INTRO!$E$37="Non-endemic",0,IF(COUNTRY_INFO!$H74=1,COUNTRY_INFO!F74,0))) -> 0 | F74: =IF(INTRO!$E$39<>"Non-endemic", 0, IF(INTRO!$E$37="Non-endemic",0,IF(COUNTRY_INFO!$H74=1,COUNTRY_INFO!G74,0))) -> 0 | G74: =SUM(D74:F74) -> 0 | H74: =IF(INTRO!$E$39="Non-endemic",IF(INTRO!$E$37="Non-endemic","Not required",COUNTRY_INFO!Q74),"Treat with IVM") -> Treat with IVM | I74: =IF(H74=1,IF(ALB_MBD!$J74<>" ",$G74-ALB_MBD!$J74,$G74),0) -> 0 | J74: =IF(I74>0,I74*2.5,0) -> 0 | L74: 0 | M74: 0
A75: =IF(INTRO!$E$39<>"Non-endemic", " ", IF(INTRO!$E$37="Non-endemic"," ", IF(COUNTRY_INFO!A75=0," ",COUNTRY_INFO!A75))) ->  | B75: =IF(INTRO!$E$39<>"Non-endemic", " ", IF(INTRO!$E$37="Non-endemic"," ", IF(COUNTRY_INFO!B75=0," ",COUNTRY_INFO!B75))) ->  | C75: =IF(INTRO!$E$39<>"Non-endemic", " ", IF(INTRO!$E$37="Non-endemic"," ", IF(COUNTRY_INFO!C75=0," ",COUNTRY_INFO!C75))) ->  | D75: =IF(INTRO!$E$39<>"Non-endemic", 0, IF(INTRO!$E$37="Non-endemic",0,IF(COUNTRY_INFO!$H75=1,COUNTRY_INFO!E75,0))) -> 0 | E75: =IF(INTRO!$E$39<>"Non-endemic", 0, IF(INTRO!$E$37="Non-endemic",0,IF(COUNTRY_INFO!$H75=1,COUNTRY_INFO!F75,0))) -> 0 | F75: =IF(INTRO!$E$39<>"Non-endemic", 0, IF(INTRO!$E$37="Non-endemic",0,IF(COUNTRY_INFO!$H75=1,COUNTRY_INFO!G75,0))) -> 0 | G75: 0 | H75: =IF(INTRO!$E$39="Non-endemic",IF(INTRO!$E$37="Non-endemic","Not required",COUNTRY_INFO!Q75),"Treat with IVM") -> Treat with IVM | I75: =IF(H75=1,IF(ALB_MBD!$J75<>" ",$G75-ALB_MBD!$J75,$G75),0) -> 0 | J75: 0 | L75: 0 | M75: 0
A76: =IF(INTRO!$E$39<>"Non-endemic", " ", IF(INTRO!$E$37="Non-endemic"," ", IF(COUNTRY_INFO!A76=0," ",COUNTRY_INFO!A76))) ->  | B76: =IF(INTRO!$E$39<>"Non-endemic", " ", IF(INTRO!$E$37="Non-endemic"," ", IF(COUNTRY_INFO!B76=0," ",COUNTRY_INFO!B76))) ->  | C76: =IF(INTRO!$E$39<>"Non-endemic", " ", IF(INTRO!$E$37="Non-endemic"," ", IF(COUNTRY_INFO!C76=0," ",COUNTRY_INFO!C76))) ->  | D76: =IF(INTRO!$E$39<>"Non-endemic", 0, IF(INTRO!$E$37="Non-endemic",0,IF(COUNTRY_INFO!$H76=1,COUNTRY_INFO!E76,0))) -> 0 | E76: =IF(INTRO!$E$39<>"Non-endemic", 0, IF(INTRO!$E$37="Non-endemic",0,IF(COUNTRY_INFO!$H76=1,COUNTRY_INFO!F76,0))) -> 0 | F76: =IF(INTRO!$E$39<>"Non-endemic", 0, IF(INTRO!$E$37="Non-endemic",0,IF(COUNTRY_INFO!$H76=1,COUNTRY_INFO!G76,0))) -> 0 | G76: 0 | H76: =IF(INTRO!$E$39="Non-endemic",IF(INTRO!$E$37="Non-endemic","Not required",COUNTRY_INFO!Q76),"Treat with IVM") -> Treat with IVM | I76: =IF(H76=1,IF(ALB_MBD!$J76<>" ",$G76-ALB_MBD!$J76,$G76),0) -> 0 | J76: 0 | L76: 0 | M76: 0
A77: =IF(INTRO!$E$39<>"Non-endemic", " ", IF(INTRO!$E$37="Non-endemic"," ", IF(COUNTRY_INFO!A77=0," ",COUNTRY_INFO!A77))) ->  | B77: =IF(INTRO!$E$39<>"Non-endemic", " ", IF(INTRO!$E$37="Non-endemic"," ", IF(COUNTRY_INFO!B77=0," ",COUNTRY_INFO!B77))) ->  | C77: =IF(INTRO!$E$39<>"Non-endemic", " ", IF(INTRO!$E$37="Non-endemic"," ", IF(COUNTRY_INFO!C77=0," ",COUNTRY_INFO!C77))) ->  | D77: =IF(INTRO!$E$39<>"Non-endemic", 0, IF(INTRO!$E$37="Non-endemic",0,IF(COUNTRY_INFO!$H77=1,COUNTRY_INFO!E77,0))) -> 0 | E77: =IF(INTRO!$E$39<>"Non-endemic", 0, IF(INTRO!$E$37="Non-endemic",0,IF(COUNTRY_INFO!$H77=1,COUNTRY_INFO!F77,0))) -> 0 | F77: =IF(INTRO!$E$39<>"Non-endemic", 0, IF(INTRO!$E$37="Non-endemic",0,IF(COUNTRY_INFO!$H77=1,COUNTRY_INFO!G77,0))) -> 0 | G77: 0 | H77: =IF(INTRO!$E$39="Non-endemic",IF(INTRO!$E$37="Non-endemic","Not required",COUNTRY_INFO!Q77),"Treat with IVM") -> Treat with IVM | I77: =IF(H77=1,IF(ALB_MBD!$J77<>" ",$G77-ALB_MBD!$J77,$G77),0) -> 0 | J77: 0 | L77: 0 | M77: 0
A78: =IF(INTRO!$E$39<>"Non-endemic", " ", IF(INTRO!$E$37="Non-endemic"," ", IF(COUNTRY_INFO!A78=0," ",COUNTRY_INFO!A78))) ->  | B78: =IF(INTRO!$E$39<>"Non-endemic", " ", IF(INTRO!$E$37="Non-endemic"," ", IF(COUNTRY_INFO!B78=0," ",COUNTRY_INFO!B78))) ->  | C78: =IF(INTRO!$E$39<>"Non-endemic", " ", IF(INTRO!$E$37="Non-endemic"," ", IF(COUNTRY_INFO!C78=0," ",COUNTRY_INFO!C78))) ->  | D78: =IF(INTRO!$E$39<>"Non-endemic", 0, IF(INTRO!$E$37="Non-endemic",0,IF(COUNTRY_INFO!$H78=1,COUNTRY_INFO!E78,0))) -> 0 | E78: =IF(INTRO!$E$39<>"Non-endemic", 0, IF(INTRO!$E$37="Non-endemic",0,IF(COUNTRY_INFO!$H78=1,COUNTRY_INFO!F78,0))) -> 0 | F78: =IF(INTRO!$E$39<>"Non-endemic", 0, IF(INTRO!$E$37="Non-endemic",0,IF(COUNTRY_INFO!$H78=1,COUNTRY_INFO!G78,0))) -> 0 | G78: 0 | H78: =IF(INTRO!$E$39="Non-endemic",IF(INTRO!$E$37="Non-endemic","Not required",COUNTRY_INFO!Q78),"Treat with IVM") -> Treat with IVM | I78: =IF(H78=1,IF(ALB_MBD!$J78<>" ",$G78-ALB_MBD!$J78,$G78),0) -> 0 | J78: 0 | L78: 0 | M78: 0
A79: =IF(INTRO!$E$39<>"Non-endemic", " ", IF(INTRO!$E$37="Non-endemic"," ", IF(COUNTRY_INFO!A79=0," ",COUNTRY_INFO!A79))) ->  | B79: =IF(INTRO!$E$39<>"Non-endemic", " ", IF(INTRO!$E$37="Non-endemic"," ", IF(COUNTRY_INFO!B79=0," ",COUNTRY_INFO!B79))) ->  | C79: =IF(INTRO!$E$39<>"Non-endemic", " ", IF(INTRO!$E$37="Non-endemic"," ", IF(COUNTRY_INFO!C79=0," ",COUNTRY_INFO!C79))) ->  | D79: =IF(INTRO!$E$39<>"Non-endemic", 0, IF(INTRO!$E$37="Non-endemic",0,IF(COUNTRY_INFO!$H79=1,COUNTRY_INFO!E79,0))) -> 0 | E79: =IF(INTRO!$E$39<>"Non-endemic", 0, IF(INTRO!$E$37="Non-endemic",0,IF(COUNTRY_INFO!$H79=1,COUNTRY_INFO!F79,0))) -> 0 | F79: =IF(INTRO!$E$39<>"Non-endemic", 0, IF(INTRO!$E$37="Non-endemic",0,IF(COUNTRY_INFO!$H79=1,COUNTRY_INFO!G79,0))) -> 0 | G79: 0 | H79: =IF(INTRO!$E$39="Non-endemic",IF(INTRO!$E$37="Non-endemic","Not required",COUNTRY_INFO!Q79),"Treat with IVM") -> Treat with IVM | I79: =IF(H79=1,IF(ALB_MBD!$J79<>" ",$G79-ALB_MBD!$J79,$G79),0) -> 0 | J79: 0 | L79: 0 | M79: 0
A80: =IF(INTRO!$E$39<>"Non-endemic", " ", IF(INTRO!$E$37="Non-endemic"," ", IF(COUNTRY_INFO!A80=0," ",COUNTRY_INFO!A80))) ->  | B80: =IF(INTRO!$E$39<>"Non-endemic", " ", IF(INTRO!$E$37="Non-endemic"," ", IF(COUNTRY_INFO!B80=0," ",COUNTRY_INFO!B80))) ->  | C80: =IF(INTRO!$E$39<>"Non-endemic", " ", IF(INTRO!$E$37="Non-endemic"," ", IF(COUNTRY_INFO!C80=0," ",COUNTRY_INFO!C80))) ->  | D80: =IF(INTRO!$E$39<>"Non-endemic", 0, IF(INTRO!$E$37="Non-endemic",0,IF(COUNTRY_INFO!$H80=1,COUNTRY_INFO!E80,0))) -> 0 | E80: =IF(INTRO!$E$39<>"Non-endemic", 0, IF(INTRO!$E$37="Non-endemic",0,IF(COUNTRY_INFO!$H80=1,COUNTRY_INFO!F80,0))) -> 0 | F80: =IF(INTRO!$E$39<>"Non-endemic", 0, IF(INTRO!$E$37="Non-endemic",0,IF(COUNTRY_INFO!$H80=1,COUNTRY_INFO!G80,0))) -> 0 | G80: 0 | H80: =IF(INTRO!$E$39="Non-endemic",IF(INTRO!$E$37="Non-endemic","Not required",COUNTRY_INFO!Q80),"Treat with IVM") -> Treat with IVM | I80: =IF(H80=1,IF(ALB_MBD!$J80<>" ",$G80-ALB_MBD!$J80,$G80),0) -> 0 | J80: 0 | L80: 0 | M80: 0
A81: =IF(INTRO!$E$39<>"Non-endemic", " ", IF(INTRO!$E$37="Non-endemic"," ", IF(COUNTRY_INFO!A81=0," ",COUNTRY_INFO!A81))) ->  | B81: =IF(INTRO!$E$39<>"Non-endemic", " ", IF(INTRO!$E$37="Non-endemic"," ", IF(COUNTRY_INFO!B81=0," ",COUNTRY_INFO!B81))) ->  | C81: =IF(INTRO!$E$39<>"Non-endemic", " ", IF(INTRO!$E$37="Non-endemic"," ", IF(COUNTRY_INFO!C81=0," ",COUNTRY_INFO!C81))) ->  | D81: =IF(INTRO!$E$39<>"Non-endemic", 0, IF(INTRO!$E$37="Non-endemic",0,IF(COUNTRY_INFO!$H81=1,COUNTRY_INFO!E81,0))) -> 0 | E81: =IF(INTRO!$E$39<>"Non-endemic", 0, IF(INTRO!$E$37="Non-endemic",0,IF(COUNTRY_INFO!$H81=1,COUNTRY_INFO!F81,0))) -> 0 | F81: =IF(INTRO!$E$39<>"Non-endemic", 0, IF(INTRO!$E$37="Non-endemic",0,IF(COUNTRY_INFO!$H81=1,COUNTRY_INFO!G81,0))) -> 0 | G81: 0 | H81: =IF(INTRO!$E$39="Non-endemic",IF(INTRO!$E$37="Non-endemic","Not required",COUNTRY_INFO!Q81),"Treat with IVM") -> Treat with IVM | I81: =IF(H81=1,IF(ALB_MBD!$J81<>" ",$G81-ALB_MBD!$J81,$G81),0) -> 0 | J81: 0 | L81: 0 | M81: 0
A82: =IF(INTRO!$E$39<>"Non-endemic", " ", IF(INTRO!$E$37="Non-endemic"," ", IF(COUNTRY_INFO!A82=0," ",COUNTRY_INFO!A82))) ->  | B82: =IF(INTRO!$E$39<>"Non-endemic", " ", IF(INTRO!$E$37="Non-endemic"," ", IF(COUNTRY_INFO!B82=0," ",COUNTRY_INFO!B82))) ->  | C82: =IF(INTRO!$E$39<>"Non-endemic", " ", IF(INTRO!$E$37="Non-endemic"," ", IF(COUNTRY_INFO!C82=0," ",COUNTRY_INFO!C82))) ->  | D82: =IF(INTRO!$E$39<>"Non-endemic", 0, IF(INTRO!$E$37="Non-endemic",0,IF(COUNTRY_INFO!$H82=1,COUNTRY_INFO!E82,0))) -> 0 | E82: =IF(INTRO!$E$39<>"Non-endemic", 0, IF(INTRO!$E$37="Non-endemic",0,IF(COUNTRY_INFO!$H82=1,COUNTRY_INFO!F82,0))) -> 0 | F82: =IF(INTRO!$E$39<>"Non-endemic", 0, IF(INTRO!$E$37="Non-endemic",0,IF(COUNTRY_INFO!$H82=1,COUNTRY_INFO!G82,0))) -> 0 | G82: 0 | H82: =IF(INTRO!$E$39="Non-endemic",IF(INTRO!$E$37="Non-endemic","Not required",COUNTRY_INFO!Q82),"Treat with IVM") -> Treat with IVM | I82: =IF(H82=1,IF(ALB_MBD!$J82<>" ",$G82-ALB_MBD!$J82,$G82),0) -> 0 | J82: 0 | L82: 0 | M82: 0
A83: =IF(INTRO!$E$39<>"Non-endemic", " ", IF(INTRO!$E$37="Non-endemic"," ", IF(COUNTRY_INFO!A83=0," ",COUNTRY_INFO!A83))) ->  | B83: =IF(INTRO!$E$39<>"Non-endemic", " ", IF(INTRO!$E$37="Non-endemic"," ", IF(COUNTRY_INFO!B83=0," ",COUNTRY_INFO!B83))) ->  | C83: =IF(INTRO!$E$39<>"Non-endemic", " ", IF(INTRO!$E$37="Non-endemic"," ", IF(COUNTRY_INFO!C83=0," ",COUNTRY_INFO!C83))) ->  | D83: =IF(INTRO!$E$39<>"Non-endemic", 0, IF(INTRO!$E$37="Non-endemic",0,IF(COUNTRY_INFO!$H83=1,COUNTRY_INFO!E83,0))) -> 0 | E83: =IF(INTRO!$E$39<>"Non-endemic", 0, IF(INTRO!$E$37="Non-endemic",0,IF(COUNTRY_INFO!$H83=1,COUNTRY_INFO!F83,0))) -> 0 | F83: =IF(INTRO!$E$39<>"Non-endemic", 0, IF(INTRO!$E$37="Non-endemic",0,IF(COUNTRY_INFO!$H83=1,COUNTRY_INFO!G83,0))) -> 0 | G83: 0 | H83: =IF(INTRO!$E$39="Non-endemic",IF(INTRO!$E$37="Non-endemic","Not required",COUNTRY_INFO!Q83),"Treat with IVM") -> Treat with IVM | I83: =IF(H83=1,IF(ALB_MBD!$J83<>" ",$G83-ALB_MBD!$J83,$G83),0) -> 0 | J83: 0 | L83: 0 | M83: 0
A84: =IF(INTRO!$E$39<>"Non-endemic", " ", IF(INTRO!$E$37="Non-endemic"," ", IF(COUNTRY_INFO!A84=0," ",COUNTRY_INFO!A84))) ->  | B84: =IF(INTRO!$E$39<>"Non-endemic", " ", IF(INTRO!$E$37="Non-endemic"," ", IF(COUNTRY_INFO!B84=0," ",COUNTRY_INFO!B84))) ->  | C84: =IF(INTRO!$E$39<>"Non-endemic", " ", IF(INTRO!$E$37="Non-endemic"," ", IF(COUNTRY_INFO!C84=0," ",COUNTRY_INFO!C84))) ->  | D84: =IF(INTRO!$E$39<>"Non-endemic", 0, IF(INTRO!$E$37="Non-endemic",0,IF(COUNTRY_INFO!$H84=1,COUNTRY_INFO!E84,0))) -> 0 | E84: =IF(INTRO!$E$39<>"Non-endemic", 0, IF(INTRO!$E$37="Non-endemic",0,IF(COUNTRY_INFO!$H84=1,COUNTRY_INFO!F84,0))) -> 0 | F84: =IF(INTRO!$E$39<>"Non-endemic", 0, IF(INTRO!$E$37="Non-endemic",0,IF(COUNTRY_INFO!$H84=1,COUNTRY_INFO!G84,0))) -> 0 | G84: 0 | H84: =IF(INTRO!$E$39="Non-endemic",IF(INTRO!$E$37="Non-endemic","Not required",COUNTRY_INFO!Q84),"Treat with IVM") -> Treat with IVM | I84: =IF(H84=1,IF(ALB_MBD!$J84<>" ",$G84-ALB_MBD!$J84,$G84),0) -> 0 | J84: 0 | L84: 0 | M84: 0
A85: =IF(INTRO!$E$39<>"Non-endemic", " ", IF(INTRO!$E$37="Non-endemic"," ", IF(COUNTRY_INFO!A85=0," ",COUNTRY_INFO!A85))) ->  | B85: =IF(INTRO!$E$39<>"Non-endemic", " ", IF(INTRO!$E$37="Non-endemic"," ", IF(COUNTRY_INFO!B85=0," ",COUNTRY_INFO!B85))) ->  | C85: =IF(INTRO!$E$39<>"Non-endemic", " ", IF(INTRO!$E$37="Non-endemic"," ", IF(COUNTRY_INFO!C85=0," ",COUNTRY_INFO!C85))) ->  | D85: =IF(INTRO!$E$39<>"Non-endemic", 0, IF(INTRO!$E$37="Non-endemic",0,IF(COUNTRY_INFO!$H85=1,COUNTRY_INFO!E85,0))) -> 0 | E85: =IF(INTRO!$E$39<>"Non-endemic", 0, IF(INTRO!$E$37="Non-endemic",0,IF(COUNTRY_INFO!$H85=1,COUNTRY_INFO!F85,0))) -> 0 | F85: =IF(INTRO!$E$39<>"Non-endemic", 0, IF(INTRO!$E$37="Non-endemic",0,IF(COUNTRY_INFO!$H85=1,COUNTRY_INFO!G85,0))) -> 0 | G85: 0 | H85: =IF(INTRO!$E$39="Non-endemic",IF(INTRO!$E$37="Non-endemic","Not required",COUNTRY_INFO!Q85),"Treat with IVM") -> Treat with IVM | I85: =IF(H85=1,IF(ALB_MBD!$J85<>" ",$G85-ALB_MBD!$J85,$G85),0) -> 0 | J85: 0 | L85: 0 | M85: 0
A86: =IF(INTRO!$E$39<>"Non-endemic", " ", IF(INTRO!$E$37="Non-endemic"," ", IF(COUNTRY_INFO!A86=0," ",COUNTRY_INFO!A86))) ->  | B86: =IF(INTRO!$E$39<>"Non-endemic", " ", IF(INTRO!$E$37="Non-endemic"," ", IF(COUNTRY_INFO!B86=0," ",COUNTRY_INFO!B86))) ->  | C86: =IF(INTRO!$E$39<>"Non-endemic", " ", IF(INTRO!$E$37="Non-endemic"," ", IF(COUNTRY_INFO!C86=0," ",COUNTRY_INFO!C86))) ->  | D86: =IF(INTRO!$E$39<>"Non-endemic", 0, IF(INTRO!$E$37="Non-endemic",0,IF(COUNTRY_INFO!$H86=1,COUNTRY_INFO!E86,0))) -> 0 | E86: =IF(INTRO!$E$39<>"Non-endemic", 0, IF(INTRO!$E$37="Non-endemic",0,IF(COUNTRY_INFO!$H86=1,COUNTRY_INFO!F86,0))) -> 0 | F86: =IF(INTRO!$E$39<>"Non-endemic", 0, IF(INTRO!$E$37="Non-endemic",0,IF(COUNTRY_INFO!$H86=1,COUNTRY_INFO!G86,0))) -> 0 | G86: 0 | H86: =IF(INTRO!$E$39="Non-endemic",IF(INTRO!$E$37="Non-endemic","Not required",COUNTRY_INFO!Q86),"Treat with IVM") -> Treat with IVM | I86: =IF(H86=1,IF(ALB_MBD!$J86<>" ",$G86-ALB_MBD!$J86,$G86),0) -> 0 | J86: 0 | L86: 0 | M86: 0
A87: =IF(INTRO!$E$39<>"Non-endemic", " ", IF(INTRO!$E$37="Non-endemic"," ", IF(COUNTRY_INFO!A87=0," ",COUNTRY_INFO!A87))) ->  | B87: =IF(INTRO!$E$39<>"Non-endemic", " ", IF(INTRO!$E$37="Non-endemic"," ", IF(COUNTRY_INFO!B87=0," ",COUNTRY_INFO!B87))) ->  | C87: =IF(INTRO!$E$39<>"Non-endemic", " ", IF(INTRO!$E$37="Non-endemic"," ", IF(COUNTRY_INFO!C87=0," ",COUNTRY_INFO!C87))) ->  | D87: =IF(INTRO!$E$39<>"Non-endemic", 0, IF(INTRO!$E$37="Non-endemic",0,IF(COUNTRY_INFO!$H87=1,COUNTRY_INFO!E87,0))) -> 0 | E87: =IF(INTRO!$E$39<>"Non-endemic", 0, IF(INTRO!$E$37="Non-endemic",0,IF(COUNTRY_INFO!$H87=1,COUNTRY_INFO!F87,0))) -> 0 | F87: =IF(INTRO!$E$39<>"Non-endemic", 0, IF(INTRO!$E$37="Non-endemic",0,IF(COUNTRY_INFO!$H87=1,COUNTRY_INFO!G87,0))) -> 0 | G87: 0 | H87: =IF(INTRO!$E$39="Non-endemic",IF(INTRO!$E$37="Non-endemic","Not required",COUNTRY_INFO!Q87),"Treat with IVM") -> Treat with IVM | I87: =IF(H87=1,IF(ALB_MBD!$J87<>" ",$G87-ALB_MBD!$J87,$G87),0) -> 0 | J87: 0 | L87: 0 | M87: 0
A88: =IF(INTRO!$E$39<>"Non-endemic", " ", IF(INTRO!$E$37="Non-endemic"," ", IF(COUNTRY_INFO!A88=0," ",COUNTRY_INFO!A88))) ->  | B88: =IF(INTRO!$E$39<>"Non-endemic", " ", IF(INTRO!$E$37="Non-endemic"," ", IF(COUNTRY_INFO!B88=0," ",COUNTRY_INFO!B88))) ->  | C88: =IF(INTRO!$E$39<>"Non-endemic", " ", IF(INTRO!$E$37="Non-endemic"," ", IF(COUNTRY_INFO!C88=0," ",COUNTRY_INFO!C88))) ->  | D88: =IF(INTRO!$E$39<>"Non-endemic", 0, IF(INTRO!$E$37="Non-endemic",0,IF(COUNTRY_INFO!$H88=1,COUNTRY_INFO!E88,0))) -> 0 | E88: =IF(INTRO!$E$39<>"Non-endemic", 0, IF(INTRO!$E$37="Non-endemic",0,IF(COUNTRY_INFO!$H88=1,COUNTRY_INFO!F88,0))) -> 0 | F88: =IF(INTRO!$E$39<>"Non-endemic", 0, IF(INTRO!$E$37="Non-endemic",0,IF(COUNTRY_INFO!$H88=1,COUNTRY_INFO!G88,0))) -> 0 | G88: 0 | H88: =IF(INTRO!$E$39="Non-endemic",IF(INTRO!$E$37="Non-endemic","Not required",COUNTRY_INFO!Q88),"Treat with IVM") -> Treat with IVM | I88: =IF(H88=1,IF(ALB_MBD!$J88<>" ",$G88-ALB_MBD!$J88,$G88),0) -> 0 | J88: 0 | L88: 0 | M88: 0
A89: =IF(INTRO!$E$39<>"Non-endemic", " ", IF(INTRO!$E$37="Non-endemic"," ", IF(COUNTRY_INFO!A89=0," ",COUNTRY_INFO!A89))) ->  | B89: =IF(INTRO!$E$39<>"Non-endemic", " ", IF(INTRO!$E$37="Non-endemic"," ", IF(COUNTRY_INFO!B89=0," ",COUNTRY_INFO!B89))) ->  | C89: =IF(INTRO!$E$39<>"Non-endemic", " ", IF(INTRO!$E$37="Non-endemic"," ", IF(COUNTRY_INFO!C89=0," ",COUNTRY_INFO!C89))) ->  | D89: =IF(INTRO!$E$39<>"Non-endemic", 0, IF(INTRO!$E$37="Non-endemic",0,IF(COUNTRY_INFO!$H89=1,COUNTRY_INFO!E89,0))) -> 0 | E89: =IF(INTRO!$E$39<>"Non-endemic", 0, IF(INTRO!$E$37="Non-endemic",0,IF(COUNTRY_INFO!$H89=1,COUNTRY_INFO!F89,0))) -> 0 | F89: =IF(INTRO!$E$39<>"Non-endemic", 0, IF(INTRO!$E$37="Non-endemic",0,IF(COUNTRY_INFO!$H89=1,COUNTRY_INFO!G89,0))) -> 0 | G89: 0 | H89: =IF(INTRO!$E$39="Non-endemic",IF(INTRO!$E$37="Non-endemic","Not required",COUNTRY_INFO!Q89),"Treat with IVM") -> Treat with IVM | I89: =IF(H89=1,IF(ALB_MBD!$J89<>" ",$G89-ALB_MBD!$J89,$G89),0) -> 0 | J89: 0 | L89: 0 | M89: 0
A90: =IF(INTRO!$E$39<>"Non-endemic", " ", IF(INTRO!$E$37="Non-endemic"," ", IF(COUNTRY_INFO!A90=0," ",COUNTRY_INFO!A90))) ->  | B90: =IF(INTRO!$E$39<>"Non-endemic", " ", IF(INTRO!$E$37="Non-endemic"," ", IF(COUNTRY_INFO!B90=0," ",COUNTRY_INFO!B90))) ->  | C90: =IF(INTRO!$E$39<>"Non-endemic", " ", IF(INTRO!$E$37="Non-endemic"," ", IF(COUNTRY_INFO!C90=0," ",COUNTRY_INFO!C90))) ->  | D90: =IF(INTRO!$E$39<>"Non-endemic", 0, IF(INTRO!$E$37="Non-endemic",0,IF(COUNTRY_INFO!$H90=1,COUNTRY_INFO!E90,0))) -> 0 | E90: =IF(INTRO!$E$39<>"Non-endemic", 0, IF(INTRO!$E$37="Non-endemic",0,IF(COUNTRY_INFO!$H90=1,COUNTRY_INFO!F90,0))) -> 0 | F90: =IF(INTRO!$E$39<>"Non-endemic", 0, IF(INTRO!$E$37="Non-endemic",0,IF(COUNTRY_INFO!$H90=1,COUNTRY_INFO!G90,0))) -> 0 | G90: 0 | H90: =IF(INTRO!$E$39="Non-endemic",IF(INTRO!$E$37="Non-endemic","Not required",COUNTRY_INFO!Q90),"Treat with IVM") -> Treat with IVM | I90: =IF(H90=1,IF(ALB_MBD!$J90<>" ",$G90-ALB_MBD!$J90,$G90),0) -> 0 | J90: 0 | L90: 0 | M90: 0
A91: =IF(INTRO!$E$39<>"Non-endemic", " ", IF(INTRO!$E$37="Non-endemic"," ", IF(COUNTRY_INFO!A91=0," ",COUNTRY_INFO!A91))) ->  | B91: =IF(INTRO!$E$39<>"Non-endemic", " ", IF(INTRO!$E$37="Non-endemic"," ", IF(COUNTRY_INFO!B91=0," ",COUNTRY_INFO!B91))) ->  | C91: =IF(INTRO!$E$39<>"Non-endemic", " ", IF(INTRO!$E$37="Non-endemic"," ", IF(COUNTRY_INFO!C91=0," ",COUNTRY_INFO!C91))) ->  | D91: =IF(INTRO!$E$39<>"Non-endemic", 0, IF(INTRO!$E$37="Non-endemic",0,IF(COUNTRY_INFO!$H91=1,COUNTRY_INFO!E91,0))) -> 0 | E91: =IF(INTRO!$E$39<>"Non-endemic", 0, IF(INTRO!$E$37="Non-endemic",0,IF(COUNTRY_INFO!$H91=1,COUNTRY_INFO!F91,0))) -> 0 | F91: =IF(INTRO!$E$39<>"Non-endemic", 0, IF(INTRO!$E$37="Non-endemic",0,IF(COUNTRY_INFO!$H91=1,COUNTRY_INFO!G91,0))) -> 0 | G91: 0 | H91: =IF(INTRO!$E$39="Non-endemic",IF(INTRO!$E$37="Non-endemic","Not required",COUNTRY_INFO!Q91),"Treat with IVM") -> Treat with IVM | I91: =IF(H91=1,IF(ALB_MBD!$J91<>" ",$G91-ALB_MBD!$J91,$G91),0) -> 0 | J91: 0 | L91: 0 | M91: 0
A92: =IF(INTRO!$E$39<>"Non-endemic", " ", IF(INTRO!$E$37="Non-endemic"," ", IF(COUNTRY_INFO!A92=0," ",COUNTRY_INFO!A92))) ->  | B92: =IF(INTRO!$E$39<>"Non-endemic", " ", IF(INTRO!$E$37="Non-endemic"," ", IF(COUNTRY_INFO!B92=0," ",COUNTRY_INFO!B92))) ->  | C92: =IF(INTRO!$E$39<>"Non-endemic", " ", IF(INTRO!$E$37="Non-endemic"," ", IF(COUNTRY_INFO!C92=0," ",COUNTRY_INFO!C92))) ->  | D92: =IF(INTRO!$E$39<>"Non-endemic", 0, IF(INTRO!$E$37="Non-endemic",0,IF(COUNTRY_INFO!$H92=1,COUNTRY_INFO!E92,0))) -> 0 | E92: =IF(INTRO!$E$39<>"Non-endemic", 0, IF(INTRO!$E$37="Non-endemic",0,IF(COUNTRY_INFO!$H92=1,COUNTRY_INFO!F92,0))) -> 0 | F92: =IF(INTRO!$E$39<>"Non-endemic", 0, IF(INTRO!$E$37="Non-endemic",0,IF(COUNTRY_INFO!$H92=1,COUNTRY_INFO!G92,0))) -> 0 | G92: 0 | H92: =IF(INTRO!$E$39="Non-endemic",IF(INTRO!$E$37="Non-endemic","Not required",COUNTRY_INFO!Q92),"Treat with IVM") -> Treat with IVM | I92: =IF(H92=1,IF(ALB_MBD!$J92<>" ",$G92-ALB_MBD!$J92,$G92),0) -> 0 | J92: 0 | L92: 0 | M92: 0
A93: =IF(INTRO!$E$39<>"Non-endemic", " ", IF(INTRO!$E$37="Non-endemic"," ", IF(COUNTRY_INFO!A93=0," ",COUNTRY_INFO!A93))) ->  | B93: =IF(INTRO!$E$39<>"Non-endemic", " ", IF(INTRO!$E$37="Non-endemic"," ", IF(COUNTRY_INFO!B93=0," ",COUNTRY_INFO!B93))) ->  | C93: =IF(INTRO!$E$39<>"Non-endemic", " ", IF(INTRO!$E$37="Non-endemic"," ", IF(COUNTRY_INFO!C93=0," ",COUNTRY_INFO!C93))) ->  | D93: =IF(INTRO!$E$39<>"Non-endemic", 0, IF(INTRO!$E$37="Non-endemic",0,IF(COUNTRY_INFO!$H93=1,COUNTRY_INFO!E93,0))) -> 0 | E93: =IF(INTRO!$E$39<>"Non-endemic", 0, IF(INTRO!$E$37="Non-endemic",0,IF(COUNTRY_INFO!$H93=1,COUNTRY_INFO!F93,0))) -> 0 | F93: =IF(INTRO!$E$39<>"Non-endemic", 0, IF(INTRO!$E$37="Non-endemic",0,IF(COUNTRY_INFO!$H93=1,COUNTRY_INFO!G93,0))) -> 0 | G93: 0 | H93: =IF(INTRO!$E$39="Non-endemic",IF(INTRO!$E$37="Non-endemic","Not required",COUNTRY_INFO!Q93),"Treat with IVM") -> Treat with IVM | I93: =IF(H93=1,IF(ALB_MBD!$J93<>" ",$G93-ALB_MBD!$J93,$G93),0) -> 0 | J93: 0 | L93: 0 | M93: 0
A94: =IF(INTRO!$E$39<>"Non-endemic", " ", IF(INTRO!$E$37="Non-endemic"," ", IF(COUNTRY_INFO!A94=0," ",COUNTRY_INFO!A94))) ->  | B94: =IF(INTRO!$E$39<>"Non-endemic", " ", IF(INTRO!$E$37="Non-endemic"," ", IF(COUNTRY_INFO!B94=0," ",COUNTRY_INFO!B94))) ->  | C94: =IF(INTRO!$E$39<>"Non-endemic", " ", IF(INTRO!$E$37="Non-endemic"," ", IF(COUNTRY_INFO!C94=0," ",COUNTRY_INFO!C94))) ->  | D94: =IF(INTRO!$E$39<>"Non-endemic", 0, IF(INTRO!$E$37="Non-endemic",0,IF(COUNTRY_INFO!$H94=1,COUNTRY_INFO!E94,0))) -> 0 | E94: =IF(INTRO!$E$39<>"Non-endemic", 0, IF(INTRO!$E$37="Non-endemic",0,IF(COUNTRY_INFO!$H94=1,COUNTRY_INFO!F94,0))) -> 0 | F94: =IF(INTRO!$E$39<>"Non-endemic", 0, IF(INTRO!$E$37="Non-endemic",0,IF(COUNTRY_INFO!$H94=1,COUNTRY_INFO!G94,0))) -> 0 | G94: 0 | H94: =IF(INTRO!$E$39="Non-endemic",IF(INTRO!$E$37="Non-endemic","Not required",COUNTRY_INFO!Q94),"Treat with IVM") -> Treat with IVM | I94: =IF(H94=1,IF(ALB_MBD!$J94<>" ",$G94-ALB_MBD!$J94,$G94),0) -> 0 | J94: 0 | L94: 0 | M94: 0
A95: =IF(INTRO!$E$39<>"Non-endemic", " ", IF(INTRO!$E$37="Non-endemic"," ", IF(COUNTRY_INFO!A95=0," ",COUNTRY_INFO!A95))) ->  | B95: =IF(INTRO!$E$39<>"Non-endemic", " ", IF(INTRO!$E$37="Non-endemic"," ", IF(COUNTRY_INFO!B95=0," ",COUNTRY_INFO!B95))) ->  | C95: =IF(INTRO!$E$39<>"Non-endemic", " ", IF(INTRO!$E$37="Non-endemic"," ", IF(COUNTRY_INFO!C95=0," ",COUNTRY_INFO!C95))) ->  | D95: =IF(INTRO!$E$39<>"Non-endemic", 0, IF(INTRO!$E$37="Non-endemic",0,IF(COUNTRY_INFO!$H95=1,COUNTRY_INFO!E95,0))) -> 0 | E95: =IF(INTRO!$E$39<>"Non-endemic", 0, IF(INTRO!$E$37="Non-endemic",0,IF(COUNTRY_INFO!$H95=1,COUNTRY_INFO!F95,0))) -> 0 | F95: =IF(INTRO!$E$39<>"Non-endemic", 0, IF(INTRO!$E$37="Non-endemic",0,IF(COUNTRY_INFO!$H95=1,COUNTRY_INFO!G95,0))) -> 0 | G95: 0 | H95: =IF(INTRO!$E$39="Non-endemic",IF(INTRO!$E$37="Non-endemic","Not required",COUNTRY_INFO!Q95),"Treat with IVM") -> Treat with IVM | I95: =IF(H95=1,IF(ALB_MBD!$J95<>" ",$G95-ALB_MBD!$J95,$G95),0) -> 0 | J95: 0 | L95: 0 | M95: 0
A96: =IF(INTRO!$E$39<>"Non-endemic", " ", IF(INTRO!$E$37="Non-endemic"," ", IF(COUNTRY_INFO!A96=0," ",COUNTRY_INFO!A96))) ->  | B96: =IF(INTRO!$E$39<>"Non-endemic", " ", IF(INTRO!$E$37="Non-endemic"," ", IF(COUNTRY_INFO!B96=0," ",COUNTRY_INFO!B96))) ->  | C96: =IF(INTRO!$E$39<>"Non-endemic", " ", IF(INTRO!$E$37="Non-endemic"," ", IF(COUNTRY_INFO!C96=0," ",COUNTRY_INFO!C96))) ->  | D96: =IF(INTRO!$E$39<>"Non-endemic", 0, IF(INTRO!$E$37="Non-endemic",0,IF(COUNTRY_INFO!$H96=1,COUNTRY_INFO!E96,0))) -> 0 | E96: =IF(INTRO!$E$39<>"Non-endemic", 0, IF(INTRO!$E$37="Non-endemic",0,IF(COUNTRY_INFO!$H96=1,COUNTRY_INFO!F96,0))) -> 0 | F96: =IF(INTRO!$E$39<>"Non-endemic", 0, IF(INTRO!$E$37="Non-endemic",0,IF(COUNTRY_INFO!$H96=1,COUNTRY_INFO!G96,0))) -> 0 | G96: 0 | H96: =IF(INTRO!$E$39="Non-endemic",IF(INTRO!$E$37="Non-endemic","Not required",COUNTRY_INFO!Q96),"Treat with IVM") -> Treat with IVM | I96: =IF(H96=1,IF(ALB_MBD!$J96<>" ",$G96-ALB_MBD!$J96,$G96),0) -> 0 | J96: 0 | L96: 0 | M96: 0
A97: =IF(INTRO!$E$39<>"Non-endemic", " ", IF(INTRO!$E$37="Non-endemic"," ", IF(COUNTRY_INFO!A97=0," ",COUNTRY_INFO!A97))) ->  | B97: =IF(INTRO!$E$39<>"Non-endemic", " ", IF(INTRO!$E$37="Non-endemic"," ", IF(COUNTRY_INFO!B97=0," ",COUNTRY_INFO!B97))) ->  | C97: =IF(INTRO!$E$39<>"Non-endemic", " ", IF(INTRO!$E$37="Non-endemic"," ", IF(COUNTRY_INFO!C97=0," ",COUNTRY_INFO!C97))) ->  | D97: =IF(INTRO!$E$39<>"Non-endemic", 0, IF(INTRO!$E$37="Non-endemic",0,IF(COUNTRY_INFO!$H97=1,COUNTRY_INFO!E97,0))) -> 0 | E97: =IF(INTRO!$E$39<>"Non-endemic", 0, IF(INTRO!$E$37="Non-endemic",0,IF(COUNTRY_INFO!$H97=1,COUNTRY_INFO!F97,0))) -> 0 | F97: =IF(INTRO!$E$39<>"Non-endemic", 0, IF(INTRO!$E$37="Non-endemic",0,IF(COUNTRY_INFO!$H97=1,COUNTRY_INFO!G97,0))) -> 0 | G97: 0 | H97: =IF(INTRO!$E$39="Non-endemic",IF(INTRO!$E$37="Non-endemic","Not required",COUNTRY_INFO!Q97),"Treat with IVM") -> Treat with IVM | I97: =IF(H97=1,IF(ALB_MBD!$J97<>" ",$G97-ALB_MBD!$J97,$G97),0) -> 0 | J97: 0 | L97: 0 | M97: 0
A98: =IF(INTRO!$E$39<>"Non-endemic", " ", IF(INTRO!$E$37="Non-endemic"," ", IF(COUNTRY_INFO!A98=0," ",COUNTRY_INFO!A98))) ->  | B98: =IF(INTRO!$E$39<>"Non-endemic", " ", IF(INTRO!$E$37="Non-endemic"," ", IF(COUNTRY_INFO!B98=0," ",COUNTRY_INFO!B98))) ->  | C98: =IF(INTRO!$E$39<>"Non-endemic", " ", IF(INTRO!$E$37="Non-endemic"," ", IF(COUNTRY_INFO!C98=0," ",COUNTRY_INFO!C98))) ->  | D98: =IF(INTRO!$E$39<>"Non-endemic", 0, IF(INTRO!$E$37="Non-endemic",0,IF(COUNTRY_INFO!$H98=1,COUNTRY_INFO!E98,0))) -> 0 | E98: =IF(INTRO!$E$39<>"Non-endemic", 0, IF(INTRO!$E$37="Non-endemic",0,IF(COUNTRY_INFO!$H98=1,COUNTRY_INFO!F98,0))) -> 0 | F98: =IF(INTRO!$E$39<>"Non-endemic", 0, IF(INTRO!$E$37="Non-endemic",0,IF(COUNTRY_INFO!$H98=1,COUNTRY_INFO!G98,0))) -> 0 | G98: 0 | H98: =IF(INTRO!$E$39="Non-endemic",IF(INTRO!$E$37="Non-endemic","Not required",COUNTRY_INFO!Q98),"Treat with IVM") -> Treat with IVM | I98: =IF(H98=1,IF(ALB_MBD!$J98<>" ",$G98-ALB_MBD!$J98,$G98),0) -> 0 | J98: 0 | L98: 0 | M98: 0
A99: =IF(INTRO!$E$39<>"Non-endemic", " ", IF(INTRO!$E$37="Non-endemic"," ", IF(COUNTRY_INFO!A99=0," ",COUNTRY_INFO!A99))) ->  | B99: =IF(INTRO!$E$39<>"Non-endemic", " ", IF(INTRO!$E$37="Non-endemic"," ", IF(COUNTRY_INFO!B99=0," ",COUNTRY_INFO!B99))) ->  | C99: =IF(INTRO!$E$39<>"Non-endemic", " ", IF(INTRO!$E$37="Non-endemic"," ", IF(COUNTRY_INFO!C99=0," ",COUNTRY_INFO!C99))) ->  | D99: =IF(INTRO!$E$39<>"Non-endemic", 0, IF(INTRO!$E$37="Non-endemic",0,IF(COUNTRY_INFO!$H99=1,COUNTRY_INFO!E99,0))) -> 0 | E99: =IF(INTRO!$E$39<>"Non-endemic", 0, IF(INTRO!$E$37="Non-endemic",0,IF(COUNTRY_INFO!$H99=1,COUNTRY_INFO!F99,0))) -> 0 | F99: =IF(INTRO!$E$39<>"Non-endemic", 0, IF(INTRO!$E$37="Non-endemic",0,IF(COUNTRY_INFO!$H99=1,COUNTRY_INFO!G99,0))) -> 0 | G99: 0 | H99: =IF(INTRO!$E$39="Non-endemic",IF(INTRO!$E$37="Non-endemic","Not required",COUNTRY_INFO!Q99),"Treat with IVM") -> Treat with IVM | I99: =IF(H99=1,IF(ALB_MBD!$J99<>" ",$G99-ALB_MBD!$J99,$G99),0) -> 0 | J99: 0 | L99: 0 | M99: 0
A100: =IF(INTRO!$E$39<>"Non-endemic", " ", IF(INTRO!$E$37="Non-endemic"," ", IF(COUNTRY_INFO!A100=0," ",COUNTRY_INFO!A100))) ->  | B100: =IF(INTRO!$E$39<>"Non-endemic", " ", IF(INTRO!$E$37="Non-endemic"," ", IF(COUNTRY_INFO!B100=0," ",COUNTRY_INFO!B100))) ->  | C100: =IF(INTRO!$E$39<>"Non-endemic", " ", IF(INTRO!$E$37="Non-endemic"," ", IF(COUNTRY_INFO!C100=0," ",COUNTRY_INFO!C100))) ->  | D100: =IF(INTRO!$E$39<>"Non-endemic", 0, IF(INTRO!$E$37="Non-endemic",0,IF(COUNTRY_INFO!$H100=1,COUNTRY_INFO!E100,0))) -> 0 | E100: =IF(INTRO!$E$39<>"Non-endemic", 0, IF(INTRO!$E$37="Non-endemic",0,IF(COUNTRY_INFO!$H100=1,COUNTRY_INFO!F100,0))) -> 0 | F100: =IF(INTRO!$E$39<>"Non-endemic", 0, IF(INTRO!$E$37="Non-endemic",0,IF(COUNTRY_INFO!$H100=1,COUNTRY_INFO!G100,0))) -> 0 | G100: 0 | H100: =IF(INTRO!$E$39="Non-endemic",IF(INTRO!$E$37="Non-endemic","Not required",COUNTRY_INFO!Q100),"Treat with IVM") -> Treat with IVM | I100: =IF(H100=1,IF(ALB_MBD!$J100<>" ",$G100-ALB_MBD!$J100,$G100),0) -> 0 | J100: 0 | L100: 0 | M100: 0
A101: =IF(INTRO!$E$39<>"Non-endemic", " ", IF(INTRO!$E$37="Non-endemic"," ", IF(COUNTRY_INFO!A101=0," ",COUNTRY_INFO!A101))) ->  | B101: =IF(INTRO!$E$39<>"Non-endemic", " ", IF(INTRO!$E$37="Non-endemic"," ", IF(COUNTRY_INFO!B101=0," ",COUNTRY_INFO!B101))) ->  | C101: =IF(INTRO!$E$39<>"Non-endemic", " ", IF(INTRO!$E$37="Non-endemic"," ", IF(COUNTRY_INFO!C101=0," ",COUNTRY_INFO!C101))) ->  | D101: =IF(INTRO!$E$39<>"Non-endemic", 0, IF(INTRO!$E$37="Non-endemic",0,IF(COUNTRY_INFO!$H101=1,COUNTRY_INFO!E101,0))) -> 0 | E101: =IF(INTRO!$E$39<>"Non-endemic", 0, IF(INTRO!$E$37="Non-endemic",0,IF(COUNTRY_INFO!$H101=1,COUNTRY_INFO!F101,0))) -> 0 | F101: =IF(INTRO!$E$39<>"Non-endemic", 0, IF(INTRO!$E$37="Non-endemic",0,IF(COUNTRY_INFO!$H101=1,COUNTRY_INFO!G101,0))) -> 0 | G101: 0 | H101: =IF(INTRO!$E$39="Non-endemic",IF(INTRO!$E$37="Non-endemic","Not required",COUNTRY_INFO!Q101),"Treat with IVM") -> Treat with IVM | I101: =IF(H101=1,IF(ALB_MBD!$J101<>" ",$G101-ALB_MBD!$J101,$G101),0) -> 0 | J101: 0 | L101: 0 | M101: 0
A102: =IF(INTRO!$E$39<>"Non-endemic", " ", IF(INTRO!$E$37="Non-endemic"," ", IF(COUNTRY_INFO!A102=0," ",COUNTRY_INFO!A102))) ->  | B102: =IF(INTRO!$E$39<>"Non-endemic", " ", IF(INTRO!$E$37="Non-endemic"," ", IF(COUNTRY_INFO!B102=0," ",COUNTRY_INFO!B102))) ->  | C102: =IF(INTRO!$E$39<>"Non-endemic", " ", IF(INTRO!$E$37="Non-endemic"," ", IF(COUNTRY_INFO!C102=0," ",COUNTRY_INFO!C102))) ->  | D102: =IF(INTRO!$E$39<>"Non-endemic", 0, IF(INTRO!$E$37="Non-endemic",0,IF(COUNTRY_INFO!$H102=1,COUNTRY_INFO!E102,0))) -> 0 | E102: =IF(INTRO!$E$39<>"Non-endemic", 0, IF(INTRO!$E$37="Non-endemic",0,IF(COUNTRY_INFO!$H102=1,COUNTRY_INFO!F102,0))) -> 0 | F102: =IF(INTRO!$E$39<>"Non-endemic", 0, IF(INTRO!$E$37="Non-endemic",0,IF(COUNTRY_INFO!$H102=1,COUNTRY_INFO!G102,0))) -> 0 | G102: 0 | H102: =IF(INTRO!$E$39="Non-endemic",IF(INTRO!$E$37="Non-endemic","Not required",COUNTRY_INFO!Q102),"Treat with IVM") -> Treat with IVM | I102: =IF(H102=1,IF(ALB_MBD!$J102<>" ",$G102-ALB_MBD!$J102,$G102),0) -> 0 | J102: 0 | L102: 0 | M102: 0
A103: =IF(INTRO!$E$39<>"Non-endemic", " ", IF(INTRO!$E$37="Non-endemic"," ", IF(COUNTRY_INFO!A103=0," ",COUNTRY_INFO!A103))) ->  | B103: =IF(INTRO!$E$39<>"Non-endemic", " ", IF(INTRO!$E$37="Non-endemic"," ", IF(COUNTRY_INFO!B103=0," ",COUNTRY_INFO!B103))) ->  | C103: =IF(INTRO!$E$39<>"Non-endemic", " ", IF(INTRO!$E$37="Non-endemic"," ", IF(COUNTRY_INFO!C103=0," ",COUNTRY_INFO!C103))) ->  | D103: =IF(INTRO!$E$39<>"Non-endemic", 0, IF(INTRO!$E$37="Non-endemic",0,IF(COUNTRY_INFO!$H103=1,COUNTRY_INFO!E103,0))) -> 0 | E103: =IF(INTRO!$E$39<>"Non-endemic", 0, IF(INTRO!$E$37="Non-endemic",0,IF(COUNTRY_INFO!$H103=1,COUNTRY_INFO!F103,0))) -> 0 | F103: =IF(INTRO!$E$39<>"Non-endemic", 0, IF(INTRO!$E$37="Non-endemic",0,IF(COUNTRY_INFO!$H103=1,COUNTRY_INFO!G103,0))) -> 0 | G103: 0 | H103: =IF(INTRO!$E$39="Non-endemic",IF(INTRO!$E$37="Non-endemic","Not required",COUNTRY_INFO!Q103),"Treat with IVM") -> Treat with IVM | I103: =IF(H103=1,IF(ALB_MBD!$J103<>" ",$G103-ALB_MBD!$J103,$G103),0) -> 0 | J103: 0 | L103: 0 | M103: 0
A104: =IF(INTRO!$E$39<>"Non-endemic", " ", IF(INTRO!$E$37="Non-endemic"," ", IF(COUNTRY_INFO!A104=0," ",COUNTRY_INFO!A104))) ->  | B104: =IF(INTRO!$E$39<>"Non-endemic", " ", IF(INTRO!$E$37="Non-endemic"," ", IF(COUNTRY_INFO!B104=0," ",COUNTRY_INFO!B104))) ->  | C104: =IF(INTRO!$E$39<>"Non-endemic", " ", IF(INTRO!$E$37="Non-endemic"," ", IF(COUNTRY_INFO!C104=0," ",COUNTRY_INFO!C104))) ->  | D104: =IF(INTRO!$E$39<>"Non-endemic", 0, IF(INTRO!$E$37="Non-endemic",0,IF(COUNTRY_INFO!$H104=1,COUNTRY_INFO!E104,0))) -> 0 | E104: =IF(INTRO!$E$39<>"Non-endemic", 0, IF(INTRO!$E$37="Non-endemic",0,IF(COUNTRY_INFO!$H104=1,COUNTRY_INFO!F104,0))) -> 0 | F104: =IF(INTRO!$E$39<>"Non-endemic", 0, IF(INTRO!$E$37="Non-endemic",0,IF(COUNTRY_INFO!$H104=1,COUNTRY_INFO!G104,0))) -> 0 | G104: 0 | H104: =IF(INTRO!$E$39="Non-endemic",IF(INTRO!$E$37="Non-endemic","Not required",COUNTRY_INFO!Q104),"Treat with IVM") -> Treat with IVM | I104: =IF(H104=1,IF(ALB_MBD!$J104<>" ",$G104-ALB_MBD!$J104,$G104),0) -> 0 | J104: 0 | L104: 0 | M104: 0
A105: =IF(INTRO!$E$39<>"Non-endemic", " ", IF(INTRO!$E$37="Non-endemic"," ", IF(COUNTRY_INFO!A105=0," ",COUNTRY_INFO!A105))) ->  | B105: =IF(INTRO!$E$39<>"Non-endemic", " ", IF(INTRO!$E$37="Non-endemic"," ", IF(COUNTRY_INFO!B105=0," ",COUNTRY_INFO!B105))) ->  | C105: =IF(INTRO!$E$39<>"Non-endemic", " ", IF(INTRO!$E$37="Non-endemic"," ", IF(COUNTRY_INFO!C105=0," ",COUNTRY_INFO!C105))) ->  | D105: =IF(INTRO!$E$39<>"Non-endemic", 0, IF(INTRO!$E$37="Non-endemic",0,IF(COUNTRY_INFO!$H105=1,COUNTRY_INFO!E105,0))) -> 0 | E105: =IF(INTRO!$E$39<>"Non-endemic", 0, IF(INTRO!$E$37="Non-endemic",0,IF(COUNTRY_INFO!$H105=1,COUNTRY_INFO!F105,0))) -> 0 | F105: =IF(INTRO!$E$39<>"Non-endemic", 0, IF(INTRO!$E$37="Non-endemic",0,IF(COUNTRY_INFO!$H105=1,COUNTRY_INFO!G105,0))) -> 0 | G105: 0 | H105: =IF(INTRO!$E$39="Non-endemic",IF(INTRO!$E$37="Non-endemic","Not required",COUNTRY_INFO!Q105),"Treat with IVM") -> Treat with IVM | I105: =IF(H105=1,IF(ALB_MBD!$J105<>" ",$G105-ALB_MBD!$J105,$G105),0) -> 0 | J105: 0 | L105: 0 | M105: 0
A106: =IF(INTRO!$E$39<>"Non-endemic", " ", IF(INTRO!$E$37="Non-endemic"," ", IF(COUNTRY_INFO!A106=0," ",COUNTRY_INFO!A106))) ->  | B106: =IF(INTRO!$E$39<>"Non-endemic", " ", IF(INTRO!$E$37="Non-endemic"," ", IF(COUNTRY_INFO!B106=0," ",COUNTRY_INFO!B106))) ->  | C106: =IF(INTRO!$E$39<>"Non-endemic", " ", IF(INTRO!$E$37="Non-endemic"," ", IF(COUNTRY_INFO!C106=0," ",COUNTRY_INFO!C106))) ->  | D106: =IF(INTRO!$E$39<>"Non-endemic", 0, IF(INTRO!$E$37="Non-endemic",0,IF(COUNTRY_INFO!$H106=1,COUNTRY_INFO!E106,0))) -> 0 | E106: =IF(INTRO!$E$39<>"Non-endemic", 0, IF(INTRO!$E$37="Non-endemic",0,IF(COUNTRY_INFO!$H106=1,COUNTRY_INFO!F106,0))) -> 0 | F106: =IF(INTRO!$E$39<>"Non-endemic", 0, IF(INTRO!$E$37="Non-endemic",0,IF(COUNTRY_INFO!$H106=1,COUNTRY_INFO!G106,0))) -> 0 | G106: 0 | H106: =IF(INTRO!$E$39="Non-endemic",IF(INTRO!$E$37="Non-endemic","Not required",COUNTRY_INFO!Q106),"Treat with IVM") -> Treat with IVM | I106: =IF(H106=1,IF(ALB_MBD!$J106<>" ",$G106-ALB_MBD!$J106,$G106),0) -> 0 | J106: 0 | L106: 0 | M106: 0
A107: =IF(INTRO!$E$39<>"Non-endemic", " ", IF(INTRO!$E$37="Non-endemic"," ", IF(COUNTRY_INFO!A107=0," ",COUNTRY_INFO!A107))) ->  | B107: =IF(INTRO!$E$39<>"Non-endemic", " ", IF(INTRO!$E$37="Non-endemic"," ", IF(COUNTRY_INFO!B107=0," ",COUNTRY_INFO!B107))) ->  | C107: =IF(INTRO!$E$39<>"Non-endemic", " ", IF(INTRO!$E$37="Non-endemic"," ", IF(COUNTRY_INFO!C107=0," ",COUNTRY_INFO!C107))) ->  | D107: =IF(INTRO!$E$39<>"Non-endemic", 0, IF(INTRO!$E$37="Non-endemic",0,IF(COUNTRY_INFO!$H107=1,COUNTRY_INFO!E107,0))) -> 0 | E107: =IF(INTRO!$E$39<>"Non-endemic", 0, IF(INTRO!$E$37="Non-endemic",0,IF(COUNTRY_INFO!$H107=1,COUNTRY_INFO!F107,0))) -> 0 | F107: =IF(INTRO!$E$39<>"Non-endemic", 0, IF(INTRO!$E$37="Non-endemic",0,IF(COUNTRY_INFO!$H107=1,COUNTRY_INFO!G107,0))) -> 0 | G107: 0 | H107: =IF(INTRO!$E$39="Non-endemic",IF(INTRO!$E$37="Non-endemic","Not required",COUNTRY_INFO!Q107),"Treat with IVM") -> Treat with IVM | I107: =IF(H107=1,IF(ALB_MBD!$J107<>" ",$G107-ALB_MBD!$J107,$G107),0) -> 0 | J107: 0 | L107: 0 | M107: 0
A108: =IF(INTRO!$E$39<>"Non-endemic", " ", IF(INTRO!$E$37="Non-endemic"," ", IF(COUNTRY_INFO!A108=0," ",COUNTRY_INFO!A108))) ->  | B108: =IF(INTRO!$E$39<>"Non-endemic", " ", IF(INTRO!$E$37="Non-endemic"," ", IF(COUNTRY_INFO!B108=0," ",COUNTRY_INFO!B108))) ->  | C108: =IF(INTRO!$E$39<>"Non-endemic", " ", IF(INTRO!$E$37="Non-endemic"," ", IF(COUNTRY_INFO!C108=0," ",COUNTRY_INFO!C108))) ->  | D108: =IF(INTRO!$E$39<>"Non-endemic", 0, IF(INTRO!$E$37="Non-endemic",0,IF(COUNTRY_INFO!$H108=1,COUNTRY_INFO!E108,0))) -> 0 | E108: =IF(INTRO!$E$39<>"Non-endemic", 0, IF(INTRO!$E$37="Non-endemic",0,IF(COUNTRY_INFO!$H108=1,COUNTRY_INFO!F108,0))) -> 0 | F108: =IF(INTRO!$E$39<>"Non-endemic", 0, IF(INTRO!$E$37="Non-endemic",0,IF(COUNTRY_INFO!$H108=1,COUNTRY_INFO!G108,0))) -> 0 | G108: 0 | H108: =IF(INTRO!$E$39="Non-endemic",IF(INTRO!$E$37="Non-endemic","Not required",COUNTRY_INFO!Q108),"Treat with IVM") -> Treat with IVM | I108: =IF(H108=1,IF(ALB_MBD!$J108<>" ",$G108-ALB_MBD!$J108,$G108),0) -> 0 | J108: 0 | L108: 0 | M108: 0
A109: =IF(INTRO!$E$39<>"Non-endemic", " ", IF(INTRO!$E$37="Non-endemic"," ", IF(COUNTRY_INFO!A109=0," ",COUNTRY_INFO!A109))) ->  | B109: =IF(INTRO!$E$39<>"Non-endemic", " ", IF(INTRO!$E$37="Non-endemic"," ", IF(COUNTRY_INFO!B109=0," ",COUNTRY_INFO!B109))) ->  | C109: =IF(INTRO!$E$39<>"Non-endemic", " ", IF(INTRO!$E$37="Non-endemic"," ", IF(COUNTRY_INFO!C109=0," ",COUNTRY_INFO!C109))) ->  | D109: =IF(INTRO!$E$39<>"Non-endemic", 0, IF(INTRO!$E$37="Non-endemic",0,IF(COUNTRY_INFO!$H109=1,COUNTRY_INFO!E109,0))) -> 0 | E109: =IF(INTRO!$E$39<>"Non-endemic", 0, IF(INTRO!$E$37="Non-endemic",0,IF(COUNTRY_INFO!$H109=1,COUNTRY_INFO!F109,0))) -> 0 | F109: =IF(INTRO!$E$39<>"Non-endemic", 0, IF(INTRO!$E$37="Non-endemic",0,IF(COUNTRY_INFO!$H109=1,COUNTRY_INFO!G109,0))) -> 0 | G109: 0 | H109: =IF(INTRO!$E$39="Non-endemic",IF(INTRO!$E$37="Non-endemic","Not required",COUNTRY_INFO!Q109),"Treat with IVM") -> Treat with IVM | I109: =IF(H109=1,IF(ALB_MBD!$J109<>" ",$G109-ALB_MBD!$J109,$G109),0) -> 0 | J109: 0 | L109: 0 | M109: 0
A110: =IF(INTRO!$E$39<>"Non-endemic", " ", IF(INTRO!$E$37="Non-endemic"," ", IF(COUNTRY_INFO!A110=0," ",COUNTRY_INFO!A110))) ->  | B110: =IF(INTRO!$E$39<>"Non-endemic", " ", IF(INTRO!$E$37="Non-endemic"," ", IF(COUNTRY_INFO!B110=0," ",COUNTRY_INFO!B110))) ->  | C110: =IF(INTRO!$E$39<>"Non-endemic", " ", IF(INTRO!$E$37="Non-endemic"," ", IF(COUNTRY_INFO!C110=0," ",COUNTRY_INFO!C110))) ->  | D110: =IF(INTRO!$E$39<>"Non-endemic", 0, IF(INTRO!$E$37="Non-endemic",0,IF(COUNTRY_INFO!$H110=1,COUNTRY_INFO!E110,0))) -> 0 | E110: =IF(INTRO!$E$39<>"Non-endemic", 0, IF(INTRO!$E$37="Non-endemic",0,IF(COUNTRY_INFO!$H110=1,COUNTRY_INFO!F110,0))) -> 0 | F110: =IF(INTRO!$E$39<>"Non-endemic", 0, IF(INTRO!$E$37="Non-endemic",0,IF(COUNTRY_INFO!$H110=1,COUNTRY_INFO!G110,0))) -> 0 | G110: 0 | H110: =IF(INTRO!$E$39="Non-endemic",IF(INTRO!$E$37="Non-endemic","Not required",COUNTRY_INFO!Q110),"Treat with IVM") -> Treat with IVM | I110: =IF(H110=1,IF(ALB_MBD!$J110<>" ",$G110-ALB_MBD!$J110,$G110),0) -> 0 | J110: 0 | L110: 0 | M110: 0
A111: =IF(INTRO!$E$39<>"Non-endemic", " ", IF(INTRO!$E$37="Non-endemic"," ", IF(COUNTRY_INFO!A111=0," ",COUNTRY_INFO!A111))) ->  | B111: =IF(INTRO!$E$39<>"Non-endemic", " ", IF(INTRO!$E$37="Non-endemic"," ", IF(COUNTRY_INFO!B111=0," ",COUNTRY_INFO!B111))) ->  | C111: =IF(INTRO!$E$39<>"Non-endemic", " ", IF(INTRO!$E$37="Non-endemic"," ", IF(COUNTRY_INFO!C111=0," ",COUNTRY_INFO!C111))) ->  | D111: =IF(INTRO!$E$39<>"Non-endemic", 0, IF(INTRO!$E$37="Non-endemic",0,IF(COUNTRY_INFO!$H111=1,COUNTRY_INFO!E111,0))) -> 0 | E111: =IF(INTRO!$E$39<>"Non-endemic", 0, IF(INTRO!$E$37="Non-endemic",0,IF(COUNTRY_INFO!$H111=1,COUNTRY_INFO!F111,0))) -> 0 | F111: =IF(INTRO!$E$39<>"Non-endemic", 0, IF(INTRO!$E$37="Non-endemic",0,IF(COUNTRY_INFO!$H111=1,COUNTRY_INFO!G111,0))) -> 0 | G111: 0 | H111: =IF(INTRO!$E$39="Non-endemic",IF(INTRO!$E$37="Non-endemic","Not required",COUNTRY_INFO!Q111),"Treat with IVM") -> Treat with IVM | I111: =IF(H111=1,IF(ALB_MBD!$J111<>" ",$G111-ALB_MBD!$J111,$G111),0) -> 0 | J111: 0 | L111: 0 | M111: 0
A112: =IF(INTRO!$E$39<>"Non-endemic", " ", IF(INTRO!$E$37="Non-endemic"," ", IF(COUNTRY_INFO!A112=0," ",COUNTRY_INFO!A112))) ->  | B112: =IF(INTRO!$E$39<>"Non-endemic", " ", IF(INTRO!$E$37="Non-endemic"," ", IF(COUNTRY_INFO!B112=0," ",COUNTRY_INFO!B112))) ->  | C112: =IF(INTRO!$E$39<>"Non-endemic", " ", IF(INTRO!$E$37="Non-endemic"," ", IF(COUNTRY_INFO!C112=0," ",COUNTRY_INFO!C112))) ->  | D112: =IF(INTRO!$E$39<>"Non-endemic", 0, IF(INTRO!$E$37="Non-endemic",0,IF(COUNTRY_INFO!$H112=1,COUNTRY_INFO!E112,0))) -> 0 | E112: =IF(INTRO!$E$39<>"Non-endemic", 0, IF(INTRO!$E$37="Non-endemic",0,IF(COUNTRY_INFO!$H112=1,COUNTRY_INFO!F112,0))) -> 0 | F112: =IF(INTRO!$E$39<>"Non-endemic", 0, IF(INTRO!$E$37="Non-endemic",0,IF(COUNTRY_INFO!$H112=1,COUNTRY_INFO!G112,0))) -> 0 | G112: 0 | H112: =IF(INTRO!$E$39="Non-endemic",IF(INTRO!$E$37="Non-endemic","Not required",COUNTRY_INFO!Q112),"Treat with IVM") -> Treat with IVM | I112: =IF(H112=1,IF(ALB_MBD!$J112<>" ",$G112-ALB_MBD!$J112,$G112),0) -> 0 | J112: 0 | L112: 0 | M112: 0
A113: =IF(INTRO!$E$39<>"Non-endemic", " ", IF(INTRO!$E$37="Non-endemic"," ", IF(COUNTRY_INFO!A113=0," ",COUNTRY_INFO!A113))) ->  | B113: =IF(INTRO!$E$39<>"Non-endemic", " ", IF(INTRO!$E$37="Non-endemic"," ", IF(COUNTRY_INFO!B113=0," ",COUNTRY_INFO!B113))) ->  | C113: =IF(INTRO!$E$39<>"Non-endemic", " ", IF(INTRO!$E$37="Non-endemic"," ", IF(COUNTRY_INFO!C113=0," ",COUNTRY_INFO!C113))) ->  | D113: =IF(INTRO!$E$39<>"Non-endemic", 0, IF(INTRO!$E$37="Non-endemic",0,IF(COUNTRY_INFO!$H113=1,COUNTRY_INFO!E113,0))) -> 0 | E113: =IF(INTRO!$E$39<>"Non-endemic", 0, IF(INTRO!$E$37="Non-endemic",0,IF(COUNTRY_INFO!$H113=1,COUNTRY_INFO!F113,0))) -> 0 | F113: =IF(INTRO!$E$39<>"Non-endemic", 0, IF(INTRO!$E$37="Non-endemic",0,IF(COUNTRY_INFO!$H113=1,COUNTRY_INFO!G113,0))) -> 0 | G113: 0 | H113: =IF(INTRO!$E$39="Non-endemic",IF(INTRO!$E$37="Non-endemic","Not required",COUNTRY_INFO!Q113),"Treat with IVM") -> Treat with IVM | I113: =IF(H113=1,IF(ALB_MBD!$J113<>" ",$G113-ALB_MBD!$J113,$G113),0) -> 0 | J113: 0 | L113: 0 | M113: 0
A114: =IF(INTRO!$E$39<>"Non-endemic", " ", IF(INTRO!$E$37="Non-endemic"," ", IF(COUNTRY_INFO!A114=0," ",COUNTRY_INFO!A114))) ->  | B114: =IF(INTRO!$E$39<>"Non-endemic", " ", IF(INTRO!$E$37="Non-endemic"," ", IF(COUNTRY_INFO!B114=0," ",COUNTRY_INFO!B114))) ->  | C114: =IF(INTRO!$E$39<>"Non-endemic", " ", IF(INTRO!$E$37="Non-endemic"," ", IF(COUNTRY_INFO!C114=0," ",COUNTRY_INFO!C114))) ->  | D114: =IF(INTRO!$E$39<>"Non-endemic", 0, IF(INTRO!$E$37="Non-endemic",0,IF(COUNTRY_INFO!$H114=1,COUNTRY_INFO!E114,0))) -> 0 | E114: =IF(INTRO!$E$39<>"Non-endemic", 0, IF(INTRO!$E$37="Non-endemic",0,IF(COUNTRY_INFO!$H114=1,COUNTRY_INFO!F114,0))) -> 0 | F114: =IF(INTRO!$E$39<>"Non-endemic", 0, IF(INTRO!$E$37="Non-endemic",0,IF(COUNTRY_INFO!$H114=1,COUNTRY_INFO!G114,0))) -> 0 | G114: 0 | H114: =IF(INTRO!$E$39="Non-endemic",IF(INTRO!$E$37="Non-endemic","Not required",COUNTRY_INFO!Q114),"Treat with IVM") -> Treat with IVM | I114: =IF(H114=1,IF(ALB_MBD!$J114<>" ",$G114-ALB_MBD!$J114,$G114),0) -> 0 | J114: 0 | L114: 0 | M114: 0
A115: =IF(INTRO!$E$39<>"Non-endemic", " ", IF(INTRO!$E$37="Non-endemic"," ", IF(COUNTRY_INFO!A115=0," ",COUNTRY_INFO!A115))) ->  | B115: =IF(INTRO!$E$39<>"Non-endemic", " ", IF(INTRO!$E$37="Non-endemic"," ", IF(COUNTRY_INFO!B115=0," ",COUNTRY_INFO!B115))) ->  | C115: =IF(INTRO!$E$39<>"Non-endemic", " ", IF(INTRO!$E$37="Non-endemic"," ", IF(COUNTRY_INFO!C115=0," ",COUNTRY_INFO!C115))) ->  | D115: =IF(INTRO!$E$39<>"Non-endemic", 0, IF(INTRO!$E$37="Non-endemic",0,IF(COUNTRY_INFO!$H115=1,COUNTRY_INFO!E115,0))) -> 0 | E115: =IF(INTRO!$E$39<>"Non-endemic", 0, IF(INTRO!$E$37="Non-endemic",0,IF(COUNTRY_INFO!$H115=1,COUNTRY_INFO!F115,0))) -> 0 | F115: =IF(INTRO!$E$39<>"Non-endemic", 0, IF(INTRO!$E$37="Non-endemic",0,IF(COUNTRY_INFO!$H115=1,COUNTRY_INFO!G115,0))) -> 0 | G115: 0 | H115: =IF(INTRO!$E$39="Non-endemic",IF(INTRO!$E$37="Non-endemic","Not required",COUNTRY_INFO!Q115),"Treat with IVM") -> Treat with IVM | I115: =IF(H115=1,IF(ALB_MBD!$J115<>" ",$G115-ALB_MBD!$J115,$G115),0) -> 0 | J115: 0 | L115: 0 | M115: 0
A116: =IF(INTRO!$E$39<>"Non-endemic", " ", IF(INTRO!$E$37="Non-endemic"," ", IF(COUNTRY_INFO!A116=0," ",COUNTRY_INFO!A116))) ->  | B116: =IF(INTRO!$E$39<>"Non-endemic", " ", IF(INTRO!$E$37="Non-endemic"," ", IF(COUNTRY_INFO!B116=0," ",COUNTRY_INFO!B116))) ->  | C116: =IF(INTRO!$E$39<>"Non-endemic", " ", IF(INTRO!$E$37="Non-endemic"," ", IF(COUNTRY_INFO!C116=0," ",COUNTRY_INFO!C116))) ->  | D116: =IF(INTRO!$E$39<>"Non-endemic", 0, IF(INTRO!$E$37="Non-endemic",0,IF(COUNTRY_INFO!$H116=1,COUNTRY_INFO!E116,0))) -> 0 | E116: =IF(INTRO!$E$39<>"Non-endemic", 0, IF(INTRO!$E$37="Non-endemic",0,IF(COUNTRY_INFO!$H116=1,COUNTRY_INFO!F116,0))) -> 0 | F116: =IF(INTRO!$E$39<>"Non-endemic", 0, IF(INTRO!$E$37="Non-endemic",0,IF(COUNTRY_INFO!$H116=1,COUNTRY_INFO!G116,0))) -> 0 | G116: 0 | H116: =IF(INTRO!$E$39="Non-endemic",IF(INTRO!$E$37="Non-endemic","Not required",COUNTRY_INFO!Q116),"Treat with IVM") -> Treat with IVM | I116: =IF(H116=1,IF(ALB_MBD!$J116<>" ",$G116-ALB_MBD!$J116,$G116),0) -> 0 | J116: 0 | L116: 0 | M116: 0
A117: =IF(INTRO!$E$39<>"Non-endemic", " ", IF(INTRO!$E$37="Non-endemic"," ", IF(COUNTRY_INFO!A117=0," ",COUNTRY_INFO!A117))) ->  | B117: =IF(INTRO!$E$39<>"Non-endemic", " ", IF(INTRO!$E$37="Non-endemic"," ", IF(COUNTRY_INFO!B117=0," ",COUNTRY_INFO!B117))) ->  | C117: =IF(INTRO!$E$39<>"Non-endemic", " ", IF(INTRO!$E$37="Non-endemic"," ", IF(COUNTRY_INFO!C117=0," ",COUNTRY_INFO!C117))) ->  | D117: =IF(INTRO!$E$39<>"Non-endemic", 0, IF(INTRO!$E$37="Non-endemic",0,IF(COUNTRY_INFO!$H117=1,COUNTRY_INFO!E117,0))) -> 0 | E117: =IF(INTRO!$E$39<>"Non-endemic", 0, IF(INTRO!$E$37="Non-endemic",0,IF(COUNTRY_INFO!$H117=1,COUNTRY_INFO!F117,0))) -> 0 | F117: =IF(INTRO!$E$39<>"Non-endemic", 0, IF(INTRO!$E$37="Non-endemic",0,IF(COUNTRY_INFO!$H117=1,COUNTRY_INFO!G117,0))) -> 0 | G117: 0 | H117: =IF(INTRO!$E$39="Non-endemic",IF(INTRO!$E$37="Non-endemic","Not required",COUNTRY_INFO!Q117),"Treat with IVM") -> Treat with IVM | I117: =IF(H117=1,IF(ALB_MBD!$J117<>" ",$G117-ALB_MBD!$J117,$G117),0) -> 0 | J117: 0 | L117: 0 | M117: 0
A118: =IF(INTRO!$E$39<>"Non-endemic", " ", IF(INTRO!$E$37="Non-endemic"," ", IF(COUNTRY_INFO!A118=0," ",COUNTRY_INFO!A118))) ->  | B118: =IF(INTRO!$E$39<>"Non-endemic", " ", IF(INTRO!$E$37="Non-endemic"," ", IF(COUNTRY_INFO!B118=0," ",COUNTRY_INFO!B118))) ->  | C118: =IF(INTRO!$E$39<>"Non-endemic", " ", IF(INTRO!$E$37="Non-endemic"," ", IF(COUNTRY_INFO!C118=0," ",COUNTRY_INFO!C118))) ->  | D118: =IF(INTRO!$E$39<>"Non-endemic", 0, IF(INTRO!$E$37="Non-endemic",0,IF(COUNTRY_INFO!$H118=1,COUNTRY_INFO!E118,0))) -> 0 | E118: =IF(INTRO!$E$39<>"Non-endemic", 0, IF(INTRO!$E$37="Non-endemic",0,IF(COUNTRY_INFO!$H118=1,COUNTRY_INFO!F118,0))) -> 0 | F118: =IF(INTRO!$E$39<>"Non-endemic", 0, IF(INTRO!$E$37="Non-endemic",0,IF(COUNTRY_INFO!$H118=1,COUNTRY_INFO!G118,0))) -> 0 | G118: 0 | H118: =IF(INTRO!$E$39="Non-endemic",IF(INTRO!$E$37="Non-endemic","Not required",COUNTRY_INFO!Q118),"Treat with IVM") -> Treat with IVM | I118: =IF(H118=1,IF(ALB_MBD!$J118<>" ",$G118-ALB_MBD!$J118,$G118),0) -> 0 | J118: 0 | L118: 0 | M118: 0
A119: =IF(INTRO!$E$39<>"Non-endemic", " ", IF(INTRO!$E$37="Non-endemic"," ", IF(COUNTRY_INFO!A119=0," ",COUNTRY_INFO!A119))) ->  | B119: =IF(INTRO!$E$39<>"Non-endemic", " ", IF(INTRO!$E$37="Non-endemic"," ", IF(COUNTRY_INFO!B119=0," ",COUNTRY_INFO!B119))) ->  | C119: =IF(INTRO!$E$39<>"Non-endemic", " ", IF(INTRO!$E$37="Non-endemic"," ", IF(COUNTRY_INFO!C119=0," ",COUNTRY_INFO!C119))) ->  | D119: =IF(INTRO!$E$39<>"Non-endemic", 0, IF(INTRO!$E$37="Non-endemic",0,IF(COUNTRY_INFO!$H119=1,COUNTRY_INFO!E119,0))) -> 0 | E119: =IF(INTRO!$E$39<>"Non-endemic", 0, IF(INTRO!$E$37="Non-endemic",0,IF(COUNTRY_INFO!$H119=1,COUNTRY_INFO!F119,0))) -> 0 | F119: =IF(INTRO!$E$39<>"Non-endemic", 0, IF(INTRO!$E$37="Non-endemic",0,IF(COUNTRY_INFO!$H119=1,COUNTRY_INFO!G119,0))) -> 0 | G119: 0 | H119: =IF(INTRO!$E$39="Non-endemic",IF(INTRO!$E$37="Non-endemic","Not required",COUNTRY_INFO!Q119),"Treat with IVM") -> Treat with IVM | I119: =IF(H119=1,IF(ALB_MBD!$J119<>" ",$G119-ALB_MBD!$J119,$G119),0) -> 0 | J119: 0 | L119: 0 | M119: 0
A120: =IF(INTRO!$E$39<>"Non-endemic", " ", IF(INTRO!$E$37="Non-endemic"," ", IF(COUNTRY_INFO!A120=0," ",COUNTRY_INFO!A120))) ->  | B120: =IF(INTRO!$E$39<>"Non-endemic", " ", IF(INTRO!$E$37="Non-endemic"," ", IF(COUNTRY_INFO!B120=0," ",COUNTRY_INFO!B120))) ->  | C120: =IF(INTRO!$E$39<>"Non-endemic", " ", IF(INTRO!$E$37="Non-endemic"," ", IF(COUNTRY_INFO!C120=0," ",COUNTRY_INFO!C120))) ->  | D120: =IF(INTRO!$E$39<>"Non-endemic", 0, IF(INTRO!$E$37="Non-endemic",0,IF(COUNTRY_INFO!$H120=1,COUNTRY_INFO!E120,0))) -> 0 | E120: =IF(INTRO!$E$39<>"Non-endemic", 0, IF(INTRO!$E$37="Non-endemic",0,IF(COUNTRY_INFO!$H120=1,COUNTRY_INFO!F120,0))) -> 0 | F120: =IF(INTRO!$E$39<>"Non-endemic", 0, IF(INTRO!$E$37="Non-endemic",0,IF(COUNTRY_INFO!$H120=1,COUNTRY_INFO!G120,0))) -> 0 | G120: 0 | H120: =IF(INTRO!$E$39="Non-endemic",IF(INTRO!$E$37="Non-endemic","Not required",COUNTRY_INFO!Q120),"Treat with IVM") -> Treat with IVM | I120: =IF(H120=1,IF(ALB_MBD!$J120<>" ",$G120-ALB_MBD!$J120,$G120),0) -> 0 | J120: 0 | L120: 0 | M120: 0
A121: =IF(INTRO!$E$39<>"Non-endemic", " ", IF(INTRO!$E$37="Non-endemic"," ", IF(COUNTRY_INFO!A121=0," ",COUNTRY_INFO!A121))) ->  | B121: =IF(INTRO!$E$39<>"Non-endemic", " ", IF(INTRO!$E$37="Non-endemic"," ", IF(COUNTRY_INFO!B121=0," ",COUNTRY_INFO!B121))) ->  | C121: =IF(INTRO!$E$39<>"Non-endemic", " ", IF(INTRO!$E$37="Non-endemic"," ", IF(COUNTRY_INFO!C121=0," ",COUNTRY_INFO!C121))) ->  | D121: =IF(INTRO!$E$39<>"Non-endemic", 0, IF(INTRO!$E$37="Non-endemic",0,IF(COUNTRY_INFO!$H121=1,COUNTRY_INFO!E121,0))) -> 0 | E121: =IF(INTRO!$E$39<>"Non-endemic", 0, IF(INTRO!$E$37="Non-endemic",0,IF(COUNTRY_INFO!$H121=1,COUNTRY_INFO!F121,0))) -> 0 | F121: =IF(INTRO!$E$39<>"Non-endemic", 0, IF(INTRO!$E$37="Non-endemic",0,IF(COUNTRY_INFO!$H121=1,COUNTRY_INFO!G121,0))) -> 0 | G121: 0 | H121: =IF(INTRO!$E$39="Non-endemic",IF(INTRO!$E$37="Non-endemic","Not required",COUNTRY_INFO!Q121),"Treat with IVM") -> Treat with IVM | I121: =IF(H121=1,IF(ALB_MBD!$J121<>" ",$G121-ALB_MBD!$J121,$G121),0) -> 0 | J121: 0 | L121: 0 | M121: 0
A122: =IF(INTRO!$E$39<>"Non-endemic", " ", IF(INTRO!$E$37="Non-endemic"," ", IF(COUNTRY_INFO!A122=0," ",COUNTRY_INFO!A122))) ->  | B122: =IF(INTRO!$E$39<>"Non-endemic", " ", IF(INTRO!$E$37="Non-endemic"," ", IF(COUNTRY_INFO!B122=0," ",COUNTRY_INFO!B122))) ->  | C122: =IF(INTRO!$E$39<>"Non-endemic", " ", IF(INTRO!$E$37="Non-endemic"," ", IF(COUNTRY_INFO!C122=0," ",COUNTRY_INFO!C122))) ->  | D122: =IF(INTRO!$E$39<>"Non-endemic", 0, IF(INTRO!$E$37="Non-endemic",0,IF(COUNTRY_INFO!$H122=1,COUNTRY_INFO!E122,0))) -> 0 | E122: =IF(INTRO!$E$39<>"Non-endemic", 0, IF(INTRO!$E$37="Non-endemic",0,IF(COUNTRY_INFO!$H122=1,COUNTRY_INFO!F122,0))) -> 0 | F122: =IF(INTRO!$E$39<>"Non-endemic", 0, IF(INTRO!$E$37="Non-endemic",0,IF(COUNTRY_INFO!$H122=1,COUNTRY_INFO!G122,0))) -> 0 | G122: 0 | H122: =IF(INTRO!$E$39="Non-endemic",IF(INTRO!$E$37="Non-endemic","Not required",COUNTRY_INFO!Q122),"Treat with IVM") -> Treat with IVM | I122: =IF(H122=1,IF(ALB_MBD!$J122<>" ",$G122-ALB_MBD!$J122,$G122),0) -> 0 | J122: 0 | L122: 0 | M122: 0
A123: =IF(INTRO!$E$39<>"Non-endemic", " ", IF(INTRO!$E$37="Non-endemic"," ", IF(COUNTRY_INFO!A123=0," ",COUNTRY_INFO!A123))) ->  | B123: =IF(INTRO!$E$39<>"Non-endemic", " ", IF(INTRO!$E$37="Non-endemic"," ", IF(COUNTRY_INFO!B123=0," ",COUNTRY_INFO!B123))) ->  | C123: =IF(INTRO!$E$39<>"Non-endemic", " ", IF(INTRO!$E$37="Non-endemic"," ", IF(COUNTRY_INFO!C123=0," ",COUNTRY_INFO!C123))) ->  | D123: =IF(INTRO!$E$39<>"Non-endemic", 0, IF(INTRO!$E$37="Non-endemic",0,IF(COUNTRY_INFO!$H123=1,COUNTRY_INFO!E123,0))) -> 0 | E123: =IF(INTRO!$E$39<>"Non-endemic", 0, IF(INTRO!$E$37="Non-endemic",0,IF(COUNTRY_INFO!$H123=1,COUNTRY_INFO!F123,0))) -> 0 | F123: =IF(INTRO!$E$39<>"Non-endemic", 0, IF(INTRO!$E$37="Non-endemic",0,IF(COUNTRY_INFO!$H123=1,COUNTRY_INFO!G123,0))) -> 0 | G123: 0 | H123: =IF(INTRO!$E$39="Non-endemic",IF(INTRO!$E$37="Non-endemic","Not required",COUNTRY_INFO!Q123),"Treat with IVM") -> Treat with IVM | I123: =IF(H123=1,IF(ALB_MBD!$J123<>" ",$G123-ALB_MBD!$J123,$G123),0) -> 0 | J123: 0 | L123: 0 | M123: 0
A124: =IF(INTRO!$E$39<>"Non-endemic", " ", IF(INTRO!$E$37="Non-endemic"," ", IF(COUNTRY_INFO!A124=0," ",COUNTRY_INFO!A124))) ->  | B124: =IF(INTRO!$E$39<>"Non-endemic", " ", IF(INTRO!$E$37="Non-endemic"," ", IF(COUNTRY_INFO!B124=0," ",COUNTRY_INFO!B124))) ->  | C124: =IF(INTRO!$E$39<>"Non-endemic", " ", IF(INTRO!$E$37="Non-endemic"," ", IF(COUNTRY_INFO!C124=0," ",COUNTRY_INFO!C124))) ->  | D124: =IF(INTRO!$E$39<>"Non-endemic", 0, IF(INTRO!$E$37="Non-endemic",0,IF(COUNTRY_INFO!$H124=1,COUNTRY_INFO!E124,0))) -> 0 | E124: =IF(INTRO!$E$39<>"Non-endemic", 0, IF(INTRO!$E$37="Non-endemic",0,IF(COUNTRY_INFO!$H124=1,COUNTRY_INFO!F124,0))) -> 0 | F124: =IF(INTRO!$E$39<>"Non-endemic", 0, IF(INTRO!$E$37="Non-endemic",0,IF(COUNTRY_INFO!$H124=1,COUNTRY_INFO!G124,0))) -> 0 | G124: 0 | H124: =IF(INTRO!$E$39="Non-endemic",IF(INTRO!$E$37="Non-endemic","Not required",COUNTRY_INFO!Q124),"Treat with IVM") -> Treat with IVM | I124: =IF(H124=1,IF(ALB_MBD!$J124<>" ",$G124-ALB_MBD!$J124,$G124),0) -> 0 | J124: 0 | L124: 0 | M124: 0
A125: =IF(INTRO!$E$39<>"Non-endemic", " ", IF(INTRO!$E$37="Non-endemic"," ", IF(COUNTRY_INFO!A125=0," ",COUNTRY_INFO!A125))) ->  | B125: =IF(INTRO!$E$39<>"Non-endemic", " ", IF(INTRO!$E$37="Non-endemic"," ", IF(COUNTRY_INFO!B125=0," ",COUNTRY_INFO!B125))) ->  | C125: =IF(INTRO!$E$39<>"Non-endemic", " ", IF(INTRO!$E$37="Non-endemic"," ", IF(COUNTRY_INFO!C125=0," ",COUNTRY_INFO!C125))) ->  | D125: =IF(INTRO!$E$39<>"Non-endemic", 0, IF(INTRO!$E$37="Non-endemic",0,IF(COUNTRY_INFO!$H125=1,COUNTRY_INFO!E125,0))) -> 0 | E125: =IF(INTRO!$E$39<>"Non-endemic", 0, IF(INTRO!$E$37="Non-endemic",0,IF(COUNTRY_INFO!$H125=1,COUNTRY_INFO!F125,0))) -> 0 | F125: =IF(INTRO!$E$39<>"Non-endemic", 0, IF(INTRO!$E$37="Non-endemic",0,IF(COUNTRY_INFO!$H125=1,COUNTRY_INFO!G125,0))) -> 0 | G125: 0 | H125: =IF(INTRO!$E$39="Non-endemic",IF(INTRO!$E$37="Non-endemic","Not required",COUNTRY_INFO!Q125),"Treat with IVM") -> Treat with IVM | I125: =IF(H125=1,IF(ALB_MBD!$J125<>" ",$G125-ALB_MBD!$J125,$G125),0) -> 0 | J125: 0 | L125: 0 | M125: 0
A126: =IF(INTRO!$E$39<>"Non-endemic", " ", IF(INTRO!$E$37="Non-endemic"," ", IF(COUNTRY_INFO!A126=0," ",COUNTRY_INFO!A126))) ->  | B126: =IF(INTRO!$E$39<>"Non-endemic", " ", IF(INTRO!$E$37="Non-endemic"," ", IF(COUNTRY_INFO!B126=0," ",COUNTRY_INFO!B126))) ->  | C126: =IF(INTRO!$E$39<>"Non-endemic", " ", IF(INTRO!$E$37="Non-endemic"," ", IF(COUNTRY_INFO!C126=0," ",COUNTRY_INFO!C126))) ->  | D126: =IF(INTRO!$E$39<>"Non-endemic", 0, IF(INTRO!$E$37="Non-endemic",0,IF(COUNTRY_INFO!$H126=1,COUNTRY_INFO!E126,0))) -> 0 | E126: =IF(INTRO!$E$39<>"Non-endemic", 0, IF(INTRO!$E$37="Non-endemic",0,IF(COUNTRY_INFO!$H126=1,COUNTRY_INFO!F126,0))) -> 0 | F126: =IF(INTRO!$E$39<>"Non-endemic", 0, IF(INTRO!$E$37="Non-endemic",0,IF(COUNTRY_INFO!$H126=1,COUNTRY_INFO!G126,0))) -> 0 | G126: 0 | H126: =IF(INTRO!$E$39="Non-endemic",IF(INTRO!$E$37="Non-endemic","Not required",COUNTRY_INFO!Q126),"Treat with IVM") -> Treat with IVM | I126: =IF(H126=1,IF(ALB_MBD!$J126<>" ",$G126-ALB_MBD!$J126,$G126),0) -> 0 | J126: 0 | L126: 0 | M126: 0
A127: =IF(INTRO!$E$39<>"Non-endemic", " ", IF(INTRO!$E$37="Non-endemic"," ", IF(COUNTRY_INFO!A127=0," ",COUNTRY_INFO!A127))) ->  | B127: =IF(INTRO!$E$39<>"Non-endemic", " ", IF(INTRO!$E$37="Non-endemic"," ", IF(COUNTRY_INFO!B127=0," ",COUNTRY_INFO!B127))) ->  | C127: =IF(INTRO!$E$39<>"Non-endemic", " ", IF(INTRO!$E$37="Non-endemic"," ", IF(COUNTRY_INFO!C127=0," ",COUNTRY_INFO!C127))) ->  | D127: =IF(INTRO!$E$39<>"Non-endemic", 0, IF(INTRO!$E$37="Non-endemic",0,IF(COUNTRY_INFO!$H127=1,COUNTRY_INFO!E127,0))) -> 0 | E127: =IF(INTRO!$E$39<>"Non-endemic", 0, IF(INTRO!$E$37="Non-endemic",0,IF(COUNTRY_INFO!$H127=1,COUNTRY_INFO!F127,0))) -> 0 | F127: =IF(INTRO!$E$39<>"Non-endemic", 0, IF(INTRO!$E$37="Non-endemic",0,IF(COUNTRY_INFO!$H127=1,COUNTRY_INFO!G127,0))) -> 0 | G127: 0 | H127: =IF(INTRO!$E$39="Non-endemic",IF(INTRO!$E$37="Non-endemic","Not required",COUNTRY_INFO!Q127),"Treat with IVM") -> Treat with IVM | I127: =IF(H127=1,IF(ALB_MBD!$J127<>" ",$G127-ALB_MBD!$J127,$G127),0) -> 0 | J127: 0 | L127: 0 | M127: 0
A128: =IF(INTRO!$E$39<>"Non-endemic", " ", IF(INTRO!$E$37="Non-endemic"," ", IF(COUNTRY_INFO!A128=0," ",COUNTRY_INFO!A128))) ->  | B128: =IF(INTRO!$E$39<>"Non-endemic", " ", IF(INTRO!$E$37="Non-endemic"," ", IF(COUNTRY_INFO!B128=0," ",COUNTRY_INFO!B128))) ->  | C128: =IF(INTRO!$E$39<>"Non-endemic", " ", IF(INTRO!$E$37="Non-endemic"," ", IF(COUNTRY_INFO!C128=0," ",COUNTRY_INFO!C128))) ->  | D128: =IF(INTRO!$E$39<>"Non-endemic", 0, IF(INTRO!$E$37="Non-endemic",0,IF(COUNTRY_INFO!$H128=1,COUNTRY_INFO!E128,0))) -> 0 | E128: =IF(INTRO!$E$39<>"Non-endemic", 0, IF(INTRO!$E$37="Non-endemic",0,IF(COUNTRY_INFO!$H128=1,COUNTRY_INFO!F128,0))) -> 0 | F128: =IF(INTRO!$E$39<>"Non-endemic", 0, IF(INTRO!$E$37="Non-endemic",0,IF(COUNTRY_INFO!$H128=1,COUNTRY_INFO!G128,0))) -> 0 | G128: 0 | H128: =IF(INTRO!$E$39="Non-endemic",IF(INTRO!$E$37="Non-endemic","Not required",COUNTRY_INFO!Q128),"Treat with IVM") -> Treat with IVM | I128: =IF(H128=1,IF(ALB_MBD!$J128<>" ",$G128-ALB_MBD!$J128,$G128),0) -> 0 | J128: 0 | L128: 0 | M128: 0
A129: =IF(INTRO!$E$39<>"Non-endemic", " ", IF(INTRO!$E$37="Non-endemic"," ", IF(COUNTRY_INFO!A129=0," ",COUNTRY_INFO!A129))) ->  | B129: =IF(INTRO!$E$39<>"Non-endemic", " ", IF(INTRO!$E$37="Non-endemic"," ", IF(COUNTRY_INFO!B129=0," ",COUNTRY_INFO!B129))) ->  | C129: =IF(INTRO!$E$39<>"Non-endemic", " ", IF(INTRO!$E$37="Non-endemic"," ", IF(COUNTRY_INFO!C129=0," ",COUNTRY_INFO!C129))) ->  | D129: =IF(INTRO!$E$39<>"Non-endemic", 0, IF(INTRO!$E$37="Non-endemic",0,IF(COUNTRY_INFO!$H129=1,COUNTRY_INFO!E129,0))) -> 0 | E129: =IF(INTRO!$E$39<>"Non-endemic", 0, IF(INTRO!$E$37="Non-endemic",0,IF(COUNTRY_INFO!$H129=1,COUNTRY_INFO!F129,0))) -> 0 | F129: =IF(INTRO!$E$39<>"Non-endemic", 0, IF(INTRO!$E$37="Non-endemic",0,IF(COUNTRY_INFO!$H129=1,COUNTRY_INFO!G129,0))) -> 0 | G129: 0 | H129: =IF(INTRO!$E$39="Non-endemic",IF(INTRO!$E$37="Non-endemic","Not required",COUNTRY_INFO!Q129),"Treat with IVM") -> Treat with IVM | I129: =IF(H129=1,IF(ALB_MBD!$J129<>" ",$G129-ALB_MBD!$J129,$G129),0) -> 0 | J129: 0 | L129: 0 | M129: 0
A130: =IF(INTRO!$E$39<>"Non-endemic", " ", IF(INTRO!$E$37="Non-endemic"," ", IF(COUNTRY_INFO!A130=0," ",COUNTRY_INFO!A130))) ->  | B130: =IF(INTRO!$E$39<>"Non-endemic", " ", IF(INTRO!$E$37="Non-endemic"," ", IF(COUNTRY_INFO!B130=0," ",COUNTRY_INFO!B130))) ->  | C130: =IF(INTRO!$E$39<>"Non-endemic", " ", IF(INTRO!$E$37="Non-endemic"," ", IF(COUNTRY_INFO!C130=0," ",COUNTRY_INFO!C130))) ->  | D130: =IF(INTRO!$E$39<>"Non-endemic", 0, IF(INTRO!$E$37="Non-endemic",0,IF(COUNTRY_INFO!$H130=1,COUNTRY_INFO!E130,0))) -> 0 | E130: =IF(INTRO!$E$39<>"Non-endemic", 0, IF(INTRO!$E$37="Non-endemic",0,IF(COUNTRY_INFO!$H130=1,COUNTRY_INFO!F130,0))) -> 0 | F130: =IF(INTRO!$E$39<>"Non-endemic", 0, IF(INTRO!$E$37="Non-endemic",0,IF(COUNTRY_INFO!$H130=1,COUNTRY_INFO!G130,0))) -> 0 | G130: 0 | H130: =IF(INTRO!$E$39="Non-endemic",IF(INTRO!$E$37="Non-endemic","Not required",COUNTRY_INFO!Q130),"Treat with IVM") -> Treat with IVM | I130: =IF(H130=1,IF(ALB_MBD!$J130<>" ",$G130-ALB_MBD!$J130,$G130),0) -> 0 | J130: 0 | L130: 0 | M130: 0
A131: =IF(INTRO!$E$39<>"Non-endemic", " ", IF(INTRO!$E$37="Non-endemic"," ", IF(COUNTRY_INFO!A131=0," ",COUNTRY_INFO!A131))) ->  | B131: =IF(INTRO!$E$39<>"Non-endemic", " ", IF(INTRO!$E$37="Non-endemic"," ", IF(COUNTRY_INFO!B131=0," ",COUNTRY_INFO!B131))) ->  | C131: =IF(INTRO!$E$39<>"Non-endemic", " ", IF(INTRO!$E$37="Non-endemic"," ", IF(COUNTRY_INFO!C131=0," ",COUNTRY_INFO!C131))) ->  | D131: =IF(INTRO!$E$39<>"Non-endemic", 0, IF(INTRO!$E$37="Non-endemic",0,IF(COUNTRY_INFO!$H131=1,COUNTRY_INFO!E131,0))) -> 0 | E131: =IF(INTRO!$E$39<>"Non-endemic", 0, IF(INTRO!$E$37="Non-endemic",0,IF(COUNTRY_INFO!$H131=1,COUNTRY_INFO!F131,0))) -> 0 | F131: =IF(INTRO!$E$39<>"Non-endemic", 0, IF(INTRO!$E$37="Non-endemic",0,IF(COUNTRY_INFO!$H131=1,COUNTRY_INFO!G131,0))) -> 0 | G131: 0 | H131: =IF(INTRO!$E$39="Non-endemic",IF(INTRO!$E$37="Non-endemic","Not required",COUNTRY_INFO!Q131),"Treat with IVM") -> Treat with IVM | I131: =IF(H131=1,IF(ALB_MBD!$J131<>" ",$G131-ALB_MBD!$J131,$G131),0) -> 0 | J131: 0 | L131: 0 | M131: 0
A132: =IF(INTRO!$E$39<>"Non-endemic", " ", IF(INTRO!$E$37="Non-endemic"," ", IF(COUNTRY_INFO!A132=0," ",COUNTRY_INFO!A132))) ->  | B132: =IF(INTRO!$E$39<>"Non-endemic", " ", IF(INTRO!$E$37="Non-endemic"," ", IF(COUNTRY_INFO!B132=0," ",COUNTRY_INFO!B132))) ->  | C132: =IF(INTRO!$E$39<>"Non-endemic", " ", IF(INTRO!$E$37="Non-endemic"," ", IF(COUNTRY_INFO!C132=0," ",COUNTRY_INFO!C132))) ->  | D132: =IF(INTRO!$E$39<>"Non-endemic", 0, IF(INTRO!$E$37="Non-endemic",0,IF(COUNTRY_INFO!$H132=1,COUNTRY_INFO!E132,0))) -> 0 | E132: =IF(INTRO!$E$39<>"Non-endemic", 0, IF(INTRO!$E$37="Non-endemic",0,IF(COUNTRY_INFO!$H132=1,COUNTRY_INFO!F132,0))) -> 0 | F132: =IF(INTRO!$E$39<>"Non-endemic", 0, IF(INTRO!$E$37="Non-endemic",0,IF(COUNTRY_INFO!$H132=1,COUNTRY_INFO!G132,0))) -> 0 | G132: 0 | H132: =IF(INTRO!$E$39="Non-endemic",IF(INTRO!$E$37="Non-endemic","Not required",COUNTRY_INFO!Q132),"Treat with IVM") -> Treat with IVM | I132: =IF(H132=1,IF(ALB_MBD!$J132<>" ",$G132-ALB_MBD!$J132,$G132),0) -> 0 | J132: 0 | L132: 0 | M132: 0
A133: =IF(INTRO!$E$39<>"Non-endemic", " ", IF(INTRO!$E$37="Non-endemic"," ", IF(COUNTRY_INFO!A133=0," ",COUNTRY_INFO!A133))) ->  | B133: =IF(INTRO!$E$39<>"Non-endemic", " ", IF(INTRO!$E$37="Non-endemic"," ", IF(COUNTRY_INFO!B133=0," ",COUNTRY_INFO!B133))) ->  | C133: =IF(INTRO!$E$39<>"Non-endemic", " ", IF(INTRO!$E$37="Non-endemic"," ", IF(COUNTRY_INFO!C133=0," ",COUNTRY_INFO!C133))) ->  | D133: =IF(INTRO!$E$39<>"Non-endemic", 0, IF(INTRO!$E$37="Non-endemic",0,IF(COUNTRY_INFO!$H133=1,COUNTRY_INFO!E133,0))) -> 0 | E133: =IF(INTRO!$E$39<>"Non-endemic", 0, IF(INTRO!$E$37="Non-endemic",0,IF(COUNTRY_INFO!$H133=1,COUNTRY_INFO!F133,0))) -> 0 | F133: =IF(INTRO!$E$39<>"Non-endemic", 0, IF(INTRO!$E$37="Non-endemic",0,IF(COUNTRY_INFO!$H133=1,COUNTRY_INFO!G133,0))) -> 0 | G133: 0 | H133: =IF(INTRO!$E$39="Non-endemic",IF(INTRO!$E$37="Non-endemic","Not required",COUNTRY_INFO!Q133),"Treat with IVM") -> Treat with IVM | I133: =IF(H133=1,IF(ALB_MBD!$J133<>" ",$G133-ALB_MBD!$J133,$G133),0) -> 0 | J133: 0 | L133: 0 | M133: 0
A134: =IF(INTRO!$E$39<>"Non-endemic", " ", IF(INTRO!$E$37="Non-endemic"," ", IF(COUNTRY_INFO!A134=0," ",COUNTRY_INFO!A134))) ->  | B134: =IF(INTRO!$E$39<>"Non-endemic", " ", IF(INTRO!$E$37="Non-endemic"," ", IF(COUNTRY_INFO!B134=0," ",COUNTRY_INFO!B134))) ->  | C134: =IF(INTRO!$E$39<>"Non-endemic", " ", IF(INTRO!$E$37="Non-endemic"," ", IF(COUNTRY_INFO!C134=0," ",COUNTRY_INFO!C134))) ->  | D134: =IF(INTRO!$E$39<>"Non-endemic", 0, IF(INTRO!$E$37="Non-endemic",0,IF(COUNTRY_INFO!$H134=1,COUNTRY_INFO!E134,0))) -> 0 | E134: =IF(INTRO!$E$39<>"Non-endemic", 0, IF(INTRO!$E$37="Non-endemic",0,IF(COUNTRY_INFO!$H134=1,COUNTRY_INFO!F134,0))) -> 0 | F134: =IF(INTRO!$E$39<>"Non-endemic", 0, IF(INTRO!$E$37="Non-endemic",0,IF(COUNTRY_INFO!$H134=1,COUNTRY_INFO!G134,0))) -> 0 | G134: 0 | H134: =IF(INTRO!$E$39="Non-endemic",IF(INTRO!$E$37="Non-endemic","Not required",COUNTRY_INFO!Q134),"Treat with IVM") -> Treat with IVM | I134: =IF(H134=1,IF(ALB_MBD!$J134<>" ",$G134-ALB_MBD!$J134,$G134),0) -> 0 | J134: 0 | L134: 0 | M134: 0
